Workbook

Sheet INTRO
C1: Cette version sera utilisée par les pays endémiques à la Loase
B2: Formulaire de demande commune de médicaments pour CP v.3.1 (L)
B4: Dans le cadre des efforts mondiaux entrepris pour accélérer l'expansion de la chimioprévention (CP) pour l'élimination de la filariose lymphatique et la lutte contre la schistosomiase et les géohelminthiases, l'Organisation mondiale de la Santé (OMS) facilite l'approvisionnement en albendazole, comprimés de 400 mg (GSK), pour les programmes nationaux d'élimination de la filariose lymphatique et programmes nationaux de lutte contre les géohelminthiases; en diethylcarbamazine, comprimés de 100 mg (Eisai), pour les programmes nationaux d'élimination de la filariose lymphatique; en mebendazole, comprimés de 500 mg (J&J) pour les programmes nationaux de lutte contre les géohelminthiases et en praziquantel, comprimés de 600 mg (Merck KGaA), destinés aux enfants d'âge scolaire, pour les programmes nationaux de lutte contre la schistosomiase. L'OMS contribue également à l'approvisionnement en ivermectine, comprimés de 3 mg (Merck), pour les programmes de donation pour l'onchocercose et la filariose lymphatique. Cet outil Excel est concu pour aider les pays à quantifier le nombre de comprimés nécessaires, selon le traitement de chimioprévention requis, pour atteindre les objectifs de couverture de traitement de populations et districts pour l'année de la demande de médicaments. Le résultat de cet outil est une demande commune de médicaments pour la chimioprévention des maladies tropicales négligées, qui peut être imprimée, signée et soumise à l'OMS pour la demande de ces médicaments.
B6: Structure de l'application (feuilles de travail) :
B8: INTRO | C8: Cette feuille contient des instructions pour compléter le formulaire de demande de médicaments pour la chimioprévention et des informations sur le statut de la chimioprévention pour les maladies d'endémie du pays.
B9: COUNTRY_INFO | C9: Cette feuille contient des informations sur la structure administrative du pays, la population par groupe d'âge, le statut d'endémicité pour chaque maladie, la population devant être traitée par chimioprévention et les interventions prévues.
B10: DEC, ALB_MBD, PZQ et IVM | C10: Ces feuilles contiennent des informations sur l'endémicité des districts ciblés pour le traitement aux médicaments spécifiques à la chimioprévention, les plans de traitement, et le nombre de comprimés requis et demandés.
B11: SUMMARY | C11: Cette feuille inclut un résumé du nombre de comprimés demandés, des informations concernant le stock et les dates de soumission de la demande de médicaments. Avant de générer le rapport (run macros), veuillez sélectionner le médicament pour lequel le rapport est nécessaire. Veuillez suivre la même règle pour voir le nombre de personnes à traiter pour les maladies spécifiques. Cette feuille doit être imprimée et soumise en tant que "Formulaire de demande commune de médicaments pour chimioprévention" (voir les instructions pour la soumission du formulaire sous la feuille SUMMARY).
B13: Instructions pour la saisie des données
B15: La plupart des cellules des feuilles de travail mentionnées ci-dessus contiennent des formules calculées automatiquement en fonction du protocole de traitement recommandé par l'OMS pour chaque maladie. Voir : http://www.who.int/neglected_diseases/preventive_chemotherapy/pct_manual/en/index.html
B17: Veuillez entrer vos données dans les cellules en fonction de leur code de couleur :
C19: Blanc - la cellule n'est pas protégée. Veuillez entrer la valeur de l'indicateur demandé.
C21: Jaune - la cellule est protégée et inclut le nom de l'indicateur. Aucune entrée de données requise.
C23: Orange - la cellule n'est pas protégée et contient un menu déroulant. Veuillez sélectionner la valeur dans le menu déroulant.
C26: Vert - la cellule n'est pas protégée et contient des formules. Veuillez changer la valeur indiquée uniquement si vos données sont différentes de celles calculées automatiquement.
C29: Bleu - la cellule est protégée et contient des formules. Aucune entrée de données requise.
B31: Données pays
B33: PAYS | E33: Angola
B35: Année de la demande de médicaments | E35: 2023
B37: Le pays est-il endémique à la filariose lymphatique (FL) ? | E37: Endémique
B39: Le pays est-il endémique à l'onchocercose (ONCHO) ? | E39: Endémique
B41: Le pays est-il endémique aux géohelminthiases (STH) ? | E41: Endémique
B43: Le pays est-il endémique à la schistosomiase (SCH) ? | E43: Endémique
B45: Combien d'unités administratives compte le pays ? | E45: 164
B47: Si les données démographiques par groupe d'âge ne sont pas disponibles au second niveau administratif, veuillez entrer la proportion (%) de population, par groupe d'âge, du pays. Si les données sont disponibles, veuillez laisser les cellules vierges.
B48: 1-4 ans | C48: Enfants d'âge pré-scolaire (EAPréS) | E48: 0.16
B49: 5-14 ans | C49: Enfants d'âge scolaire (EAS) | E49: 0.279
B50: 15 ans et plus | C50: Adultes | E50: 0.527

Sheet COUNTRY_INFO
A1: INFORMATIONS PAYS
A2: Struture administrative, population par groupe d'âge, statut d'endémicité et interventions planifiées | V2: 1.03
A4: TOTAL | D4: =SUM(D$9:D$1000) -> 34833721 | E4: =SUM(E$9:E$1000) -> 5573388 | F4: =SUM(F$9:F$1000) -> 9718611 | G4: =SUM(G$9:G$1000) -> 18357369 | M4: =SUM(M$9:M$1000) -> 4323377 | N4: =SUM(N$9:N$1000) -> 6772368 | O4: =SUM(O$9:O$1000) -> 3909105 | P4: =SUM(P$9:P$1000) -> 10699270
A6: Structure administrative du pays | D6: Population | H6: Endémicité | M6: Population nécessitant la CP | Q6: Nombre de tournées de traitement prévues pour l'année | U6: Enquêtes épidémiologiques planifiées pour l’année
A7: Pays | B7: Région/Département | C7: District | D7: Total | E7: EAPréS | F7: EAS | G7: Adultes | H7: FL | I7: Oncho | J7: STH | K7: SCH | L7: Loa | M7: FL | N7: Oncho | O7: STH | P7: SCH | Q7: FL | R7: Oncho | S7: STH | T7: SCH | U7: FL | V7: Oncho | W7: STH | X7: SCH | Y7: IU_ID | Z7: IU_NAME | AB7: x | AC7: x | AD7: x | AE7: x | AF7: x | AG7: x | AH7: x | AI7: x | AJ7: x | AK7: x | AL7: x | AM7: x | AN7: x | AO7: x | AP7: x | AQ7: x | AR7: x | AS7: x | AT7: x | AU7: x | AV7: x
A9: =IF(INTRO!$E$33<>0,INTRO!$E$33, " ") -> Angola | B9: BENGO | C9: AMBRIZ | D9: 33204 | E9: =IF(INTRO!$E$48="","",ROUND($D9*INTRO!$E$48,0)) -> 5313 | F9: =IF(INTRO!$E$49="","",ROUND($D9*INTRO!$E$49,0)) -> 9264 | G9: =IF(INTRO!$E$50="","",ROUND($D9*INTRO!$E$50,0)) -> 17499 | H9: 1 | I9: 4 | J9: 1 | K9: 3 | L9: 1 | M9: =IF(INTRO!$E$37="Endémique",IF($H9>0,IF($H9=4,"Inconnu",IF($H9=99,"Interrompu",$D9)),0),"Non requis") -> 33204 | N9: =IF(INTRO!$E$39="Endémique", IF($I9>0, IF($I9=4,"Inconnu",IF($I9=99,"Interrompu",$D9)), 0),"Non requis") -> Inconnu | O9: =IF(INTRO!$E$41="Endémique", IF(AND($J9>1,$J9<5), IF($J9=4, "Inconnu", E9+F9), 0),"Non requis") -> 0 | P9: 18499 | Q9: 1 | R9: 0 | S9: 0 | T9: 1 | Y9: 2049 | Z9: AMBRIZ
A10: =IF(INTRO!$E$33<>0,INTRO!$E$33, " ") -> Angola | B10: BENGO | C10: BULA ATUMBA | D10: 19670 | E10: =IF(INTRO!$E$48="","",ROUND($D10*INTRO!$E$48,0)) -> 3147 | F10: =IF(INTRO!$E$49="","",ROUND($D10*INTRO!$E$49,0)) -> 5488 | G10: =IF(INTRO!$E$50="","",ROUND($D10*INTRO!$E$50,0)) -> 10366 | H10: 1 | I10: 4 | J10: 3 | K10: 1 | L10: 1 | M10: =IF(INTRO!$E$37="Endémique",IF($H10>0,IF($H10=4,"Inconnu",IF($H10=99,"Interrompu",$D10)),0),"Non requis") -> 19670 | N10: =IF(INTRO!$E$39="Endémique", IF($I10>0, IF($I10=4,"Inconnu",IF($I10=99,"Interrompu",$D10)), 0),"Non requis") -> Inconnu | O10: =IF(INTRO!$E$41="Endémique", IF(AND($J10>1,$J10<5), IF($J10=4, "Inconnu", E10+F10), 0),"Non requis") -> 8635 | P10: 5051 | Q10: 1 | R10: 0 | S10: 2 | T10: 0 | Y10: 2088 | Z10: BULA ATUMBA
A11: =IF(INTRO!$E$33<>0,INTRO!$E$33, " ") -> Angola | B11: BENGO | C11: DANDE | D11: 325323 | E11: =IF(INTRO!$E$48="","",ROUND($D11*INTRO!$E$48,0)) -> 52052 | F11: =IF(INTRO!$E$49="","",ROUND($D11*INTRO!$E$49,0)) -> 90765 | G11: =IF(INTRO!$E$50="","",ROUND($D11*INTRO!$E$50,0)) -> 171445 | H11: 1 | I11: 4 | J11: 1 | K11: 3 | L11: 1 | M11: =IF(INTRO!$E$37="Endémique",IF($H11>0,IF($H11=4,"Inconnu",IF($H11=99,"Interrompu",$D11)),0),"Non requis") -> 325323 | N11: =IF(INTRO!$E$39="Endémique", IF($I11>0, IF($I11=4,"Inconnu",IF($I11=99,"Interrompu",$D11)), 0),"Non requis") -> Inconnu | O11: =IF(INTRO!$E$41="Endémique", IF(AND($J11>1,$J11<5), IF($J11=4, "Inconnu", E11+F11), 0),"Non requis") -> 0 | P11: 119223 | Q11: 1 | R11: 0 | S11: 0 | T11: 1 | Y11: 2050 | Z11: DANDE
A12: =IF(INTRO!$E$33<>0,INTRO!$E$33, " ") -> Angola | B12: BENGO | C12: DEMBOS | D12: 43943 | E12: =IF(INTRO!$E$48="","",ROUND($D12*INTRO!$E$48,0)) -> 7031 | F12: =IF(INTRO!$E$49="","",ROUND($D12*INTRO!$E$49,0)) -> 12260 | G12: =IF(INTRO!$E$50="","",ROUND($D12*INTRO!$E$50,0)) -> 23158 | H12: 1 | I12: 4 | J12: 3 | K12: 1 | L12: 1 | M12: =IF(INTRO!$E$37="Endémique",IF($H12>0,IF($H12=4,"Inconnu",IF($H12=99,"Interrompu",$D12)),0),"Non requis") -> 43943 | N12: =IF(INTRO!$E$39="Endémique", IF($I12>0, IF($I12=4,"Inconnu",IF($I12=99,"Interrompu",$D12)), 0),"Non requis") -> Inconnu | O12: =IF(INTRO!$E$41="Endémique", IF(AND($J12>1,$J12<5), IF($J12=4, "Inconnu", E12+F12), 0),"Non requis") -> 19291 | P12: 8319 | Q12: 1 | R12: 0 | S12: 2 | T12: 0 | Y12: 2089 | Z12: DEMBOS
A13: =IF(INTRO!$E$33<>0,INTRO!$E$33, " ") -> Angola | B13: BENGO | C13: NAMBUANGONGO | D13: 89006 | E13: =IF(INTRO!$E$48="","",ROUND($D13*INTRO!$E$48,0)) -> 14241 | F13: =IF(INTRO!$E$49="","",ROUND($D13*INTRO!$E$49,0)) -> 24833 | G13: =IF(INTRO!$E$50="","",ROUND($D13*INTRO!$E$50,0)) -> 46906 | H13: 1 | I13: 4 | J13: 2 | K13: 2 | L13: 1 | M13: =IF(INTRO!$E$37="Endémique",IF($H13>0,IF($H13=4,"Inconnu",IF($H13=99,"Interrompu",$D13)),0),"Non requis") -> 89006 | N13: =IF(INTRO!$E$39="Endémique", IF($I13>0, IF($I13=4,"Inconnu",IF($I13=99,"Interrompu",$D13)), 0),"Non requis") -> Inconnu | O13: =IF(INTRO!$E$41="Endémique", IF(AND($J13>1,$J13<5), IF($J13=4, "Inconnu", E13+F13), 0),"Non requis") -> 39074 | P13: 22178 | Q13: 1 | R13: 0 | S13: 1 | T13: 1 | Y13: 2053 | Z13: NAMBUANGONGO
A14: =IF(INTRO!$E$33<>0,INTRO!$E$33, " ") -> Angola | B14: BENGO | C14: PANGO ALUQUEM | D14: 10241 | E14: =IF(INTRO!$E$48="","",ROUND($D14*INTRO!$E$48,0)) -> 1639 | F14: =IF(INTRO!$E$49="","",ROUND($D14*INTRO!$E$49,0)) -> 2857 | G14: =IF(INTRO!$E$50="","",ROUND($D14*INTRO!$E$50,0)) -> 5397 | H14: 0 | I14: 4 | J14: 3 | K14: 2 | L14: 1 | M14: =IF(INTRO!$E$37="Endémique",IF($H14>0,IF($H14=4,"Inconnu",IF($H14=99,"Interrompu",$D14)),0),"Non requis") -> 0 | N14: =IF(INTRO!$E$39="Endémique", IF($I14>0, IF($I14=4,"Inconnu",IF($I14=99,"Interrompu",$D14)), 0),"Non requis") -> Inconnu | O14: =IF(INTRO!$E$41="Endémique", IF(AND($J14>1,$J14<5), IF($J14=4, "Inconnu", E14+F14), 0),"Non requis") -> 4496 | P14: 2726 | Q14: 0 | R14: 0 | S14: 2 | T14: 1 | Y14: 2096 | Z14: PANGO ALUQUEM
A15: =IF(INTRO!$E$33<>0,INTRO!$E$33, " ") -> Angola | B15: BENGUELA | C15: BAIA FARTA | D15: 140691 | E15: =IF(INTRO!$E$48="","",ROUND($D15*INTRO!$E$48,0)) -> 22511 | F15: =IF(INTRO!$E$49="","",ROUND($D15*INTRO!$E$49,0)) -> 39253 | G15: =IF(INTRO!$E$50="","",ROUND($D15*INTRO!$E$50,0)) -> 74144 | H15: 0 | I15: 4 | J15: 0 | K15: 2 | L15: 0 | M15: =IF(INTRO!$E$37="Endémique",IF($H15>0,IF($H15=4,"Inconnu",IF($H15=99,"Interrompu",$D15)),0),"Non requis") -> 0 | N15: =IF(INTRO!$E$39="Endémique", IF($I15>0, IF($I15=4,"Inconnu",IF($I15=99,"Interrompu",$D15)), 0),"Non requis") -> Inconnu | O15: =IF(INTRO!$E$41="Endémique", IF(AND($J15>1,$J15<5), IF($J15=4, "Inconnu", E15+F15), 0),"Non requis") -> 0 | P15: 49781 | Q15: 0 | R15: 0 | S15: 0 | T15: 1 | Y15: 2054 | Z15: BAIA FARTA
A16: =IF(INTRO!$E$33<>0,INTRO!$E$33, " ") -> Angola | B16: BENGUELA | C16: BALOMBO | D16: 142157 | E16: =IF(INTRO!$E$48="","",ROUND($D16*INTRO!$E$48,0)) -> 22745 | F16: =IF(INTRO!$E$49="","",ROUND($D16*INTRO!$E$49,0)) -> 39662 | G16: =IF(INTRO!$E$50="","",ROUND($D16*INTRO!$E$50,0)) -> 74917 | H16: 0 | I16: 4 | J16: 1 | K16: 2 | L16: 0 | M16: =IF(INTRO!$E$37="Endémique",IF($H16>0,IF($H16=4,"Inconnu",IF($H16=99,"Interrompu",$D16)),0),"Non requis") -> 0 | N16: =IF(INTRO!$E$39="Endémique", IF($I16>0, IF($I16=4,"Inconnu",IF($I16=99,"Interrompu",$D16)), 0),"Non requis") -> Inconnu | O16: =IF(INTRO!$E$41="Endémique", IF(AND($J16>1,$J16<5), IF($J16=4, "Inconnu", E16+F16), 0),"Non requis") -> 0 | P16: 44248 | Q16: 0 | R16: 0 | S16: 0 | T16: 1 | Y16: 2055 | Z16: BALOMBO
A17: =IF(INTRO!$E$33<>0,INTRO!$E$33, " ") -> Angola | B17: BENGUELA | C17: BENGUELA | D17: 732896 | E17: =IF(INTRO!$E$48="","",ROUND($D17*INTRO!$E$48,0)) -> 117263 | F17: =IF(INTRO!$E$49="","",ROUND($D17*INTRO!$E$49,0)) -> 204478 | G17: =IF(INTRO!$E$50="","",ROUND($D17*INTRO!$E$50,0)) -> 386236 | H17: 0 | I17: 4 | J17: 1 | K17: 1 | L17: 0 | M17: =IF(INTRO!$E$37="Endémique",IF($H17>0,IF($H17=4,"Inconnu",IF($H17=99,"Interrompu",$D17)),0),"Non requis") -> 0 | N17: =IF(INTRO!$E$39="Endémique", IF($I17>0, IF($I17=4,"Inconnu",IF($I17=99,"Interrompu",$D17)), 0),"Non requis") -> Inconnu | O17: =IF(INTRO!$E$41="Endémique", IF(AND($J17>1,$J17<5), IF($J17=4, "Inconnu", E17+F17), 0),"Non requis") -> 0 | P17: 188221 | Q17: 0 | R17: 0 | S17: 0 | T17: 0 | Y17: 2056 | Z17: BENGUELA
A18: =IF(INTRO!$E$33<>0,INTRO!$E$33, " ") -> Angola | B18: BENGUELA | C18: BOCOIO | D18: 214849 | E18: =IF(INTRO!$E$48="","",ROUND($D18*INTRO!$E$48,0)) -> 34376 | F18: =IF(INTRO!$E$49="","",ROUND($D18*INTRO!$E$49,0)) -> 59943 | G18: =IF(INTRO!$E$50="","",ROUND($D18*INTRO!$E$50,0)) -> 113225 | H18: 0 | I18: 4 | J18: 1 | K18: 3 | L18: 0 | M18: =IF(INTRO!$E$37="Endémique",IF($H18>0,IF($H18=4,"Inconnu",IF($H18=99,"Interrompu",$D18)),0),"Non requis") -> 0 | N18: =IF(INTRO!$E$39="Endémique", IF($I18>0, IF($I18=4,"Inconnu",IF($I18=99,"Interrompu",$D18)), 0),"Non requis") -> Inconnu | O18: =IF(INTRO!$E$41="Endémique", IF(AND($J18>1,$J18<5), IF($J18=4, "Inconnu", E18+F18), 0),"Non requis") -> 0 | P18: 104241 | Q18: 0 | R18: 0 | S18: 0 | T18: 1 | Y18: 2057 | Z18: BOCOIO
A19: =IF(INTRO!$E$33<>0,INTRO!$E$33, " ") -> Angola | B19: BENGUELA | C19: CAIMBAMBO | D19: 118509 | E19: =IF(INTRO!$E$48="","",ROUND($D19*INTRO!$E$48,0)) -> 18961 | F19: =IF(INTRO!$E$49="","",ROUND($D19*INTRO!$E$49,0)) -> 33064 | G19: =IF(INTRO!$E$50="","",ROUND($D19*INTRO!$E$50,0)) -> 62454 | H19: 0 | I19: 4 | J19: 1 | K19: 3 | L19: 0 | M19: =IF(INTRO!$E$37="Endémique",IF($H19>0,IF($H19=4,"Inconnu",IF($H19=99,"Interrompu",$D19)),0),"Non requis") -> 0 | N19: =IF(INTRO!$E$39="Endémique", IF($I19>0, IF($I19=4,"Inconnu",IF($I19=99,"Interrompu",$D19)), 0),"Non requis") -> Inconnu | O19: =IF(INTRO!$E$41="Endémique", IF(AND($J19>1,$J19<5), IF($J19=4, "Inconnu", E19+F19), 0),"Non requis") -> 0 | P19: 47202 | Q19: 0 | R19: 0 | S19: 0 | T19: 1 | Y19: 2061 | Z19: CAIMBAMBO
A20: =IF(INTRO!$E$33<>0,INTRO!$E$33, " ") -> Angola | B20: BENGUELA | C20: CATUMBELA | D20: 229357 | E20: =IF(INTRO!$E$48="","",ROUND($D20*INTRO!$E$48,0)) -> 36697 | F20: =IF(INTRO!$E$49="","",ROUND($D20*INTRO!$E$49,0)) -> 63991 | G20: =IF(INTRO!$E$50="","",ROUND($D20*INTRO!$E$50,0)) -> 120871 | H20: 0 | I20: 4 | J20: 0 | K20: 0 | L20: 1 | M20: =IF(INTRO!$E$37="Endémique",IF($H20>0,IF($H20=4,"Inconnu",IF($H20=99,"Interrompu",$D20)),0),"Non requis") -> 0 | N20: =IF(INTRO!$E$39="Endémique", IF($I20>0, IF($I20=4,"Inconnu",IF($I20=99,"Interrompu",$D20)), 0),"Non requis") -> Inconnu | O20: =IF(INTRO!$E$41="Endémique", IF(AND($J20>1,$J20<5), IF($J20=4, "Inconnu", E20+F20), 0),"Non requis") -> 0 | P20: 0 | Q20: 0 | R20: 0 | S20: 0 | T20: 0 | Y20: 2216 | Z20: CATUMBELA
A21: =IF(INTRO!$E$33<>0,INTRO!$E$33, " ") -> Angola | B21: BENGUELA | C21: CHONGOROI | D21: 113865 | E21: =IF(INTRO!$E$48="","",ROUND($D21*INTRO!$E$48,0)) -> 18218 | F21: =IF(INTRO!$E$49="","",ROUND($D21*INTRO!$E$49,0)) -> 31768 | G21: =IF(INTRO!$E$50="","",ROUND($D21*INTRO!$E$50,0)) -> 60007 | H21: 0 | I21: 4 | J21: 0 | K21: 3 | L21: 0 | M21: =IF(INTRO!$E$37="Endémique",IF($H21>0,IF($H21=4,"Inconnu",IF($H21=99,"Interrompu",$D21)),0),"Non requis") -> 0 | N21: =IF(INTRO!$E$39="Endémique", IF($I21>0, IF($I21=4,"Inconnu",IF($I21=99,"Interrompu",$D21)), 0),"Non requis") -> Inconnu | O21: =IF(INTRO!$E$41="Endémique", IF(AND($J21>1,$J21<5), IF($J21=4, "Inconnu", E21+F21), 0),"Non requis") -> 0 | P21: 45361 | Q21: 0 | R21: 0 | S21: 0 | T21: 1 | Y21: 2058 | Z21: CHONGOROI
A22: =IF(INTRO!$E$33<>0,INTRO!$E$33, " ") -> Angola | B22: BENGUELA | C22: CUBAL | D22: 398730 | E22: =IF(INTRO!$E$48="","",ROUND($D22*INTRO!$E$48,0)) -> 63797 | F22: =IF(INTRO!$E$49="","",ROUND($D22*INTRO!$E$49,0)) -> 111246 | G22: =IF(INTRO!$E$50="","",ROUND($D22*INTRO!$E$50,0)) -> 210131 | H22: 0 | I22: 4 | J22: 1 | K22: 3 | L22: 0 | M22: =IF(INTRO!$E$37="Endémique",IF($H22>0,IF($H22=4,"Inconnu",IF($H22=99,"Interrompu",$D22)),0),"Non requis") -> 0 | N22: =IF(INTRO!$E$39="Endémique", IF($I22>0, IF($I22=4,"Inconnu",IF($I22=99,"Interrompu",$D22)), 0),"Non requis") -> Inconnu | O22: =IF(INTRO!$E$41="Endémique", IF(AND($J22>1,$J22<5), IF($J22=4, "Inconnu", E22+F22), 0),"Non requis") -> 0 | P22: 153369 | Q22: 0 | R22: 0 | S22: 0 | T22: 1 | Y22: 2059 | Z22: CUBAL
A23: =IF(INTRO!$E$33<>0,INTRO!$E$33, " ") -> Angola | B23: BENGUELA | C23: GANDA | D23: 307217 | E23: =IF(INTRO!$E$48="","",ROUND($D23*INTRO!$E$48,0)) -> 49155 | F23: =IF(INTRO!$E$49="","",ROUND($D23*INTRO!$E$49,0)) -> 85714 | G23: =IF(INTRO!$E$50="","",ROUND($D23*INTRO!$E$50,0)) -> 161903 | H23: 0 | I23: 4 | J23: 1 | K23: 3 | L23: 0 | M23: =IF(INTRO!$E$37="Endémique",IF($H23>0,IF($H23=4,"Inconnu",IF($H23=99,"Interrompu",$D23)),0),"Non requis") -> 0 | N23: =IF(INTRO!$E$39="Endémique", IF($I23>0, IF($I23=4,"Inconnu",IF($I23=99,"Interrompu",$D23)), 0),"Non requis") -> Inconnu | O23: =IF(INTRO!$E$41="Endémique", IF(AND($J23>1,$J23<5), IF($J23=4, "Inconnu", E23+F23), 0),"Non requis") -> 0 | P23: 119361 | Q23: 0 | R23: 0 | S23: 0 | T23: 1 | Y23: 2060 | Z23: GANDA
A24: =IF(INTRO!$E$33<>0,INTRO!$E$33, " ") -> Angola | B24: BENGUELA | C24: LOBITO | D24: 512815 | E24: =IF(INTRO!$E$48="","",ROUND($D24*INTRO!$E$48,0)) -> 82050 | F24: =IF(INTRO!$E$49="","",ROUND($D24*INTRO!$E$49,0)) -> 143075 | G24: =IF(INTRO!$E$50="","",ROUND($D24*INTRO!$E$50,0)) -> 270254 | H24: 1 | I24: 4 | J24: 1 | K24: 1 | L24: 0 | M24: =IF(INTRO!$E$37="Endémique",IF($H24>0,IF($H24=4,"Inconnu",IF($H24=99,"Interrompu",$D24)),0),"Non requis") -> 512815 | N24: =IF(INTRO!$E$39="Endémique", IF($I24>0, IF($I24=4,"Inconnu",IF($I24=99,"Interrompu",$D24)), 0),"Non requis") -> Inconnu | O24: =IF(INTRO!$E$41="Endémique", IF(AND($J24>1,$J24<5), IF($J24=4, "Inconnu", E24+F24), 0),"Non requis") -> 0 | P24: 4585 | Q24: 1 | R24: 0 | S24: 0 | T24: 0 | Y24: 2062 | Z24: LOBITO
A25: =IF(INTRO!$E$33<>0,INTRO!$E$33, " ") -> Angola | B25: BIE | C25: ANDULO | D25: 351419 | E25: =IF(INTRO!$E$48="","",ROUND($D25*INTRO!$E$48,0)) -> 56227 | F25: =IF(INTRO!$E$49="","",ROUND($D25*INTRO!$E$49,0)) -> 98046 | G25: =IF(INTRO!$E$50="","",ROUND($D25*INTRO!$E$50,0)) -> 185198 | H25: 0 | I25: 1 | J25: 1 | K25: 1 | L25: 1 | M25: =IF(INTRO!$E$37="Endémique",IF($H25>0,IF($H25=4,"Inconnu",IF($H25=99,"Interrompu",$D25)),0),"Non requis") -> 0 | N25: =IF(INTRO!$E$39="Endémique", IF($I25>0, IF($I25=4,"Inconnu",IF($I25=99,"Interrompu",$D25)), 0),"Non requis") -> 351419 | O25: =IF(INTRO!$E$41="Endémique", IF(AND($J25>1,$J25<5), IF($J25=4, "Inconnu", E25+F25), 0),"Non requis") -> 0 | P25: 15167 | Q25: 0 | R25: 1 | S25: 0 | T25: 0 | Y25: 2063 | Z25: ANDULO
A26: =IF(INTRO!$E$33<>0,INTRO!$E$33, " ") -> Angola | B26: BIE | C26: CAMACUPA | D26: 210893 | E26: =IF(INTRO!$E$48="","",ROUND($D26*INTRO!$E$48,0)) -> 33743 | F26: =IF(INTRO!$E$49="","",ROUND($D26*INTRO!$E$49,0)) -> 58839 | G26: =IF(INTRO!$E$50="","",ROUND($D26*INTRO!$E$50,0)) -> 111141 | H26: 0 | I26: 1 | J26: 1 | K26: 2 | L26: 0 | M26: =IF(INTRO!$E$37="Endémique",IF($H26>0,IF($H26=4,"Inconnu",IF($H26=99,"Interrompu",$D26)),0),"Non requis") -> 0 | N26: =IF(INTRO!$E$39="Endémique", IF($I26>0, IF($I26=4,"Inconnu",IF($I26=99,"Interrompu",$D26)), 0),"Non requis") -> 210893 | O26: =IF(INTRO!$E$41="Endémique", IF(AND($J26>1,$J26<5), IF($J26=4, "Inconnu", E26+F26), 0),"Non requis") -> 0 | P26: 26522 | Q26: 0 | R26: 1 | S26: 0 | T26: 1 | Y26: 2066 | Z26: CAMACUPA
A27: =IF(INTRO!$E$33<>0,INTRO!$E$33, " ") -> Angola | B27: BIE | C27: CATABOLA | D27: 172376 | E27: =IF(INTRO!$E$48="","",ROUND($D27*INTRO!$E$48,0)) -> 27580 | F27: =IF(INTRO!$E$49="","",ROUND($D27*INTRO!$E$49,0)) -> 48093 | G27: =IF(INTRO!$E$50="","",ROUND($D27*INTRO!$E$50,0)) -> 90842 | H27: 0 | I27: 1 | J27: 1 | K27: 2 | L27: 1 | M27: =IF(INTRO!$E$37="Endémique",IF($H27>0,IF($H27=4,"Inconnu",IF($H27=99,"Interrompu",$D27)),0),"Non requis") -> 0 | N27: =IF(INTRO!$E$39="Endémique", IF($I27>0, IF($I27=4,"Inconnu",IF($I27=99,"Interrompu",$D27)), 0),"Non requis") -> 172376 | O27: =IF(INTRO!$E$41="Endémique", IF(AND($J27>1,$J27<5), IF($J27=4, "Inconnu", E27+F27), 0),"Non requis") -> 0 | P27: 36606 | Q27: 0 | R27: 1 | S27: 0 | T27: 1 | Y27: 2067 | Z27: CATABOLA
A28: =IF(INTRO!$E$33<>0,INTRO!$E$33, " ") -> Angola | B28: BIE | C28: CHINGUAR | D28: 176103 | E28: =IF(INTRO!$E$48="","",ROUND($D28*INTRO!$E$48,0)) -> 28176 | F28: =IF(INTRO!$E$49="","",ROUND($D28*INTRO!$E$49,0)) -> 49133 | G28: =IF(INTRO!$E$50="","",ROUND($D28*INTRO!$E$50,0)) -> 92806 | H28: 0 | I28: 1 | J28: 1 | K28: 1 | L28: 1 | M28: =IF(INTRO!$E$37="Endémique",IF($H28>0,IF($H28=4,"Inconnu",IF($H28=99,"Interrompu",$D28)),0),"Non requis") -> 0 | N28: =IF(INTRO!$E$39="Endémique", IF($I28>0, IF($I28=4,"Inconnu",IF($I28=99,"Interrompu",$D28)), 0),"Non requis") -> 176103 | O28: =IF(INTRO!$E$41="Endémique", IF(AND($J28>1,$J28<5), IF($J28=4, "Inconnu", E28+F28), 0),"Non requis") -> 0 | P28: 12229 | Q28: 0 | R28: 1 | S28: 0 | T28: 0 | Y28: 2064 | Z28: CHINGUAR
A29: =IF(INTRO!$E$33<>0,INTRO!$E$33, " ") -> Angola | B29: BIE | C29: CHITEMBO | D29: 106388 | E29: =IF(INTRO!$E$48="","",ROUND($D29*INTRO!$E$48,0)) -> 17022 | F29: =IF(INTRO!$E$49="","",ROUND($D29*INTRO!$E$49,0)) -> 29682 | G29: =IF(INTRO!$E$50="","",ROUND($D29*INTRO!$E$50,0)) -> 56066 | H29: 0 | I29: 4 | J29: 1 | K29: 2 | L29: 1 | M29: =IF(INTRO!$E$37="Endémique",IF($H29>0,IF($H29=4,"Inconnu",IF($H29=99,"Interrompu",$D29)),0),"Non requis") -> 0 | N29: =IF(INTRO!$E$39="Endémique", IF($I29>0, IF($I29=4,"Inconnu",IF($I29=99,"Interrompu",$D29)), 0),"Non requis") -> Inconnu | O29: =IF(INTRO!$E$41="Endémique", IF(AND($J29>1,$J29<5), IF($J29=4, "Inconnu", E29+F29), 0),"Non requis") -> 0 | P29: 15972 | Q29: 0 | R29: 0 | S29: 0 | T29: 1 | Y29: 2065 | Z29: CHITEMBO
A30: =IF(INTRO!$E$33<>0,INTRO!$E$33, " ") -> Angola | B30: BIE | C30: CUEMBA | D30: 77540 | E30: =IF(INTRO!$E$48="","",ROUND($D30*INTRO!$E$48,0)) -> 12406 | F30: =IF(INTRO!$E$49="","",ROUND($D30*INTRO!$E$49,0)) -> 21634 | G30: =IF(INTRO!$E$50="","",ROUND($D30*INTRO!$E$50,0)) -> 40864 | H30: 1 | I30: 1 | J30: 1 | K30: 1 | L30: 0 | M30: =IF(INTRO!$E$37="Endémique",IF($H30>0,IF($H30=4,"Inconnu",IF($H30=99,"Interrompu",$D30)),0),"Non requis") -> 77540 | N30: =IF(INTRO!$E$39="Endémique", IF($I30>0, IF($I30=4,"Inconnu",IF($I30=99,"Interrompu",$D30)), 0),"Non requis") -> 77540 | O30: =IF(INTRO!$E$41="Endémique", IF(AND($J30>1,$J30<5), IF($J30=4, "Inconnu", E30+F30), 0),"Non requis") -> 0 | P30: 19914 | Q30: 1 | R30: 1 | S30: 0 | T30: 0 | Y30: 2068 | Z30: CUEMBA
A31: =IF(INTRO!$E$33<>0,INTRO!$E$33, " ") -> Angola | B31: BIE | C31: CUNHINGA | D31: 100495 | E31: =IF(INTRO!$E$48="","",ROUND($D31*INTRO!$E$48,0)) -> 16079 | F31: =IF(INTRO!$E$49="","",ROUND($D31*INTRO!$E$49,0)) -> 28038 | G31: =IF(INTRO!$E$50="","",ROUND($D31*INTRO!$E$50,0)) -> 52961 | H31: 0 | I31: 1 | J31: 1 | K31: 1 | L31: 1 | M31: =IF(INTRO!$E$37="Endémique",IF($H31>0,IF($H31=4,"Inconnu",IF($H31=99,"Interrompu",$D31)),0),"Non requis") -> 0 | N31: =IF(INTRO!$E$39="Endémique", IF($I31>0, IF($I31=4,"Inconnu",IF($I31=99,"Interrompu",$D31)), 0),"Non requis") -> 100495 | O31: =IF(INTRO!$E$41="Endémique", IF(AND($J31>1,$J31<5), IF($J31=4, "Inconnu", E31+F31), 0),"Non requis") -> 0 | P31: 17517 | Q31: 0 | R31: 1 | S31: 0 | T31: 0 | Y31: 2070 | Z31: CUNHINGA
A32: =IF(INTRO!$E$33<>0,INTRO!$E$33, " ") -> Angola | B32: BIE | C32: CUITO | D32: 613756 | E32: =IF(INTRO!$E$48="","",ROUND($D32*INTRO!$E$48,0)) -> 98201 | F32: =IF(INTRO!$E$49="","",ROUND($D32*INTRO!$E$49,0)) -> 171238 | G32: =IF(INTRO!$E$50="","",ROUND($D32*INTRO!$E$50,0)) -> 323449 | H32: 0 | I32: 1 | J32: 1 | K32: 3 | L32: 1 | M32: =IF(INTRO!$E$37="Endémique",IF($H32>0,IF($H32=4,"Inconnu",IF($H32=99,"Interrompu",$D32)),0),"Non requis") -> 0 | N32: =IF(INTRO!$E$39="Endémique", IF($I32>0, IF($I32=4,"Inconnu",IF($I32=99,"Interrompu",$D32)), 0),"Non requis") -> 613756 | O32: =IF(INTRO!$E$41="Endémique", IF(AND($J32>1,$J32<5), IF($J32=4, "Inconnu", E32+F32), 0),"Non requis") -> 0 | P32: 369705 | Q32: 0 | R32: 1 | S32: 0 | T32: 1 | Y32: 2069 | Z32: KUITO
A33: =IF(INTRO!$E$33<>0,INTRO!$E$33, " ") -> Angola | B33: BIE | C33: NHAREA | D33: 171976 | E33: =IF(INTRO!$E$48="","",ROUND($D33*INTRO!$E$48,0)) -> 27516 | F33: =IF(INTRO!$E$49="","",ROUND($D33*INTRO!$E$49,0)) -> 47981 | G33: =IF(INTRO!$E$50="","",ROUND($D33*INTRO!$E$50,0)) -> 90631 | H33: 0 | I33: 1 | J33: 1 | K33: 1 | L33: 1 | M33: =IF(INTRO!$E$37="Endémique",IF($H33>0,IF($H33=4,"Inconnu",IF($H33=99,"Interrompu",$D33)),0),"Non requis") -> 0 | N33: =IF(INTRO!$E$39="Endémique", IF($I33>0, IF($I33=4,"Inconnu",IF($I33=99,"Interrompu",$D33)), 0),"Non requis") -> 171976 | O33: =IF(INTRO!$E$41="Endémique", IF(AND($J33>1,$J33<5), IF($J33=4, "Inconnu", E33+F33), 0),"Non requis") -> 0 | P33: 28436 | Q33: 0 | R33: 1 | S33: 0 | T33: 0 | Y33: 2071 | Z33: NHAREA
A34: =IF(INTRO!$E$33<>0,INTRO!$E$33, " ") -> Angola | B34: CABINDA | C34: BELIZE | D34: 25841 | E34: =IF(INTRO!$E$48="","",ROUND($D34*INTRO!$E$48,0)) -> 4135 | F34: =IF(INTRO!$E$49="","",ROUND($D34*INTRO!$E$49,0)) -> 7210 | G34: =IF(INTRO!$E$50="","",ROUND($D34*INTRO!$E$50,0)) -> 13618 | H34: 1 | I34: 4 | J34: 2 | K34: 0 | L34: 1 | M34: =IF(INTRO!$E$37="Endémique",IF($H34>0,IF($H34=4,"Inconnu",IF($H34=99,"Interrompu",$D34)),0),"Non requis") -> 25841 | N34: =IF(INTRO!$E$39="Endémique", IF($I34>0, IF($I34=4,"Inconnu",IF($I34=99,"Interrompu",$D34)), 0),"Non requis") -> Inconnu | O34: =IF(INTRO!$E$41="Endémique", IF(AND($J34>1,$J34<5), IF($J34=4, "Inconnu", E34+F34), 0),"Non requis") -> 11345 | P34: 0 | Q34: 1 | R34: 0 | S34: 1 | T34: 0 | Y34: 2072 | Z34: BELIZE
A35: =IF(INTRO!$E$33<>0,INTRO!$E$33, " ") -> Angola | B35: CABINDA | C35: BUCO ZAU | D35: 43320 | E35: =IF(INTRO!$E$48="","",ROUND($D35*INTRO!$E$48,0)) -> 6931 | F35: =IF(INTRO!$E$49="","",ROUND($D35*INTRO!$E$49,0)) -> 12086 | G35: =IF(INTRO!$E$50="","",ROUND($D35*INTRO!$E$50,0)) -> 22830 | H35: 1 | I35: 4 | J35: 2 | K35: 2 | L35: 1 | M35: =IF(INTRO!$E$37="Endémique",IF($H35>0,IF($H35=4,"Inconnu",IF($H35=99,"Interrompu",$D35)),0),"Non requis") -> 43320 | N35: =IF(INTRO!$E$39="Endémique", IF($I35>0, IF($I35=4,"Inconnu",IF($I35=99,"Interrompu",$D35)), 0),"Non requis") -> Inconnu | O35: =IF(INTRO!$E$41="Endémique", IF(AND($J35>1,$J35<5), IF($J35=4, "Inconnu", E35+F35), 0),"Non requis") -> 19017 | P35: 5430 | Q35: 1 | R35: 0 | S35: 1 | T35: 1 | Y35: 2073 | Z35: BUCO ZAU
A36: =IF(INTRO!$E$33<>0,INTRO!$E$33, " ") -> Angola | B36: CABINDA | C36: CABINDA | D36: 825183 | E36: =IF(INTRO!$E$48="","",ROUND($D36*INTRO!$E$48,0)) -> 132029 | F36: =IF(INTRO!$E$49="","",ROUND($D36*INTRO!$E$49,0)) -> 230226 | G36: =IF(INTRO!$E$50="","",ROUND($D36*INTRO!$E$50,0)) -> 434871 | H36: 1 | I36: 4 | J36: 1 | K36: 3 | L36: 1 | M36: =IF(INTRO!$E$37="Endémique",IF($H36>0,IF($H36=4,"Inconnu",IF($H36=99,"Interrompu",$D36)),0),"Non requis") -> 825183 | N36: =IF(INTRO!$E$39="Endémique", IF($I36>0, IF($I36=4,"Inconnu",IF($I36=99,"Interrompu",$D36)), 0),"Non requis") -> Inconnu | O36: =IF(INTRO!$E$41="Endémique", IF(AND($J36>1,$J36<5), IF($J36=4, "Inconnu", E36+F36), 0),"Non requis") -> 0 | P36: 594137 | Q36: 1 | R36: 0 | S36: 0 | T36: 1 | Y36: 2074 | Z36: CABINDA
A37: =IF(INTRO!$E$33<>0,INTRO!$E$33, " ") -> Angola | B37: CABINDA | C37: CACONGO | D37: 51621 | E37: =IF(INTRO!$E$48="","",ROUND($D37*INTRO!$E$48,0)) -> 8259 | F37: =IF(INTRO!$E$49="","",ROUND($D37*INTRO!$E$49,0)) -> 14402 | G37: =IF(INTRO!$E$50="","",ROUND($D37*INTRO!$E$50,0)) -> 27204 | H37: 1 | I37: 4 | J37: 1 | K37: 1 | L37: 1 | M37: =IF(INTRO!$E$37="Endémique",IF($H37>0,IF($H37=4,"Inconnu",IF($H37=99,"Interrompu",$D37)),0),"Non requis") -> 51621 | N37: =IF(INTRO!$E$39="Endémique", IF($I37>0, IF($I37=4,"Inconnu",IF($I37=99,"Interrompu",$D37)), 0),"Non requis") -> Inconnu | O37: =IF(INTRO!$E$41="Endémique", IF(AND($J37>1,$J37<5), IF($J37=4, "Inconnu", E37+F37), 0),"Non requis") -> 0 | P37: 13257 | Q37: 1 | R37: 0 | S37: 0 | T37: 0 | Y37: 2213 | Z37: CACONGO
A38: =IF(INTRO!$E$33<>0,INTRO!$E$33, " ") -> Angola | B38: CUNENE | C38: CAHAMA | D38: 94751 | E38: =IF(INTRO!$E$48="","",ROUND($D38*INTRO!$E$48,0)) -> 15160 | F38: =IF(INTRO!$E$49="","",ROUND($D38*INTRO!$E$49,0)) -> 26436 | G38: =IF(INTRO!$E$50="","",ROUND($D38*INTRO!$E$50,0)) -> 49934 | H38: 0 | I38: 4 | J38: 1 | K38: 1 | L38: 0 | M38: =IF(INTRO!$E$37="Endémique",IF($H38>0,IF($H38=4,"Inconnu",IF($H38=99,"Interrompu",$D38)),0),"Non requis") -> 0 | N38: =IF(INTRO!$E$39="Endémique", IF($I38>0, IF($I38=4,"Inconnu",IF($I38=99,"Interrompu",$D38)), 0),"Non requis") -> Inconnu | O38: =IF(INTRO!$E$41="Endémique", IF(AND($J38>1,$J38<5), IF($J38=4, "Inconnu", E38+F38), 0),"Non requis") -> 0 | P38: 24334 | Q38: 0 | R38: 0 | S38: 0 | T38: 0 | Y38: 2110 | Z38: CAHAMA
A39: =IF(INTRO!$E$33<>0,INTRO!$E$33, " ") -> Angola | B39: CUNENE | C39: CUANHAMA | D39: 506513 | E39: =IF(INTRO!$E$48="","",ROUND($D39*INTRO!$E$48,0)) -> 81042 | F39: =IF(INTRO!$E$49="","",ROUND($D39*INTRO!$E$49,0)) -> 141317 | G39: =IF(INTRO!$E$50="","",ROUND($D39*INTRO!$E$50,0)) -> 266932 | H39: 0 | I39: 4 | J39: 1 | K39: 3 | L39: 1 | M39: =IF(INTRO!$E$37="Endémique",IF($H39>0,IF($H39=4,"Inconnu",IF($H39=99,"Interrompu",$D39)),0),"Non requis") -> 0 | N39: =IF(INTRO!$E$39="Endémique", IF($I39>0, IF($I39=4,"Inconnu",IF($I39=99,"Interrompu",$D39)), 0),"Non requis") -> Inconnu | O39: =IF(INTRO!$E$41="Endémique", IF(AND($J39>1,$J39<5), IF($J39=4, "Inconnu", E39+F39), 0),"Non requis") -> 0 | P39: 234304 | Q39: 0 | R39: 0 | S39: 0 | T39: 1 | Y39: 2113 | Z39: CUANHAMA
A40: =IF(INTRO!$E$33<>0,INTRO!$E$33, " ") -> Angola | B40: CUNENE | C40: CUROCA | D40: 55566 | E40: =IF(INTRO!$E$48="","",ROUND($D40*INTRO!$E$48,0)) -> 8891 | F40: =IF(INTRO!$E$49="","",ROUND($D40*INTRO!$E$49,0)) -> 15503 | G40: =IF(INTRO!$E$50="","",ROUND($D40*INTRO!$E$50,0)) -> 29283 | H40: 0 | I40: 4 | J40: 0 | K40: 2 | L40: 0 | M40: =IF(INTRO!$E$37="Endémique",IF($H40>0,IF($H40=4,"Inconnu",IF($H40=99,"Interrompu",$D40)),0),"Non requis") -> 0 | N40: =IF(INTRO!$E$39="Endémique", IF($I40>0, IF($I40=4,"Inconnu",IF($I40=99,"Interrompu",$D40)), 0),"Non requis") -> Inconnu | O40: =IF(INTRO!$E$41="Endémique", IF(AND($J40>1,$J40<5), IF($J40=4, "Inconnu", E40+F40), 0),"Non requis") -> 0 | P40: 16622 | Q40: 0 | R40: 0 | S40: 0 | T40: 1 | Y40: 2111 | Z40: CUROCA
A41: =IF(INTRO!$E$33<>0,INTRO!$E$33, " ") -> Angola | B41: CUNENE | C41: CUVELAI | D41: 77625 | E41: =IF(INTRO!$E$48="","",ROUND($D41*INTRO!$E$48,0)) -> 12420 | F41: =IF(INTRO!$E$49="","",ROUND($D41*INTRO!$E$49,0)) -> 21657 | G41: =IF(INTRO!$E$50="","",ROUND($D41*INTRO!$E$50,0)) -> 40908 | H41: 4 | I41: 4 | J41: 1 | K41: 3 | L41: 1 | M41: =IF(INTRO!$E$37="Endémique",IF($H41>0,IF($H41=4,"Inconnu",IF($H41=99,"Interrompu",$D41)),0),"Non requis") -> Inconnu | N41: =IF(INTRO!$E$39="Endémique", IF($I41>0, IF($I41=4,"Inconnu",IF($I41=99,"Interrompu",$D41)), 0),"Non requis") -> Inconnu | O41: =IF(INTRO!$E$41="Endémique", IF(AND($J41>1,$J41<5), IF($J41=4, "Inconnu", E41+F41), 0),"Non requis") -> 0 | P41: 35484 | Q41: 0 | R41: 0 | S41: 0 | T41: 1 | Y41: 2112 | Z41: CUVELAI
A42: =IF(INTRO!$E$33<>0,INTRO!$E$33, " ") -> Angola | B42: CUNENE | C42: NAMACUNDE | D42: 192104 | E42: =IF(INTRO!$E$48="","",ROUND($D42*INTRO!$E$48,0)) -> 30737 | F42: =IF(INTRO!$E$49="","",ROUND($D42*INTRO!$E$49,0)) -> 53597 | G42: =IF(INTRO!$E$50="","",ROUND($D42*INTRO!$E$50,0)) -> 101239 | H42: 0 | I42: 4 | J42: 1 | K42: 2 | L42: 1 | M42: =IF(INTRO!$E$37="Endémique",IF($H42>0,IF($H42=4,"Inconnu",IF($H42=99,"Interrompu",$D42)),0),"Non requis") -> 0 | N42: =IF(INTRO!$E$39="Endémique", IF($I42>0, IF($I42=4,"Inconnu",IF($I42=99,"Interrompu",$D42)), 0),"Non requis") -> Inconnu | O42: =IF(INTRO!$E$41="Endémique", IF(AND($J42>1,$J42<5), IF($J42=4, "Inconnu", E42+F42), 0),"Non requis") -> 0 | P42: 60659 | Q42: 0 | R42: 0 | S42: 0 | T42: 1 | Y42: 2114 | Z42: NAMACUNDE
A43: =IF(INTRO!$E$33<>0,INTRO!$E$33, " ") -> Angola | B43: CUNENE | C43: OMBADJA | D43: 412434 | E43: =IF(INTRO!$E$48="","",ROUND($D43*INTRO!$E$48,0)) -> 65989 | F43: =IF(INTRO!$E$49="","",ROUND($D43*INTRO!$E$49,0)) -> 115069 | G43: =IF(INTRO!$E$50="","",ROUND($D43*INTRO!$E$50,0)) -> 217353 | H43: 0 | I43: 4 | J43: 2 | K43: 3 | L43: 1 | M43: =IF(INTRO!$E$37="Endémique",IF($H43>0,IF($H43=4,"Inconnu",IF($H43=99,"Interrompu",$D43)),0),"Non requis") -> 0 | N43: =IF(INTRO!$E$39="Endémique", IF($I43>0, IF($I43=4,"Inconnu",IF($I43=99,"Interrompu",$D43)), 0),"Non requis") -> Inconnu | O43: =IF(INTRO!$E$41="Endémique", IF(AND($J43>1,$J43<5), IF($J43=4, "Inconnu", E43+F43), 0),"Non requis") -> 181058 | P43: 126460 | Q43: 0 | R43: 0 | S43: 1 | T43: 1 | Y43: 2115 | Z43: OMBADJA
A44: =IF(INTRO!$E$33<>0,INTRO!$E$33, " ") -> Angola | B44: HUAMBO | C44: BAILUNDO | D44: 405070 | E44: =IF(INTRO!$E$48="","",ROUND($D44*INTRO!$E$48,0)) -> 64811 | F44: =IF(INTRO!$E$49="","",ROUND($D44*INTRO!$E$49,0)) -> 113015 | G44: =IF(INTRO!$E$50="","",ROUND($D44*INTRO!$E$50,0)) -> 213472 | H44: 0 | I44: 4 | J44: 1 | K44: 2 | L44: 1 | M44: =IF(INTRO!$E$37="Endémique",IF($H44>0,IF($H44=4,"Inconnu",IF($H44=99,"Interrompu",$D44)),0),"Non requis") -> 0 | N44: =IF(INTRO!$E$39="Endémique", IF($I44>0, IF($I44=4,"Inconnu",IF($I44=99,"Interrompu",$D44)), 0),"Non requis") -> Inconnu | O44: =IF(INTRO!$E$41="Endémique", IF(AND($J44>1,$J44<5), IF($J44=4, "Inconnu", E44+F44), 0),"Non requis") -> 0 | P44: 79225 | Q44: 0 | R44: 0 | S44: 0 | T44: 1 | Y44: 2116 | Z44: BAILUNDO
A45: =IF(INTRO!$E$33<>0,INTRO!$E$33, " ") -> Angola | B45: HUAMBO | C45: CAALA | D45: 384850 | E45: =IF(INTRO!$E$48="","",ROUND($D45*INTRO!$E$48,0)) -> 61576 | F45: =IF(INTRO!$E$49="","",ROUND($D45*INTRO!$E$49,0)) -> 107373 | G45: =IF(INTRO!$E$50="","",ROUND($D45*INTRO!$E$50,0)) -> 202816 | H45: 0 | I45: 4 | J45: 2 | K45: 3 | L45: 0 | M45: =IF(INTRO!$E$37="Endémique",IF($H45>0,IF($H45=4,"Inconnu",IF($H45=99,"Interrompu",$D45)),0),"Non requis") -> 0 | N45: =IF(INTRO!$E$39="Endémique", IF($I45>0, IF($I45=4,"Inconnu",IF($I45=99,"Interrompu",$D45)), 0),"Non requis") -> Inconnu | O45: =IF(INTRO!$E$41="Endémique", IF(AND($J45>1,$J45<5), IF($J45=4, "Inconnu", E45+F45), 0),"Non requis") -> 168949 | P45: 141069 | Q45: 0 | R45: 0 | S45: 1 | T45: 1 | Y45: 2120 | Z45: CAALA
A46: =IF(INTRO!$E$33<>0,INTRO!$E$33, " ") -> Angola | B46: HUAMBO | C46: ECUNHA | D46: 113534 | E46: =IF(INTRO!$E$48="","",ROUND($D46*INTRO!$E$48,0)) -> 18165 | F46: =IF(INTRO!$E$49="","",ROUND($D46*INTRO!$E$49,0)) -> 31676 | G46: =IF(INTRO!$E$50="","",ROUND($D46*INTRO!$E$50,0)) -> 59832 | H46: 0 | I46: 4 | J46: 0 | K46: 0 | L46: 0 | M46: =IF(INTRO!$E$37="Endémique",IF($H46>0,IF($H46=4,"Inconnu",IF($H46=99,"Interrompu",$D46)),0),"Non requis") -> 0 | N46: =IF(INTRO!$E$39="Endémique", IF($I46>0, IF($I46=4,"Inconnu",IF($I46=99,"Interrompu",$D46)), 0),"Non requis") -> Inconnu | O46: =IF(INTRO!$E$41="Endémique", IF(AND($J46>1,$J46<5), IF($J46=4, "Inconnu", E46+F46), 0),"Non requis") -> 0 | P46: 0 | Q46: 0 | R46: 0 | S46: 0 | T46: 0 | Y46: 2118 | Z46: EKUNHA
A47: =IF(INTRO!$E$33<>0,INTRO!$E$33, " ") -> Angola | B47: HUAMBO | C47: HUAMBO | D47: 980902 | E47: =IF(INTRO!$E$48="","",ROUND($D47*INTRO!$E$48,0)) -> 156944 | F47: =IF(INTRO!$E$49="","",ROUND($D47*INTRO!$E$49,0)) -> 273672 | G47: =IF(INTRO!$E$50="","",ROUND($D47*INTRO!$E$50,0)) -> 516935 | H47: 0 | I47: 4 | J47: 1 | K47: 3 | L47: 0 | M47: =IF(INTRO!$E$37="Endémique",IF($H47>0,IF($H47=4,"Inconnu",IF($H47=99,"Interrompu",$D47)),0),"Non requis") -> 0 | N47: =IF(INTRO!$E$39="Endémique", IF($I47>0, IF($I47=4,"Inconnu",IF($I47=99,"Interrompu",$D47)), 0),"Non requis") -> Inconnu | O47: =IF(INTRO!$E$41="Endémique", IF(AND($J47>1,$J47<5), IF($J47=4, "Inconnu", E47+F47), 0),"Non requis") -> 0 | P47: 654979 | Q47: 0 | R47: 0 | S47: 0 | T47: 1 | Y47: 2119 | Z47: HUAMBO
A48: =IF(INTRO!$E$33<>0,INTRO!$E$33, " ") -> Angola | B48: HUAMBO | C48: CACHIUNGO | D48: 165988 | E48: =IF(INTRO!$E$48="","",ROUND($D48*INTRO!$E$48,0)) -> 26558 | F48: =IF(INTRO!$E$49="","",ROUND($D48*INTRO!$E$49,0)) -> 46311 | G48: =IF(INTRO!$E$50="","",ROUND($D48*INTRO!$E$50,0)) -> 87476 | H48: 0 | I48: 4 | J48: 1 | K48: 1 | L48: 0 | M48: =IF(INTRO!$E$37="Endémique",IF($H48>0,IF($H48=4,"Inconnu",IF($H48=99,"Interrompu",$D48)),0),"Non requis") -> 0 | N48: =IF(INTRO!$E$39="Endémique", IF($I48>0, IF($I48=4,"Inconnu",IF($I48=99,"Interrompu",$D48)), 0),"Non requis") -> Inconnu | O48: =IF(INTRO!$E$41="Endémique", IF(AND($J48>1,$J48<5), IF($J48=4, "Inconnu", E48+F48), 0),"Non requis") -> 0 | P48: 42629 | Q48: 0 | R48: 0 | S48: 0 | T48: 0 | Y48: 2121 | Z48: CACHIUNGO
A49: =IF(INTRO!$E$33<>0,INTRO!$E$33, " ") -> Angola | B49: HUAMBO | C49: LONDUIMBALI | D49: 184663 | E49: =IF(INTRO!$E$48="","",ROUND($D49*INTRO!$E$48,0)) -> 29546 | F49: =IF(INTRO!$E$49="","",ROUND($D49*INTRO!$E$49,0)) -> 51521 | G49: =IF(INTRO!$E$50="","",ROUND($D49*INTRO!$E$50,0)) -> 97317 | H49: 0 | I49: 4 | J49: 1 | K49: 3 | L49: 0 | M49: =IF(INTRO!$E$37="Endémique",IF($H49>0,IF($H49=4,"Inconnu",IF($H49=99,"Interrompu",$D49)),0),"Non requis") -> 0 | N49: =IF(INTRO!$E$39="Endémique", IF($I49>0, IF($I49=4,"Inconnu",IF($I49=99,"Interrompu",$D49)), 0),"Non requis") -> Inconnu | O49: =IF(INTRO!$E$41="Endémique", IF(AND($J49>1,$J49<5), IF($J49=4, "Inconnu", E49+F49), 0),"Non requis") -> 0 | P49: 57179 | Q49: 0 | R49: 0 | S49: 0 | T49: 1 | Y49: 2122 | Z49: LONDUIMBALI
A50: =IF(INTRO!$E$33<>0,INTRO!$E$33, " ") -> Angola | B50: HUAMBO | C50: LONGONJO | D50: 126687 | E50: =IF(INTRO!$E$48="","",ROUND($D50*INTRO!$E$48,0)) -> 20270 | F50: =IF(INTRO!$E$49="","",ROUND($D50*INTRO!$E$49,0)) -> 35346 | G50: =IF(INTRO!$E$50="","",ROUND($D50*INTRO!$E$50,0)) -> 66764 | H50: 0 | I50: 4 | J50: 1 | K50: 3 | L50: 0 | M50: =IF(INTRO!$E$37="Endémique",IF($H50>0,IF($H50=4,"Inconnu",IF($H50=99,"Interrompu",$D50)),0),"Non requis") -> 0 | N50: =IF(INTRO!$E$39="Endémique", IF($I50>0, IF($I50=4,"Inconnu",IF($I50=99,"Interrompu",$D50)), 0),"Non requis") -> Inconnu | O50: =IF(INTRO!$E$41="Endémique", IF(AND($J50>1,$J50<5), IF($J50=4, "Inconnu", E50+F50), 0),"Non requis") -> 0 | P50: 57112 | Q50: 0 | R50: 0 | S50: 0 | T50: 1 | Y50: 2123 | Z50: LONGONJO
A51: =IF(INTRO!$E$33<>0,INTRO!$E$33, " ") -> Angola | B51: HUAMBO | C51: MUNGO | D51: 156001 | E51: =IF(INTRO!$E$48="","",ROUND($D51*INTRO!$E$48,0)) -> 24960 | F51: =IF(INTRO!$E$49="","",ROUND($D51*INTRO!$E$49,0)) -> 43524 | G51: =IF(INTRO!$E$50="","",ROUND($D51*INTRO!$E$50,0)) -> 82213 | H51: 0 | I51: 1 | J51: 0 | K51: 0 | L51: 1 | M51: =IF(INTRO!$E$37="Endémique",IF($H51>0,IF($H51=4,"Inconnu",IF($H51=99,"Interrompu",$D51)),0),"Non requis") -> 0 | N51: =IF(INTRO!$E$39="Endémique", IF($I51>0, IF($I51=4,"Inconnu",IF($I51=99,"Interrompu",$D51)), 0),"Non requis") -> 156001 | O51: =IF(INTRO!$E$41="Endémique", IF(AND($J51>1,$J51<5), IF($J51=4, "Inconnu", E51+F51), 0),"Non requis") -> 0 | P51: 0 | Q51: 0 | R51: 1 | S51: 0 | T51: 0 | Y51: 2124 | Z51: MUNGO
A52: =IF(INTRO!$E$33<>0,INTRO!$E$33, " ") -> Angola | B52: HUAMBO | C52: CHICALA CHOLOHANGA | D52: 142563 | E52: =IF(INTRO!$E$48="","",ROUND($D52*INTRO!$E$48,0)) -> 22810 | F52: =IF(INTRO!$E$49="","",ROUND($D52*INTRO!$E$49,0)) -> 39775 | G52: =IF(INTRO!$E$50="","",ROUND($D52*INTRO!$E$50,0)) -> 75131 | H52: 0 | I52: 4 | J52: 1 | K52: 3 | L52: 0 | M52: =IF(INTRO!$E$37="Endémique",IF($H52>0,IF($H52=4,"Inconnu",IF($H52=99,"Interrompu",$D52)),0),"Non requis") -> 0 | N52: =IF(INTRO!$E$39="Endémique", IF($I52>0, IF($I52=4,"Inconnu",IF($I52=99,"Interrompu",$D52)), 0),"Non requis") -> Inconnu | O52: =IF(INTRO!$E$41="Endémique", IF(AND($J52>1,$J52<5), IF($J52=4, "Inconnu", E52+F52), 0),"Non requis") -> 0 | P52: 65353 | Q52: 0 | R52: 0 | S52: 0 | T52: 1 | Y52: 2125 | Z52: TCHICALA TCHOLOHANGA
A53: =IF(INTRO!$E$33<>0,INTRO!$E$33, " ") -> Angola | B53: HUAMBO | C53: CHINDJENJE | D53: 41875 | E53: =IF(INTRO!$E$48="","",ROUND($D53*INTRO!$E$48,0)) -> 6700 | F53: =IF(INTRO!$E$49="","",ROUND($D53*INTRO!$E$49,0)) -> 11683 | G53: =IF(INTRO!$E$50="","",ROUND($D53*INTRO!$E$50,0)) -> 22068 | H53: 0 | I53: 4 | J53: 1 | K53: 3 | L53: 0 | M53: =IF(INTRO!$E$37="Endémique",IF($H53>0,IF($H53=4,"Inconnu",IF($H53=99,"Interrompu",$D53)),0),"Non requis") -> 0 | N53: =IF(INTRO!$E$39="Endémique", IF($I53>0, IF($I53=4,"Inconnu",IF($I53=99,"Interrompu",$D53)), 0),"Non requis") -> Inconnu | O53: =IF(INTRO!$E$41="Endémique", IF(AND($J53>1,$J53<5), IF($J53=4, "Inconnu", E53+F53), 0),"Non requis") -> 0 | P53: 19018 | Q53: 0 | R53: 0 | S53: 0 | T53: 1 | Y53: 2117 | Z53: TCHINDJENJE
A54: =IF(INTRO!$E$33<>0,INTRO!$E$33, " ") -> Angola | B54: HUAMBO | C54: UCUMA | D54: 75725 | E54: =IF(INTRO!$E$48="","",ROUND($D54*INTRO!$E$48,0)) -> 12116 | F54: =IF(INTRO!$E$49="","",ROUND($D54*INTRO!$E$49,0)) -> 21127 | G54: =IF(INTRO!$E$50="","",ROUND($D54*INTRO!$E$50,0)) -> 39907 | H54: 0 | I54: 4 | J54: 2 | K54: 2 | L54: 0 | M54: =IF(INTRO!$E$37="Endémique",IF($H54>0,IF($H54=4,"Inconnu",IF($H54=99,"Interrompu",$D54)),0),"Non requis") -> 0 | N54: =IF(INTRO!$E$39="Endémique", IF($I54>0, IF($I54=4,"Inconnu",IF($I54=99,"Interrompu",$D54)), 0),"Non requis") -> Inconnu | O54: =IF(INTRO!$E$41="Endémique", IF(AND($J54>1,$J54<5), IF($J54=4, "Inconnu", E54+F54), 0),"Non requis") -> 33243 | P54: 26795 | Q54: 0 | R54: 0 | S54: 1 | T54: 1 | Y54: 2126 | Z54: UKUMA
A55: =IF(INTRO!$E$33<>0,INTRO!$E$33, " ") -> Angola | B55: HUILA | C55: CACONDA | D55: 225576 | E55: =IF(INTRO!$E$48="","",ROUND($D55*INTRO!$E$48,0)) -> 36092 | F55: =IF(INTRO!$E$49="","",ROUND($D55*INTRO!$E$49,0)) -> 62936 | G55: =IF(INTRO!$E$50="","",ROUND($D55*INTRO!$E$50,0)) -> 118879 | H55: 0 | I55: 4 | J55: 1 | K55: 3 | L55: 0 | M55: =IF(INTRO!$E$37="Endémique",IF($H55>0,IF($H55=4,"Inconnu",IF($H55=99,"Interrompu",$D55)),0),"Non requis") -> 0 | N55: =IF(INTRO!$E$39="Endémique", IF($I55>0, IF($I55=4,"Inconnu",IF($I55=99,"Interrompu",$D55)), 0),"Non requis") -> Inconnu | O55: =IF(INTRO!$E$41="Endémique", IF(AND($J55>1,$J55<5), IF($J55=4, "Inconnu", E55+F55), 0),"Non requis") -> 0 | P55: 99616 | Q55: 0 | R55: 0 | S55: 0 | T55: 1 | Y55: 2133 | Z55: CACONDA
A56: =IF(INTRO!$E$33<>0,INTRO!$E$33, " ") -> Angola | B56: HUILA | C56: CACULA | D56: 184119 | E56: =IF(INTRO!$E$48="","",ROUND($D56*INTRO!$E$48,0)) -> 29459 | F56: =IF(INTRO!$E$49="","",ROUND($D56*INTRO!$E$49,0)) -> 51369 | G56: =IF(INTRO!$E$50="","",ROUND($D56*INTRO!$E$50,0)) -> 97031 | H56: 0 | I56: 4 | J56: 0 | K56: 2 | L56: 0 | M56: =IF(INTRO!$E$37="Endémique",IF($H56>0,IF($H56=4,"Inconnu",IF($H56=99,"Interrompu",$D56)),0),"Non requis") -> 0 | N56: =IF(INTRO!$E$39="Endémique", IF($I56>0, IF($I56=4,"Inconnu",IF($I56=99,"Interrompu",$D56)), 0),"Non requis") -> Inconnu | O56: =IF(INTRO!$E$41="Endémique", IF(AND($J56>1,$J56<5), IF($J56=4, "Inconnu", E56+F56), 0),"Non requis") -> 0 | P56: 44436 | Q56: 0 | R56: 0 | S56: 0 | T56: 1 | Y56: 2214 | Z56: CACULA
A57: =IF(INTRO!$E$33<>0,INTRO!$E$33, " ") -> Angola | B57: HUILA | C57: CALUQUEMBE | D57: 241855 | E57: =IF(INTRO!$E$48="","",ROUND($D57*INTRO!$E$48,0)) -> 38697 | F57: =IF(INTRO!$E$49="","",ROUND($D57*INTRO!$E$49,0)) -> 67478 | G57: =IF(INTRO!$E$50="","",ROUND($D57*INTRO!$E$50,0)) -> 127458 | H57: 0 | I57: 1 | J57: 1 | K57: 3 | L57: 0 | M57: =IF(INTRO!$E$37="Endémique",IF($H57>0,IF($H57=4,"Inconnu",IF($H57=99,"Interrompu",$D57)),0),"Non requis") -> 0 | N57: =IF(INTRO!$E$39="Endémique", IF($I57>0, IF($I57=4,"Inconnu",IF($I57=99,"Interrompu",$D57)), 0),"Non requis") -> 241855 | O57: =IF(INTRO!$E$41="Endémique", IF(AND($J57>1,$J57<5), IF($J57=4, "Inconnu", E57+F57), 0),"Non requis") -> 0 | P57: 101592 | Q57: 0 | R57: 1 | S57: 0 | T57: 1 | Y57: 2134 | Z57: CALUQUEMBE
A58: =IF(INTRO!$E$33<>0,INTRO!$E$33, " ") -> Angola | B58: HUILA | C58: CHIBIA | D58: 256292 | E58: =IF(INTRO!$E$48="","",ROUND($D58*INTRO!$E$48,0)) -> 41007 | F58: =IF(INTRO!$E$49="","",ROUND($D58*INTRO!$E$49,0)) -> 71505 | G58: =IF(INTRO!$E$50="","",ROUND($D58*INTRO!$E$50,0)) -> 135066 | H58: 0 | I58: 4 | J58: 0 | K58: 3 | L58: 0 | M58: =IF(INTRO!$E$37="Endémique",IF($H58>0,IF($H58=4,"Inconnu",IF($H58=99,"Interrompu",$D58)),0),"Non requis") -> 0 | N58: =IF(INTRO!$E$39="Endémique", IF($I58>0, IF($I58=4,"Inconnu",IF($I58=99,"Interrompu",$D58)), 0),"Non requis") -> Inconnu | O58: =IF(INTRO!$E$41="Endémique", IF(AND($J58>1,$J58<5), IF($J58=4, "Inconnu", E58+F58), 0),"Non requis") -> 0 | P58: 125289 | Q58: 0 | R58: 0 | S58: 0 | T58: 1 | Y58: 2127 | Z58: CHIBIA
A59: =IF(INTRO!$E$33<>0,INTRO!$E$33, " ") -> Angola | B59: HUILA | C59: CHICOMBA | D59: 177169 | E59: =IF(INTRO!$E$48="","",ROUND($D59*INTRO!$E$48,0)) -> 28347 | F59: =IF(INTRO!$E$49="","",ROUND($D59*INTRO!$E$49,0)) -> 49430 | G59: =IF(INTRO!$E$50="","",ROUND($D59*INTRO!$E$50,0)) -> 93368 | H59: 0 | I59: 1 | J59: 0 | K59: 3 | L59: 0 | M59: =IF(INTRO!$E$37="Endémique",IF($H59>0,IF($H59=4,"Inconnu",IF($H59=99,"Interrompu",$D59)),0),"Non requis") -> 0 | N59: =IF(INTRO!$E$39="Endémique", IF($I59>0, IF($I59=4,"Inconnu",IF($I59=99,"Interrompu",$D59)), 0),"Non requis") -> 177169 | O59: =IF(INTRO!$E$41="Endémique", IF(AND($J59>1,$J59<5), IF($J59=4, "Inconnu", E59+F59), 0),"Non requis") -> 0 | P59: 110138 | Q59: 0 | R59: 1 | S59: 0 | T59: 1 | Y59: 2128 | Z59: CHICOMBA
A60: =IF(INTRO!$E$33<>0,INTRO!$E$33, " ") -> Angola | B60: HUILA | C60: CHIPINDO | D60: 86986 | E60: =IF(INTRO!$E$48="","",ROUND($D60*INTRO!$E$48,0)) -> 13918 | F60: =IF(INTRO!$E$49="","",ROUND($D60*INTRO!$E$49,0)) -> 24269 | G60: =IF(INTRO!$E$50="","",ROUND($D60*INTRO!$E$50,0)) -> 45842 | H60: 1 | I60: 1 | J60: 1 | K60: 2 | L60: 0 | M60: =IF(INTRO!$E$37="Endémique",IF($H60>0,IF($H60=4,"Inconnu",IF($H60=99,"Interrompu",$D60)),0),"Non requis") -> 86986 | N60: =IF(INTRO!$E$39="Endémique", IF($I60>0, IF($I60=4,"Inconnu",IF($I60=99,"Interrompu",$D60)), 0),"Non requis") -> 86986 | O60: =IF(INTRO!$E$41="Endémique", IF(AND($J60>1,$J60<5), IF($J60=4, "Inconnu", E60+F60), 0),"Non requis") -> 0 | P60: 22789 | Q60: 1 | R60: 1 | S60: 0 | T60: 1 | Y60: 2129 | Z60: CHIPINDO
A61: =IF(INTRO!$E$33<>0,INTRO!$E$33, " ") -> Angola | B61: HUILA | C61: GAMBOS | D61: 106809 | E61: =IF(INTRO!$E$48="","",ROUND($D61*INTRO!$E$48,0)) -> 17089 | F61: =IF(INTRO!$E$49="","",ROUND($D61*INTRO!$E$49,0)) -> 29800 | G61: =IF(INTRO!$E$50="","",ROUND($D61*INTRO!$E$50,0)) -> 56288 | H61: 0 | I61: 4 | J61: 0 | K61: 2 | L61: 0 | M61: =IF(INTRO!$E$37="Endémique",IF($H61>0,IF($H61=4,"Inconnu",IF($H61=99,"Interrompu",$D61)),0),"Non requis") -> 0 | N61: =IF(INTRO!$E$39="Endémique", IF($I61>0, IF($I61=4,"Inconnu",IF($I61=99,"Interrompu",$D61)), 0),"Non requis") -> Inconnu | O61: =IF(INTRO!$E$41="Endémique", IF(AND($J61>1,$J61<5), IF($J61=4, "Inconnu", E61+F61), 0),"Non requis") -> 0 | P61: 37794 | Q61: 0 | R61: 0 | S61: 0 | T61: 1 | Y61: 2130 | Z61: GAMBOS
A62: =IF(INTRO!$E$33<>0,INTRO!$E$33, " ") -> Angola | B62: HUILA | C62: HUMPATA | D62: 119824 | E62: =IF(INTRO!$E$48="","",ROUND($D62*INTRO!$E$48,0)) -> 19172 | F62: =IF(INTRO!$E$49="","",ROUND($D62*INTRO!$E$49,0)) -> 33431 | G62: =IF(INTRO!$E$50="","",ROUND($D62*INTRO!$E$50,0)) -> 63147 | H62: 0 | I62: 4 | J62: 1 | K62: 2 | L62: 0 | M62: =IF(INTRO!$E$37="Endémique",IF($H62>0,IF($H62=4,"Inconnu",IF($H62=99,"Interrompu",$D62)),0),"Non requis") -> 0 | N62: =IF(INTRO!$E$39="Endémique", IF($I62>0, IF($I62=4,"Inconnu",IF($I62=99,"Interrompu",$D62)), 0),"Non requis") -> Inconnu | O62: =IF(INTRO!$E$41="Endémique", IF(AND($J62>1,$J62<5), IF($J62=4, "Inconnu", E62+F62), 0),"Non requis") -> 0 | P62: 42398 | Q62: 0 | R62: 0 | S62: 0 | T62: 1 | Y62: 2131 | Z62: HUMPATA
A63: =IF(INTRO!$E$33<>0,INTRO!$E$33, " ") -> Angola | B63: HUILA | C63: JAMBA | D63: 141258 | E63: =IF(INTRO!$E$48="","",ROUND($D63*INTRO!$E$48,0)) -> 22601 | F63: =IF(INTRO!$E$49="","",ROUND($D63*INTRO!$E$49,0)) -> 39411 | G63: =IF(INTRO!$E$50="","",ROUND($D63*INTRO!$E$50,0)) -> 74443 | H63: 1 | I63: 4 | J63: 0 | K63: 3 | L63: 0 | M63: =IF(INTRO!$E$37="Endémique",IF($H63>0,IF($H63=4,"Inconnu",IF($H63=99,"Interrompu",$D63)),0),"Non requis") -> 141258 | N63: =IF(INTRO!$E$39="Endémique", IF($I63>0, IF($I63=4,"Inconnu",IF($I63=99,"Interrompu",$D63)), 0),"Non requis") -> Inconnu | O63: =IF(INTRO!$E$41="Endémique", IF(AND($J63>1,$J63<5), IF($J63=4, "Inconnu", E63+F63), 0),"Non requis") -> 0 | P63: 91076 | Q63: 1 | R63: 0 | S63: 0 | T63: 1 | Y63: 2132 | Z63: JAMBA
A64: =IF(INTRO!$E$33<>0,INTRO!$E$33, " ") -> Angola | B64: HUILA | C64: CUVANGO | D64: 105575 | E64: =IF(INTRO!$E$48="","",ROUND($D64*INTRO!$E$48,0)) -> 16892 | F64: =IF(INTRO!$E$49="","",ROUND($D64*INTRO!$E$49,0)) -> 29455 | G64: =IF(INTRO!$E$50="","",ROUND($D64*INTRO!$E$50,0)) -> 55638 | H64: 1 | I64: 4 | J64: 0 | K64: 2 | L64: 1 | M64: =IF(INTRO!$E$37="Endémique",IF($H64>0,IF($H64=4,"Inconnu",IF($H64=99,"Interrompu",$D64)),0),"Non requis") -> 105575 | N64: =IF(INTRO!$E$39="Endémique", IF($I64>0, IF($I64=4,"Inconnu",IF($I64=99,"Interrompu",$D64)), 0),"Non requis") -> Inconnu | O64: =IF(INTRO!$E$41="Endémique", IF(AND($J64>1,$J64<5), IF($J64=4, "Inconnu", E64+F64), 0),"Non requis") -> 0 | P64: 37357 | Q64: 1 | R64: 0 | S64: 0 | T64: 1 | Y64: 2136 | Z64: KUVANGO
A65: =IF(INTRO!$E$33<>0,INTRO!$E$33, " ") -> Angola | B65: HUILA | C65: LUBANGO | D65: 1043403 | E65: =IF(INTRO!$E$48="","",ROUND($D65*INTRO!$E$48,0)) -> 166944 | F65: =IF(INTRO!$E$49="","",ROUND($D65*INTRO!$E$49,0)) -> 291109 | G65: =IF(INTRO!$E$50="","",ROUND($D65*INTRO!$E$50,0)) -> 549873 | H65: 0 | I65: 4 | J65: 1 | K65: 3 | L65: 0 | M65: =IF(INTRO!$E$37="Endémique",IF($H65>0,IF($H65=4,"Inconnu",IF($H65=99,"Interrompu",$D65)),0),"Non requis") -> 0 | N65: =IF(INTRO!$E$39="Endémique", IF($I65>0, IF($I65=4,"Inconnu",IF($I65=99,"Interrompu",$D65)), 0),"Non requis") -> Inconnu | O65: =IF(INTRO!$E$41="Endémique", IF(AND($J65>1,$J65<5), IF($J65=4, "Inconnu", E65+F65), 0),"Non requis") -> 0 | P65: 431112 | Q65: 0 | R65: 0 | S65: 0 | T65: 1 | Y65: 2137 | Z65: LUBANGO
A66: =IF(INTRO!$E$33<>0,INTRO!$E$33, " ") -> Angola | B66: HUILA | C66: MATALA | D66: 353196 | E66: =IF(INTRO!$E$48="","",ROUND($D66*INTRO!$E$48,0)) -> 56511 | F66: =IF(INTRO!$E$49="","",ROUND($D66*INTRO!$E$49,0)) -> 98542 | G66: =IF(INTRO!$E$50="","",ROUND($D66*INTRO!$E$50,0)) -> 186134 | H66: 0 | I66: 1 | J66: 1 | K66: 3 | L66: 0 | M66: =IF(INTRO!$E$37="Endémique",IF($H66>0,IF($H66=4,"Inconnu",IF($H66=99,"Interrompu",$D66)),0),"Non requis") -> 0 | N66: =IF(INTRO!$E$39="Endémique", IF($I66>0, IF($I66=4,"Inconnu",IF($I66=99,"Interrompu",$D66)), 0),"Non requis") -> 353196 | O66: =IF(INTRO!$E$41="Endémique", IF(AND($J66>1,$J66<5), IF($J66=4, "Inconnu", E66+F66), 0),"Non requis") -> 0 | P66: 236249 | Q66: 0 | R66: 1 | S66: 0 | T66: 1 | Y66: 2138 | Z66: MATALA
A67: =IF(INTRO!$E$33<>0,INTRO!$E$33, " ") -> Angola | B67: HUILA | C67: QUILENGUES | D67: 101261 | E67: =IF(INTRO!$E$48="","",ROUND($D67*INTRO!$E$48,0)) -> 16202 | F67: =IF(INTRO!$E$49="","",ROUND($D67*INTRO!$E$49,0)) -> 28252 | G67: =IF(INTRO!$E$50="","",ROUND($D67*INTRO!$E$50,0)) -> 53365 | H67: 0 | I67: 1 | J67: 0 | K67: 3 | L67: 0 | M67: =IF(INTRO!$E$37="Endémique",IF($H67>0,IF($H67=4,"Inconnu",IF($H67=99,"Interrompu",$D67)),0),"Non requis") -> 0 | N67: =IF(INTRO!$E$39="Endémique", IF($I67>0, IF($I67=4,"Inconnu",IF($I67=99,"Interrompu",$D67)), 0),"Non requis") -> 101261 | O67: =IF(INTRO!$E$41="Endémique", IF(AND($J67>1,$J67<5), IF($J67=4, "Inconnu", E67+F67), 0),"Non requis") -> 0 | P67: 54518 | Q67: 0 | R67: 1 | S67: 0 | T67: 1 | Y67: 2135 | Z67: QUILENGUES
A68: =IF(INTRO!$E$33<>0,INTRO!$E$33, " ") -> Angola | B68: HUILA | C68: QUIPUNGO | D68: 213612 | E68: =IF(INTRO!$E$48="","",ROUND($D68*INTRO!$E$48,0)) -> 34178 | F68: =IF(INTRO!$E$49="","",ROUND($D68*INTRO!$E$49,0)) -> 59598 | G68: =IF(INTRO!$E$50="","",ROUND($D68*INTRO!$E$50,0)) -> 112574 | H68: 0 | I68: 1 | J68: 1 | K68: 3 | L68: 0 | M68: =IF(INTRO!$E$37="Endémique",IF($H68>0,IF($H68=4,"Inconnu",IF($H68=99,"Interrompu",$D68)),0),"Non requis") -> 0 | N68: =IF(INTRO!$E$39="Endémique", IF($I68>0, IF($I68=4,"Inconnu",IF($I68=99,"Interrompu",$D68)), 0),"Non requis") -> 213612 | O68: =IF(INTRO!$E$41="Endémique", IF(AND($J68>1,$J68<5), IF($J68=4, "Inconnu", E68+F68), 0),"Non requis") -> 0 | P68: 158482 | Q68: 0 | R68: 1 | S68: 0 | T68: 1 | Y68: 2221 | Z68: QUIPUNGO
A69: =IF(INTRO!$E$33<>0,INTRO!$E$33, " ") -> Angola | B69: CUANDO CUBANGO | C69: CALAI | D69: 30318 | E69: =IF(INTRO!$E$48="","",ROUND($D69*INTRO!$E$48,0)) -> 4851 | F69: =IF(INTRO!$E$49="","",ROUND($D69*INTRO!$E$49,0)) -> 8459 | G69: =IF(INTRO!$E$50="","",ROUND($D69*INTRO!$E$50,0)) -> 15978 | H69: 0 | I69: 4 | J69: 1 | K69: 2 | L69: 1 | M69: =IF(INTRO!$E$37="Endémique",IF($H69>0,IF($H69=4,"Inconnu",IF($H69=99,"Interrompu",$D69)),0),"Non requis") -> 0 | N69: =IF(INTRO!$E$39="Endémique", IF($I69>0, IF($I69=4,"Inconnu",IF($I69=99,"Interrompu",$D69)), 0),"Non requis") -> Inconnu | O69: =IF(INTRO!$E$41="Endémique", IF(AND($J69>1,$J69<5), IF($J69=4, "Inconnu", E69+F69), 0),"Non requis") -> 0 | P69: 10395 | Q69: 0 | R69: 0 | S69: 0 | T69: 1 | Y69: 2078 | Z69: CALAI
A70: =IF(INTRO!$E$33<>0,INTRO!$E$33, " ") -> Angola | B70: CUANDO CUBANGO | C70: CUANGAR | D70: 38087 | E70: =IF(INTRO!$E$48="","",ROUND($D70*INTRO!$E$48,0)) -> 6094 | F70: =IF(INTRO!$E$49="","",ROUND($D70*INTRO!$E$49,0)) -> 10626 | G70: =IF(INTRO!$E$50="","",ROUND($D70*INTRO!$E$50,0)) -> 20072 | H70: 0 | I70: 1 | J70: 1 | K70: 2 | L70: 1 | M70: =IF(INTRO!$E$37="Endémique",IF($H70>0,IF($H70=4,"Inconnu",IF($H70=99,"Interrompu",$D70)),0),"Non requis") -> 0 | N70: =IF(INTRO!$E$39="Endémique", IF($I70>0, IF($I70=4,"Inconnu",IF($I70=99,"Interrompu",$D70)), 0),"Non requis") -> 38087 | O70: =IF(INTRO!$E$41="Endémique", IF(AND($J70>1,$J70<5), IF($J70=4, "Inconnu", E70+F70), 0),"Non requis") -> 0 | P70: 11750 | Q70: 0 | R70: 1 | S70: 0 | T70: 1 | Y70: 2076 | Z70: CUANGAR
A71: =IF(INTRO!$E$33<>0,INTRO!$E$33, " ") -> Angola | B71: CUANDO CUBANGO | C71: CUCHI | D71: 57512 | E71: =IF(INTRO!$E$48="","",ROUND($D71*INTRO!$E$48,0)) -> 9202 | F71: =IF(INTRO!$E$49="","",ROUND($D71*INTRO!$E$49,0)) -> 16046 | G71: =IF(INTRO!$E$50="","",ROUND($D71*INTRO!$E$50,0)) -> 30309 | H71: 0 | I71: 1 | J71: 0 | K71: 2 | L71: 1 | M71: =IF(INTRO!$E$37="Endémique",IF($H71>0,IF($H71=4,"Inconnu",IF($H71=99,"Interrompu",$D71)),0),"Non requis") -> 0 | N71: =IF(INTRO!$E$39="Endémique", IF($I71>0, IF($I71=4,"Inconnu",IF($I71=99,"Interrompu",$D71)), 0),"Non requis") -> 57512 | O71: =IF(INTRO!$E$41="Endémique", IF(AND($J71>1,$J71<5), IF($J71=4, "Inconnu", E71+F71), 0),"Non requis") -> 0 | P71: 17320 | Q71: 0 | R71: 1 | S71: 0 | T71: 1 | Y71: 2079 | Z71: CUCHI
A72: =IF(INTRO!$E$33<>0,INTRO!$E$33, " ") -> Angola | B72: CUANDO CUBANGO | C72: DIRICO | D72: 20243 | E72: =IF(INTRO!$E$48="","",ROUND($D72*INTRO!$E$48,0)) -> 3239 | F72: =IF(INTRO!$E$49="","",ROUND($D72*INTRO!$E$49,0)) -> 5648 | G72: =IF(INTRO!$E$50="","",ROUND($D72*INTRO!$E$50,0)) -> 10668 | H72: 0 | I72: 4 | J72: 1 | K72: 2 | L72: 1 | M72: =IF(INTRO!$E$37="Endémique",IF($H72>0,IF($H72=4,"Inconnu",IF($H72=99,"Interrompu",$D72)),0),"Non requis") -> 0 | N72: =IF(INTRO!$E$39="Endémique", IF($I72>0, IF($I72=4,"Inconnu",IF($I72=99,"Interrompu",$D72)), 0),"Non requis") -> Inconnu | O72: =IF(INTRO!$E$41="Endémique", IF(AND($J72>1,$J72<5), IF($J72=4, "Inconnu", E72+F72), 0),"Non requis") -> 0 | P72: 6049 | Q72: 0 | R72: 0 | S72: 0 | T72: 1 | Y72: 2077 | Z72: DIRICO
A73: =IF(INTRO!$E$33<>0,INTRO!$E$33, " ") -> Angola | B73: CUANDO CUBANGO | C73: CUITO CUANAVALE | D73: 54642 | E73: =IF(INTRO!$E$48="","",ROUND($D73*INTRO!$E$48,0)) -> 8743 | F73: =IF(INTRO!$E$49="","",ROUND($D73*INTRO!$E$49,0)) -> 15245 | G73: =IF(INTRO!$E$50="","",ROUND($D73*INTRO!$E$50,0)) -> 28796 | H73: 0 | I73: 1 | J73: 1 | K73: 2 | L73: 1 | M73: =IF(INTRO!$E$37="Endémique",IF($H73>0,IF($H73=4,"Inconnu",IF($H73=99,"Interrompu",$D73)),0),"Non requis") -> 0 | N73: =IF(INTRO!$E$39="Endémique", IF($I73>0, IF($I73=4,"Inconnu",IF($I73=99,"Interrompu",$D73)), 0),"Non requis") -> 54642 | O73: =IF(INTRO!$E$41="Endémique", IF(AND($J73>1,$J73<5), IF($J73=4, "Inconnu", E73+F73), 0),"Non requis") -> 0 | P73: 15994 | Q73: 0 | R73: 1 | S73: 0 | T73: 1 | Y73: 2080 | Z73: KUITO KUANAVALE
A74: =IF(INTRO!$E$33<>0,INTRO!$E$33, " ") -> Angola | B74: CUANDO CUBANGO | C74: MAVINGA | D74: 36397 | E74: =IF(INTRO!$E$48="","",ROUND($D74*INTRO!$E$48,0)) -> 5824 | F74: =IF(INTRO!$E$49="","",ROUND($D74*INTRO!$E$49,0)) -> 10155 | G74: =IF(INTRO!$E$50="","",ROUND($D74*INTRO!$E$50,0)) -> 19181 | H74: 0 | I74: 4 | J74: 1 | K74: 1 | L74: 1 | M74: =IF(INTRO!$E$37="Endémique",IF($H74>0,IF($H74=4,"Inconnu",IF($H74=99,"Interrompu",$D74)),0),"Non requis") -> 0 | N74: =IF(INTRO!$E$39="Endémique", IF($I74>0, IF($I74=4,"Inconnu",IF($I74=99,"Interrompu",$D74)), 0),"Non requis") -> Inconnu | O74: =IF(INTRO!$E$41="Endémique", IF(AND($J74>1,$J74<5), IF($J74=4, "Inconnu", E74+F74), 0),"Non requis") -> 0 | P74: 2387 | Q74: 0 | R74: 0 | S74: 0 | T74: 0 | Y74: 2081 | Z74: MAVINGA
A75: =IF(INTRO!$E$33<>0,INTRO!$E$33, " ") -> Angola | B75: CUANDO CUBANGO | C75: MENONGUE | D75: 429478 | E75: =IF(INTRO!$E$48="","",ROUND($D75*INTRO!$E$48,0)) -> 68716 | F75: =IF(INTRO!$E$49="","",ROUND($D75*INTRO!$E$49,0)) -> 119824 | G75: =IF(INTRO!$E$50="","",ROUND($D75*INTRO!$E$50,0)) -> 226335 | H75: 0 | I75: 1 | J75: 1 | K75: 2 | L75: 1 | M75: =IF(INTRO!$E$37="Endémique",IF($H75>0,IF($H75=4,"Inconnu",IF($H75=99,"Interrompu",$D75)),0),"Non requis") -> 0 | N75: =IF(INTRO!$E$39="Endémique", IF($I75>0, IF($I75=4,"Inconnu",IF($I75=99,"Interrompu",$D75)), 0),"Non requis") -> 429478 | O75: =IF(INTRO!$E$41="Endémique", IF(AND($J75>1,$J75<5), IF($J75=4, "Inconnu", E75+F75), 0),"Non requis") -> 0 | P75: 151414 | Q75: 0 | R75: 1 | S75: 0 | T75: 1 | Y75: 2082 | Z75: MENONGUE
A76: =IF(INTRO!$E$33<>0,INTRO!$E$33, " ") -> Angola | B76: CUANDO CUBANGO | C76: NANKOVA | D76: 3742 | E76: =IF(INTRO!$E$48="","",ROUND($D76*INTRO!$E$48,0)) -> 599 | F76: =IF(INTRO!$E$49="","",ROUND($D76*INTRO!$E$49,0)) -> 1044 | G76: =IF(INTRO!$E$50="","",ROUND($D76*INTRO!$E$50,0)) -> 1972 | H76: 0 | I76: 1 | J76: 1 | K76: 0 | L76: 1 | M76: =IF(INTRO!$E$37="Endémique",IF($H76>0,IF($H76=4,"Inconnu",IF($H76=99,"Interrompu",$D76)),0),"Non requis") -> 0 | N76: =IF(INTRO!$E$39="Endémique", IF($I76>0, IF($I76=4,"Inconnu",IF($I76=99,"Interrompu",$D76)), 0),"Non requis") -> 3742 | O76: =IF(INTRO!$E$41="Endémique", IF(AND($J76>1,$J76<5), IF($J76=4, "Inconnu", E76+F76), 0),"Non requis") -> 0 | P76: 0 | Q76: 0 | R76: 1 | S76: 0 | T76: 0 | Y76: 2083 | Z76: NANKOVA
A77: =IF(INTRO!$E$33<>0,INTRO!$E$33, " ") -> Angola | B77: CUANDO CUBANGO | C77: RIVUNGO | D77: 44234 | E77: =IF(INTRO!$E$48="","",ROUND($D77*INTRO!$E$48,0)) -> 7077 | F77: =IF(INTRO!$E$49="","",ROUND($D77*INTRO!$E$49,0)) -> 12341 | G77: =IF(INTRO!$E$50="","",ROUND($D77*INTRO!$E$50,0)) -> 23311 | H77: 0 | I77: 4 | J77: 1 | K77: 1 | L77: 0 | M77: =IF(INTRO!$E$37="Endémique",IF($H77>0,IF($H77=4,"Inconnu",IF($H77=99,"Interrompu",$D77)),0),"Non requis") -> 0 | N77: =IF(INTRO!$E$39="Endémique", IF($I77>0, IF($I77=4,"Inconnu",IF($I77=99,"Interrompu",$D77)), 0),"Non requis") -> Inconnu | O77: =IF(INTRO!$E$41="Endémique", IF(AND($J77>1,$J77<5), IF($J77=4, "Inconnu", E77+F77), 0),"Non requis") -> 0 | P77: 8492 | Q77: 0 | R77: 0 | S77: 0 | T77: 0 | Y77: 2084 | Z77: RIVUNGO
A78: =IF(INTRO!$E$33<>0,INTRO!$E$33, " ") -> Angola | B78: CUANZA NORTE | C78: AMBACA | D78: 81648 | E78: =IF(INTRO!$E$48="","",ROUND($D78*INTRO!$E$48,0)) -> 13064 | F78: =IF(INTRO!$E$49="","",ROUND($D78*INTRO!$E$49,0)) -> 22780 | G78: =IF(INTRO!$E$50="","",ROUND($D78*INTRO!$E$50,0)) -> 43028 | H78: 1 | I78: 1 | J78: 3 | K78: 1 | L78: 1 | M78: =IF(INTRO!$E$37="Endémique",IF($H78>0,IF($H78=4,"Inconnu",IF($H78=99,"Interrompu",$D78)),0),"Non requis") -> 81648 | N78: =IF(INTRO!$E$39="Endémique", IF($I78>0, IF($I78=4,"Inconnu",IF($I78=99,"Interrompu",$D78)), 0),"Non requis") -> 81648 | O78: =IF(INTRO!$E$41="Endémique", IF(AND($J78>1,$J78<5), IF($J78=4, "Inconnu", E78+F78), 0),"Non requis") -> 35844 | P78: 1306 | Q78: 1 | R78: 1 | S78: 2 | T78: 0 | Y78: 2085 | Z78: AMBACA
A79: =IF(INTRO!$E$33<>0,INTRO!$E$33, " ") -> Angola | B79: CUANZA NORTE | C79: BANGA | D79: 13686 | E79: =IF(INTRO!$E$48="","",ROUND($D79*INTRO!$E$48,0)) -> 2190 | F79: =IF(INTRO!$E$49="","",ROUND($D79*INTRO!$E$49,0)) -> 3818 | G79: =IF(INTRO!$E$50="","",ROUND($D79*INTRO!$E$50,0)) -> 7213 | H79: 1 | I79: 1 | J79: 3 | K79: 1 | L79: 1 | M79: =IF(INTRO!$E$37="Endémique",IF($H79>0,IF($H79=4,"Inconnu",IF($H79=99,"Interrompu",$D79)),0),"Non requis") -> 13686 | N79: =IF(INTRO!$E$39="Endémique", IF($I79>0, IF($I79=4,"Inconnu",IF($I79=99,"Interrompu",$D79)), 0),"Non requis") -> 13686 | O79: =IF(INTRO!$E$41="Endémique", IF(AND($J79>1,$J79<5), IF($J79=4, "Inconnu", E79+F79), 0),"Non requis") -> 6008 | P79: 564 | Q79: 1 | R79: 1 | S79: 2 | T79: 0 | Y79: 2086 | Z79: BANGA
A80: =IF(INTRO!$E$33<>0,INTRO!$E$33, " ") -> Angola | B80: CUANZA NORTE | C80: BOLONGONGO | D80: 17210 | E80: =IF(INTRO!$E$48="","",ROUND($D80*INTRO!$E$48,0)) -> 2754 | F80: =IF(INTRO!$E$49="","",ROUND($D80*INTRO!$E$49,0)) -> 4802 | G80: =IF(INTRO!$E$50="","",ROUND($D80*INTRO!$E$50,0)) -> 9070 | H80: 1 | I80: 1 | J80: 3 | K80: 0 | L80: 1 | M80: =IF(INTRO!$E$37="Endémique",IF($H80>0,IF($H80=4,"Inconnu",IF($H80=99,"Interrompu",$D80)),0),"Non requis") -> 17210 | N80: =IF(INTRO!$E$39="Endémique", IF($I80>0, IF($I80=4,"Inconnu",IF($I80=99,"Interrompu",$D80)), 0),"Non requis") -> 17210 | O80: =IF(INTRO!$E$41="Endémique", IF(AND($J80>1,$J80<5), IF($J80=4, "Inconnu", E80+F80), 0),"Non requis") -> 7556 | P80: 0 | Q80: 1 | R80: 1 | S80: 2 | T80: 0 | Y80: 2087 | Z80: BOLONGONGO
A81: =IF(INTRO!$E$33<>0,INTRO!$E$33, " ") -> Angola | B81: CUANZA NORTE | C81: CAMBAMBE | D81: 119977 | E81: =IF(INTRO!$E$48="","",ROUND($D81*INTRO!$E$48,0)) -> 19196 | F81: =IF(INTRO!$E$49="","",ROUND($D81*INTRO!$E$49,0)) -> 33474 | G81: =IF(INTRO!$E$50="","",ROUND($D81*INTRO!$E$50,0)) -> 63228 | H81: 0 | I81: 4 | J81: 2 | K81: 3 | L81: 0 | M81: =IF(INTRO!$E$37="Endémique",IF($H81>0,IF($H81=4,"Inconnu",IF($H81=99,"Interrompu",$D81)),0),"Non requis") -> 0 | N81: =IF(INTRO!$E$39="Endémique", IF($I81>0, IF($I81=4,"Inconnu",IF($I81=99,"Interrompu",$D81)), 0),"Non requis") -> Inconnu | O81: =IF(INTRO!$E$41="Endémique", IF(AND($J81>1,$J81<5), IF($J81=4, "Inconnu", E81+F81), 0),"Non requis") -> 52670 | P81: 76811 | Q81: 0 | R81: 0 | S81: 1 | T81: 1 | Y81: 2091 | Z81: CAMBAMBE
A82: =IF(INTRO!$E$33<>0,INTRO!$E$33, " ") -> Angola | B82: CUANZA NORTE | C82: CAZENGO | D82: 227014 | E82: =IF(INTRO!$E$48="","",ROUND($D82*INTRO!$E$48,0)) -> 36322 | F82: =IF(INTRO!$E$49="","",ROUND($D82*INTRO!$E$49,0)) -> 63337 | G82: =IF(INTRO!$E$50="","",ROUND($D82*INTRO!$E$50,0)) -> 119636 | H82: 1 | I82: 4 | J82: 3 | K82: 2 | L82: 0 | M82: =IF(INTRO!$E$37="Endémique",IF($H82>0,IF($H82=4,"Inconnu",IF($H82=99,"Interrompu",$D82)),0),"Non requis") -> 227014 | N82: =IF(INTRO!$E$39="Endémique", IF($I82>0, IF($I82=4,"Inconnu",IF($I82=99,"Interrompu",$D82)), 0),"Non requis") -> Inconnu | O82: =IF(INTRO!$E$41="Endémique", IF(AND($J82>1,$J82<5), IF($J82=4, "Inconnu", E82+F82), 0),"Non requis") -> 99659 | P82: 80327 | Q82: 1 | R82: 0 | S82: 2 | T82: 1 | Y82: 2092 | Z82: CAZENGO
A83: =IF(INTRO!$E$33<>0,INTRO!$E$33, " ") -> Angola | B83: CUANZA NORTE | C83: GOLUNGO ALTO | D83: 44724 | E83: =IF(INTRO!$E$48="","",ROUND($D83*INTRO!$E$48,0)) -> 7156 | F83: =IF(INTRO!$E$49="","",ROUND($D83*INTRO!$E$49,0)) -> 12478 | G83: =IF(INTRO!$E$50="","",ROUND($D83*INTRO!$E$50,0)) -> 23570 | H83: 1 | I83: 1 | J83: 3 | K83: 3 | L83: 0 | M83: =IF(INTRO!$E$37="Endémique",IF($H83>0,IF($H83=4,"Inconnu",IF($H83=99,"Interrompu",$D83)),0),"Non requis") -> 44724 | N83: =IF(INTRO!$E$39="Endémique", IF($I83>0, IF($I83=4,"Inconnu",IF($I83=99,"Interrompu",$D83)), 0),"Non requis") -> 44724 | O83: =IF(INTRO!$E$41="Endémique", IF(AND($J83>1,$J83<5), IF($J83=4, "Inconnu", E83+F83), 0),"Non requis") -> 19634 | P83: 5968 | Q83: 1 | R83: 1 | S83: 2 | T83: 1 | Y83: 2090 | Z83: GOLUNGO ALTO
A84: =IF(INTRO!$E$33<>0,INTRO!$E$33, " ") -> Angola | B84: CUANZA NORTE | C84: GONGUEMBO | D84: 10013 | E84: =IF(INTRO!$E$48="","",ROUND($D84*INTRO!$E$48,0)) -> 1602 | F84: =IF(INTRO!$E$49="","",ROUND($D84*INTRO!$E$49,0)) -> 2794 | G84: =IF(INTRO!$E$50="","",ROUND($D84*INTRO!$E$50,0)) -> 5277 | H84: 1 | I84: 1 | J84: 3 | K84: 1 | L84: 0 | M84: =IF(INTRO!$E$37="Endémique",IF($H84>0,IF($H84=4,"Inconnu",IF($H84=99,"Interrompu",$D84)),0),"Non requis") -> 10013 | N84: =IF(INTRO!$E$39="Endémique", IF($I84>0, IF($I84=4,"Inconnu",IF($I84=99,"Interrompu",$D84)), 0),"Non requis") -> 10013 | O84: =IF(INTRO!$E$41="Endémique", IF(AND($J84>1,$J84<5), IF($J84=4, "Inconnu", E84+F84), 0),"Non requis") -> 4396 | P84: 2572 | Q84: 1 | R84: 1 | S84: 2 | T84: 0 | Y84: 2217 | Z84: GONGUEMBO
A85: =IF(INTRO!$E$33<>0,INTRO!$E$33, " ") -> Angola | B85: CUANZA NORTE | C85: QUICULUNGO | D85: 12864 | E85: =IF(INTRO!$E$48="","",ROUND($D85*INTRO!$E$48,0)) -> 2058 | F85: =IF(INTRO!$E$49="","",ROUND($D85*INTRO!$E$49,0)) -> 3589 | G85: =IF(INTRO!$E$50="","",ROUND($D85*INTRO!$E$50,0)) -> 6779 | H85: 1 | I85: 4 | J85: 3 | K85: 3 | L85: 0 | M85: =IF(INTRO!$E$37="Endémique",IF($H85>0,IF($H85=4,"Inconnu",IF($H85=99,"Interrompu",$D85)),0),"Non requis") -> 12864 | N85: =IF(INTRO!$E$39="Endémique", IF($I85>0, IF($I85=4,"Inconnu",IF($I85=99,"Interrompu",$D85)), 0),"Non requis") -> Inconnu | O85: =IF(INTRO!$E$41="Endémique", IF(AND($J85>1,$J85<5), IF($J85=4, "Inconnu", E85+F85), 0),"Non requis") -> 5647 | P85: 9544 | Q85: 1 | R85: 0 | S85: 2 | T85: 1 | Y85: 2093 | Z85: KICULUNGO
A86: =IF(INTRO!$E$33<>0,INTRO!$E$33, " ") -> Angola | B86: CUANZA NORTE | C86: LUCALA | D86: 29972 | E86: =IF(INTRO!$E$48="","",ROUND($D86*INTRO!$E$48,0)) -> 4796 | F86: =IF(INTRO!$E$49="","",ROUND($D86*INTRO!$E$49,0)) -> 8362 | G86: =IF(INTRO!$E$50="","",ROUND($D86*INTRO!$E$50,0)) -> 15795 | H86: 0 | I86: 4 | J86: 3 | K86: 2 | L86: 0 | M86: =IF(INTRO!$E$37="Endémique",IF($H86>0,IF($H86=4,"Inconnu",IF($H86=99,"Interrompu",$D86)),0),"Non requis") -> 0 | N86: =IF(INTRO!$E$39="Endémique", IF($I86>0, IF($I86=4,"Inconnu",IF($I86=99,"Interrompu",$D86)), 0),"Non requis") -> Inconnu | O86: =IF(INTRO!$E$41="Endémique", IF(AND($J86>1,$J86<5), IF($J86=4, "Inconnu", E86+F86), 0),"Non requis") -> 13158 | P86: 10604 | Q86: 0 | R86: 0 | S86: 2 | T86: 1 | Y86: 2094 | Z86: LUCALA
A87: =IF(INTRO!$E$33<>0,INTRO!$E$33, " ") -> Angola | B87: CUANZA NORTE | C87: SAMBA CAJU | D87: 28973 | E87: =IF(INTRO!$E$48="","",ROUND($D87*INTRO!$E$48,0)) -> 4636 | F87: =IF(INTRO!$E$49="","",ROUND($D87*INTRO!$E$49,0)) -> 8083 | G87: =IF(INTRO!$E$50="","",ROUND($D87*INTRO!$E$50,0)) -> 15269 | H87: 1 | I87: 4 | J87: 3 | K87: 1 | L87: 0 | M87: =IF(INTRO!$E$37="Endémique",IF($H87>0,IF($H87=4,"Inconnu",IF($H87=99,"Interrompu",$D87)),0),"Non requis") -> 28973 | N87: =IF(INTRO!$E$39="Endémique", IF($I87>0, IF($I87=4,"Inconnu",IF($I87=99,"Interrompu",$D87)), 0),"Non requis") -> Inconnu | O87: =IF(INTRO!$E$41="Endémique", IF(AND($J87>1,$J87<5), IF($J87=4, "Inconnu", E87+F87), 0),"Non requis") -> 12719 | P87: 1497 | Q87: 1 | R87: 0 | S87: 2 | T87: 0 | Y87: 2097 | Z87: SAMBA CAJU
A88: =IF(INTRO!$E$33<>0,INTRO!$E$33, " ") -> Angola | B88: CUANZA SUL | C88: AMBOIM | D88: 322294 | E88: =IF(INTRO!$E$48="","",ROUND($D88*INTRO!$E$48,0)) -> 51567 | F88: =IF(INTRO!$E$49="","",ROUND($D88*INTRO!$E$49,0)) -> 89920 | G88: =IF(INTRO!$E$50="","",ROUND($D88*INTRO!$E$50,0)) -> 169849 | H88: 0 | I88: 4 | J88: 2 | K88: 2 | L88: 0 | M88: =IF(INTRO!$E$37="Endémique",IF($H88>0,IF($H88=4,"Inconnu",IF($H88=99,"Interrompu",$D88)),0),"Non requis") -> 0 | N88: =IF(INTRO!$E$39="Endémique", IF($I88>0, IF($I88=4,"Inconnu",IF($I88=99,"Interrompu",$D88)), 0),"Non requis") -> Inconnu | O88: =IF(INTRO!$E$41="Endémique", IF(AND($J88>1,$J88<5), IF($J88=4, "Inconnu", E88+F88), 0),"Non requis") -> 141487 | P88: 114041 | Q88: 0 | R88: 0 | S88: 1 | T88: 1 | Y88: 2098 | Z88: AMBOIM
A89: =IF(INTRO!$E$33<>0,INTRO!$E$33, " ") -> Angola | B89: CUANZA SUL | C89: CASSONGUE | D89: 201952 | E89: =IF(INTRO!$E$48="","",ROUND($D89*INTRO!$E$48,0)) -> 32312 | F89: =IF(INTRO!$E$49="","",ROUND($D89*INTRO!$E$49,0)) -> 56345 | G89: =IF(INTRO!$E$50="","",ROUND($D89*INTRO!$E$50,0)) -> 106429 | H89: 0 | I89: 4 | J89: 1 | K89: 2 | L89: 0 | M89: =IF(INTRO!$E$37="Endémique",IF($H89>0,IF($H89=4,"Inconnu",IF($H89=99,"Interrompu",$D89)),0),"Non requis") -> 0 | N89: =IF(INTRO!$E$39="Endémique", IF($I89>0, IF($I89=4,"Inconnu",IF($I89=99,"Interrompu",$D89)), 0),"Non requis") -> Inconnu | O89: =IF(INTRO!$E$41="Endémique", IF(AND($J89>1,$J89<5), IF($J89=4, "Inconnu", E89+F89), 0),"Non requis") -> 0 | P89: 20748 | Q89: 0 | R89: 0 | S89: 0 | T89: 1 | Y89: 2100 | Z89: CASSONGUE
A90: =IF(INTRO!$E$33<>0,INTRO!$E$33, " ") -> Angola | B90: CUANZA SUL | C90: CELA (Waku Kungo) | D90: 299798 | E90: =IF(INTRO!$E$48="","",ROUND($D90*INTRO!$E$48,0)) -> 47968 | F90: =IF(INTRO!$E$49="","",ROUND($D90*INTRO!$E$49,0)) -> 83644 | G90: =IF(INTRO!$E$50="","",ROUND($D90*INTRO!$E$50,0)) -> 157994 | H90: 0 | I90: 4 | J90: 1 | K90: 2 | L90: 0 | M90: =IF(INTRO!$E$37="Endémique",IF($H90>0,IF($H90=4,"Inconnu",IF($H90=99,"Interrompu",$D90)),0),"Non requis") -> 0 | N90: =IF(INTRO!$E$39="Endémique", IF($I90>0, IF($I90=4,"Inconnu",IF($I90=99,"Interrompu",$D90)), 0),"Non requis") -> Inconnu | O90: =IF(INTRO!$E$41="Endémique", IF(AND($J90>1,$J90<5), IF($J90=4, "Inconnu", E90+F90), 0),"Non requis") -> 0 | P90: 21902 | Q90: 0 | R90: 0 | S90: 0 | T90: 1 | Y90: 2167 | Z90: CELA (Waku Kungo)
A91: =IF(INTRO!$E$33<>0,INTRO!$E$33, " ") -> Angola | B91: CUANZA SUL | C91: CONDA | D91: 118949 | E91: =IF(INTRO!$E$48="","",ROUND($D91*INTRO!$E$48,0)) -> 19032 | F91: =IF(INTRO!$E$49="","",ROUND($D91*INTRO!$E$49,0)) -> 33187 | G91: =IF(INTRO!$E$50="","",ROUND($D91*INTRO!$E$50,0)) -> 62686 | H91: 0 | I91: 4 | J91: 1 | K91: 2 | L91: 0 | M91: =IF(INTRO!$E$37="Endémique",IF($H91>0,IF($H91=4,"Inconnu",IF($H91=99,"Interrompu",$D91)),0),"Non requis") -> 0 | N91: =IF(INTRO!$E$39="Endémique", IF($I91>0, IF($I91=4,"Inconnu",IF($I91=99,"Interrompu",$D91)), 0),"Non requis") -> Inconnu | O91: =IF(INTRO!$E$41="Endémique", IF(AND($J91>1,$J91<5), IF($J91=4, "Inconnu", E91+F91), 0),"Non requis") -> 0 | P91: 37112 | Q91: 0 | R91: 0 | S91: 0 | T91: 1 | Y91: 2103 | Z91: CONDA
A92: =IF(INTRO!$E$33<>0,INTRO!$E$33, " ") -> Angola | B92: CUANZA SUL | C92: EBO | D92: 219515 | E92: =IF(INTRO!$E$48="","",ROUND($D92*INTRO!$E$48,0)) -> 35122 | F92: =IF(INTRO!$E$49="","",ROUND($D92*INTRO!$E$49,0)) -> 61245 | G92: =IF(INTRO!$E$50="","",ROUND($D92*INTRO!$E$50,0)) -> 115684 | H92: 0 | I92: 4 | J92: 2 | K92: 2 | L92: 0 | M92: =IF(INTRO!$E$37="Endémique",IF($H92>0,IF($H92=4,"Inconnu",IF($H92=99,"Interrompu",$D92)),0),"Non requis") -> 0 | N92: =IF(INTRO!$E$39="Endémique", IF($I92>0, IF($I92=4,"Inconnu",IF($I92=99,"Interrompu",$D92)), 0),"Non requis") -> Inconnu | O92: =IF(INTRO!$E$41="Endémique", IF(AND($J92>1,$J92<5), IF($J92=4, "Inconnu", E92+F92), 0),"Non requis") -> 96367 | P92: 69988 | Q92: 0 | R92: 0 | S92: 1 | T92: 1 | Y92: 2099 | Z92: EBO
A93: =IF(INTRO!$E$33<>0,INTRO!$E$33, " ") -> Angola | B93: CUANZA SUL | C93: QUIBALA | D93: 188845 | E93: =IF(INTRO!$E$48="","",ROUND($D93*INTRO!$E$48,0)) -> 30215 | F93: =IF(INTRO!$E$49="","",ROUND($D93*INTRO!$E$49,0)) -> 52688 | G93: =IF(INTRO!$E$50="","",ROUND($D93*INTRO!$E$50,0)) -> 99521 | H93: 0 | I93: 4 | J93: 2 | K93: 2 | L93: 0 | M93: =IF(INTRO!$E$37="Endémique",IF($H93>0,IF($H93=4,"Inconnu",IF($H93=99,"Interrompu",$D93)),0),"Non requis") -> 0 | N93: =IF(INTRO!$E$39="Endémique", IF($I93>0, IF($I93=4,"Inconnu",IF($I93=99,"Interrompu",$D93)), 0),"Non requis") -> Inconnu | O93: =IF(INTRO!$E$41="Endémique", IF(AND($J93>1,$J93<5), IF($J93=4, "Inconnu", E93+F93), 0),"Non requis") -> 82903 | P93: 40699 | Q93: 0 | R93: 0 | S93: 1 | T93: 1 | Y93: 2101 | Z93: KIBALA
A94: =IF(INTRO!$E$33<>0,INTRO!$E$33, " ") -> Angola | B94: CUANZA SUL | C94: QUILENDA | D94: 129810 | E94: =IF(INTRO!$E$48="","",ROUND($D94*INTRO!$E$48,0)) -> 20770 | F94: =IF(INTRO!$E$49="","",ROUND($D94*INTRO!$E$49,0)) -> 36217 | G94: =IF(INTRO!$E$50="","",ROUND($D94*INTRO!$E$50,0)) -> 68410 | H94: 0 | I94: 4 | J94: 2 | K94: 3 | L94: 1 | M94: =IF(INTRO!$E$37="Endémique",IF($H94>0,IF($H94=4,"Inconnu",IF($H94=99,"Interrompu",$D94)),0),"Non requis") -> 0 | N94: =IF(INTRO!$E$39="Endémique", IF($I94>0, IF($I94=4,"Inconnu",IF($I94=99,"Interrompu",$D94)), 0),"Non requis") -> Inconnu | O94: =IF(INTRO!$E$41="Endémique", IF(AND($J94>1,$J94<5), IF($J94=4, "Inconnu", E94+F94), 0),"Non requis") -> 56987 | P94: 54181 | Q94: 0 | R94: 0 | S94: 1 | T94: 1 | Y94: 2102 | Z94: KILENDA
A95: =IF(INTRO!$E$33<>0,INTRO!$E$33, " ") -> Angola | B95: CUANZA SUL | C95: LIBOLO | D95: 122393 | E95: =IF(INTRO!$E$48="","",ROUND($D95*INTRO!$E$48,0)) -> 19583 | F95: =IF(INTRO!$E$49="","",ROUND($D95*INTRO!$E$49,0)) -> 34148 | G95: =IF(INTRO!$E$50="","",ROUND($D95*INTRO!$E$50,0)) -> 64501 | H95: 0 | I95: 4 | J95: 2 | K95: 3 | L95: 0 | M95: =IF(INTRO!$E$37="Endémique",IF($H95>0,IF($H95=4,"Inconnu",IF($H95=99,"Interrompu",$D95)),0),"Non requis") -> 0 | N95: =IF(INTRO!$E$39="Endémique", IF($I95>0, IF($I95=4,"Inconnu",IF($I95=99,"Interrompu",$D95)), 0),"Non requis") -> Inconnu | O95: =IF(INTRO!$E$41="Endémique", IF(AND($J95>1,$J95<5), IF($J95=4, "Inconnu", E95+F95), 0),"Non requis") -> 53731 | P95: 49540 | Q95: 0 | R95: 0 | S95: 1 | T95: 1 | Y95: 2104 | Z95: LIBOLO
A96: =IF(INTRO!$E$33<>0,INTRO!$E$33, " ") -> Angola | B96: CUANZA SUL | C96: MUSSENDE | D96: 109731 | E96: =IF(INTRO!$E$48="","",ROUND($D96*INTRO!$E$48,0)) -> 17557 | F96: =IF(INTRO!$E$49="","",ROUND($D96*INTRO!$E$49,0)) -> 30615 | G96: =IF(INTRO!$E$50="","",ROUND($D96*INTRO!$E$50,0)) -> 57828 | H96: 0 | I96: 1 | J96: 1 | K96: 2 | L96: 0 | M96: =IF(INTRO!$E$37="Endémique",IF($H96>0,IF($H96=4,"Inconnu",IF($H96=99,"Interrompu",$D96)),0),"Non requis") -> 0 | N96: =IF(INTRO!$E$39="Endémique", IF($I96>0, IF($I96=4,"Inconnu",IF($I96=99,"Interrompu",$D96)), 0),"Non requis") -> 109731 | O96: =IF(INTRO!$E$41="Endémique", IF(AND($J96>1,$J96<5), IF($J96=4, "Inconnu", E96+F96), 0),"Non requis") -> 0 | P96: 30839 | Q96: 0 | R96: 1 | S96: 0 | T96: 1 | Y96: 2105 | Z96: MUSSENDE
A97: =IF(INTRO!$E$33<>0,INTRO!$E$33, " ") -> Angola | B97: CUANZA SUL | C97: PORTO AMBOIM | D97: 167459 | E97: =IF(INTRO!$E$48="","",ROUND($D97*INTRO!$E$48,0)) -> 26793 | F97: =IF(INTRO!$E$49="","",ROUND($D97*INTRO!$E$49,0)) -> 46721 | G97: =IF(INTRO!$E$50="","",ROUND($D97*INTRO!$E$50,0)) -> 88251 | H97: 1 | I97: 1 | J97: 1 | K97: 3 | L97: 1 | M97: =IF(INTRO!$E$37="Endémique",IF($H97>0,IF($H97=4,"Inconnu",IF($H97=99,"Interrompu",$D97)),0),"Non requis") -> 167459 | N97: =IF(INTRO!$E$39="Endémique", IF($I97>0, IF($I97=4,"Inconnu",IF($I97=99,"Interrompu",$D97)), 0),"Non requis") -> 167459 | O97: =IF(INTRO!$E$41="Endémique", IF(AND($J97>1,$J97<5), IF($J97=4, "Inconnu", E97+F97), 0),"Non requis") -> 0 | P97: 124241 | Q97: 1 | R97: 1 | S97: 0 | T97: 1 | Y97: 2106 | Z97: PORTO AMBOIM
A98: =IF(INTRO!$E$33<>0,INTRO!$E$33, " ") -> Angola | B98: CUANZA SUL | C98: SELES | D98: 248759 | E98: =IF(INTRO!$E$48="","",ROUND($D98*INTRO!$E$48,0)) -> 39801 | F98: =IF(INTRO!$E$49="","",ROUND($D98*INTRO!$E$49,0)) -> 69404 | G98: =IF(INTRO!$E$50="","",ROUND($D98*INTRO!$E$50,0)) -> 131096 | H98: 0 | I98: 4 | J98: 1 | K98: 3 | L98: 0 | M98: =IF(INTRO!$E$37="Endémique",IF($H98>0,IF($H98=4,"Inconnu",IF($H98=99,"Interrompu",$D98)),0),"Non requis") -> 0 | N98: =IF(INTRO!$E$39="Endémique", IF($I98>0, IF($I98=4,"Inconnu",IF($I98=99,"Interrompu",$D98)), 0),"Non requis") -> Inconnu | O98: =IF(INTRO!$E$41="Endémique", IF(AND($J98>1,$J98<5), IF($J98=4, "Inconnu", E98+F98), 0),"Non requis") -> 0 | P98: 137891 | Q98: 0 | R98: 0 | S98: 0 | T98: 1 | Y98: 2107 | Z98: SELES
A99: =IF(INTRO!$E$33<>0,INTRO!$E$33, " ") -> Angola | B99: CUANZA SUL | C99: SUMBE | D99: 372177 | E99: =IF(INTRO!$E$48="","",ROUND($D99*INTRO!$E$48,0)) -> 59548 | F99: =IF(INTRO!$E$49="","",ROUND($D99*INTRO!$E$49,0)) -> 103837 | G99: =IF(INTRO!$E$50="","",ROUND($D99*INTRO!$E$50,0)) -> 196137 | H99: 0 | I99: 4 | J99: 1 | K99: 2 | L99: 0 | M99: =IF(INTRO!$E$37="Endémique",IF($H99>0,IF($H99=4,"Inconnu",IF($H99=99,"Interrompu",$D99)),0),"Non requis") -> 0 | N99: =IF(INTRO!$E$39="Endémique", IF($I99>0, IF($I99=4,"Inconnu",IF($I99=99,"Interrompu",$D99)), 0),"Non requis") -> Inconnu | O99: =IF(INTRO!$E$41="Endémique", IF(AND($J99>1,$J99<5), IF($J99=4, "Inconnu", E99+F99), 0),"Non requis") -> 0 | P99: 104600 | Q99: 0 | R99: 0 | S99: 0 | T99: 1 | Y99: 2108 | Z99: SUMBE
A100: =IF(INTRO!$E$33<>0,INTRO!$E$33, " ") -> Angola | B100: LUANDA | C100: BELAS | D100: 378671 | E100: =IF(INTRO!$E$48="","",ROUND($D100*INTRO!$E$48,0)) -> 60587 | F100: =IF(INTRO!$E$49="","",ROUND($D100*INTRO!$E$49,0)) -> 105649 | G100: =IF(INTRO!$E$50="","",ROUND($D100*INTRO!$E$50,0)) -> 199560 | H100: 0 | I100: 4 | J100: 1 | K100: 2 | L100: 1 | M100: =IF(INTRO!$E$37="Endémique",IF($H100>0,IF($H100=4,"Inconnu",IF($H100=99,"Interrompu",$D100)),0),"Non requis") -> 0 | N100: =IF(INTRO!$E$39="Endémique", IF($I100>0, IF($I100=4,"Inconnu",IF($I100=99,"Interrompu",$D100)), 0),"Non requis") -> Inconnu | O100: =IF(INTRO!$E$41="Endémique", IF(AND($J100>1,$J100<5), IF($J100=4, "Inconnu", E100+F100), 0),"Non requis") -> 0 | P100: 125449 | Q100: 0 | R100: 0 | S100: 0 | T100: 1 | Y100: 2212 | Z100: BELAS
A101: =IF(INTRO!$E$33<>0,INTRO!$E$33, " ") -> Angola | B101: LUANDA | C101: CACUACO | D101: 1211978 | E101: =IF(INTRO!$E$48="","",ROUND($D101*INTRO!$E$48,0)) -> 193916 | F101: =IF(INTRO!$E$49="","",ROUND($D101*INTRO!$E$49,0)) -> 338142 | G101: =IF(INTRO!$E$50="","",ROUND($D101*INTRO!$E$50,0)) -> 638712 | H101: 0 | I101: 4 | J101: 0 | K101: 2 | L101: 1 | M101: =IF(INTRO!$E$37="Endémique",IF($H101>0,IF($H101=4,"Inconnu",IF($H101=99,"Interrompu",$D101)),0),"Non requis") -> 0 | N101: =IF(INTRO!$E$39="Endémique", IF($I101>0, IF($I101=4,"Inconnu",IF($I101=99,"Interrompu",$D101)), 0),"Non requis") -> Inconnu | O101: =IF(INTRO!$E$41="Endémique", IF(AND($J101>1,$J101<5), IF($J101=4, "Inconnu", E101+F101), 0),"Non requis") -> 0 | P101: 339735 | Q101: 0 | R101: 0 | S101: 0 | T101: 1 | Y101: 2140 | Z101: CACUACO
A102: =IF(INTRO!$E$33<>0,INTRO!$E$33, " ") -> Angola | B102: LUANDA | C102: CAZENGA | D102: 1568251 | E102: =IF(INTRO!$E$48="","",ROUND($D102*INTRO!$E$48,0)) -> 250920 | F102: =IF(INTRO!$E$49="","",ROUND($D102*INTRO!$E$49,0)) -> 437542 | G102: =IF(INTRO!$E$50="","",ROUND($D102*INTRO!$E$50,0)) -> 826468 | H102: 0 | I102: 4 | J102: 1 | K102: 1 | L102: 1 | M102: =IF(INTRO!$E$37="Endémique",IF($H102>0,IF($H102=4,"Inconnu",IF($H102=99,"Interrompu",$D102)),0),"Non requis") -> 0 | N102: =IF(INTRO!$E$39="Endémique", IF($I102>0, IF($I102=4,"Inconnu",IF($I102=99,"Interrompu",$D102)), 0),"Non requis") -> Inconnu | O102: =IF(INTRO!$E$41="Endémique", IF(AND($J102>1,$J102<5), IF($J102=4, "Inconnu", E102+F102), 0),"Non requis") -> 0 | P102: 402755 | Q102: 0 | R102: 0 | S102: 0 | T102: 0 | Y102: 2141 | Z102: CAZENGA
A103: =IF(INTRO!$E$33<>0,INTRO!$E$33, " ") -> Angola | B103: LUANDA | C103: ICOLO E BENGO | D103: 127617 | E103: =IF(INTRO!$E$48="","",ROUND($D103*INTRO!$E$48,0)) -> 20419 | F103: =IF(INTRO!$E$49="","",ROUND($D103*INTRO!$E$49,0)) -> 35605 | G103: =IF(INTRO!$E$50="","",ROUND($D103*INTRO!$E$50,0)) -> 67254 | H103: 0 | I103: 4 | J103: 2 | K103: 3 | L103: 0 | M103: =IF(INTRO!$E$37="Endémique",IF($H103>0,IF($H103=4,"Inconnu",IF($H103=99,"Interrompu",$D103)),0),"Non requis") -> 0 | N103: =IF(INTRO!$E$39="Endémique", IF($I103>0, IF($I103=4,"Inconnu",IF($I103=99,"Interrompu",$D103)), 0),"Non requis") -> Inconnu | O103: =IF(INTRO!$E$41="Endémique", IF(AND($J103>1,$J103<5), IF($J103=4, "Inconnu", E103+F103), 0),"Non requis") -> 56024 | P103: 59369 | Q103: 0 | R103: 0 | S103: 1 | T103: 1 | Y103: 2051 | Z103: ICOLO E BENGO
A104: =IF(INTRO!$E$33<>0,INTRO!$E$33, " ") -> Angola | B104: LUANDA | C104: KILAMBA KIAXI | D104: 1185314 | E104: =IF(INTRO!$E$48="","",ROUND($D104*INTRO!$E$48,0)) -> 189650 | F104: =IF(INTRO!$E$49="","",ROUND($D104*INTRO!$E$49,0)) -> 330703 | G104: =IF(INTRO!$E$50="","",ROUND($D104*INTRO!$E$50,0)) -> 624660 | H104: 4 | I104: 4 | J104: 0 | K104: 1 | L104: 0 | M104: =IF(INTRO!$E$37="Endémique",IF($H104>0,IF($H104=4,"Inconnu",IF($H104=99,"Interrompu",$D104)),0),"Non requis") -> Inconnu | N104: =IF(INTRO!$E$39="Endémique", IF($I104>0, IF($I104=4,"Inconnu",IF($I104=99,"Interrompu",$D104)), 0),"Non requis") -> Inconnu | O104: =IF(INTRO!$E$41="Endémique", IF(AND($J104>1,$J104<5), IF($J104=4, "Inconnu", E104+F104), 0),"Non requis") -> 0 | P104: 304410 | Q104: 0 | R104: 0 | S104: 0 | T104: 0 | Y104: 2143 | Z104: KILAMBA KIAXI
A105: =IF(INTRO!$E$33<>0,INTRO!$E$33, " ") -> Angola | B105: LUANDA | C105: LUANDA | D105: 1885384 | E105: =IF(INTRO!$E$48="","",ROUND($D105*INTRO!$E$48,0)) -> 301661 | F105: =IF(INTRO!$E$49="","",ROUND($D105*INTRO!$E$49,0)) -> 526022 | G105: =IF(INTRO!$E$50="","",ROUND($D105*INTRO!$E$50,0)) -> 993597 | H105: 0 | I105: 4 | J105: 2 | K105: 1 | L105: 1 | M105: =IF(INTRO!$E$37="Endémique",IF($H105>0,IF($H105=4,"Inconnu",IF($H105=99,"Interrompu",$D105)),0),"Non requis") -> 0 | N105: =IF(INTRO!$E$39="Endémique", IF($I105>0, IF($I105=4,"Inconnu",IF($I105=99,"Interrompu",$D105)), 0),"Non requis") -> Inconnu | O105: =IF(INTRO!$E$41="Endémique", IF(AND($J105>1,$J105<5), IF($J105=4, "Inconnu", E105+F105), 0),"Non requis") -> 827683 | P105: 484201 | Q105: 0 | R105: 0 | S105: 1 | T105: 0 | Y105: 2219 | Z105: LUANDA
A106: =IF(INTRO!$E$33<>0,INTRO!$E$33, " ") -> Angola | B106: LUANDA | C106: QUIÇAMA | D106: 35598 | E106: =IF(INTRO!$E$48="","",ROUND($D106*INTRO!$E$48,0)) -> 5696 | F106: =IF(INTRO!$E$49="","",ROUND($D106*INTRO!$E$49,0)) -> 9932 | G106: =IF(INTRO!$E$50="","",ROUND($D106*INTRO!$E$50,0)) -> 18760 | H106: 0 | I106: 4 | J106: 1 | K106: 3 | L106: 0 | M106: =IF(INTRO!$E$37="Endémique",IF($H106>0,IF($H106=4,"Inconnu",IF($H106=99,"Interrompu",$D106)),0),"Non requis") -> 0 | N106: =IF(INTRO!$E$39="Endémique", IF($I106>0, IF($I106=4,"Inconnu",IF($I106=99,"Interrompu",$D106)), 0),"Non requis") -> Inconnu | O106: =IF(INTRO!$E$41="Endémique", IF(AND($J106>1,$J106<5), IF($J106=4, "Inconnu", E106+F106), 0),"Non requis") -> 0 | P106: 16365 | Q106: 0 | R106: 0 | S106: 0 | T106: 1 | Y106: 2052 | Z106: QUISSAMA
A107: =IF(INTRO!$E$33<>0,INTRO!$E$33, " ") -> Angola | B107: LUANDA | C107: TALATONA | D107: 999123 | E107: =IF(INTRO!$E$48="","",ROUND($D107*INTRO!$E$48,0)) -> 159860 | F107: =IF(INTRO!$E$49="","",ROUND($D107*INTRO!$E$49,0)) -> 278755 | G107: =IF(INTRO!$E$50="","",ROUND($D107*INTRO!$E$50,0)) -> 526538 | H107: 0 | I107: 4 | J107: 1 | K107: 0 | L107: 0 | M107: =IF(INTRO!$E$37="Endémique",IF($H107>0,IF($H107=4,"Inconnu",IF($H107=99,"Interrompu",$D107)),0),"Non requis") -> 0 | N107: =IF(INTRO!$E$39="Endémique", IF($I107>0, IF($I107=4,"Inconnu",IF($I107=99,"Interrompu",$D107)), 0),"Non requis") -> Inconnu | O107: =IF(INTRO!$E$41="Endémique", IF(AND($J107>1,$J107<5), IF($J107=4, "Inconnu", E107+F107), 0),"Non requis") -> 0 | P107: 0 | Q107: 0 | R107: 0 | S107: 0 | T107: 0 | Y107: 2223 | Z107: TALATONA
A108: =IF(INTRO!$E$33<>0,INTRO!$E$33, " ") -> Angola | B108: LUANDA | C108: VIANA | D108: 2169253 | E108: =IF(INTRO!$E$48="","",ROUND($D108*INTRO!$E$48,0)) -> 347080 | F108: =IF(INTRO!$E$49="","",ROUND($D108*INTRO!$E$49,0)) -> 605222 | G108: =IF(INTRO!$E$50="","",ROUND($D108*INTRO!$E$50,0)) -> 1143196 | H108: 0 | I108: 4 | J108: 0 | K108: 2 | L108: 0 | M108: =IF(INTRO!$E$37="Endémique",IF($H108>0,IF($H108=4,"Inconnu",IF($H108=99,"Interrompu",$D108)),0),"Non requis") -> 0 | N108: =IF(INTRO!$E$39="Endémique", IF($I108>0, IF($I108=4,"Inconnu",IF($I108=99,"Interrompu",$D108)), 0),"Non requis") -> Inconnu | O108: =IF(INTRO!$E$41="Endémique", IF(AND($J108>1,$J108<5), IF($J108=4, "Inconnu", E108+F108), 0),"Non requis") -> 0 | P108: 80328 | Q108: 0 | R108: 0 | S108: 0 | T108: 1 | Y108: 2148 | Z108: VIANA
A109: =IF(INTRO!$E$33<>0,INTRO!$E$33, " ") -> Angola | B109: LUNDA NORTE | C109: CAMBULO | D109: 160196 | E109: =IF(INTRO!$E$48="","",ROUND($D109*INTRO!$E$48,0)) -> 25631 | F109: =IF(INTRO!$E$49="","",ROUND($D109*INTRO!$E$49,0)) -> 44695 | G109: =IF(INTRO!$E$50="","",ROUND($D109*INTRO!$E$50,0)) -> 84423 | H109: 1 | I109: 1 | J109: 3 | K109: 0 | L109: 0 | M109: =IF(INTRO!$E$37="Endémique",IF($H109>0,IF($H109=4,"Inconnu",IF($H109=99,"Interrompu",$D109)),0),"Non requis") -> 160196 | N109: =IF(INTRO!$E$39="Endémique", IF($I109>0, IF($I109=4,"Inconnu",IF($I109=99,"Interrompu",$D109)), 0),"Non requis") -> 160196 | O109: =IF(INTRO!$E$41="Endémique", IF(AND($J109>1,$J109<5), IF($J109=4, "Inconnu", E109+F109), 0),"Non requis") -> 70326 | P109: 0 | Q109: 1 | R109: 1 | S109: 2 | T109: 0 | Y109: 2150 | Z109: CAMBULO
A110: =IF(INTRO!$E$33<>0,INTRO!$E$33, " ") -> Angola | B110: LUNDA NORTE | C110: CAPENDA CAMULEMBA | D110: 77790 | E110: =IF(INTRO!$E$48="","",ROUND($D110*INTRO!$E$48,0)) -> 12446 | F110: =IF(INTRO!$E$49="","",ROUND($D110*INTRO!$E$49,0)) -> 21703 | G110: =IF(INTRO!$E$50="","",ROUND($D110*INTRO!$E$50,0)) -> 40995 | H110: 0 | I110: 1 | J110: 3 | K110: 1 | L110: 0 | M110: =IF(INTRO!$E$37="Endémique",IF($H110>0,IF($H110=4,"Inconnu",IF($H110=99,"Interrompu",$D110)),0),"Non requis") -> 0 | N110: =IF(INTRO!$E$39="Endémique", IF($I110>0, IF($I110=4,"Inconnu",IF($I110=99,"Interrompu",$D110)), 0),"Non requis") -> 77790 | O110: =IF(INTRO!$E$41="Endémique", IF(AND($J110>1,$J110<5), IF($J110=4, "Inconnu", E110+F110), 0),"Non requis") -> 34149 | P110: 19978 | Q110: 0 | R110: 1 | S110: 2 | T110: 0 | Y110: 2151 | Z110: CAPENDA CAMULEMBA
A111: =IF(INTRO!$E$33<>0,INTRO!$E$33, " ") -> Angola | B111: LUNDA NORTE | C111: CAUNGULA | D111: 37452 | E111: =IF(INTRO!$E$48="","",ROUND($D111*INTRO!$E$48,0)) -> 5992 | F111: =IF(INTRO!$E$49="","",ROUND($D111*INTRO!$E$49,0)) -> 10449 | G111: =IF(INTRO!$E$50="","",ROUND($D111*INTRO!$E$50,0)) -> 19737 | H111: 0 | I111: 1 | J111: 2 | K111: 1 | L111: 0 | M111: =IF(INTRO!$E$37="Endémique",IF($H111>0,IF($H111=4,"Inconnu",IF($H111=99,"Interrompu",$D111)),0),"Non requis") -> 0 | N111: =IF(INTRO!$E$39="Endémique", IF($I111>0, IF($I111=4,"Inconnu",IF($I111=99,"Interrompu",$D111)), 0),"Non requis") -> 37452 | O111: =IF(INTRO!$E$41="Endémique", IF(AND($J111>1,$J111<5), IF($J111=4, "Inconnu", E111+F111), 0),"Non requis") -> 16441 | P111: 4474 | Q111: 0 | R111: 1 | S111: 1 | T111: 0 | Y111: 2152 | Z111: CAUNGULA
A112: =IF(INTRO!$E$33<>0,INTRO!$E$33, " ") -> Angola | B112: LUNDA NORTE | C112: CHITATO | D112: 252478 | E112: =IF(INTRO!$E$48="","",ROUND($D112*INTRO!$E$48,0)) -> 40396 | F112: =IF(INTRO!$E$49="","",ROUND($D112*INTRO!$E$49,0)) -> 70441 | G112: =IF(INTRO!$E$50="","",ROUND($D112*INTRO!$E$50,0)) -> 133056 | H112: 0 | I112: 1 | J112: 3 | K112: 1 | L112: 0 | M112: =IF(INTRO!$E$37="Endémique",IF($H112>0,IF($H112=4,"Inconnu",IF($H112=99,"Interrompu",$D112)),0),"Non requis") -> 0 | N112: =IF(INTRO!$E$39="Endémique", IF($I112>0, IF($I112=4,"Inconnu",IF($I112=99,"Interrompu",$D112)), 0),"Non requis") -> 252478 | O112: =IF(INTRO!$E$41="Endémique", IF(AND($J112>1,$J112<5), IF($J112=4, "Inconnu", E112+F112), 0),"Non requis") -> 110837 | P112: 64841 | Q112: 0 | R112: 1 | S112: 2 | T112: 0 | Y112: 2149 | Z112: CHITATO
A113: =IF(INTRO!$E$33<>0,INTRO!$E$33, " ") -> Angola | B113: LUNDA NORTE | C113: CUANGO | D113: 245134 | E113: =IF(INTRO!$E$48="","",ROUND($D113*INTRO!$E$48,0)) -> 39221 | F113: =IF(INTRO!$E$49="","",ROUND($D113*INTRO!$E$49,0)) -> 68392 | G113: =IF(INTRO!$E$50="","",ROUND($D113*INTRO!$E$50,0)) -> 129186 | H113: 0 | I113: 4 | J113: 2 | K113: 2 | L113: 0 | M113: =IF(INTRO!$E$37="Endémique",IF($H113>0,IF($H113=4,"Inconnu",IF($H113=99,"Interrompu",$D113)),0),"Non requis") -> 0 | N113: =IF(INTRO!$E$39="Endémique", IF($I113>0, IF($I113=4,"Inconnu",IF($I113=99,"Interrompu",$D113)), 0),"Non requis") -> Inconnu | O113: =IF(INTRO!$E$41="Endémique", IF(AND($J113>1,$J113<5), IF($J113=4, "Inconnu", E113+F113), 0),"Non requis") -> 107613 | P113: 76077 | Q113: 0 | R113: 0 | S113: 1 | T113: 1 | Y113: 2153 | Z113: CUANGO
A114: =IF(INTRO!$E$33<>0,INTRO!$E$33, " ") -> Angola | B114: LUNDA NORTE | C114: CUILO | D114: 27993 | E114: =IF(INTRO!$E$48="","",ROUND($D114*INTRO!$E$48,0)) -> 4479 | F114: =IF(INTRO!$E$49="","",ROUND($D114*INTRO!$E$49,0)) -> 7810 | G114: =IF(INTRO!$E$50="","",ROUND($D114*INTRO!$E$50,0)) -> 14752 | H114: 1 | I114: 1 | J114: 2 | K114: 0 | L114: 0 | M114: =IF(INTRO!$E$37="Endémique",IF($H114>0,IF($H114=4,"Inconnu",IF($H114=99,"Interrompu",$D114)),0),"Non requis") -> 27993 | N114: =IF(INTRO!$E$39="Endémique", IF($I114>0, IF($I114=4,"Inconnu",IF($I114=99,"Interrompu",$D114)), 0),"Non requis") -> 27993 | O114: =IF(INTRO!$E$41="Endémique", IF(AND($J114>1,$J114<5), IF($J114=4, "Inconnu", E114+F114), 0),"Non requis") -> 12289 | P114: 0 | Q114: 1 | R114: 1 | S114: 1 | T114: 0 | Y114: 2154 | Z114: CUILO
A115: =IF(INTRO!$E$33<>0,INTRO!$E$33, " ") -> Angola | B115: LUNDA NORTE | C115: LOVUA | D115: 17409 | E115: =IF(INTRO!$E$48="","",ROUND($D115*INTRO!$E$48,0)) -> 2785 | F115: =IF(INTRO!$E$49="","",ROUND($D115*INTRO!$E$49,0)) -> 4857 | G115: =IF(INTRO!$E$50="","",ROUND($D115*INTRO!$E$50,0)) -> 9175 | H115: 0 | I115: 1 | J115: 2 | K115: 0 | L115: 0 | M115: =IF(INTRO!$E$37="Endémique",IF($H115>0,IF($H115=4,"Inconnu",IF($H115=99,"Interrompu",$D115)),0),"Non requis") -> 0 | N115: =IF(INTRO!$E$39="Endémique", IF($I115>0, IF($I115=4,"Inconnu",IF($I115=99,"Interrompu",$D115)), 0),"Non requis") -> 17409 | O115: =IF(INTRO!$E$41="Endémique", IF(AND($J115>1,$J115<5), IF($J115=4, "Inconnu", E115+F115), 0),"Non requis") -> 7642 | P115: 0 | Q115: 0 | R115: 1 | S115: 1 | T115: 0 | Y115: 2224 | Z115: LOVUA
A116: =IF(INTRO!$E$33<>0,INTRO!$E$33, " ") -> Angola | B116: LUNDA NORTE | C116: LUBALO | D116: 27504 | E116: =IF(INTRO!$E$48="","",ROUND($D116*INTRO!$E$48,0)) -> 4401 | F116: =IF(INTRO!$E$49="","",ROUND($D116*INTRO!$E$49,0)) -> 7674 | G116: =IF(INTRO!$E$50="","",ROUND($D116*INTRO!$E$50,0)) -> 14495 | H116: 0 | I116: 1 | J116: 3 | K116: 1 | L116: 0 | M116: =IF(INTRO!$E$37="Endémique",IF($H116>0,IF($H116=4,"Inconnu",IF($H116=99,"Interrompu",$D116)),0),"Non requis") -> 0 | N116: =IF(INTRO!$E$39="Endémique", IF($I116>0, IF($I116=4,"Inconnu",IF($I116=99,"Interrompu",$D116)), 0),"Non requis") -> 27504 | O116: =IF(INTRO!$E$41="Endémique", IF(AND($J116>1,$J116<5), IF($J116=4, "Inconnu", E116+F116), 0),"Non requis") -> 12075 | P116: 7064 | Q116: 0 | R116: 1 | S116: 2 | T116: 0 | Y116: 2155 | Z116: LUBALO
A117: =IF(INTRO!$E$33<>0,INTRO!$E$33, " ") -> Angola | B117: LUNDA NORTE | C117: LUCAPA | D117: 205814 | E117: =IF(INTRO!$E$48="","",ROUND($D117*INTRO!$E$48,0)) -> 32930 | F117: =IF(INTRO!$E$49="","",ROUND($D117*INTRO!$E$49,0)) -> 57422 | G117: =IF(INTRO!$E$50="","",ROUND($D117*INTRO!$E$50,0)) -> 108464 | H117: 0 | I117: 1 | J117: 3 | K117: 0 | L117: 0 | M117: =IF(INTRO!$E$37="Endémique",IF($H117>0,IF($H117=4,"Inconnu",IF($H117=99,"Interrompu",$D117)),0),"Non requis") -> 0 | N117: =IF(INTRO!$E$39="Endémique", IF($I117>0, IF($I117=4,"Inconnu",IF($I117=99,"Interrompu",$D117)), 0),"Non requis") -> 205814 | O117: =IF(INTRO!$E$41="Endémique", IF(AND($J117>1,$J117<5), IF($J117=4, "Inconnu", E117+F117), 0),"Non requis") -> 90352 | P117: 0 | Q117: 0 | R117: 1 | S117: 2 | T117: 0 | Y117: 2156 | Z117: LUCAPA
A118: =IF(INTRO!$E$33<>0,INTRO!$E$33, " ") -> Angola | B118: LUNDA NORTE | C118: XA MUTEBA | D118: 64130 | E118: =IF(INTRO!$E$48="","",ROUND($D118*INTRO!$E$48,0)) -> 10261 | F118: =IF(INTRO!$E$49="","",ROUND($D118*INTRO!$E$49,0)) -> 17892 | G118: =IF(INTRO!$E$50="","",ROUND($D118*INTRO!$E$50,0)) -> 33797 | H118: 1 | I118: 4 | J118: 3 | K118: 2 | L118: 0 | M118: =IF(INTRO!$E$37="Endémique",IF($H118>0,IF($H118=4,"Inconnu",IF($H118=99,"Interrompu",$D118)),0),"Non requis") -> 64130 | N118: =IF(INTRO!$E$39="Endémique", IF($I118>0, IF($I118=4,"Inconnu",IF($I118=99,"Interrompu",$D118)), 0),"Non requis") -> Inconnu | O118: =IF(INTRO!$E$41="Endémique", IF(AND($J118>1,$J118<5), IF($J118=4, "Inconnu", E118+F118), 0),"Non requis") -> 28153 | P118: 22691 | Q118: 1 | R118: 0 | S118: 2 | T118: 1 | Y118: 2157 | Z118: XA MUTEBA
A119: =IF(INTRO!$E$33<>0,INTRO!$E$33, " ") -> Angola | B119: LUNDA SUL | C119: CACOLO | D119: 43147 | E119: =IF(INTRO!$E$48="","",ROUND($D119*INTRO!$E$48,0)) -> 6904 | F119: =IF(INTRO!$E$49="","",ROUND($D119*INTRO!$E$49,0)) -> 12038 | G119: =IF(INTRO!$E$50="","",ROUND($D119*INTRO!$E$50,0)) -> 22738 | H119: 1 | I119: 1 | J119: 3 | K119: 3 | L119: 0 | M119: =IF(INTRO!$E$37="Endémique",IF($H119>0,IF($H119=4,"Inconnu",IF($H119=99,"Interrompu",$D119)),0),"Non requis") -> 43147 | N119: =IF(INTRO!$E$39="Endémique", IF($I119>0, IF($I119=4,"Inconnu",IF($I119=99,"Interrompu",$D119)), 0),"Non requis") -> 43147 | O119: =IF(INTRO!$E$41="Endémique", IF(AND($J119>1,$J119<5), IF($J119=4, "Inconnu", E119+F119), 0),"Non requis") -> 18942 | P119: 3333 | Q119: 1 | R119: 1 | S119: 2 | T119: 1 | Y119: 2159 | Z119: CACOLO
A120: =IF(INTRO!$E$33<>0,INTRO!$E$33, " ") -> Angola | B120: LUNDA SUL | C120: DALA | D120: 40572 | E120: =IF(INTRO!$E$48="","",ROUND($D120*INTRO!$E$48,0)) -> 6492 | F120: =IF(INTRO!$E$49="","",ROUND($D120*INTRO!$E$49,0)) -> 11320 | G120: =IF(INTRO!$E$50="","",ROUND($D120*INTRO!$E$50,0)) -> 21381 | H120: 0 | I120: 1 | J120: 2 | K120: 0 | L120: 1 | M120: =IF(INTRO!$E$37="Endémique",IF($H120>0,IF($H120=4,"Inconnu",IF($H120=99,"Interrompu",$D120)),0),"Non requis") -> 0 | N120: =IF(INTRO!$E$39="Endémique", IF($I120>0, IF($I120=4,"Inconnu",IF($I120=99,"Interrompu",$D120)), 0),"Non requis") -> 40572 | O120: =IF(INTRO!$E$41="Endémique", IF(AND($J120>1,$J120<5), IF($J120=4, "Inconnu", E120+F120), 0),"Non requis") -> 17812 | P120: 0 | Q120: 0 | R120: 1 | S120: 1 | T120: 0 | Y120: 2158 | Z120: DALA
A121: =IF(INTRO!$E$33<>0,INTRO!$E$33, " ") -> Angola | B121: LUNDA SUL | C121: MUCONDA | D121: 44999 | E121: =IF(INTRO!$E$48="","",ROUND($D121*INTRO!$E$48,0)) -> 7200 | F121: =IF(INTRO!$E$49="","",ROUND($D121*INTRO!$E$49,0)) -> 12555 | G121: =IF(INTRO!$E$50="","",ROUND($D121*INTRO!$E$50,0)) -> 23714 | H121: 0 | I121: 1 | J121: 3 | K121: 1 | L121: 0 | M121: =IF(INTRO!$E$37="Endémique",IF($H121>0,IF($H121=4,"Inconnu",IF($H121=99,"Interrompu",$D121)),0),"Non requis") -> 0 | N121: =IF(INTRO!$E$39="Endémique", IF($I121>0, IF($I121=4,"Inconnu",IF($I121=99,"Interrompu",$D121)), 0),"Non requis") -> 44999 | O121: =IF(INTRO!$E$41="Endémique", IF(AND($J121>1,$J121<5), IF($J121=4, "Inconnu", E121+F121), 0),"Non requis") -> 19755 | P121: 3238 | Q121: 0 | R121: 1 | S121: 2 | T121: 0 | Y121: 2160 | Z121: MUCONDA
A122: =IF(INTRO!$E$33<>0,INTRO!$E$33, " ") -> Angola | B122: LUNDA SUL | C122: SAURIMO | D122: 598513 | E122: =IF(INTRO!$E$48="","",ROUND($D122*INTRO!$E$48,0)) -> 95762 | F122: =IF(INTRO!$E$49="","",ROUND($D122*INTRO!$E$49,0)) -> 166985 | G122: =IF(INTRO!$E$50="","",ROUND($D122*INTRO!$E$50,0)) -> 315416 | H122: 1 | I122: 1 | J122: 3 | K122: 0 | L122: 0 | M122: =IF(INTRO!$E$37="Endémique",IF($H122>0,IF($H122=4,"Inconnu",IF($H122=99,"Interrompu",$D122)),0),"Non requis") -> 598513 | N122: =IF(INTRO!$E$39="Endémique", IF($I122>0, IF($I122=4,"Inconnu",IF($I122=99,"Interrompu",$D122)), 0),"Non requis") -> 598513 | O122: =IF(INTRO!$E$41="Endémique", IF(AND($J122>1,$J122<5), IF($J122=4, "Inconnu", E122+F122), 0),"Non requis") -> 262747 | P122: 0 | Q122: 1 | R122: 1 | S122: 2 | T122: 0 | Y122: 2161 | Z122: SAURIMO
A123: =IF(INTRO!$E$33<>0,INTRO!$E$33, " ") -> Angola | B123: MALANJE | C123: CACULAMA (Mukari) | D123: 40169 | E123: =IF(INTRO!$E$48="","",ROUND($D123*INTRO!$E$48,0)) -> 6427 | F123: =IF(INTRO!$E$49="","",ROUND($D123*INTRO!$E$49,0)) -> 11207 | G123: =IF(INTRO!$E$50="","",ROUND($D123*INTRO!$E$50,0)) -> 21169 | H123: 1 | I123: 4 | J123: 3 | K123: 2 | L123: 0 | M123: =IF(INTRO!$E$37="Endémique",IF($H123>0,IF($H123=4,"Inconnu",IF($H123=99,"Interrompu",$D123)),0),"Non requis") -> 40169 | N123: =IF(INTRO!$E$39="Endémique", IF($I123>0, IF($I123=4,"Inconnu",IF($I123=99,"Interrompu",$D123)), 0),"Non requis") -> Inconnu | O123: =IF(INTRO!$E$41="Endémique", IF(AND($J123>1,$J123<5), IF($J123=4, "Inconnu", E123+F123), 0),"Non requis") -> 17634 | P123: 13492 | Q123: 1 | R123: 0 | S123: 2 | T123: 1 | Y123: 2215 | Z123: CACULAMA (Mukari)
A124: =IF(INTRO!$E$33<>0,INTRO!$E$33, " ") -> Angola | B124: MALANJE | C124: CACUSO | D124: 95361 | E124: =IF(INTRO!$E$48="","",ROUND($D124*INTRO!$E$48,0)) -> 15258 | F124: =IF(INTRO!$E$49="","",ROUND($D124*INTRO!$E$49,0)) -> 26606 | G124: =IF(INTRO!$E$50="","",ROUND($D124*INTRO!$E$50,0)) -> 50255 | H124: 0 | I124: 4 | J124: 3 | K124: 2 | L124: 0 | M124: =IF(INTRO!$E$37="Endémique",IF($H124>0,IF($H124=4,"Inconnu",IF($H124=99,"Interrompu",$D124)),0),"Non requis") -> 0 | N124: =IF(INTRO!$E$39="Endémique", IF($I124>0, IF($I124=4,"Inconnu",IF($I124=99,"Interrompu",$D124)), 0),"Non requis") -> Inconnu | O124: =IF(INTRO!$E$41="Endémique", IF(AND($J124>1,$J124<5), IF($J124=4, "Inconnu", E124+F124), 0),"Non requis") -> 41864 | P124: 33286 | Q124: 0 | R124: 0 | S124: 2 | T124: 1 | Y124: 2163 | Z124: CACUSO
A125: =IF(INTRO!$E$33<>0,INTRO!$E$33, " ") -> Angola | B125: MALANJE | C125: CAMBUNDI CATEMBO | D125: 61781 | E125: =IF(INTRO!$E$48="","",ROUND($D125*INTRO!$E$48,0)) -> 9885 | F125: =IF(INTRO!$E$49="","",ROUND($D125*INTRO!$E$49,0)) -> 17237 | G125: =IF(INTRO!$E$50="","",ROUND($D125*INTRO!$E$50,0)) -> 32559 | H125: 0 | I125: 4 | J125: 3 | K125: 2 | L125: 0 | M125: =IF(INTRO!$E$37="Endémique",IF($H125>0,IF($H125=4,"Inconnu",IF($H125=99,"Interrompu",$D125)),0),"Non requis") -> 0 | N125: =IF(INTRO!$E$39="Endémique", IF($I125>0, IF($I125=4,"Inconnu",IF($I125=99,"Interrompu",$D125)), 0),"Non requis") -> Inconnu | O125: =IF(INTRO!$E$41="Endémique", IF(AND($J125>1,$J125<5), IF($J125=4, "Inconnu", E125+F125), 0),"Non requis") -> 27122 | P125: 19942 | Q125: 0 | R125: 0 | S125: 2 | T125: 1 | Y125: 2165 | Z125: CAMBUNDI CATEMBO
A126: =IF(INTRO!$E$33<>0,INTRO!$E$33, " ") -> Angola | B126: MALANJE | C126: CANGANDALA | D126: 60190 | E126: =IF(INTRO!$E$48="","",ROUND($D126*INTRO!$E$48,0)) -> 9630 | F126: =IF(INTRO!$E$49="","",ROUND($D126*INTRO!$E$49,0)) -> 16793 | G126: =IF(INTRO!$E$50="","",ROUND($D126*INTRO!$E$50,0)) -> 31720 | H126: 1 | I126: 4 | J126: 2 | K126: 3 | L126: 0 | M126: =IF(INTRO!$E$37="Endémique",IF($H126>0,IF($H126=4,"Inconnu",IF($H126=99,"Interrompu",$D126)),0),"Non requis") -> 60190 | N126: =IF(INTRO!$E$39="Endémique", IF($I126>0, IF($I126=4,"Inconnu",IF($I126=99,"Interrompu",$D126)), 0),"Non requis") -> Inconnu | O126: =IF(INTRO!$E$41="Endémique", IF(AND($J126>1,$J126<5), IF($J126=4, "Inconnu", E126+F126), 0),"Non requis") -> 26423 | P126: 38028 | Q126: 1 | R126: 0 | S126: 1 | T126: 1 | Y126: 2166 | Z126: CANGANDALA
A127: =IF(INTRO!$E$33<>0,INTRO!$E$33, " ") -> Angola | B127: MALANJE | C127: CAHOMBO | D127: 28696 | E127: =IF(INTRO!$E$48="","",ROUND($D127*INTRO!$E$48,0)) -> 4591 | F127: =IF(INTRO!$E$49="","",ROUND($D127*INTRO!$E$49,0)) -> 8006 | G127: =IF(INTRO!$E$50="","",ROUND($D127*INTRO!$E$50,0)) -> 15123 | H127: 0 | I127: 4 | J127: 2 | K127: 3 | L127: 0 | M127: =IF(INTRO!$E$37="Endémique",IF($H127>0,IF($H127=4,"Inconnu",IF($H127=99,"Interrompu",$D127)),0),"Non requis") -> 0 | N127: =IF(INTRO!$E$39="Endémique", IF($I127>0, IF($I127=4,"Inconnu",IF($I127=99,"Interrompu",$D127)), 0),"Non requis") -> Inconnu | O127: =IF(INTRO!$E$41="Endémique", IF(AND($J127>1,$J127<5), IF($J127=4, "Inconnu", E127+F127), 0),"Non requis") -> 12597 | P127: 12413 | Q127: 0 | R127: 0 | S127: 1 | T127: 1 | Y127: 2162 | Z127: KAHOMBO
A128: =IF(INTRO!$E$33<>0,INTRO!$E$33, " ") -> Angola | B128: MALANJE | C128: CALANDULA | D128: 107275 | E128: =IF(INTRO!$E$48="","",ROUND($D128*INTRO!$E$48,0)) -> 17164 | F128: =IF(INTRO!$E$49="","",ROUND($D128*INTRO!$E$49,0)) -> 29930 | G128: =IF(INTRO!$E$50="","",ROUND($D128*INTRO!$E$50,0)) -> 56534 | H128: 0 | I128: 4 | J128: 3 | K128: 3 | L128: 0 | M128: =IF(INTRO!$E$37="Endémique",IF($H128>0,IF($H128=4,"Inconnu",IF($H128=99,"Interrompu",$D128)),0),"Non requis") -> 0 | N128: =IF(INTRO!$E$39="Endémique", IF($I128>0, IF($I128=4,"Inconnu",IF($I128=99,"Interrompu",$D128)), 0),"Non requis") -> Inconnu | O128: =IF(INTRO!$E$41="Endémique", IF(AND($J128>1,$J128<5), IF($J128=4, "Inconnu", E128+F128), 0),"Non requis") -> 47094 | P128: 47887 | Q128: 0 | R128: 0 | S128: 2 | T128: 1 | Y128: 2164 | Z128: KALANDULA
A129: =IF(INTRO!$E$33<>0,INTRO!$E$33, " ") -> Angola | B129: MALANJE | C129: KIWABA NZOJI | D129: 21184 | E129: =IF(INTRO!$E$48="","",ROUND($D129*INTRO!$E$48,0)) -> 3389 | F129: =IF(INTRO!$E$49="","",ROUND($D129*INTRO!$E$49,0)) -> 5910 | G129: =IF(INTRO!$E$50="","",ROUND($D129*INTRO!$E$50,0)) -> 11164 | H129: 0 | I129: 4 | J129: 3 | K129: 1 | L129: 0 | M129: =IF(INTRO!$E$37="Endémique",IF($H129>0,IF($H129=4,"Inconnu",IF($H129=99,"Interrompu",$D129)),0),"Non requis") -> 0 | N129: =IF(INTRO!$E$39="Endémique", IF($I129>0, IF($I129=4,"Inconnu",IF($I129=99,"Interrompu",$D129)), 0),"Non requis") -> Inconnu | O129: =IF(INTRO!$E$41="Endémique", IF(AND($J129>1,$J129<5), IF($J129=4, "Inconnu", E129+F129), 0),"Non requis") -> 9299 | P129: 5441 | Q129: 0 | R129: 0 | S129: 2 | T129: 0 | Y129: 2169 | Z129: KIWABA NZOGI
A130: =IF(INTRO!$E$33<>0,INTRO!$E$33, " ") -> Angola | B130: MALANJE | C130: KUNDA DYA BASE | D130: 16836 | E130: =IF(INTRO!$E$48="","",ROUND($D130*INTRO!$E$48,0)) -> 2694 | F130: =IF(INTRO!$E$49="","",ROUND($D130*INTRO!$E$49,0)) -> 4697 | G130: =IF(INTRO!$E$50="","",ROUND($D130*INTRO!$E$50,0)) -> 8873 | H130: 1 | I130: 4 | J130: 2 | K130: 2 | L130: 0 | M130: =IF(INTRO!$E$37="Endémique",IF($H130>0,IF($H130=4,"Inconnu",IF($H130=99,"Interrompu",$D130)),0),"Non requis") -> 16836 | N130: =IF(INTRO!$E$39="Endémique", IF($I130>0, IF($I130=4,"Inconnu",IF($I130=99,"Interrompu",$D130)), 0),"Non requis") -> Inconnu | O130: =IF(INTRO!$E$41="Endémique", IF(AND($J130>1,$J130<5), IF($J130=4, "Inconnu", E130+F130), 0),"Non requis") -> 7391 | P130: 5957 | Q130: 1 | R130: 0 | S130: 1 | T130: 1 | Y130: 2170 | Z130: KUNDA DIA BASE
A131: =IF(INTRO!$E$33<>0,INTRO!$E$33, " ") -> Angola | B131: MALANJE | C131: LUQUEMBO | D131: 73211 | E131: =IF(INTRO!$E$48="","",ROUND($D131*INTRO!$E$48,0)) -> 11714 | F131: =IF(INTRO!$E$49="","",ROUND($D131*INTRO!$E$49,0)) -> 20426 | G131: =IF(INTRO!$E$50="","",ROUND($D131*INTRO!$E$50,0)) -> 38582 | H131: 0 | I131: 4 | J131: 3 | K131: 3 | L131: 0 | M131: =IF(INTRO!$E$37="Endémique",IF($H131>0,IF($H131=4,"Inconnu",IF($H131=99,"Interrompu",$D131)),0),"Non requis") -> 0 | N131: =IF(INTRO!$E$39="Endémique", IF($I131>0, IF($I131=4,"Inconnu",IF($I131=99,"Interrompu",$D131)), 0),"Non requis") -> Inconnu | O131: =IF(INTRO!$E$41="Endémique", IF(AND($J131>1,$J131<5), IF($J131=4, "Inconnu", E131+F131), 0),"Non requis") -> 32140 | P131: 27070 | Q131: 0 | R131: 0 | S131: 2 | T131: 1 | Y131: 2171 | Z131: LUQUEMBO
A132: =IF(INTRO!$E$33<>0,INTRO!$E$33, " ") -> Angola | B132: MALANJE | C132: MALANJE | D132: 676139 | E132: =IF(INTRO!$E$48="","",ROUND($D132*INTRO!$E$48,0)) -> 108182 | F132: =IF(INTRO!$E$49="","",ROUND($D132*INTRO!$E$49,0)) -> 188643 | G132: =IF(INTRO!$E$50="","",ROUND($D132*INTRO!$E$50,0)) -> 356325 | H132: 0 | I132: 4 | J132: 3 | K132: 3 | L132: 0 | M132: =IF(INTRO!$E$37="Endémique",IF($H132>0,IF($H132=4,"Inconnu",IF($H132=99,"Interrompu",$D132)),0),"Non requis") -> 0 | N132: =IF(INTRO!$E$39="Endémique", IF($I132>0, IF($I132=4,"Inconnu",IF($I132=99,"Interrompu",$D132)), 0),"Non requis") -> Inconnu | O132: =IF(INTRO!$E$41="Endémique", IF(AND($J132>1,$J132<5), IF($J132=4, "Inconnu", E132+F132), 0),"Non requis") -> 296825 | P132: 494864 | Q132: 0 | R132: 0 | S132: 2 | T132: 1 | Y132: 2172 | Z132: MALANJE
A133: =IF(INTRO!$E$33<>0,INTRO!$E$33, " ") -> Angola | B133: MALANJE | C133: MARIMBA | D133: 34925 | E133: =IF(INTRO!$E$48="","",ROUND($D133*INTRO!$E$48,0)) -> 5588 | F133: =IF(INTRO!$E$49="","",ROUND($D133*INTRO!$E$49,0)) -> 9744 | G133: =IF(INTRO!$E$50="","",ROUND($D133*INTRO!$E$50,0)) -> 18405 | H133: 1 | I133: 4 | J133: 3 | K133: 2 | L133: 0 | M133: =IF(INTRO!$E$37="Endémique",IF($H133>0,IF($H133=4,"Inconnu",IF($H133=99,"Interrompu",$D133)),0),"Non requis") -> 34925 | N133: =IF(INTRO!$E$39="Endémique", IF($I133>0, IF($I133=4,"Inconnu",IF($I133=99,"Interrompu",$D133)), 0),"Non requis") -> Inconnu | O133: =IF(INTRO!$E$41="Endémique", IF(AND($J133>1,$J133<5), IF($J133=4, "Inconnu", E133+F133), 0),"Non requis") -> 15332 | P133: 12358 | Q133: 1 | R133: 0 | S133: 2 | T133: 1 | Y133: 2173 | Z133: MARIMBA
A134: =IF(INTRO!$E$33<>0,INTRO!$E$33, " ") -> Angola | B134: MALANJE | C134: MASSANGO | D134: 43912 | E134: =IF(INTRO!$E$48="","",ROUND($D134*INTRO!$E$48,0)) -> 7026 | F134: =IF(INTRO!$E$49="","",ROUND($D134*INTRO!$E$49,0)) -> 12251 | G134: =IF(INTRO!$E$50="","",ROUND($D134*INTRO!$E$50,0)) -> 23142 | H134: 0 | I134: 4 | J134: 3 | K134: 1 | L134: 0 | M134: =IF(INTRO!$E$37="Endémique",IF($H134>0,IF($H134=4,"Inconnu",IF($H134=99,"Interrompu",$D134)),0),"Non requis") -> 0 | N134: =IF(INTRO!$E$39="Endémique", IF($I134>0, IF($I134=4,"Inconnu",IF($I134=99,"Interrompu",$D134)), 0),"Non requis") -> Inconnu | O134: =IF(INTRO!$E$41="Endémique", IF(AND($J134>1,$J134<5), IF($J134=4, "Inconnu", E134+F134), 0),"Non requis") -> 19277 | P134: 8723 | Q134: 0 | R134: 0 | S134: 2 | T134: 0 | Y134: 2174 | Z134: MASSANGO
A135: =IF(INTRO!$E$33<>0,INTRO!$E$33, " ") -> Angola | B135: MALANJE | C135: QUELA | D135: 27946 | E135: =IF(INTRO!$E$48="","",ROUND($D135*INTRO!$E$48,0)) -> 4471 | F135: =IF(INTRO!$E$49="","",ROUND($D135*INTRO!$E$49,0)) -> 7797 | G135: =IF(INTRO!$E$50="","",ROUND($D135*INTRO!$E$50,0)) -> 14728 | H135: 1 | I135: 4 | J135: 3 | K135: 2 | L135: 0 | M135: =IF(INTRO!$E$37="Endémique",IF($H135>0,IF($H135=4,"Inconnu",IF($H135=99,"Interrompu",$D135)),0),"Non requis") -> 27946 | N135: =IF(INTRO!$E$39="Endémique", IF($I135>0, IF($I135=4,"Inconnu",IF($I135=99,"Interrompu",$D135)), 0),"Non requis") -> Inconnu | O135: =IF(INTRO!$E$41="Endémique", IF(AND($J135>1,$J135<5), IF($J135=4, "Inconnu", E135+F135), 0),"Non requis") -> 12268 | P135: 6438 | Q135: 1 | R135: 0 | S135: 2 | T135: 1 | Y135: 2222 | Z135: QUELA
A136: =IF(INTRO!$E$33<>0,INTRO!$E$33, " ") -> Angola | B136: MALANJE | C136: QUIRIMA | D136: 28193 | E136: =IF(INTRO!$E$48="","",ROUND($D136*INTRO!$E$48,0)) -> 4511 | F136: =IF(INTRO!$E$49="","",ROUND($D136*INTRO!$E$49,0)) -> 7866 | G136: =IF(INTRO!$E$50="","",ROUND($D136*INTRO!$E$50,0)) -> 14858 | H136: 0 | I136: 4 | J136: 3 | K136: 2 | L136: 0 | M136: =IF(INTRO!$E$37="Endémique",IF($H136>0,IF($H136=4,"Inconnu",IF($H136=99,"Interrompu",$D136)),0),"Non requis") -> 0 | N136: =IF(INTRO!$E$39="Endémique", IF($I136>0, IF($I136=4,"Inconnu",IF($I136=99,"Interrompu",$D136)), 0),"Non requis") -> Inconnu | O136: =IF(INTRO!$E$41="Endémique", IF(AND($J136>1,$J136<5), IF($J136=4, "Inconnu", E136+F136), 0),"Non requis") -> 12377 | P136: 6429 | Q136: 0 | R136: 0 | S136: 2 | T136: 1 | Y136: 2168 | Z136: QUIRIMA
A137: =IF(INTRO!$E$33<>0,INTRO!$E$33, " ") -> Angola | B137: MOXICO | C137: ALTO ZAMBEZE | D137: 148603 | E137: =IF(INTRO!$E$48="","",ROUND($D137*INTRO!$E$48,0)) -> 23776 | F137: =IF(INTRO!$E$49="","",ROUND($D137*INTRO!$E$49,0)) -> 41460 | G137: =IF(INTRO!$E$50="","",ROUND($D137*INTRO!$E$50,0)) -> 78314 | H137: 0 | I137: 4 | J137: 2 | K137: 3 | L137: 0 | M137: =IF(INTRO!$E$37="Endémique",IF($H137>0,IF($H137=4,"Inconnu",IF($H137=99,"Interrompu",$D137)),0),"Non requis") -> 0 | N137: =IF(INTRO!$E$39="Endémique", IF($I137>0, IF($I137=4,"Inconnu",IF($I137=99,"Interrompu",$D137)), 0),"Non requis") -> Inconnu | O137: =IF(INTRO!$E$41="Endémique", IF(AND($J137>1,$J137<5), IF($J137=4, "Inconnu", E137+F137), 0),"Non requis") -> 65236 | P137: 53040 | Q137: 0 | R137: 0 | S137: 1 | T137: 1 | Y137: 2176 | Z137: ALTO ZAMBEZE
A138: =IF(INTRO!$E$33<>0,INTRO!$E$33, " ") -> Angola | B138: MOXICO | C138: CAMANONGUE | D138: 45783 | E138: =IF(INTRO!$E$48="","",ROUND($D138*INTRO!$E$48,0)) -> 7325 | F138: =IF(INTRO!$E$49="","",ROUND($D138*INTRO!$E$49,0)) -> 12773 | G138: =IF(INTRO!$E$50="","",ROUND($D138*INTRO!$E$50,0)) -> 24128 | H138: 0 | I138: 1 | J138: 2 | K138: 0 | L138: 0 | M138: =IF(INTRO!$E$37="Endémique",IF($H138>0,IF($H138=4,"Inconnu",IF($H138=99,"Interrompu",$D138)),0),"Non requis") -> 0 | N138: =IF(INTRO!$E$39="Endémique", IF($I138>0, IF($I138=4,"Inconnu",IF($I138=99,"Interrompu",$D138)), 0),"Non requis") -> 45783 | O138: =IF(INTRO!$E$41="Endémique", IF(AND($J138>1,$J138<5), IF($J138=4, "Inconnu", E138+F138), 0),"Non requis") -> 20098 | P138: 0 | Q138: 0 | R138: 1 | S138: 1 | T138: 0 | Y138: 2177 | Z138: CAMANONGUE
A139: =IF(INTRO!$E$33<>0,INTRO!$E$33, " ") -> Angola | B139: MOXICO | C139: LEUA | D139: 43491 | E139: =IF(INTRO!$E$48="","",ROUND($D139*INTRO!$E$48,0)) -> 6959 | F139: =IF(INTRO!$E$49="","",ROUND($D139*INTRO!$E$49,0)) -> 12134 | G139: =IF(INTRO!$E$50="","",ROUND($D139*INTRO!$E$50,0)) -> 22920 | H139: 0 | I139: 1 | J139: 1 | K139: 0 | L139: 0 | M139: =IF(INTRO!$E$37="Endémique",IF($H139>0,IF($H139=4,"Inconnu",IF($H139=99,"Interrompu",$D139)),0),"Non requis") -> 0 | N139: =IF(INTRO!$E$39="Endémique", IF($I139>0, IF($I139=4,"Inconnu",IF($I139=99,"Interrompu",$D139)), 0),"Non requis") -> 43491 | O139: =IF(INTRO!$E$41="Endémique", IF(AND($J139>1,$J139<5), IF($J139=4, "Inconnu", E139+F139), 0),"Non requis") -> 0 | P139: 0 | Q139: 0 | R139: 1 | S139: 0 | T139: 0 | Y139: 2179 | Z139: LEUA
A140: =IF(INTRO!$E$33<>0,INTRO!$E$33, " ") -> Angola | B140: MOXICO | C140: LUACANO | D140: 27811 | E140: =IF(INTRO!$E$48="","",ROUND($D140*INTRO!$E$48,0)) -> 4450 | F140: =IF(INTRO!$E$49="","",ROUND($D140*INTRO!$E$49,0)) -> 7759 | G140: =IF(INTRO!$E$50="","",ROUND($D140*INTRO!$E$50,0)) -> 14656 | H140: 0 | I140: 1 | J140: 2 | K140: 1 | L140: 0 | M140: =IF(INTRO!$E$37="Endémique",IF($H140>0,IF($H140=4,"Inconnu",IF($H140=99,"Interrompu",$D140)),0),"Non requis") -> 0 | N140: =IF(INTRO!$E$39="Endémique", IF($I140>0, IF($I140=4,"Inconnu",IF($I140=99,"Interrompu",$D140)), 0),"Non requis") -> 27811 | O140: =IF(INTRO!$E$41="Endémique", IF(AND($J140>1,$J140<5), IF($J140=4, "Inconnu", E140+F140), 0),"Non requis") -> 12209 | P140: 3725 | Q140: 0 | R140: 1 | S140: 1 | T140: 0 | Y140: 2180 | Z140: LUACANO
A141: =IF(INTRO!$E$33<>0,INTRO!$E$33, " ") -> Angola | B141: MOXICO | C141: LUAU | D141: 119864 | E141: =IF(INTRO!$E$48="","",ROUND($D141*INTRO!$E$48,0)) -> 19178 | F141: =IF(INTRO!$E$49="","",ROUND($D141*INTRO!$E$49,0)) -> 33442 | G141: =IF(INTRO!$E$50="","",ROUND($D141*INTRO!$E$50,0)) -> 63168 | H141: 0 | I141: 4 | J141: 1 | K141: 1 | L141: 0 | M141: =IF(INTRO!$E$37="Endémique",IF($H141>0,IF($H141=4,"Inconnu",IF($H141=99,"Interrompu",$D141)),0),"Non requis") -> 0 | N141: =IF(INTRO!$E$39="Endémique", IF($I141>0, IF($I141=4,"Inconnu",IF($I141=99,"Interrompu",$D141)), 0),"Non requis") -> Inconnu | O141: =IF(INTRO!$E$41="Endémique", IF(AND($J141>1,$J141<5), IF($J141=4, "Inconnu", E141+F141), 0),"Non requis") -> 0 | P141: 30783 | Q141: 0 | R141: 0 | S141: 0 | T141: 0 | Y141: 2181 | Z141: LUAU
A142: =IF(INTRO!$E$33<>0,INTRO!$E$33, " ") -> Angola | B142: MOXICO | C142: LUCHAZES | D142: 19365 | E142: =IF(INTRO!$E$48="","",ROUND($D142*INTRO!$E$48,0)) -> 3098 | F142: =IF(INTRO!$E$49="","",ROUND($D142*INTRO!$E$49,0)) -> 5403 | G142: =IF(INTRO!$E$50="","",ROUND($D142*INTRO!$E$50,0)) -> 10205 | H142: 0 | I142: 4 | J142: 2 | K142: 1 | L142: 0 | M142: =IF(INTRO!$E$37="Endémique",IF($H142>0,IF($H142=4,"Inconnu",IF($H142=99,"Interrompu",$D142)),0),"Non requis") -> 0 | N142: =IF(INTRO!$E$39="Endémique", IF($I142>0, IF($I142=4,"Inconnu",IF($I142=99,"Interrompu",$D142)), 0),"Non requis") -> Inconnu | O142: =IF(INTRO!$E$41="Endémique", IF(AND($J142>1,$J142<5), IF($J142=4, "Inconnu", E142+F142), 0),"Non requis") -> 8501 | P142: 2655 | Q142: 0 | R142: 0 | S142: 1 | T142: 0 | Y142: 2183 | Z142: LUCHAZES
A143: =IF(INTRO!$E$33<>0,INTRO!$E$33, " ") -> Angola | B143: MOXICO | C143: BUNDAS (LUMBALA NGUIMBO) | D143: 93123 | E143: =IF(INTRO!$E$48="","",ROUND($D143*INTRO!$E$48,0)) -> 14900 | F143: =IF(INTRO!$E$49="","",ROUND($D143*INTRO!$E$49,0)) -> 25981 | G143: =IF(INTRO!$E$50="","",ROUND($D143*INTRO!$E$50,0)) -> 49076 | H143: 0 | I143: 4 | J143: 2 | K143: 2 | L143: 0 | M143: =IF(INTRO!$E$37="Endémique",IF($H143>0,IF($H143=4,"Inconnu",IF($H143=99,"Interrompu",$D143)),0),"Non requis") -> 0 | N143: =IF(INTRO!$E$39="Endémique", IF($I143>0, IF($I143=4,"Inconnu",IF($I143=99,"Interrompu",$D143)), 0),"Non requis") -> Inconnu | O143: =IF(INTRO!$E$41="Endémique", IF(AND($J143>1,$J143<5), IF($J143=4, "Inconnu", E143+F143), 0),"Non requis") -> 40881 | P143: 17221 | Q143: 0 | R143: 0 | S143: 1 | T143: 1 | Y143: 2182 | Z143: LUMBALA NGUIMBO
A144: =IF(INTRO!$E$33<>0,INTRO!$E$33, " ") -> Angola | B144: MOXICO | C144: CAMEIA (LUMEJE) | D144: 39497 | E144: =IF(INTRO!$E$48="","",ROUND($D144*INTRO!$E$48,0)) -> 6320 | F144: =IF(INTRO!$E$49="","",ROUND($D144*INTRO!$E$49,0)) -> 11020 | G144: =IF(INTRO!$E$50="","",ROUND($D144*INTRO!$E$50,0)) -> 20815 | H144: 0 | I144: 4 | J144: 1 | K144: 1 | L144: 0 | M144: =IF(INTRO!$E$37="Endémique",IF($H144>0,IF($H144=4,"Inconnu",IF($H144=99,"Interrompu",$D144)),0),"Non requis") -> 0 | N144: =IF(INTRO!$E$39="Endémique", IF($I144>0, IF($I144=4,"Inconnu",IF($I144=99,"Interrompu",$D144)), 0),"Non requis") -> Inconnu | O144: =IF(INTRO!$E$41="Endémique", IF(AND($J144>1,$J144<5), IF($J144=4, "Inconnu", E144+F144), 0),"Non requis") -> 0 | P144: 10144 | Q144: 0 | R144: 0 | S144: 0 | T144: 0 | Y144: 2220 | Z144: LUMEJE
A145: =IF(INTRO!$E$33<>0,INTRO!$E$33, " ") -> Angola | B145: MOXICO | C145: MOXICO/LUENA | D145: 478924 | E145: =IF(INTRO!$E$48="","",ROUND($D145*INTRO!$E$48,0)) -> 76628 | F145: =IF(INTRO!$E$49="","",ROUND($D145*INTRO!$E$49,0)) -> 133620 | G145: =IF(INTRO!$E$50="","",ROUND($D145*INTRO!$E$50,0)) -> 252393 | H145: 0 | I145: 1 | J145: 2 | K145: 1 | L145: 0 | M145: =IF(INTRO!$E$37="Endémique",IF($H145>0,IF($H145=4,"Inconnu",IF($H145=99,"Interrompu",$D145)),0),"Non requis") -> 0 | N145: =IF(INTRO!$E$39="Endémique", IF($I145>0, IF($I145=4,"Inconnu",IF($I145=99,"Interrompu",$D145)), 0),"Non requis") -> 478924 | O145: =IF(INTRO!$E$41="Endémique", IF(AND($J145>1,$J145<5), IF($J145=4, "Inconnu", E145+F145), 0),"Non requis") -> 210248 | P145: 118829 | Q145: 0 | R145: 1 | S145: 1 | T145: 0 | Y145: 2184 | Z145: MOXICO / LUENA
A146: =IF(INTRO!$E$33<>0,INTRO!$E$33, " ") -> Angola | B146: NAMIBE | C146: BIBALA | D146: 89036 | E146: =IF(INTRO!$E$48="","",ROUND($D146*INTRO!$E$48,0)) -> 14246 | F146: =IF(INTRO!$E$49="","",ROUND($D146*INTRO!$E$49,0)) -> 24841 | G146: =IF(INTRO!$E$50="","",ROUND($D146*INTRO!$E$50,0)) -> 46922 | H146: 0 | I146: 4 | J146: 1 | K146: 3 | L146: 0 | M146: =IF(INTRO!$E$37="Endémique",IF($H146>0,IF($H146=4,"Inconnu",IF($H146=99,"Interrompu",$D146)),0),"Non requis") -> 0 | N146: =IF(INTRO!$E$39="Endémique", IF($I146>0, IF($I146=4,"Inconnu",IF($I146=99,"Interrompu",$D146)), 0),"Non requis") -> Inconnu | O146: =IF(INTRO!$E$41="Endémique", IF(AND($J146>1,$J146<5), IF($J146=4, "Inconnu", E146+F146), 0),"Non requis") -> 0 | P146: 28792 | Q146: 0 | R146: 0 | S146: 0 | T146: 1 | Y146: 2185 | Z146: BIBALA
A147: =IF(INTRO!$E$33<>0,INTRO!$E$33, " ") -> Angola | B147: NAMIBE | C147: CAMUCUIO | D147: 69498 | E147: =IF(INTRO!$E$48="","",ROUND($D147*INTRO!$E$48,0)) -> 11120 | F147: =IF(INTRO!$E$49="","",ROUND($D147*INTRO!$E$49,0)) -> 19390 | G147: =IF(INTRO!$E$50="","",ROUND($D147*INTRO!$E$50,0)) -> 36625 | H147: 0 | I147: 4 | J147: 1 | K147: 3 | L147: 0 | M147: =IF(INTRO!$E$37="Endémique",IF($H147>0,IF($H147=4,"Inconnu",IF($H147=99,"Interrompu",$D147)),0),"Non requis") -> 0 | N147: =IF(INTRO!$E$39="Endémique", IF($I147>0, IF($I147=4,"Inconnu",IF($I147=99,"Interrompu",$D147)), 0),"Non requis") -> Inconnu | O147: =IF(INTRO!$E$41="Endémique", IF(AND($J147>1,$J147<5), IF($J147=4, "Inconnu", E147+F147), 0),"Non requis") -> 0 | P147: 46794 | Q147: 0 | R147: 0 | S147: 0 | T147: 1 | Y147: 2186 | Z147: CAMUCUIO
A148: =IF(INTRO!$E$33<>0,INTRO!$E$33, " ") -> Angola | B148: NAMIBE | C148: MOÇAMEDES | D148: 403795 | E148: =IF(INTRO!$E$48="","",ROUND($D148*INTRO!$E$48,0)) -> 64607 | F148: =IF(INTRO!$E$49="","",ROUND($D148*INTRO!$E$49,0)) -> 112659 | G148: =IF(INTRO!$E$50="","",ROUND($D148*INTRO!$E$50,0)) -> 212800 | H148: 0 | I148: 4 | J148: 0 | K148: 2 | L148: 0 | M148: =IF(INTRO!$E$37="Endémique",IF($H148>0,IF($H148=4,"Inconnu",IF($H148=99,"Interrompu",$D148)),0),"Non requis") -> 0 | N148: =IF(INTRO!$E$39="Endémique", IF($I148>0, IF($I148=4,"Inconnu",IF($I148=99,"Interrompu",$D148)), 0),"Non requis") -> Inconnu | O148: =IF(INTRO!$E$41="Endémique", IF(AND($J148>1,$J148<5), IF($J148=4, "Inconnu", E148+F148), 0),"Non requis") -> 0 | P148: 9195 | Q148: 0 | R148: 0 | S148: 0 | T148: 1 | Y148: 2187 | Z148: NAMIBE
A149: =IF(INTRO!$E$33<>0,INTRO!$E$33, " ") -> Angola | B149: NAMIBE | C149: TOMBWA | D149: 76600 | E149: =IF(INTRO!$E$48="","",ROUND($D149*INTRO!$E$48,0)) -> 12256 | F149: =IF(INTRO!$E$49="","",ROUND($D149*INTRO!$E$49,0)) -> 21371 | G149: =IF(INTRO!$E$50="","",ROUND($D149*INTRO!$E$50,0)) -> 40368 | H149: 0 | I149: 4 | J149: 1 | K149: 1 | L149: 0 | M149: =IF(INTRO!$E$37="Endémique",IF($H149>0,IF($H149=4,"Inconnu",IF($H149=99,"Interrompu",$D149)),0),"Non requis") -> 0 | N149: =IF(INTRO!$E$39="Endémique", IF($I149>0, IF($I149=4,"Inconnu",IF($I149=99,"Interrompu",$D149)), 0),"Non requis") -> Inconnu | O149: =IF(INTRO!$E$41="Endémique", IF(AND($J149>1,$J149<5), IF($J149=4, "Inconnu", E149+F149), 0),"Non requis") -> 0 | P149: 19672 | Q149: 0 | R149: 0 | S149: 0 | T149: 0 | Y149: 2188 | Z149: TOMBUA
A150: =IF(INTRO!$E$33<>0,INTRO!$E$33, " ") -> Angola | B150: NAMIBE | C150: VIREI | D150: 44783 | E150: =IF(INTRO!$E$48="","",ROUND($D150*INTRO!$E$48,0)) -> 7165 | F150: =IF(INTRO!$E$49="","",ROUND($D150*INTRO!$E$49,0)) -> 12494 | G150: =IF(INTRO!$E$50="","",ROUND($D150*INTRO!$E$50,0)) -> 23601 | H150: 0 | I150: 4 | J150: 1 | K150: 1 | L150: 0 | M150: =IF(INTRO!$E$37="Endémique",IF($H150>0,IF($H150=4,"Inconnu",IF($H150=99,"Interrompu",$D150)),0),"Non requis") -> 0 | N150: =IF(INTRO!$E$39="Endémique", IF($I150>0, IF($I150=4,"Inconnu",IF($I150=99,"Interrompu",$D150)), 0),"Non requis") -> Inconnu | O150: =IF(INTRO!$E$41="Endémique", IF(AND($J150>1,$J150<5), IF($J150=4, "Inconnu", E150+F150), 0),"Non requis") -> 0 | P150: 6150 | Q150: 0 | R150: 0 | S150: 0 | T150: 0 | Y150: 2189 | Z150: VIREI
A151: =IF(INTRO!$E$33<>0,INTRO!$E$33, " ") -> Angola | B151: UIGE | C151: AMBUILA | D151: 24067 | E151: =IF(INTRO!$E$48="","",ROUND($D151*INTRO!$E$48,0)) -> 3851 | F151: =IF(INTRO!$E$49="","",ROUND($D151*INTRO!$E$49,0)) -> 6715 | G151: =IF(INTRO!$E$50="","",ROUND($D151*INTRO!$E$50,0)) -> 12683 | H151: 1 | I151: 4 | J151: 0 | K151: 2 | L151: 1 | M151: =IF(INTRO!$E$37="Endémique",IF($H151>0,IF($H151=4,"Inconnu",IF($H151=99,"Interrompu",$D151)),0),"Non requis") -> 24067 | N151: =IF(INTRO!$E$39="Endémique", IF($I151>0, IF($I151=4,"Inconnu",IF($I151=99,"Interrompu",$D151)), 0),"Non requis") -> Inconnu | O151: =IF(INTRO!$E$41="Endémique", IF(AND($J151>1,$J151<5), IF($J151=4, "Inconnu", E151+F151), 0),"Non requis") -> 0 | P151: 7796 | Q151: 1 | R151: 0 | S151: 0 | T151: 1 | Y151: 2190 | Z151: AMBUILA
A152: =IF(INTRO!$E$33<>0,INTRO!$E$33, " ") -> Angola | B152: UIGE | C152: BEMBE | D152: 43775 | E152: =IF(INTRO!$E$48="","",ROUND($D152*INTRO!$E$48,0)) -> 7004 | F152: =IF(INTRO!$E$49="","",ROUND($D152*INTRO!$E$49,0)) -> 12213 | G152: =IF(INTRO!$E$50="","",ROUND($D152*INTRO!$E$50,0)) -> 23069 | H152: 0 | I152: 4 | J152: 1 | K152: 3 | L152: 0 | M152: =IF(INTRO!$E$37="Endémique",IF($H152>0,IF($H152=4,"Inconnu",IF($H152=99,"Interrompu",$D152)),0),"Non requis") -> 0 | N152: =IF(INTRO!$E$39="Endémique", IF($I152>0, IF($I152=4,"Inconnu",IF($I152=99,"Interrompu",$D152)), 0),"Non requis") -> Inconnu | O152: =IF(INTRO!$E$41="Endémique", IF(AND($J152>1,$J152<5), IF($J152=4, "Inconnu", E152+F152), 0),"Non requis") -> 0 | P152: 18437 | Q152: 0 | R152: 0 | S152: 0 | T152: 1 | Y152: 2191 | Z152: BEMBE
A153: =IF(INTRO!$E$33<>0,INTRO!$E$33, " ") -> Angola | B153: UIGE | C153: BUENGAS | D153: 76044 | E153: =IF(INTRO!$E$48="","",ROUND($D153*INTRO!$E$48,0)) -> 12167 | F153: =IF(INTRO!$E$49="","",ROUND($D153*INTRO!$E$49,0)) -> 21216 | G153: =IF(INTRO!$E$50="","",ROUND($D153*INTRO!$E$50,0)) -> 40075 | H153: 0 | I153: 4 | J153: 1 | K153: 2 | L153: 0 | M153: =IF(INTRO!$E$37="Endémique",IF($H153>0,IF($H153=4,"Inconnu",IF($H153=99,"Interrompu",$D153)),0),"Non requis") -> 0 | N153: =IF(INTRO!$E$39="Endémique", IF($I153>0, IF($I153=4,"Inconnu",IF($I153=99,"Interrompu",$D153)), 0),"Non requis") -> Inconnu | O153: =IF(INTRO!$E$41="Endémique", IF(AND($J153>1,$J153<5), IF($J153=4, "Inconnu", E153+F153), 0),"Non requis") -> 0 | P153: 10684 | Q153: 0 | R153: 0 | S153: 0 | T153: 1 | Y153: 2192 | Z153: BUENGAS
A154: =IF(INTRO!$E$33<>0,INTRO!$E$33, " ") -> Angola | B154: UIGE | C154: BUNGO | D154: 49351 | E154: =IF(INTRO!$E$48="","",ROUND($D154*INTRO!$E$48,0)) -> 7896 | F154: =IF(INTRO!$E$49="","",ROUND($D154*INTRO!$E$49,0)) -> 13769 | G154: =IF(INTRO!$E$50="","",ROUND($D154*INTRO!$E$50,0)) -> 26008 | H154: 0 | I154: 1 | J154: 0 | K154: 2 | L154: 1 | M154: =IF(INTRO!$E$37="Endémique",IF($H154>0,IF($H154=4,"Inconnu",IF($H154=99,"Interrompu",$D154)),0),"Non requis") -> 0 | N154: =IF(INTRO!$E$39="Endémique", IF($I154>0, IF($I154=4,"Inconnu",IF($I154=99,"Interrompu",$D154)), 0),"Non requis") -> 49351 | O154: =IF(INTRO!$E$41="Endémique", IF(AND($J154>1,$J154<5), IF($J154=4, "Inconnu", E154+F154), 0),"Non requis") -> 0 | P154: 17462 | Q154: 0 | R154: 1 | S154: 0 | T154: 1 | Y154: 2193 | Z154: BUNGO
A155: =IF(INTRO!$E$33<>0,INTRO!$E$33, " ") -> Angola | B155: UIGE | C155: CANGOLA | D155: 71358 | E155: =IF(INTRO!$E$48="","",ROUND($D155*INTRO!$E$48,0)) -> 11417 | F155: =IF(INTRO!$E$49="","",ROUND($D155*INTRO!$E$49,0)) -> 19909 | G155: =IF(INTRO!$E$50="","",ROUND($D155*INTRO!$E$50,0)) -> 37606 | H155: 0 | I155: 4 | J155: 0 | K155: 2 | L155: 0 | M155: =IF(INTRO!$E$37="Endémique",IF($H155>0,IF($H155=4,"Inconnu",IF($H155=99,"Interrompu",$D155)),0),"Non requis") -> 0 | N155: =IF(INTRO!$E$39="Endémique", IF($I155>0, IF($I155=4,"Inconnu",IF($I155=99,"Interrompu",$D155)), 0),"Non requis") -> Inconnu | O155: =IF(INTRO!$E$41="Endémique", IF(AND($J155>1,$J155<5), IF($J155=4, "Inconnu", E155+F155), 0),"Non requis") -> 0 | P155: 10942 | Q155: 0 | R155: 0 | S155: 0 | T155: 1 | Y155: 2195 | Z155: CANGOLA
A156: =IF(INTRO!$E$33<>0,INTRO!$E$33, " ") -> Angola | B156: UIGE | C156: DAMBA | D156: 88296 | E156: =IF(INTRO!$E$48="","",ROUND($D156*INTRO!$E$48,0)) -> 14127 | F156: =IF(INTRO!$E$49="","",ROUND($D156*INTRO!$E$49,0)) -> 24635 | G156: =IF(INTRO!$E$50="","",ROUND($D156*INTRO!$E$50,0)) -> 46532 | H156: 0 | I156: 4 | J156: 0 | K156: 2 | L156: 0 | M156: =IF(INTRO!$E$37="Endémique",IF($H156>0,IF($H156=4,"Inconnu",IF($H156=99,"Interrompu",$D156)),0),"Non requis") -> 0 | N156: =IF(INTRO!$E$39="Endémique", IF($I156>0, IF($I156=4,"Inconnu",IF($I156=99,"Interrompu",$D156)), 0),"Non requis") -> Inconnu | O156: =IF(INTRO!$E$41="Endémique", IF(AND($J156>1,$J156<5), IF($J156=4, "Inconnu", E156+F156), 0),"Non requis") -> 0 | P156: 23098 | Q156: 0 | R156: 0 | S156: 0 | T156: 1 | Y156: 2194 | Z156: DAMBA
A157: =IF(INTRO!$E$33<>0,INTRO!$E$33, " ") -> Angola | B157: UIGE | C157: MAQUELA DO ZOMBO | D157: 169163 | E157: =IF(INTRO!$E$48="","",ROUND($D157*INTRO!$E$48,0)) -> 27066 | F157: =IF(INTRO!$E$49="","",ROUND($D157*INTRO!$E$49,0)) -> 47196 | G157: =IF(INTRO!$E$50="","",ROUND($D157*INTRO!$E$50,0)) -> 89149 | H157: 0 | I157: 4 | J157: 0 | K157: 2 | L157: 0 | M157: =IF(INTRO!$E$37="Endémique",IF($H157>0,IF($H157=4,"Inconnu",IF($H157=99,"Interrompu",$D157)),0),"Non requis") -> 0 | N157: =IF(INTRO!$E$39="Endémique", IF($I157>0, IF($I157=4,"Inconnu",IF($I157=99,"Interrompu",$D157)), 0),"Non requis") -> Inconnu | O157: =IF(INTRO!$E$41="Endémique", IF(AND($J157>1,$J157<5), IF($J157=4, "Inconnu", E157+F157), 0),"Non requis") -> 0 | P157: 44515 | Q157: 0 | R157: 0 | S157: 0 | T157: 1 | Y157: 2198 | Z157: MAQUELA DO ZOMBO
A158: =IF(INTRO!$E$33<>0,INTRO!$E$33, " ") -> Angola | B158: UIGE | C158: MILUNGA | D158: 67208 | E158: =IF(INTRO!$E$48="","",ROUND($D158*INTRO!$E$48,0)) -> 10753 | F158: =IF(INTRO!$E$49="","",ROUND($D158*INTRO!$E$49,0)) -> 18751 | G158: =IF(INTRO!$E$50="","",ROUND($D158*INTRO!$E$50,0)) -> 35419 | H158: 0 | I158: 4 | J158: 0 | K158: 2 | L158: 0 | M158: =IF(INTRO!$E$37="Endémique",IF($H158>0,IF($H158=4,"Inconnu",IF($H158=99,"Interrompu",$D158)),0),"Non requis") -> 0 | N158: =IF(INTRO!$E$39="Endémique", IF($I158>0, IF($I158=4,"Inconnu",IF($I158=99,"Interrompu",$D158)), 0),"Non requis") -> Inconnu | O158: =IF(INTRO!$E$41="Endémique", IF(AND($J158>1,$J158<5), IF($J158=4, "Inconnu", E158+F158), 0),"Non requis") -> 0 | P158: 10926 | Q158: 0 | R158: 0 | S158: 0 | T158: 1 | Y158: 2199 | Z158: MILUNGA
A159: =IF(INTRO!$E$33<>0,INTRO!$E$33, " ") -> Angola | B159: UIGE | C159: MUCABA | D159: 58412 | E159: =IF(INTRO!$E$48="","",ROUND($D159*INTRO!$E$48,0)) -> 9346 | F159: =IF(INTRO!$E$49="","",ROUND($D159*INTRO!$E$49,0)) -> 16297 | G159: =IF(INTRO!$E$50="","",ROUND($D159*INTRO!$E$50,0)) -> 30783 | H159: 0 | I159: 4 | J159: 0 | K159: 1 | L159: 0 | M159: =IF(INTRO!$E$37="Endémique",IF($H159>0,IF($H159=4,"Inconnu",IF($H159=99,"Interrompu",$D159)),0),"Non requis") -> 0 | N159: =IF(INTRO!$E$39="Endémique", IF($I159>0, IF($I159=4,"Inconnu",IF($I159=99,"Interrompu",$D159)), 0),"Non requis") -> Inconnu | O159: =IF(INTRO!$E$41="Endémique", IF(AND($J159>1,$J159<5), IF($J159=4, "Inconnu", E159+F159), 0),"Non requis") -> 0 | P159: 15001 | Q159: 0 | R159: 0 | S159: 0 | T159: 0 | Y159: 2200 | Z159: MUCABA
A160: =IF(INTRO!$E$33<>0,INTRO!$E$33, " ") -> Angola | B160: UIGE | C160: NEGAGE | D160: 182724 | E160: =IF(INTRO!$E$48="","",ROUND($D160*INTRO!$E$48,0)) -> 29236 | F160: =IF(INTRO!$E$49="","",ROUND($D160*INTRO!$E$49,0)) -> 50980 | G160: =IF(INTRO!$E$50="","",ROUND($D160*INTRO!$E$50,0)) -> 96296 | H160: 0 | I160: 1 | J160: 1 | K160: 2 | L160: 1 | M160: =IF(INTRO!$E$37="Endémique",IF($H160>0,IF($H160=4,"Inconnu",IF($H160=99,"Interrompu",$D160)),0),"Non requis") -> 0 | N160: =IF(INTRO!$E$39="Endémique", IF($I160>0, IF($I160=4,"Inconnu",IF($I160=99,"Interrompu",$D160)), 0),"Non requis") -> 182724 | O160: =IF(INTRO!$E$41="Endémique", IF(AND($J160>1,$J160<5), IF($J160=4, "Inconnu", E160+F160), 0),"Non requis") -> 0 | P160: 63165 | Q160: 0 | R160: 1 | S160: 0 | T160: 1 | Y160: 2201 | Z160: NEGAGE
A161: =IF(INTRO!$E$33<>0,INTRO!$E$33, " ") -> Angola | B161: UIGE | C161: PURI | D161: 50357 | E161: =IF(INTRO!$E$48="","",ROUND($D161*INTRO!$E$48,0)) -> 8057 | F161: =IF(INTRO!$E$49="","",ROUND($D161*INTRO!$E$49,0)) -> 14050 | G161: =IF(INTRO!$E$50="","",ROUND($D161*INTRO!$E$50,0)) -> 26538 | H161: 1 | I161: 1 | J161: 0 | K161: 0 | L161: 0 | M161: =IF(INTRO!$E$37="Endémique",IF($H161>0,IF($H161=4,"Inconnu",IF($H161=99,"Interrompu",$D161)),0),"Non requis") -> 50357 | N161: =IF(INTRO!$E$39="Endémique", IF($I161>0, IF($I161=4,"Inconnu",IF($I161=99,"Interrompu",$D161)), 0),"Non requis") -> 50357 | O161: =IF(INTRO!$E$41="Endémique", IF(AND($J161>1,$J161<5), IF($J161=4, "Inconnu", E161+F161), 0),"Non requis") -> 0 | P161: 0 | Q161: 1 | R161: 1 | S161: 0 | T161: 0 | Y161: 2202 | Z161: PURI
A162: =IF(INTRO!$E$33<>0,INTRO!$E$33, " ") -> Angola | B162: UIGE | C162: QUIMBELE | D162: 181312 | E162: =IF(INTRO!$E$48="","",ROUND($D162*INTRO!$E$48,0)) -> 29010 | F162: =IF(INTRO!$E$49="","",ROUND($D162*INTRO!$E$49,0)) -> 50586 | G162: =IF(INTRO!$E$50="","",ROUND($D162*INTRO!$E$50,0)) -> 95551 | H162: 0 | I162: 4 | J162: 1 | K162: 1 | L162: 1 | M162: =IF(INTRO!$E$37="Endémique",IF($H162>0,IF($H162=4,"Inconnu",IF($H162=99,"Interrompu",$D162)),0),"Non requis") -> 0 | N162: =IF(INTRO!$E$39="Endémique", IF($I162>0, IF($I162=4,"Inconnu",IF($I162=99,"Interrompu",$D162)), 0),"Non requis") -> Inconnu | O162: =IF(INTRO!$E$41="Endémique", IF(AND($J162>1,$J162<5), IF($J162=4, "Inconnu", E162+F162), 0),"Non requis") -> 0 | P162: 13377 | Q162: 0 | R162: 0 | S162: 0 | T162: 0 | Y162: 2196 | Z162: QUIMBELE
A163: =IF(INTRO!$E$33<>0,INTRO!$E$33, " ") -> Angola | B163: UIGE | C163: QUITEXE | D163: 45557 | E163: =IF(INTRO!$E$48="","",ROUND($D163*INTRO!$E$48,0)) -> 7289 | F163: =IF(INTRO!$E$49="","",ROUND($D163*INTRO!$E$49,0)) -> 12710 | G163: =IF(INTRO!$E$50="","",ROUND($D163*INTRO!$E$50,0)) -> 24009 | H163: 1 | I163: 1 | J163: 0 | K163: 2 | L163: 1 | M163: =IF(INTRO!$E$37="Endémique",IF($H163>0,IF($H163=4,"Inconnu",IF($H163=99,"Interrompu",$D163)),0),"Non requis") -> 45557 | N163: =IF(INTRO!$E$39="Endémique", IF($I163>0, IF($I163=4,"Inconnu",IF($I163=99,"Interrompu",$D163)), 0),"Non requis") -> 45557 | O163: =IF(INTRO!$E$41="Endémique", IF(AND($J163>1,$J163<5), IF($J163=4, "Inconnu", E163+F163), 0),"Non requis") -> 0 | P163: 4690 | Q163: 1 | R163: 1 | S163: 0 | T163: 1 | Y163: 2197 | Z163: QUITEXE
A164: =IF(INTRO!$E$33<>0,INTRO!$E$33, " ") -> Angola | B164: UIGE | C164: SANZA POMBO | D164: 90845 | E164: =IF(INTRO!$E$48="","",ROUND($D164*INTRO!$E$48,0)) -> 14535 | F164: =IF(INTRO!$E$49="","",ROUND($D164*INTRO!$E$49,0)) -> 25346 | G164: =IF(INTRO!$E$50="","",ROUND($D164*INTRO!$E$50,0)) -> 47875 | H164: 0 | I164: 4 | J164: 1 | K164: 2 | L164: 1 | M164: =IF(INTRO!$E$37="Endémique",IF($H164>0,IF($H164=4,"Inconnu",IF($H164=99,"Interrompu",$D164)),0),"Non requis") -> 0 | N164: =IF(INTRO!$E$39="Endémique", IF($I164>0, IF($I164=4,"Inconnu",IF($I164=99,"Interrompu",$D164)), 0),"Non requis") -> Inconnu | O164: =IF(INTRO!$E$41="Endémique", IF(AND($J164>1,$J164<5), IF($J164=4, "Inconnu", E164+F164), 0),"Non requis") -> 0 | P164: 29330 | Q164: 0 | R164: 0 | S164: 0 | T164: 1 | Y164: 2203 | Z164: SANZA POMBO
A165: =IF(INTRO!$E$33<>0,INTRO!$E$33, " ") -> Angola | B165: UIGE | C165: SONGO | D165: 81933 | E165: =IF(INTRO!$E$48="","",ROUND($D165*INTRO!$E$48,0)) -> 13109 | F165: =IF(INTRO!$E$49="","",ROUND($D165*INTRO!$E$49,0)) -> 22859 | G165: =IF(INTRO!$E$50="","",ROUND($D165*INTRO!$E$50,0)) -> 43179 | H165: 1 | I165: 1 | J165: 0 | K165: 3 | L165: 1 | M165: =IF(INTRO!$E$37="Endémique",IF($H165>0,IF($H165=4,"Inconnu",IF($H165=99,"Interrompu",$D165)),0),"Non requis") -> 81933 | N165: =IF(INTRO!$E$39="Endémique", IF($I165>0, IF($I165=4,"Inconnu",IF($I165=99,"Interrompu",$D165)), 0),"Non requis") -> 81933 | O165: =IF(INTRO!$E$41="Endémique", IF(AND($J165>1,$J165<5), IF($J165=4, "Inconnu", E165+F165), 0),"Non requis") -> 0 | P165: 60789 | Q165: 1 | R165: 1 | S165: 0 | T165: 1 | Y165: 2204 | Z165: SONGO
A166: =IF(INTRO!$E$33<>0,INTRO!$E$33, " ") -> Angola | B166: UIGE | C166: UIGE | D166: 689662 | E166: =IF(INTRO!$E$48="","",ROUND($D166*INTRO!$E$48,0)) -> 110346 | F166: =IF(INTRO!$E$49="","",ROUND($D166*INTRO!$E$49,0)) -> 192416 | G166: =IF(INTRO!$E$50="","",ROUND($D166*INTRO!$E$50,0)) -> 363452 | H166: 0 | I166: 4 | J166: 1 | K166: 3 | L166: 1 | M166: =IF(INTRO!$E$37="Endémique",IF($H166>0,IF($H166=4,"Inconnu",IF($H166=99,"Interrompu",$D166)),0),"Non requis") -> 0 | N166: =IF(INTRO!$E$39="Endémique", IF($I166>0, IF($I166=4,"Inconnu",IF($I166=99,"Interrompu",$D166)), 0),"Non requis") -> Inconnu | O166: =IF(INTRO!$E$41="Endémique", IF(AND($J166>1,$J166<5), IF($J166=4, "Inconnu", E166+F166), 0),"Non requis") -> 0 | P166: 511674 | Q166: 0 | R166: 0 | S166: 0 | T166: 1 | Y166: 2205 | Z166: UIGE
A167: =IF(INTRO!$E$33<>0,INTRO!$E$33, " ") -> Angola | B167: ZAIRE | C167: CUIMBA | D167: 94027 | E167: =IF(INTRO!$E$48="","",ROUND($D167*INTRO!$E$48,0)) -> 15044 | F167: =IF(INTRO!$E$49="","",ROUND($D167*INTRO!$E$49,0)) -> 26234 | G167: =IF(INTRO!$E$50="","",ROUND($D167*INTRO!$E$50,0)) -> 49552 | H167: 0 | I167: 4 | J167: 0 | K167: 2 | L167: 0 | M167: =IF(INTRO!$E$37="Endémique",IF($H167>0,IF($H167=4,"Inconnu",IF($H167=99,"Interrompu",$D167)),0),"Non requis") -> 0 | N167: =IF(INTRO!$E$39="Endémique", IF($I167>0, IF($I167=4,"Inconnu",IF($I167=99,"Interrompu",$D167)), 0),"Non requis") -> Inconnu | O167: =IF(INTRO!$E$41="Endémique", IF(AND($J167>1,$J167<5), IF($J167=4, "Inconnu", E167+F167), 0),"Non requis") -> 0 | P167: 1856 | Q167: 0 | R167: 0 | S167: 0 | T167: 1 | Y167: 2206 | Z167: CUIMBA
A168: =IF(INTRO!$E$33<>0,INTRO!$E$33, " ") -> Angola | B168: ZAIRE | C168: MBANZA KONGO | D168: 245046 | E168: =IF(INTRO!$E$48="","",ROUND($D168*INTRO!$E$48,0)) -> 39207 | F168: =IF(INTRO!$E$49="","",ROUND($D168*INTRO!$E$49,0)) -> 68368 | G168: =IF(INTRO!$E$50="","",ROUND($D168*INTRO!$E$50,0)) -> 129139 | H168: 0 | I168: 4 | J168: 2 | K168: 3 | L168: 0 | M168: =IF(INTRO!$E$37="Endémique",IF($H168>0,IF($H168=4,"Inconnu",IF($H168=99,"Interrompu",$D168)),0),"Non requis") -> 0 | N168: =IF(INTRO!$E$39="Endémique", IF($I168>0, IF($I168=4,"Inconnu",IF($I168=99,"Interrompu",$D168)), 0),"Non requis") -> Inconnu | O168: =IF(INTRO!$E$41="Endémique", IF(AND($J168>1,$J168<5), IF($J168=4, "Inconnu", E168+F168), 0),"Non requis") -> 107575 | P168: 90941 | Q168: 0 | R168: 0 | S168: 1 | T168: 1 | Y168: 2207 | Z168: MBANZA CONGO
A169: =IF(INTRO!$E$33<>0,INTRO!$E$33, " ") -> Angola | B169: ZAIRE | C169: NOQUI | D169: 32451 | E169: =IF(INTRO!$E$48="","",ROUND($D169*INTRO!$E$48,0)) -> 5192 | F169: =IF(INTRO!$E$49="","",ROUND($D169*INTRO!$E$49,0)) -> 9054 | G169: =IF(INTRO!$E$50="","",ROUND($D169*INTRO!$E$50,0)) -> 17102 | H169: 0 | I169: 4 | J169: 0 | K169: 2 | L169: 1 | M169: =IF(INTRO!$E$37="Endémique",IF($H169>0,IF($H169=4,"Inconnu",IF($H169=99,"Interrompu",$D169)),0),"Non requis") -> 0 | N169: =IF(INTRO!$E$39="Endémique", IF($I169>0, IF($I169=4,"Inconnu",IF($I169=99,"Interrompu",$D169)), 0),"Non requis") -> Inconnu | O169: =IF(INTRO!$E$41="Endémique", IF(AND($J169>1,$J169<5), IF($J169=4, "Inconnu", E169+F169), 0),"Non requis") -> 0 | P169: 5127 | Q169: 0 | R169: 0 | S169: 0 | T169: 1 | Y169: 2208 | Z169: NOQUI
A170: =IF(INTRO!$E$33<>0,INTRO!$E$33, " ") -> Angola | B170: ZAIRE | C170: NZETO | D170: 64988 | E170: =IF(INTRO!$E$48="","",ROUND($D170*INTRO!$E$48,0)) -> 10398 | F170: =IF(INTRO!$E$49="","",ROUND($D170*INTRO!$E$49,0)) -> 18132 | G170: =IF(INTRO!$E$50="","",ROUND($D170*INTRO!$E$50,0)) -> 34249 | H170: 0 | I170: 4 | J170: 1 | K170: 3 | L170: 1 | M170: =IF(INTRO!$E$37="Endémique",IF($H170>0,IF($H170=4,"Inconnu",IF($H170=99,"Interrompu",$D170)),0),"Non requis") -> 0 | N170: =IF(INTRO!$E$39="Endémique", IF($I170>0, IF($I170=4,"Inconnu",IF($I170=99,"Interrompu",$D170)), 0),"Non requis") -> Inconnu | O170: =IF(INTRO!$E$41="Endémique", IF(AND($J170>1,$J170<5), IF($J170=4, "Inconnu", E170+F170), 0),"Non requis") -> 0 | P170: 18257 | Q170: 0 | R170: 0 | S170: 0 | T170: 1 | Y170: 2209 | Z170: NZETO
A171: =IF(INTRO!$E$33<>0,INTRO!$E$33, " ") -> Angola | B171: ZAIRE | C171: SOYO | D171: 308706 | E171: =IF(INTRO!$E$48="","",ROUND($D171*INTRO!$E$48,0)) -> 49393 | F171: =IF(INTRO!$E$49="","",ROUND($D171*INTRO!$E$49,0)) -> 86129 | G171: =IF(INTRO!$E$50="","",ROUND($D171*INTRO!$E$50,0)) -> 162688 | H171: 0 | I171: 4 | J171: 1 | K171: 3 | L171: 1 | M171: =IF(INTRO!$E$37="Endémique",IF($H171>0,IF($H171=4,"Inconnu",IF($H171=99,"Interrompu",$D171)),0),"Non requis") -> 0 | N171: =IF(INTRO!$E$39="Endémique", IF($I171>0, IF($I171=4,"Inconnu",IF($I171=99,"Interrompu",$D171)), 0),"Non requis") -> Inconnu | O171: =IF(INTRO!$E$41="Endémique", IF(AND($J171>1,$J171<5), IF($J171=4, "Inconnu", E171+F171), 0),"Non requis") -> 0 | P171: 107466 | Q171: 0 | R171: 0 | S171: 0 | T171: 1 | Y171: 2210 | Z171: SOYO
A172: =IF(INTRO!$E$33<>0,INTRO!$E$33, " ") -> Angola | B172: ZAIRE | C172: TOMBOCO | D172: 62542 | E172: =IF(INTRO!$E$48="","",ROUND($D172*INTRO!$E$48,0)) -> 10007 | F172: =IF(INTRO!$E$49="","",ROUND($D172*INTRO!$E$49,0)) -> 17449 | G172: =IF(INTRO!$E$50="","",ROUND($D172*INTRO!$E$50,0)) -> 32960 | H172: 1 | I172: 4 | J172: 0 | K172: 0 | L172: 1 | M172: =IF(INTRO!$E$37="Endémique",IF($H172>0,IF($H172=4,"Inconnu",IF($H172=99,"Interrompu",$D172)),0),"Non requis") -> 62542 | N172: =IF(INTRO!$E$39="Endémique", IF($I172>0, IF($I172=4,"Inconnu",IF($I172=99,"Interrompu",$D172)), 0),"Non requis") -> Inconnu | O172: =IF(INTRO!$E$41="Endémique", IF(AND($J172>1,$J172<5), IF($J172=4, "Inconnu", E172+F172), 0),"Non requis") -> 0 | P172: 0 | Q172: 1 | R172: 0 | S172: 0 | T172: 0 | Y172: 2211 | Z172: TOMBOCO

Sheet ALB_MBD
A1: Albendazole (ALB) et Mebendazole (MBD)
A2: Structure administrative, population ciblée par groupe d'âge, plan de traitement et information sur les comprimés
A4: TOTAL | D4: =SUM(D$9:D$1000) -> 4406546 | E4: =SUM(E$9:E$1000) -> 7683923 | F4: =SUM(F$9:F$1000) -> 12090469 | I4: =SUM(I$9:I$1000) -> 1912893 | J4: =SUM(J$9:J$1000) -> 1571749 | M4: =SUM(M$9:M$1000) -> 1940671 | N4: =SUM(N$9:N$1000) -> 3031104.547 | O4: =SUM(O$9:O$1000) -> 0 | P4: =SUM(P$9:P$1000) -> 4971775.547 | Q4: =SUM(Q$9:Q$1000) -> 0 | R4: =SUM(R$9:R$1000) -> 0 | S4: 0 | T4: 0 | U4: 0 | V4: 5056391 | W4: 25299 | X4: 0 | Y4: 3031104.547 | Z4: 15186 | AA4: 0 | AB4: 0 | AC4: 0
A6: Structure administrative du pays | D6: Population nécessitant un traitement avec ALB/MBD | G6: Plan de traitement | I6: Population couverte par le PEFL avec ALB | J6: Endémique à la Loase | L6: Médicament choisi pour le traitement des STH | M6: Population cible | U6: Albendazole (ALB) | AA6: Mebendazole (MBD)
A7: Pays | B7: Région/Département | C7: District | D7: EAPréS | E7: EAS | F7: Total | G7: FL | H7: STH | J7: Population | K7: Tours planifiés | M7: STH (ALB) | Q7: STH (MBD) | U7: Reste en stock (FL) | V7: Comprimés devant être fournis (FL) | W7: Flacons (400mg) 200 comprimés (FL) | X7: Reste en stock (STH) | Y7: Comprimés devant être fournis pour EAS (STH) | Z7: Flacons (400mg) 200 comprimés (STH) | AA7: Reste en stock | AB7: Comprimés devant être fournis pour EAS | AC7: Flacons (500mg) 150 comprimés
M8: EAPréS | N8: EAS | O8: Autres | P8: Total | Q8: EAPréS | R8: EAS | S8: Autres | T8: Total
A9: =IF(AND(INTRO!$E$37="Non endémique",INTRO!$E$41="Non endémique")," ",IF(COUNTRY_INFO!A9=0," ",COUNTRY_INFO!A9)) -> Angola | B9: =IF(AND(INTRO!$E$37="Non endémique",INTRO!$E$41="Non endémique")," ",IF(COUNTRY_INFO!B9=0," ",COUNTRY_INFO!B9)) -> BENGO | C9: =IF(AND(INTRO!$E$37="Non endémique",INTRO!$E$41="Non endémique")," ",IF(COUNTRY_INFO!C9=0," ",COUNTRY_INFO!C9)) -> AMBRIZ | D9: =IF(AND(INTRO!$E$37="Non endémique",INTRO!$E$41="Non endémique"),0,IF(AND(OR(COUNTRY_INFO!$H9=0,COUNTRY_INFO!$H9=4,COUNTRY_INFO!$H9=99),OR(COUNTRY_INFO!$J9=0,COUNTRY_INFO!$J9=4)),0,COUNTRY_INFO!$E9)) -> 5313 | E9: =IF(AND(INTRO!$E$37="Non endémique",INTRO!$E$41="Non endémique"),0,IF(AND(OR(COUNTRY_INFO!$H9=0,COUNTRY_INFO!$H9=4,COUNTRY_INFO!$H9=99),OR(COUNTRY_INFO!$J9=0,COUNTRY_INFO!$J9=4)),0,COUNTRY_INFO!$F9)) -> 9264 | F9: =SUM(D9:E9) -> 14577 | G9: =IF(AND(INTRO!$E$37="Non endémique",INTRO!$E$41="Non endémique"),0,COUNTRY_INFO!Q9) -> 1 | H9: =IF(AND(INTRO!$E$37="Non endémique",INTRO!$E$41="Non endémique"),0,COUNTRY_INFO!S9) -> 0 | I9: =IF($G9=1,IVM!$G9,0) -> 1390 | J9: 25373 | K9: 2 | L9: ALB | M9: =IF($L9="ALB", IF(INTRO!$E$39="Non endémique",IF($H9<>0,$D9*($H9-$G9),0),$D9*$H9), 0) -> 0 | N9: =IF($L9="ALB", IF($H9=0, 0, IF(AND($I9=0, OR($J9=0,$J9=" ")), $E9*$H9, IF(AND($I9=0, $J9>0), IF(($H9-$K9)<=0, 0, $E9*(MAX($H9,$K9)-MIN($H9,$K9))), IF(AND($I9>0, $J9=0), $E9*($H9-$G9), IF($J9=" ", $E9*($H9-$G9), $J9*$E9/($I9+$J9)*$K9+$I9*$E9/($I9+$J9)*($H9-$G9)))))), 0) -> 0 | P9: =SUM(M9:O9) -> 0 | Q9: =IF($L9="MBD", IF(INTRO!$E$39="Non endémique",IF($H9<>0,$D9*($H9-$G9),0),$D9*$H9),0) -> 0 | R9: =IF($L9="MBD", IF($H9=0, 0, IF(AND($I9=0, OR($J9=0,$J9=" ")), $E9*$H9, IF(AND($I9=0, $J9>0), IF(($H9-$K9)<=0, 0, $E9*(MAX($H9,$K9)-MIN($H9,$K9))), IF(AND($I9>0, $J9=0), $E9*($H9-$G9), IF($J9=" ", $E9*($H9-$G9), $J9*$E9/($I9+$J9)*$K9+$I9*$E9/($I9+$J9)*($H9-$G9)))))), 0) -> 0 | T9: =SUM(Q9:S9) -> 0 | V9: =IF($J9<>" ", IF(($I9+$J9*$K9)>$U9, ($I9+$J9*$K9)-$U9,0), IF($I9>$U9, $I9-$U9, 0)) -> 52136 | W9: =IF($J9<>" ", ROUNDUP(($I9+$J9*$K9)/200,0), ROUNDUP($I9/200,0)) -> 261 | Y9: =IF($N9>$X9,$N9-$X9,0) -> 0 | Z9: =ROUNDUP($N9/200,0) -> 0 | AB9: =IF($R9>$AA9,$R9-$AA9,0) -> 0 | AC9: =ROUNDUP($R9/150,0) -> 0
A10: =IF(AND(INTRO!$E$37="Non endémique",INTRO!$E$41="Non endémique")," ",IF(COUNTRY_INFO!A10=0," ",COUNTRY_INFO!A10)) -> Angola | B10: =IF(AND(INTRO!$E$37="Non endémique",INTRO!$E$41="Non endémique")," ",IF(COUNTRY_INFO!B10=0," ",COUNTRY_INFO!B10)) -> BENGO | C10: =IF(AND(INTRO!$E$37="Non endémique",INTRO!$E$41="Non endémique")," ",IF(COUNTRY_INFO!C10=0," ",COUNTRY_INFO!C10)) -> BULA ATUMBA | D10: =IF(AND(INTRO!$E$37="Non endémique",INTRO!$E$41="Non endémique"),0,IF(AND(OR(COUNTRY_INFO!$H10=0,COUNTRY_INFO!$H10=4,COUNTRY_INFO!$H10=99),OR(COUNTRY_INFO!$J10=0,COUNTRY_INFO!$J10=4)),0,COUNTRY_INFO!$E10)) -> 3147 | E10: =IF(AND(INTRO!$E$37="Non endémique",INTRO!$E$41="Non endémique"),0,IF(AND(OR(COUNTRY_INFO!$H10=0,COUNTRY_INFO!$H10=4,COUNTRY_INFO!$H10=99),OR(COUNTRY_INFO!$J10=0,COUNTRY_INFO!$J10=4)),0,COUNTRY_INFO!$F10)) -> 5488 | F10: 8635 | G10: =IF(AND(INTRO!$E$37="Non endémique",INTRO!$E$41="Non endémique"),0,COUNTRY_INFO!Q10) -> 1 | H10: =IF(AND(INTRO!$E$37="Non endémique",INTRO!$E$41="Non endémique"),0,COUNTRY_INFO!S10) -> 2 | I10: =IF($G10=1,IVM!$G10,0) -> 823 | J10: 15031 | K10: 2 | L10: ALB | M10: =IF($L10="ALB", IF(INTRO!$E$39="Non endémique",IF($H10<>0,$D10*($H10-$G10),0),$D10*$H10), 0) -> 6294 | N10: 10691.11139 | P10: 16985.11139 | Q10: =IF($L10="MBD", IF(INTRO!$E$39="Non endémique",IF($H10<>0,$D10*($H10-$G10),0),$D10*$H10),0) -> 0 | R10: 0 | T10: 0 | V10: 30885 | W10: 155 | Y10: 10691.11139 | Z10: 54 | AB10: 0 | AC10: 0
A11: =IF(AND(INTRO!$E$37="Non endémique",INTRO!$E$41="Non endémique")," ",IF(COUNTRY_INFO!A11=0," ",COUNTRY_INFO!A11)) -> Angola | B11: =IF(AND(INTRO!$E$37="Non endémique",INTRO!$E$41="Non endémique")," ",IF(COUNTRY_INFO!B11=0," ",COUNTRY_INFO!B11)) -> BENGO | C11: =IF(AND(INTRO!$E$37="Non endémique",INTRO!$E$41="Non endémique")," ",IF(COUNTRY_INFO!C11=0," ",COUNTRY_INFO!C11)) -> DANDE | D11: =IF(AND(INTRO!$E$37="Non endémique",INTRO!$E$41="Non endémique"),0,IF(AND(OR(COUNTRY_INFO!$H11=0,COUNTRY_INFO!$H11=4,COUNTRY_INFO!$H11=99),OR(COUNTRY_INFO!$J11=0,COUNTRY_INFO!$J11=4)),0,COUNTRY_INFO!$E11)) -> 52052 | E11: =IF(AND(INTRO!$E$37="Non endémique",INTRO!$E$41="Non endémique"),0,IF(AND(OR(COUNTRY_INFO!$H11=0,COUNTRY_INFO!$H11=4,COUNTRY_INFO!$H11=99),OR(COUNTRY_INFO!$J11=0,COUNTRY_INFO!$J11=4)),0,COUNTRY_INFO!$F11)) -> 90765 | F11: 142817 | G11: =IF(AND(INTRO!$E$37="Non endémique",INTRO!$E$41="Non endémique"),0,COUNTRY_INFO!Q11) -> 1 | H11: =IF(AND(INTRO!$E$37="Non endémique",INTRO!$E$41="Non endémique"),0,COUNTRY_INFO!S11) -> 0 | I11: =IF($G11=1,IVM!$G11,0) -> 13606 | J11: 248604 | K11: 2 | L11: ALB | M11: =IF($L11="ALB", IF(INTRO!$E$39="Non endémique",IF($H11<>0,$D11*($H11-$G11),0),$D11*$H11), 0) -> 0 | N11: 0 | P11: 0 | Q11: =IF($L11="MBD", IF(INTRO!$E$39="Non endémique",IF($H11<>0,$D11*($H11-$G11),0),$D11*$H11),0) -> 0 | R11: 0 | T11: 0 | V11: 510814 | W11: 2555 | Y11: 0 | Z11: 0 | AB11: 0 | AC11: 0
A12: =IF(AND(INTRO!$E$37="Non endémique",INTRO!$E$41="Non endémique")," ",IF(COUNTRY_INFO!A12=0," ",COUNTRY_INFO!A12)) -> Angola | B12: =IF(AND(INTRO!$E$37="Non endémique",INTRO!$E$41="Non endémique")," ",IF(COUNTRY_INFO!B12=0," ",COUNTRY_INFO!B12)) -> BENGO | C12: =IF(AND(INTRO!$E$37="Non endémique",INTRO!$E$41="Non endémique")," ",IF(COUNTRY_INFO!C12=0," ",COUNTRY_INFO!C12)) -> DEMBOS | D12: =IF(AND(INTRO!$E$37="Non endémique",INTRO!$E$41="Non endémique"),0,IF(AND(OR(COUNTRY_INFO!$H12=0,COUNTRY_INFO!$H12=4,COUNTRY_INFO!$H12=99),OR(COUNTRY_INFO!$J12=0,COUNTRY_INFO!$J12=4)),0,COUNTRY_INFO!$E12)) -> 7031 | E12: =IF(AND(INTRO!$E$37="Non endémique",INTRO!$E$41="Non endémique"),0,IF(AND(OR(COUNTRY_INFO!$H12=0,COUNTRY_INFO!$H12=4,COUNTRY_INFO!$H12=99),OR(COUNTRY_INFO!$J12=0,COUNTRY_INFO!$J12=4)),0,COUNTRY_INFO!$F12)) -> 12260 | F12: 19291 | G12: =IF(AND(INTRO!$E$37="Non endémique",INTRO!$E$41="Non endémique"),0,COUNTRY_INFO!Q12) -> 1 | H12: =IF(AND(INTRO!$E$37="Non endémique",INTRO!$E$41="Non endémique"),0,COUNTRY_INFO!S12) -> 2 | I12: =IF($G12=1,IVM!$G12,0) -> 1838 | J12: 33580 | K12: 2 | L12: ALB | M12: =IF($L12="ALB", IF(INTRO!$E$39="Non endémique",IF($H12<>0,$D12*($H12-$G12),0),$D12*$H12), 0) -> 14062 | N12: 23883.77322 | P12: 37945.77322 | Q12: =IF($L12="MBD", IF(INTRO!$E$39="Non endémique",IF($H12<>0,$D12*($H12-$G12),0),$D12*$H12),0) -> 0 | R12: 0 | T12: 0 | V12: 68998 | W12: 345 | Y12: 23883.77322 | Z12: 120 | AB12: 0 | AC12: 0
A13: =IF(AND(INTRO!$E$37="Non endémique",INTRO!$E$41="Non endémique")," ",IF(COUNTRY_INFO!A13=0," ",COUNTRY_INFO!A13)) -> Angola | B13: =IF(AND(INTRO!$E$37="Non endémique",INTRO!$E$41="Non endémique")," ",IF(COUNTRY_INFO!B13=0," ",COUNTRY_INFO!B13)) -> BENGO | C13: =IF(AND(INTRO!$E$37="Non endémique",INTRO!$E$41="Non endémique")," ",IF(COUNTRY_INFO!C13=0," ",COUNTRY_INFO!C13)) -> NAMBUANGONGO | D13: =IF(AND(INTRO!$E$37="Non endémique",INTRO!$E$41="Non endémique"),0,IF(AND(OR(COUNTRY_INFO!$H13=0,COUNTRY_INFO!$H13=4,COUNTRY_INFO!$H13=99),OR(COUNTRY_INFO!$J13=0,COUNTRY_INFO!$J13=4)),0,COUNTRY_INFO!$E13)) -> 14241 | E13: =IF(AND(INTRO!$E$37="Non endémique",INTRO!$E$41="Non endémique"),0,IF(AND(OR(COUNTRY_INFO!$H13=0,COUNTRY_INFO!$H13=4,COUNTRY_INFO!$H13=99),OR(COUNTRY_INFO!$J13=0,COUNTRY_INFO!$J13=4)),0,COUNTRY_INFO!$F13)) -> 24833 | F13: 39074 | G13: =IF(AND(INTRO!$E$37="Non endémique",INTRO!$E$41="Non endémique"),0,COUNTRY_INFO!Q13) -> 1 | H13: =IF(AND(INTRO!$E$37="Non endémique",INTRO!$E$41="Non endémique"),0,COUNTRY_INFO!S13) -> 1 | I13: =IF($G13=1,IVM!$G13,0) -> 3723 | J13: 68016 | K13: 2 | L13: ALB | M13: =IF($L13="ALB", IF(INTRO!$E$39="Non endémique",IF($H13<>0,$D13*($H13-$G13),0),$D13*$H13), 0) -> 14241 | N13: 47088.51052 | P13: 61329.51052 | Q13: =IF($L13="MBD", IF(INTRO!$E$39="Non endémique",IF($H13<>0,$D13*($H13-$G13),0),$D13*$H13),0) -> 0 | R13: 0 | T13: 0 | V13: 139755 | W13: 699 | Y13: 47088.51052 | Z13: 236 | AB13: 0 | AC13: 0
A14: =IF(AND(INTRO!$E$37="Non endémique",INTRO!$E$41="Non endémique")," ",IF(COUNTRY_INFO!A14=0," ",COUNTRY_INFO!A14)) -> Angola | B14: =IF(AND(INTRO!$E$37="Non endémique",INTRO!$E$41="Non endémique")," ",IF(COUNTRY_INFO!B14=0," ",COUNTRY_INFO!B14)) -> BENGO | C14: =IF(AND(INTRO!$E$37="Non endémique",INTRO!$E$41="Non endémique")," ",IF(COUNTRY_INFO!C14=0," ",COUNTRY_INFO!C14)) -> PANGO ALUQUEM | D14: =IF(AND(INTRO!$E$37="Non endémique",INTRO!$E$41="Non endémique"),0,IF(AND(OR(COUNTRY_INFO!$H14=0,COUNTRY_INFO!$H14=4,COUNTRY_INFO!$H14=99),OR(COUNTRY_INFO!$J14=0,COUNTRY_INFO!$J14=4)),0,COUNTRY_INFO!$E14)) -> 1639 | E14: =IF(AND(INTRO!$E$37="Non endémique",INTRO!$E$41="Non endémique"),0,IF(AND(OR(COUNTRY_INFO!$H14=0,COUNTRY_INFO!$H14=4,COUNTRY_INFO!$H14=99),OR(COUNTRY_INFO!$J14=0,COUNTRY_INFO!$J14=4)),0,COUNTRY_INFO!$F14)) -> 2857 | F14: 4496 | G14: =IF(AND(INTRO!$E$37="Non endémique",INTRO!$E$41="Non endémique"),0,COUNTRY_INFO!Q14) -> 0 | H14: =IF(AND(INTRO!$E$37="Non endémique",INTRO!$E$41="Non endémique"),0,COUNTRY_INFO!S14) -> 2 | I14: =IF($G14=1,IVM!$G14,0) -> 0 | J14: =IF($G14=0, " ", IF(COUNTRY_INFO!$H14=1, IF(COUNTRY_INFO!$L14=1, 0," ")," ")) ->  | L14: ALB | M14: =IF($L14="ALB", IF(INTRO!$E$39="Non endémique",IF($H14<>0,$D14*($H14-$G14),0),$D14*$H14), 0) -> 3278 | N14: 5714 | P14: 8992 | Q14: =IF($L14="MBD", IF(INTRO!$E$39="Non endémique",IF($H14<>0,$D14*($H14-$G14),0),$D14*$H14),0) -> 0 | R14: 0 | T14: 0 | V14: 0 | W14: 0 | Y14: 5714 | Z14: 29 | AB14: 0 | AC14: 0
A15: =IF(AND(INTRO!$E$37="Non endémique",INTRO!$E$41="Non endémique")," ",IF(COUNTRY_INFO!A15=0," ",COUNTRY_INFO!A15)) -> Angola | B15: =IF(AND(INTRO!$E$37="Non endémique",INTRO!$E$41="Non endémique")," ",IF(COUNTRY_INFO!B15=0," ",COUNTRY_INFO!B15)) -> BENGUELA | C15: =IF(AND(INTRO!$E$37="Non endémique",INTRO!$E$41="Non endémique")," ",IF(COUNTRY_INFO!C15=0," ",COUNTRY_INFO!C15)) -> BAIA FARTA | D15: =IF(AND(INTRO!$E$37="Non endémique",INTRO!$E$41="Non endémique"),0,IF(AND(OR(COUNTRY_INFO!$H15=0,COUNTRY_INFO!$H15=4,COUNTRY_INFO!$H15=99),OR(COUNTRY_INFO!$J15=0,COUNTRY_INFO!$J15=4)),0,COUNTRY_INFO!$E15)) -> 0 | E15: =IF(AND(INTRO!$E$37="Non endémique",INTRO!$E$41="Non endémique"),0,IF(AND(OR(COUNTRY_INFO!$H15=0,COUNTRY_INFO!$H15=4,COUNTRY_INFO!$H15=99),OR(COUNTRY_INFO!$J15=0,COUNTRY_INFO!$J15=4)),0,COUNTRY_INFO!$F15)) -> 0 | F15: 0 | G15: =IF(AND(INTRO!$E$37="Non endémique",INTRO!$E$41="Non endémique"),0,COUNTRY_INFO!Q15) -> 0 | H15: =IF(AND(INTRO!$E$37="Non endémique",INTRO!$E$41="Non endémique"),0,COUNTRY_INFO!S15) -> 0 | I15: =IF($G15=1,IVM!$G15,0) -> 0 | J15: =IF($G15=0, " ", IF(COUNTRY_INFO!$H15=1, IF(COUNTRY_INFO!$L15=1, 0," ")," ")) ->  | L15: ALB | M15: =IF($L15="ALB", IF(INTRO!$E$39="Non endémique",IF($H15<>0,$D15*($H15-$G15),0),$D15*$H15), 0) -> 0 | N15: 0 | P15: 0 | Q15: =IF($L15="MBD", IF(INTRO!$E$39="Non endémique",IF($H15<>0,$D15*($H15-$G15),0),$D15*$H15),0) -> 0 | R15: 0 | T15: 0 | V15: 0 | W15: 0 | Y15: 0 | Z15: 0 | AB15: 0 | AC15: 0
A16: =IF(AND(INTRO!$E$37="Non endémique",INTRO!$E$41="Non endémique")," ",IF(COUNTRY_INFO!A16=0," ",COUNTRY_INFO!A16)) -> Angola | B16: =IF(AND(INTRO!$E$37="Non endémique",INTRO!$E$41="Non endémique")," ",IF(COUNTRY_INFO!B16=0," ",COUNTRY_INFO!B16)) -> BENGUELA | C16: =IF(AND(INTRO!$E$37="Non endémique",INTRO!$E$41="Non endémique")," ",IF(COUNTRY_INFO!C16=0," ",COUNTRY_INFO!C16)) -> BALOMBO | D16: =IF(AND(INTRO!$E$37="Non endémique",INTRO!$E$41="Non endémique"),0,IF(AND(OR(COUNTRY_INFO!$H16=0,COUNTRY_INFO!$H16=4,COUNTRY_INFO!$H16=99),OR(COUNTRY_INFO!$J16=0,COUNTRY_INFO!$J16=4)),0,COUNTRY_INFO!$E16)) -> 22745 | E16: =IF(AND(INTRO!$E$37="Non endémique",INTRO!$E$41="Non endémique"),0,IF(AND(OR(COUNTRY_INFO!$H16=0,COUNTRY_INFO!$H16=4,COUNTRY_INFO!$H16=99),OR(COUNTRY_INFO!$J16=0,COUNTRY_INFO!$J16=4)),0,COUNTRY_INFO!$F16)) -> 39662 | F16: 62407 | G16: =IF(AND(INTRO!$E$37="Non endémique",INTRO!$E$41="Non endémique"),0,COUNTRY_INFO!Q16) -> 0 | H16: =IF(AND(INTRO!$E$37="Non endémique",INTRO!$E$41="Non endémique"),0,COUNTRY_INFO!S16) -> 0 | I16: =IF($G16=1,IVM!$G16,0) -> 0 | J16: =IF($G16=0, " ", IF(COUNTRY_INFO!$H16=1, IF(COUNTRY_INFO!$L16=1, 0," ")," ")) ->  | L16: ALB | M16: =IF($L16="ALB", IF(INTRO!$E$39="Non endémique",IF($H16<>0,$D16*($H16-$G16),0),$D16*$H16), 0) -> 0 | N16: 0 | P16: 0 | Q16: =IF($L16="MBD", IF(INTRO!$E$39="Non endémique",IF($H16<>0,$D16*($H16-$G16),0),$D16*$H16),0) -> 0 | R16: 0 | T16: 0 | V16: 0 | W16: 0 | Y16: 0 | Z16: 0 | AB16: 0 | AC16: 0
A17: =IF(AND(INTRO!$E$37="Non endémique",INTRO!$E$41="Non endémique")," ",IF(COUNTRY_INFO!A17=0," ",COUNTRY_INFO!A17)) -> Angola | B17: =IF(AND(INTRO!$E$37="Non endémique",INTRO!$E$41="Non endémique")," ",IF(COUNTRY_INFO!B17=0," ",COUNTRY_INFO!B17)) -> BENGUELA | C17: =IF(AND(INTRO!$E$37="Non endémique",INTRO!$E$41="Non endémique")," ",IF(COUNTRY_INFO!C17=0," ",COUNTRY_INFO!C17)) -> BENGUELA | D17: =IF(AND(INTRO!$E$37="Non endémique",INTRO!$E$41="Non endémique"),0,IF(AND(OR(COUNTRY_INFO!$H17=0,COUNTRY_INFO!$H17=4,COUNTRY_INFO!$H17=99),OR(COUNTRY_INFO!$J17=0,COUNTRY_INFO!$J17=4)),0,COUNTRY_INFO!$E17)) -> 117263 | E17: =IF(AND(INTRO!$E$37="Non endémique",INTRO!$E$41="Non endémique"),0,IF(AND(OR(COUNTRY_INFO!$H17=0,COUNTRY_INFO!$H17=4,COUNTRY_INFO!$H17=99),OR(COUNTRY_INFO!$J17=0,COUNTRY_INFO!$J17=4)),0,COUNTRY_INFO!$F17)) -> 204478 | F17: 321741 | G17: =IF(AND(INTRO!$E$37="Non endémique",INTRO!$E$41="Non endémique"),0,COUNTRY_INFO!Q17) -> 0 | H17: =IF(AND(INTRO!$E$37="Non endémique",INTRO!$E$41="Non endémique"),0,COUNTRY_INFO!S17) -> 0 | I17: =IF($G17=1,IVM!$G17,0) -> 0 | J17: =IF($G17=0, " ", IF(COUNTRY_INFO!$H17=1, IF(COUNTRY_INFO!$L17=1, 0," ")," ")) ->  | L17: ALB | M17: =IF($L17="ALB", IF(INTRO!$E$39="Non endémique",IF($H17<>0,$D17*($H17-$G17),0),$D17*$H17), 0) -> 0 | N17: 0 | P17: 0 | Q17: =IF($L17="MBD", IF(INTRO!$E$39="Non endémique",IF($H17<>0,$D17*($H17-$G17),0),$D17*$H17),0) -> 0 | R17: 0 | T17: 0 | V17: 0 | W17: 0 | Y17: 0 | Z17: 0 | AB17: 0 | AC17: 0
A18: =IF(AND(INTRO!$E$37="Non endémique",INTRO!$E$41="Non endémique")," ",IF(COUNTRY_INFO!A18=0," ",COUNTRY_INFO!A18)) -> Angola | B18: =IF(AND(INTRO!$E$37="Non endémique",INTRO!$E$41="Non endémique")," ",IF(COUNTRY_INFO!B18=0," ",COUNTRY_INFO!B18)) -> BENGUELA | C18: =IF(AND(INTRO!$E$37="Non endémique",INTRO!$E$41="Non endémique")," ",IF(COUNTRY_INFO!C18=0," ",COUNTRY_INFO!C18)) -> BOCOIO | D18: =IF(AND(INTRO!$E$37="Non endémique",INTRO!$E$41="Non endémique"),0,IF(AND(OR(COUNTRY_INFO!$H18=0,COUNTRY_INFO!$H18=4,COUNTRY_INFO!$H18=99),OR(COUNTRY_INFO!$J18=0,COUNTRY_INFO!$J18=4)),0,COUNTRY_INFO!$E18)) -> 34376 | E18: =IF(AND(INTRO!$E$37="Non endémique",INTRO!$E$41="Non endémique"),0,IF(AND(OR(COUNTRY_INFO!$H18=0,COUNTRY_INFO!$H18=4,COUNTRY_INFO!$H18=99),OR(COUNTRY_INFO!$J18=0,COUNTRY_INFO!$J18=4)),0,COUNTRY_INFO!$F18)) -> 59943 | F18: 94319 | G18: =IF(AND(INTRO!$E$37="Non endémique",INTRO!$E$41="Non endémique"),0,COUNTRY_INFO!Q18) -> 0 | H18: =IF(AND(INTRO!$E$37="Non endémique",INTRO!$E$41="Non endémique"),0,COUNTRY_INFO!S18) -> 0 | I18: =IF($G18=1,IVM!$G18,0) -> 0 | J18: =IF($G18=0, " ", IF(COUNTRY_INFO!$H18=1, IF(COUNTRY_INFO!$L18=1, 0," ")," ")) ->  | L18: ALB | M18: =IF($L18="ALB", IF(INTRO!$E$39="Non endémique",IF($H18<>0,$D18*($H18-$G18),0),$D18*$H18), 0) -> 0 | N18: 0 | P18: 0 | Q18: =IF($L18="MBD", IF(INTRO!$E$39="Non endémique",IF($H18<>0,$D18*($H18-$G18),0),$D18*$H18),0) -> 0 | R18: 0 | T18: 0 | V18: 0 | W18: 0 | Y18: 0 | Z18: 0 | AB18: 0 | AC18: 0
A19: =IF(AND(INTRO!$E$37="Non endémique",INTRO!$E$41="Non endémique")," ",IF(COUNTRY_INFO!A19=0," ",COUNTRY_INFO!A19)) -> Angola | B19: =IF(AND(INTRO!$E$37="Non endémique",INTRO!$E$41="Non endémique")," ",IF(COUNTRY_INFO!B19=0," ",COUNTRY_INFO!B19)) -> BENGUELA | C19: =IF(AND(INTRO!$E$37="Non endémique",INTRO!$E$41="Non endémique")," ",IF(COUNTRY_INFO!C19=0," ",COUNTRY_INFO!C19)) -> CAIMBAMBO | D19: =IF(AND(INTRO!$E$37="Non endémique",INTRO!$E$41="Non endémique"),0,IF(AND(OR(COUNTRY_INFO!$H19=0,COUNTRY_INFO!$H19=4,COUNTRY_INFO!$H19=99),OR(COUNTRY_INFO!$J19=0,COUNTRY_INFO!$J19=4)),0,COUNTRY_INFO!$E19)) -> 18961 | E19: =IF(AND(INTRO!$E$37="Non endémique",INTRO!$E$41="Non endémique"),0,IF(AND(OR(COUNTRY_INFO!$H19=0,COUNTRY_INFO!$H19=4,COUNTRY_INFO!$H19=99),OR(COUNTRY_INFO!$J19=0,COUNTRY_INFO!$J19=4)),0,COUNTRY_INFO!$F19)) -> 33064 | F19: 52025 | G19: =IF(AND(INTRO!$E$37="Non endémique",INTRO!$E$41="Non endémique"),0,COUNTRY_INFO!Q19) -> 0 | H19: =IF(AND(INTRO!$E$37="Non endémique",INTRO!$E$41="Non endémique"),0,COUNTRY_INFO!S19) -> 0 | I19: =IF($G19=1,IVM!$G19,0) -> 0 | J19: =IF($G19=0, " ", IF(COUNTRY_INFO!$H19=1, IF(COUNTRY_INFO!$L19=1, 0," ")," ")) ->  | L19: ALB | M19: =IF($L19="ALB", IF(INTRO!$E$39="Non endémique",IF($H19<>0,$D19*($H19-$G19),0),$D19*$H19), 0) -> 0 | N19: 0 | P19: 0 | Q19: =IF($L19="MBD", IF(INTRO!$E$39="Non endémique",IF($H19<>0,$D19*($H19-$G19),0),$D19*$H19),0) -> 0 | R19: 0 | T19: 0 | V19: 0 | W19: 0 | Y19: 0 | Z19: 0 | AB19: 0 | AC19: 0
A20: =IF(AND(INTRO!$E$37="Non endémique",INTRO!$E$41="Non endémique")," ",IF(COUNTRY_INFO!A20=0," ",COUNTRY_INFO!A20)) -> Angola | B20: =IF(AND(INTRO!$E$37="Non endémique",INTRO!$E$41="Non endémique")," ",IF(COUNTRY_INFO!B20=0," ",COUNTRY_INFO!B20)) -> BENGUELA | C20: =IF(AND(INTRO!$E$37="Non endémique",INTRO!$E$41="Non endémique")," ",IF(COUNTRY_INFO!C20=0," ",COUNTRY_INFO!C20)) -> CATUMBELA | D20: =IF(AND(INTRO!$E$37="Non endémique",INTRO!$E$41="Non endémique"),0,IF(AND(OR(COUNTRY_INFO!$H20=0,COUNTRY_INFO!$H20=4,COUNTRY_INFO!$H20=99),OR(COUNTRY_INFO!$J20=0,COUNTRY_INFO!$J20=4)),0,COUNTRY_INFO!$E20)) -> 0 | E20: =IF(AND(INTRO!$E$37="Non endémique",INTRO!$E$41="Non endémique"),0,IF(AND(OR(COUNTRY_INFO!$H20=0,COUNTRY_INFO!$H20=4,COUNTRY_INFO!$H20=99),OR(COUNTRY_INFO!$J20=0,COUNTRY_INFO!$J20=4)),0,COUNTRY_INFO!$F20)) -> 0 | F20: 0 | G20: =IF(AND(INTRO!$E$37="Non endémique",INTRO!$E$41="Non endémique"),0,COUNTRY_INFO!Q20) -> 0 | H20: =IF(AND(INTRO!$E$37="Non endémique",INTRO!$E$41="Non endémique"),0,COUNTRY_INFO!S20) -> 0 | I20: =IF($G20=1,IVM!$G20,0) -> 0 | J20: =IF($G20=0, " ", IF(COUNTRY_INFO!$H20=1, IF(COUNTRY_INFO!$L20=1, 0," ")," ")) ->  | L20: ALB | M20: =IF($L20="ALB", IF(INTRO!$E$39="Non endémique",IF($H20<>0,$D20*($H20-$G20),0),$D20*$H20), 0) -> 0 | N20: 0 | P20: 0 | Q20: =IF($L20="MBD", IF(INTRO!$E$39="Non endémique",IF($H20<>0,$D20*($H20-$G20),0),$D20*$H20),0) -> 0 | R20: 0 | T20: 0 | V20: 0 | W20: 0 | Y20: 0 | Z20: 0 | AB20: 0 | AC20: 0
A21: =IF(AND(INTRO!$E$37="Non endémique",INTRO!$E$41="Non endémique")," ",IF(COUNTRY_INFO!A21=0," ",COUNTRY_INFO!A21)) -> Angola | B21: =IF(AND(INTRO!$E$37="Non endémique",INTRO!$E$41="Non endémique")," ",IF(COUNTRY_INFO!B21=0," ",COUNTRY_INFO!B21)) -> BENGUELA | C21: =IF(AND(INTRO!$E$37="Non endémique",INTRO!$E$41="Non endémique")," ",IF(COUNTRY_INFO!C21=0," ",COUNTRY_INFO!C21)) -> CHONGOROI | D21: =IF(AND(INTRO!$E$37="Non endémique",INTRO!$E$41="Non endémique"),0,IF(AND(OR(COUNTRY_INFO!$H21=0,COUNTRY_INFO!$H21=4,COUNTRY_INFO!$H21=99),OR(COUNTRY_INFO!$J21=0,COUNTRY_INFO!$J21=4)),0,COUNTRY_INFO!$E21)) -> 0 | E21: =IF(AND(INTRO!$E$37="Non endémique",INTRO!$E$41="Non endémique"),0,IF(AND(OR(COUNTRY_INFO!$H21=0,COUNTRY_INFO!$H21=4,COUNTRY_INFO!$H21=99),OR(COUNTRY_INFO!$J21=0,COUNTRY_INFO!$J21=4)),0,COUNTRY_INFO!$F21)) -> 0 | F21: 0 | G21: =IF(AND(INTRO!$E$37="Non endémique",INTRO!$E$41="Non endémique"),0,COUNTRY_INFO!Q21) -> 0 | H21: =IF(AND(INTRO!$E$37="Non endémique",INTRO!$E$41="Non endémique"),0,COUNTRY_INFO!S21) -> 0 | I21: =IF($G21=1,IVM!$G21,0) -> 0 | J21: =IF($G21=0, " ", IF(COUNTRY_INFO!$H21=1, IF(COUNTRY_INFO!$L21=1, 0," ")," ")) ->  | L21: ALB | M21: =IF($L21="ALB", IF(INTRO!$E$39="Non endémique",IF($H21<>0,$D21*($H21-$G21),0),$D21*$H21), 0) -> 0 | N21: 0 | P21: 0 | Q21: =IF($L21="MBD", IF(INTRO!$E$39="Non endémique",IF($H21<>0,$D21*($H21-$G21),0),$D21*$H21),0) -> 0 | R21: 0 | T21: 0 | V21: 0 | W21: 0 | Y21: 0 | Z21: 0 | AB21: 0 | AC21: 0
A22: =IF(AND(INTRO!$E$37="Non endémique",INTRO!$E$41="Non endémique")," ",IF(COUNTRY_INFO!A22=0," ",COUNTRY_INFO!A22)) -> Angola | B22: =IF(AND(INTRO!$E$37="Non endémique",INTRO!$E$41="Non endémique")," ",IF(COUNTRY_INFO!B22=0," ",COUNTRY_INFO!B22)) -> BENGUELA | C22: =IF(AND(INTRO!$E$37="Non endémique",INTRO!$E$41="Non endémique")," ",IF(COUNTRY_INFO!C22=0," ",COUNTRY_INFO!C22)) -> CUBAL | D22: =IF(AND(INTRO!$E$37="Non endémique",INTRO!$E$41="Non endémique"),0,IF(AND(OR(COUNTRY_INFO!$H22=0,COUNTRY_INFO!$H22=4,COUNTRY_INFO!$H22=99),OR(COUNTRY_INFO!$J22=0,COUNTRY_INFO!$J22=4)),0,COUNTRY_INFO!$E22)) -> 63797 | E22: =IF(AND(INTRO!$E$37="Non endémique",INTRO!$E$41="Non endémique"),0,IF(AND(OR(COUNTRY_INFO!$H22=0,COUNTRY_INFO!$H22=4,COUNTRY_INFO!$H22=99),OR(COUNTRY_INFO!$J22=0,COUNTRY_INFO!$J22=4)),0,COUNTRY_INFO!$F22)) -> 111246 | F22: 175043 | G22: =IF(AND(INTRO!$E$37="Non endémique",INTRO!$E$41="Non endémique"),0,COUNTRY_INFO!Q22) -> 0 | H22: =IF(AND(INTRO!$E$37="Non endémique",INTRO!$E$41="Non endémique"),0,COUNTRY_INFO!S22) -> 0 | I22: =IF($G22=1,IVM!$G22,0) -> 0 | J22: =IF($G22=0, " ", IF(COUNTRY_INFO!$H22=1, IF(COUNTRY_INFO!$L22=1, 0," ")," ")) ->  | L22: ALB | M22: =IF($L22="ALB", IF(INTRO!$E$39="Non endémique",IF($H22<>0,$D22*($H22-$G22),0),$D22*$H22), 0) -> 0 | N22: 0 | P22: 0 | Q22: =IF($L22="MBD", IF(INTRO!$E$39="Non endémique",IF($H22<>0,$D22*($H22-$G22),0),$D22*$H22),0) -> 0 | R22: 0 | T22: 0 | V22: 0 | W22: 0 | Y22: 0 | Z22: 0 | AB22: 0 | AC22: 0
A23: =IF(AND(INTRO!$E$37="Non endémique",INTRO!$E$41="Non endémique")," ",IF(COUNTRY_INFO!A23=0," ",COUNTRY_INFO!A23)) -> Angola | B23: =IF(AND(INTRO!$E$37="Non endémique",INTRO!$E$41="Non endémique")," ",IF(COUNTRY_INFO!B23=0," ",COUNTRY_INFO!B23)) -> BENGUELA | C23: =IF(AND(INTRO!$E$37="Non endémique",INTRO!$E$41="Non endémique")," ",IF(COUNTRY_INFO!C23=0," ",COUNTRY_INFO!C23)) -> GANDA | D23: =IF(AND(INTRO!$E$37="Non endémique",INTRO!$E$41="Non endémique"),0,IF(AND(OR(COUNTRY_INFO!$H23=0,COUNTRY_INFO!$H23=4,COUNTRY_INFO!$H23=99),OR(COUNTRY_INFO!$J23=0,COUNTRY_INFO!$J23=4)),0,COUNTRY_INFO!$E23)) -> 49155 | E23: =IF(AND(INTRO!$E$37="Non endémique",INTRO!$E$41="Non endémique"),0,IF(AND(OR(COUNTRY_INFO!$H23=0,COUNTRY_INFO!$H23=4,COUNTRY_INFO!$H23=99),OR(COUNTRY_INFO!$J23=0,COUNTRY_INFO!$J23=4)),0,COUNTRY_INFO!$F23)) -> 85714 | F23: 134869 | G23: =IF(AND(INTRO!$E$37="Non endémique",INTRO!$E$41="Non endémique"),0,COUNTRY_INFO!Q23) -> 0 | H23: =IF(AND(INTRO!$E$37="Non endémique",INTRO!$E$41="Non endémique"),0,COUNTRY_INFO!S23) -> 0 | I23: =IF($G23=1,IVM!$G23,0) -> 0 | J23: =IF($G23=0, " ", IF(COUNTRY_INFO!$H23=1, IF(COUNTRY_INFO!$L23=1, 0," ")," ")) ->  | L23: ALB | M23: =IF($L23="ALB", IF(INTRO!$E$39="Non endémique",IF($H23<>0,$D23*($H23-$G23),0),$D23*$H23), 0) -> 0 | N23: 0 | P23: 0 | Q23: =IF($L23="MBD", IF(INTRO!$E$39="Non endémique",IF($H23<>0,$D23*($H23-$G23),0),$D23*$H23),0) -> 0 | R23: 0 | T23: 0 | V23: 0 | W23: 0 | Y23: 0 | Z23: 0 | AB23: 0 | AC23: 0
A24: =IF(AND(INTRO!$E$37="Non endémique",INTRO!$E$41="Non endémique")," ",IF(COUNTRY_INFO!A24=0," ",COUNTRY_INFO!A24)) -> Angola | B24: =IF(AND(INTRO!$E$37="Non endémique",INTRO!$E$41="Non endémique")," ",IF(COUNTRY_INFO!B24=0," ",COUNTRY_INFO!B24)) -> BENGUELA | C24: =IF(AND(INTRO!$E$37="Non endémique",INTRO!$E$41="Non endémique")," ",IF(COUNTRY_INFO!C24=0," ",COUNTRY_INFO!C24)) -> LOBITO | D24: =IF(AND(INTRO!$E$37="Non endémique",INTRO!$E$41="Non endémique"),0,IF(AND(OR(COUNTRY_INFO!$H24=0,COUNTRY_INFO!$H24=4,COUNTRY_INFO!$H24=99),OR(COUNTRY_INFO!$J24=0,COUNTRY_INFO!$J24=4)),0,COUNTRY_INFO!$E24)) -> 82050 | E24: =IF(AND(INTRO!$E$37="Non endémique",INTRO!$E$41="Non endémique"),0,IF(AND(OR(COUNTRY_INFO!$H24=0,COUNTRY_INFO!$H24=4,COUNTRY_INFO!$H24=99),OR(COUNTRY_INFO!$J24=0,COUNTRY_INFO!$J24=4)),0,COUNTRY_INFO!$F24)) -> 143075 | F24: 225125 | G24: =IF(AND(INTRO!$E$37="Non endémique",INTRO!$E$41="Non endémique"),0,COUNTRY_INFO!Q24) -> 1 | H24: =IF(AND(INTRO!$E$37="Non endémique",INTRO!$E$41="Non endémique"),0,COUNTRY_INFO!S24) -> 0 | I24: =IF($G24=1,IVM!$G24,0) -> 413329 | J24: =IF($G24=0, " ", IF(COUNTRY_INFO!$H24=1, IF(COUNTRY_INFO!$L24=1, 0," ")," ")) ->  | L24: ALB | M24: =IF($L24="ALB", IF(INTRO!$E$39="Non endémique",IF($H24<>0,$D24*($H24-$G24),0),$D24*$H24), 0) -> 0 | N24: 0 | P24: 0 | Q24: =IF($L24="MBD", IF(INTRO!$E$39="Non endémique",IF($H24<>0,$D24*($H24-$G24),0),$D24*$H24),0) -> 0 | R24: 0 | T24: 0 | V24: 413329 | W24: 2067 | Y24: 0 | Z24: 0 | AB24: 0 | AC24: 0
A25: =IF(AND(INTRO!$E$37="Non endémique",INTRO!$E$41="Non endémique")," ",IF(COUNTRY_INFO!A25=0," ",COUNTRY_INFO!A25)) -> Angola | B25: =IF(AND(INTRO!$E$37="Non endémique",INTRO!$E$41="Non endémique")," ",IF(COUNTRY_INFO!B25=0," ",COUNTRY_INFO!B25)) -> BIE | C25: =IF(AND(INTRO!$E$37="Non endémique",INTRO!$E$41="Non endémique")," ",IF(COUNTRY_INFO!C25=0," ",COUNTRY_INFO!C25)) -> ANDULO | D25: =IF(AND(INTRO!$E$37="Non endémique",INTRO!$E$41="Non endémique"),0,IF(AND(OR(COUNTRY_INFO!$H25=0,COUNTRY_INFO!$H25=4,COUNTRY_INFO!$H25=99),OR(COUNTRY_INFO!$J25=0,COUNTRY_INFO!$J25=4)),0,COUNTRY_INFO!$E25)) -> 56227 | E25: =IF(AND(INTRO!$E$37="Non endémique",INTRO!$E$41="Non endémique"),0,IF(AND(OR(COUNTRY_INFO!$H25=0,COUNTRY_INFO!$H25=4,COUNTRY_INFO!$H25=99),OR(COUNTRY_INFO!$J25=0,COUNTRY_INFO!$J25=4)),0,COUNTRY_INFO!$F25)) -> 98046 | F25: 154273 | G25: =IF(AND(INTRO!$E$37="Non endémique",INTRO!$E$41="Non endémique"),0,COUNTRY_INFO!Q25) -> 0 | H25: =IF(AND(INTRO!$E$37="Non endémique",INTRO!$E$41="Non endémique"),0,COUNTRY_INFO!S25) -> 0 | I25: =IF($G25=1,IVM!$G25,0) -> 0 | J25: =IF($G25=0, " ", IF(COUNTRY_INFO!$H25=1, IF(COUNTRY_INFO!$L25=1, 0," ")," ")) ->  | L25: ALB | M25: =IF($L25="ALB", IF(INTRO!$E$39="Non endémique",IF($H25<>0,$D25*($H25-$G25),0),$D25*$H25), 0) -> 0 | N25: 0 | P25: 0 | Q25: =IF($L25="MBD", IF(INTRO!$E$39="Non endémique",IF($H25<>0,$D25*($H25-$G25),0),$D25*$H25),0) -> 0 | R25: 0 | T25: 0 | V25: 0 | W25: 0 | Y25: 0 | Z25: 0 | AB25: 0 | AC25: 0
A26: =IF(AND(INTRO!$E$37="Non endémique",INTRO!$E$41="Non endémique")," ",IF(COUNTRY_INFO!A26=0," ",COUNTRY_INFO!A26)) -> Angola | B26: =IF(AND(INTRO!$E$37="Non endémique",INTRO!$E$41="Non endémique")," ",IF(COUNTRY_INFO!B26=0," ",COUNTRY_INFO!B26)) -> BIE | C26: =IF(AND(INTRO!$E$37="Non endémique",INTRO!$E$41="Non endémique")," ",IF(COUNTRY_INFO!C26=0," ",COUNTRY_INFO!C26)) -> CAMACUPA | D26: =IF(AND(INTRO!$E$37="Non endémique",INTRO!$E$41="Non endémique"),0,IF(AND(OR(COUNTRY_INFO!$H26=0,COUNTRY_INFO!$H26=4,COUNTRY_INFO!$H26=99),OR(COUNTRY_INFO!$J26=0,COUNTRY_INFO!$J26=4)),0,COUNTRY_INFO!$E26)) -> 33743 | E26: =IF(AND(INTRO!$E$37="Non endémique",INTRO!$E$41="Non endémique"),0,IF(AND(OR(COUNTRY_INFO!$H26=0,COUNTRY_INFO!$H26=4,COUNTRY_INFO!$H26=99),OR(COUNTRY_INFO!$J26=0,COUNTRY_INFO!$J26=4)),0,COUNTRY_INFO!$F26)) -> 58839 | F26: 92582 | G26: =IF(AND(INTRO!$E$37="Non endémique",INTRO!$E$41="Non endémique"),0,COUNTRY_INFO!Q26) -> 0 | H26: =IF(AND(INTRO!$E$37="Non endémique",INTRO!$E$41="Non endémique"),0,COUNTRY_INFO!S26) -> 0 | I26: =IF($G26=1,IVM!$G26,0) -> 0 | J26: =IF($G26=0, " ", IF(COUNTRY_INFO!$H26=1, IF(COUNTRY_INFO!$L26=1, 0," ")," ")) ->  | L26: ALB | M26: =IF($L26="ALB", IF(INTRO!$E$39="Non endémique",IF($H26<>0,$D26*($H26-$G26),0),$D26*$H26), 0) -> 0 | N26: 0 | P26: 0 | Q26: =IF($L26="MBD", IF(INTRO!$E$39="Non endémique",IF($H26<>0,$D26*($H26-$G26),0),$D26*$H26),0) -> 0 | R26: 0 | T26: 0 | V26: 0 | W26: 0 | Y26: 0 | Z26: 0 | AB26: 0 | AC26: 0
A27: =IF(AND(INTRO!$E$37="Non endémique",INTRO!$E$41="Non endémique")," ",IF(COUNTRY_INFO!A27=0," ",COUNTRY_INFO!A27)) -> Angola | B27: =IF(AND(INTRO!$E$37="Non endémique",INTRO!$E$41="Non endémique")," ",IF(COUNTRY_INFO!B27=0," ",COUNTRY_INFO!B27)) -> BIE | C27: =IF(AND(INTRO!$E$37="Non endémique",INTRO!$E$41="Non endémique")," ",IF(COUNTRY_INFO!C27=0," ",COUNTRY_INFO!C27)) -> CATABOLA | D27: =IF(AND(INTRO!$E$37="Non endémique",INTRO!$E$41="Non endémique"),0,IF(AND(OR(COUNTRY_INFO!$H27=0,COUNTRY_INFO!$H27=4,COUNTRY_INFO!$H27=99),OR(COUNTRY_INFO!$J27=0,COUNTRY_INFO!$J27=4)),0,COUNTRY_INFO!$E27)) -> 27580 | E27: =IF(AND(INTRO!$E$37="Non endémique",INTRO!$E$41="Non endémique"),0,IF(AND(OR(COUNTRY_INFO!$H27=0,COUNTRY_INFO!$H27=4,COUNTRY_INFO!$H27=99),OR(COUNTRY_INFO!$J27=0,COUNTRY_INFO!$J27=4)),0,COUNTRY_INFO!$F27)) -> 48093 | F27: 75673 | G27: =IF(AND(INTRO!$E$37="Non endémique",INTRO!$E$41="Non endémique"),0,COUNTRY_INFO!Q27) -> 0 | H27: =IF(AND(INTRO!$E$37="Non endémique",INTRO!$E$41="Non endémique"),0,COUNTRY_INFO!S27) -> 0 | I27: =IF($G27=1,IVM!$G27,0) -> 0 | J27: =IF($G27=0, " ", IF(COUNTRY_INFO!$H27=1, IF(COUNTRY_INFO!$L27=1, 0," ")," ")) ->  | L27: ALB | M27: =IF($L27="ALB", IF(INTRO!$E$39="Non endémique",IF($H27<>0,$D27*($H27-$G27),0),$D27*$H27), 0) -> 0 | N27: 0 | P27: 0 | Q27: =IF($L27="MBD", IF(INTRO!$E$39="Non endémique",IF($H27<>0,$D27*($H27-$G27),0),$D27*$H27),0) -> 0 | R27: 0 | T27: 0 | V27: 0 | W27: 0 | Y27: 0 | Z27: 0 | AB27: 0 | AC27: 0
A28: =IF(AND(INTRO!$E$37="Non endémique",INTRO!$E$41="Non endémique")," ",IF(COUNTRY_INFO!A28=0," ",COUNTRY_INFO!A28)) -> Angola | B28: =IF(AND(INTRO!$E$37="Non endémique",INTRO!$E$41="Non endémique")," ",IF(COUNTRY_INFO!B28=0," ",COUNTRY_INFO!B28)) -> BIE | C28: =IF(AND(INTRO!$E$37="Non endémique",INTRO!$E$41="Non endémique")," ",IF(COUNTRY_INFO!C28=0," ",COUNTRY_INFO!C28)) -> CHINGUAR | D28: =IF(AND(INTRO!$E$37="Non endémique",INTRO!$E$41="Non endémique"),0,IF(AND(OR(COUNTRY_INFO!$H28=0,COUNTRY_INFO!$H28=4,COUNTRY_INFO!$H28=99),OR(COUNTRY_INFO!$J28=0,COUNTRY_INFO!$J28=4)),0,COUNTRY_INFO!$E28)) -> 28176 | E28: =IF(AND(INTRO!$E$37="Non endémique",INTRO!$E$41="Non endémique"),0,IF(AND(OR(COUNTRY_INFO!$H28=0,COUNTRY_INFO!$H28=4,COUNTRY_INFO!$H28=99),OR(COUNTRY_INFO!$J28=0,COUNTRY_INFO!$J28=4)),0,COUNTRY_INFO!$F28)) -> 49133 | F28: 77309 | G28: =IF(AND(INTRO!$E$37="Non endémique",INTRO!$E$41="Non endémique"),0,COUNTRY_INFO!Q28) -> 0 | H28: =IF(AND(INTRO!$E$37="Non endémique",INTRO!$E$41="Non endémique"),0,COUNTRY_INFO!S28) -> 0 | I28: =IF($G28=1,IVM!$G28,0) -> 0 | J28: =IF($G28=0, " ", IF(COUNTRY_INFO!$H28=1, IF(COUNTRY_INFO!$L28=1, 0," ")," ")) ->  | L28: ALB | M28: =IF($L28="ALB", IF(INTRO!$E$39="Non endémique",IF($H28<>0,$D28*($H28-$G28),0),$D28*$H28), 0) -> 0 | N28: 0 | P28: 0 | Q28: =IF($L28="MBD", IF(INTRO!$E$39="Non endémique",IF($H28<>0,$D28*($H28-$G28),0),$D28*$H28),0) -> 0 | R28: 0 | T28: 0 | V28: 0 | W28: 0 | Y28: 0 | Z28: 0 | AB28: 0 | AC28: 0
A29: =IF(AND(INTRO!$E$37="Non endémique",INTRO!$E$41="Non endémique")," ",IF(COUNTRY_INFO!A29=0," ",COUNTRY_INFO!A29)) -> Angola | B29: =IF(AND(INTRO!$E$37="Non endémique",INTRO!$E$41="Non endémique")," ",IF(COUNTRY_INFO!B29=0," ",COUNTRY_INFO!B29)) -> BIE | C29: =IF(AND(INTRO!$E$37="Non endémique",INTRO!$E$41="Non endémique")," ",IF(COUNTRY_INFO!C29=0," ",COUNTRY_INFO!C29)) -> CHITEMBO | D29: =IF(AND(INTRO!$E$37="Non endémique",INTRO!$E$41="Non endémique"),0,IF(AND(OR(COUNTRY_INFO!$H29=0,COUNTRY_INFO!$H29=4,COUNTRY_INFO!$H29=99),OR(COUNTRY_INFO!$J29=0,COUNTRY_INFO!$J29=4)),0,COUNTRY_INFO!$E29)) -> 17022 | E29: =IF(AND(INTRO!$E$37="Non endémique",INTRO!$E$41="Non endémique"),0,IF(AND(OR(COUNTRY_INFO!$H29=0,COUNTRY_INFO!$H29=4,COUNTRY_INFO!$H29=99),OR(COUNTRY_INFO!$J29=0,COUNTRY_INFO!$J29=4)),0,COUNTRY_INFO!$F29)) -> 29682 | F29: 46704 | G29: =IF(AND(INTRO!$E$37="Non endémique",INTRO!$E$41="Non endémique"),0,COUNTRY_INFO!Q29) -> 0 | H29: =IF(AND(INTRO!$E$37="Non endémique",INTRO!$E$41="Non endémique"),0,COUNTRY_INFO!S29) -> 0 | I29: =IF($G29=1,IVM!$G29,0) -> 0 | J29: =IF($G29=0, " ", IF(COUNTRY_INFO!$H29=1, IF(COUNTRY_INFO!$L29=1, 0," ")," ")) ->  | L29: ALB | M29: =IF($L29="ALB", IF(INTRO!$E$39="Non endémique",IF($H29<>0,$D29*($H29-$G29),0),$D29*$H29), 0) -> 0 | N29: 0 | P29: 0 | Q29: =IF($L29="MBD", IF(INTRO!$E$39="Non endémique",IF($H29<>0,$D29*($H29-$G29),0),$D29*$H29),0) -> 0 | R29: 0 | T29: 0 | V29: 0 | W29: 0 | Y29: 0 | Z29: 0 | AB29: 0 | AC29: 0
A30: =IF(AND(INTRO!$E$37="Non endémique",INTRO!$E$41="Non endémique")," ",IF(COUNTRY_INFO!A30=0," ",COUNTRY_INFO!A30)) -> Angola | B30: =IF(AND(INTRO!$E$37="Non endémique",INTRO!$E$41="Non endémique")," ",IF(COUNTRY_INFO!B30=0," ",COUNTRY_INFO!B30)) -> BIE | C30: =IF(AND(INTRO!$E$37="Non endémique",INTRO!$E$41="Non endémique")," ",IF(COUNTRY_INFO!C30=0," ",COUNTRY_INFO!C30)) -> CUEMBA | D30: =IF(AND(INTRO!$E$37="Non endémique",INTRO!$E$41="Non endémique"),0,IF(AND(OR(COUNTRY_INFO!$H30=0,COUNTRY_INFO!$H30=4,COUNTRY_INFO!$H30=99),OR(COUNTRY_INFO!$J30=0,COUNTRY_INFO!$J30=4)),0,COUNTRY_INFO!$E30)) -> 12406 | E30: =IF(AND(INTRO!$E$37="Non endémique",INTRO!$E$41="Non endémique"),0,IF(AND(OR(COUNTRY_INFO!$H30=0,COUNTRY_INFO!$H30=4,COUNTRY_INFO!$H30=99),OR(COUNTRY_INFO!$J30=0,COUNTRY_INFO!$J30=4)),0,COUNTRY_INFO!$F30)) -> 21634 | F30: 34040 | G30: =IF(AND(INTRO!$E$37="Non endémique",INTRO!$E$41="Non endémique"),0,COUNTRY_INFO!Q30) -> 1 | H30: =IF(AND(INTRO!$E$37="Non endémique",INTRO!$E$41="Non endémique"),0,COUNTRY_INFO!S30) -> 0 | I30: =IF($G30=1,IVM!$G30,0) -> 62498 | J30: =IF($G30=0, " ", IF(COUNTRY_INFO!$H30=1, IF(COUNTRY_INFO!$L30=1, 0," ")," ")) ->  | L30: ALB | M30: =IF($L30="ALB", IF(INTRO!$E$39="Non endémique",IF($H30<>0,$D30*($H30-$G30),0),$D30*$H30), 0) -> 0 | N30: 0 | P30: 0 | Q30: =IF($L30="MBD", IF(INTRO!$E$39="Non endémique",IF($H30<>0,$D30*($H30-$G30),0),$D30*$H30),0) -> 0 | R30: 0 | T30: 0 | V30: 62498 | W30: 313 | Y30: 0 | Z30: 0 | AB30: 0 | AC30: 0
A31: =IF(AND(INTRO!$E$37="Non endémique",INTRO!$E$41="Non endémique")," ",IF(COUNTRY_INFO!A31=0," ",COUNTRY_INFO!A31)) -> Angola | B31: =IF(AND(INTRO!$E$37="Non endémique",INTRO!$E$41="Non endémique")," ",IF(COUNTRY_INFO!B31=0," ",COUNTRY_INFO!B31)) -> BIE | C31: =IF(AND(INTRO!$E$37="Non endémique",INTRO!$E$41="Non endémique")," ",IF(COUNTRY_INFO!C31=0," ",COUNTRY_INFO!C31)) -> CUNHINGA | D31: =IF(AND(INTRO!$E$37="Non endémique",INTRO!$E$41="Non endémique"),0,IF(AND(OR(COUNTRY_INFO!$H31=0,COUNTRY_INFO!$H31=4,COUNTRY_INFO!$H31=99),OR(COUNTRY_INFO!$J31=0,COUNTRY_INFO!$J31=4)),0,COUNTRY_INFO!$E31)) -> 16079 | E31: =IF(AND(INTRO!$E$37="Non endémique",INTRO!$E$41="Non endémique"),0,IF(AND(OR(COUNTRY_INFO!$H31=0,COUNTRY_INFO!$H31=4,COUNTRY_INFO!$H31=99),OR(COUNTRY_INFO!$J31=0,COUNTRY_INFO!$J31=4)),0,COUNTRY_INFO!$F31)) -> 28038 | F31: 44117 | G31: =IF(AND(INTRO!$E$37="Non endémique",INTRO!$E$41="Non endémique"),0,COUNTRY_INFO!Q31) -> 0 | H31: =IF(AND(INTRO!$E$37="Non endémique",INTRO!$E$41="Non endémique"),0,COUNTRY_INFO!S31) -> 0 | I31: =IF($G31=1,IVM!$G31,0) -> 0 | J31: =IF($G31=0, " ", IF(COUNTRY_INFO!$H31=1, IF(COUNTRY_INFO!$L31=1, 0," ")," ")) ->  | L31: ALB | M31: =IF($L31="ALB", IF(INTRO!$E$39="Non endémique",IF($H31<>0,$D31*($H31-$G31),0),$D31*$H31), 0) -> 0 | N31: 0 | P31: 0 | Q31: =IF($L31="MBD", IF(INTRO!$E$39="Non endémique",IF($H31<>0,$D31*($H31-$G31),0),$D31*$H31),0) -> 0 | R31: 0 | T31: 0 | V31: 0 | W31: 0 | Y31: 0 | Z31: 0 | AB31: 0 | AC31: 0
A32: =IF(AND(INTRO!$E$37="Non endémique",INTRO!$E$41="Non endémique")," ",IF(COUNTRY_INFO!A32=0," ",COUNTRY_INFO!A32)) -> Angola | B32: =IF(AND(INTRO!$E$37="Non endémique",INTRO!$E$41="Non endémique")," ",IF(COUNTRY_INFO!B32=0," ",COUNTRY_INFO!B32)) -> BIE | C32: =IF(AND(INTRO!$E$37="Non endémique",INTRO!$E$41="Non endémique")," ",IF(COUNTRY_INFO!C32=0," ",COUNTRY_INFO!C32)) -> CUITO | D32: =IF(AND(INTRO!$E$37="Non endémique",INTRO!$E$41="Non endémique"),0,IF(AND(OR(COUNTRY_INFO!$H32=0,COUNTRY_INFO!$H32=4,COUNTRY_INFO!$H32=99),OR(COUNTRY_INFO!$J32=0,COUNTRY_INFO!$J32=4)),0,COUNTRY_INFO!$E32)) -> 98201 | E32: =IF(AND(INTRO!$E$37="Non endémique",INTRO!$E$41="Non endémique"),0,IF(AND(OR(COUNTRY_INFO!$H32=0,COUNTRY_INFO!$H32=4,COUNTRY_INFO!$H32=99),OR(COUNTRY_INFO!$J32=0,COUNTRY_INFO!$J32=4)),0,COUNTRY_INFO!$F32)) -> 171238 | F32: 269439 | G32: =IF(AND(INTRO!$E$37="Non endémique",INTRO!$E$41="Non endémique"),0,COUNTRY_INFO!Q32) -> 0 | H32: =IF(AND(INTRO!$E$37="Non endémique",INTRO!$E$41="Non endémique"),0,COUNTRY_INFO!S32) -> 0 | I32: =IF($G32=1,IVM!$G32,0) -> 0 | J32: =IF($G32=0, " ", IF(COUNTRY_INFO!$H32=1, IF(COUNTRY_INFO!$L32=1, 0," ")," ")) ->  | L32: ALB | M32: =IF($L32="ALB", IF(INTRO!$E$39="Non endémique",IF($H32<>0,$D32*($H32-$G32),0),$D32*$H32), 0) -> 0 | N32: 0 | P32: 0 | Q32: =IF($L32="MBD", IF(INTRO!$E$39="Non endémique",IF($H32<>0,$D32*($H32-$G32),0),$D32*$H32),0) -> 0 | R32: 0 | T32: 0 | V32: 0 | W32: 0 | Y32: 0 | Z32: 0 | AB32: 0 | AC32: 0
A33: =IF(AND(INTRO!$E$37="Non endémique",INTRO!$E$41="Non endémique")," ",IF(COUNTRY_INFO!A33=0," ",COUNTRY_INFO!A33)) -> Angola | B33: =IF(AND(INTRO!$E$37="Non endémique",INTRO!$E$41="Non endémique")," ",IF(COUNTRY_INFO!B33=0," ",COUNTRY_INFO!B33)) -> BIE | C33: =IF(AND(INTRO!$E$37="Non endémique",INTRO!$E$41="Non endémique")," ",IF(COUNTRY_INFO!C33=0," ",COUNTRY_INFO!C33)) -> NHAREA | D33: =IF(AND(INTRO!$E$37="Non endémique",INTRO!$E$41="Non endémique"),0,IF(AND(OR(COUNTRY_INFO!$H33=0,COUNTRY_INFO!$H33=4,COUNTRY_INFO!$H33=99),OR(COUNTRY_INFO!$J33=0,COUNTRY_INFO!$J33=4)),0,COUNTRY_INFO!$E33)) -> 27516 | E33: =IF(AND(INTRO!$E$37="Non endémique",INTRO!$E$41="Non endémique"),0,IF(AND(OR(COUNTRY_INFO!$H33=0,COUNTRY_INFO!$H33=4,COUNTRY_INFO!$H33=99),OR(COUNTRY_INFO!$J33=0,COUNTRY_INFO!$J33=4)),0,COUNTRY_INFO!$F33)) -> 47981 | F33: 75497 | G33: =IF(AND(INTRO!$E$37="Non endémique",INTRO!$E$41="Non endémique"),0,COUNTRY_INFO!Q33) -> 0 | H33: =IF(AND(INTRO!$E$37="Non endémique",INTRO!$E$41="Non endémique"),0,COUNTRY_INFO!S33) -> 0 | I33: =IF($G33=1,IVM!$G33,0) -> 0 | J33: =IF($G33=0, " ", IF(COUNTRY_INFO!$H33=1, IF(COUNTRY_INFO!$L33=1, 0," ")," ")) ->  | L33: ALB | M33: =IF($L33="ALB", IF(INTRO!$E$39="Non endémique",IF($H33<>0,$D33*($H33-$G33),0),$D33*$H33), 0) -> 0 | N33: 0 | P33: 0 | Q33: =IF($L33="MBD", IF(INTRO!$E$39="Non endémique",IF($H33<>0,$D33*($H33-$G33),0),$D33*$H33),0) -> 0 | R33: 0 | T33: 0 | V33: 0 | W33: 0 | Y33: 0 | Z33: 0 | AB33: 0 | AC33: 0
A34: =IF(AND(INTRO!$E$37="Non endémique",INTRO!$E$41="Non endémique")," ",IF(COUNTRY_INFO!A34=0," ",COUNTRY_INFO!A34)) -> Angola | B34: =IF(AND(INTRO!$E$37="Non endémique",INTRO!$E$41="Non endémique")," ",IF(COUNTRY_INFO!B34=0," ",COUNTRY_INFO!B34)) -> CABINDA | C34: =IF(AND(INTRO!$E$37="Non endémique",INTRO!$E$41="Non endémique")," ",IF(COUNTRY_INFO!C34=0," ",COUNTRY_INFO!C34)) -> BELIZE | D34: =IF(AND(INTRO!$E$37="Non endémique",INTRO!$E$41="Non endémique"),0,IF(AND(OR(COUNTRY_INFO!$H34=0,COUNTRY_INFO!$H34=4,COUNTRY_INFO!$H34=99),OR(COUNTRY_INFO!$J34=0,COUNTRY_INFO!$J34=4)),0,COUNTRY_INFO!$E34)) -> 4135 | E34: =IF(AND(INTRO!$E$37="Non endémique",INTRO!$E$41="Non endémique"),0,IF(AND(OR(COUNTRY_INFO!$H34=0,COUNTRY_INFO!$H34=4,COUNTRY_INFO!$H34=99),OR(COUNTRY_INFO!$J34=0,COUNTRY_INFO!$J34=4)),0,COUNTRY_INFO!$F34)) -> 7210 | F34: 11345 | G34: =IF(AND(INTRO!$E$37="Non endémique",INTRO!$E$41="Non endémique"),0,COUNTRY_INFO!Q34) -> 1 | H34: =IF(AND(INTRO!$E$37="Non endémique",INTRO!$E$41="Non endémique"),0,COUNTRY_INFO!S34) -> 1 | I34: =IF($G34=1,IVM!$G34,0) -> 1080 | J34: 19748 | K34: 2 | L34: ALB | M34: =IF($L34="ALB", IF(INTRO!$E$39="Non endémique",IF($H34<>0,$D34*($H34-$G34),0),$D34*$H34), 0) -> 4135 | N34: 13672.27578 | P34: 17807.27578 | Q34: =IF($L34="MBD", IF(INTRO!$E$39="Non endémique",IF($H34<>0,$D34*($H34-$G34),0),$D34*$H34),0) -> 0 | R34: 0 | T34: 0 | V34: 40576 | W34: 203 | Y34: 13672.27578 | Z34: 69 | AB34: 0 | AC34: 0
A35: =IF(AND(INTRO!$E$37="Non endémique",INTRO!$E$41="Non endémique")," ",IF(COUNTRY_INFO!A35=0," ",COUNTRY_INFO!A35)) -> Angola | B35: =IF(AND(INTRO!$E$37="Non endémique",INTRO!$E$41="Non endémique")," ",IF(COUNTRY_INFO!B35=0," ",COUNTRY_INFO!B35)) -> CABINDA | C35: =IF(AND(INTRO!$E$37="Non endémique",INTRO!$E$41="Non endémique")," ",IF(COUNTRY_INFO!C35=0," ",COUNTRY_INFO!C35)) -> BUCO ZAU | D35: =IF(AND(INTRO!$E$37="Non endémique",INTRO!$E$41="Non endémique"),0,IF(AND(OR(COUNTRY_INFO!$H35=0,COUNTRY_INFO!$H35=4,COUNTRY_INFO!$H35=99),OR(COUNTRY_INFO!$J35=0,COUNTRY_INFO!$J35=4)),0,COUNTRY_INFO!$E35)) -> 6931 | E35: =IF(AND(INTRO!$E$37="Non endémique",INTRO!$E$41="Non endémique"),0,IF(AND(OR(COUNTRY_INFO!$H35=0,COUNTRY_INFO!$H35=4,COUNTRY_INFO!$H35=99),OR(COUNTRY_INFO!$J35=0,COUNTRY_INFO!$J35=4)),0,COUNTRY_INFO!$F35)) -> 12086 | F35: 19017 | G35: =IF(AND(INTRO!$E$37="Non endémique",INTRO!$E$41="Non endémique"),0,COUNTRY_INFO!Q35) -> 1 | H35: =IF(AND(INTRO!$E$37="Non endémique",INTRO!$E$41="Non endémique"),0,COUNTRY_INFO!S35) -> 1 | I35: =IF($G35=1,IVM!$G35,0) -> 1812 | J35: 33104 | K35: 2 | L35: ALB | M35: =IF($L35="ALB", IF(INTRO!$E$39="Non endémique",IF($H35<>0,$D35*($H35-$G35),0),$D35*$H35), 0) -> 6931 | N35: 22917.5704 | P35: 29848.5704 | Q35: =IF($L35="MBD", IF(INTRO!$E$39="Non endémique",IF($H35<>0,$D35*($H35-$G35),0),$D35*$H35),0) -> 0 | R35: 0 | T35: 0 | V35: 68020 | W35: 341 | Y35: 22917.5704 | Z35: 115 | AB35: 0 | AC35: 0
A36: =IF(AND(INTRO!$E$37="Non endémique",INTRO!$E$41="Non endémique")," ",IF(COUNTRY_INFO!A36=0," ",COUNTRY_INFO!A36)) -> Angola | B36: =IF(AND(INTRO!$E$37="Non endémique",INTRO!$E$41="Non endémique")," ",IF(COUNTRY_INFO!B36=0," ",COUNTRY_INFO!B36)) -> CABINDA | C36: =IF(AND(INTRO!$E$37="Non endémique",INTRO!$E$41="Non endémique")," ",IF(COUNTRY_INFO!C36=0," ",COUNTRY_INFO!C36)) -> CABINDA | D36: =IF(AND(INTRO!$E$37="Non endémique",INTRO!$E$41="Non endémique"),0,IF(AND(OR(COUNTRY_INFO!$H36=0,COUNTRY_INFO!$H36=4,COUNTRY_INFO!$H36=99),OR(COUNTRY_INFO!$J36=0,COUNTRY_INFO!$J36=4)),0,COUNTRY_INFO!$E36)) -> 132029 | E36: =IF(AND(INTRO!$E$37="Non endémique",INTRO!$E$41="Non endémique"),0,IF(AND(OR(COUNTRY_INFO!$H36=0,COUNTRY_INFO!$H36=4,COUNTRY_INFO!$H36=99),OR(COUNTRY_INFO!$J36=0,COUNTRY_INFO!$J36=4)),0,COUNTRY_INFO!$F36)) -> 230226 | F36: 362255 | G36: =IF(AND(INTRO!$E$37="Non endémique",INTRO!$E$41="Non endémique"),0,COUNTRY_INFO!Q36) -> 1 | H36: =IF(AND(INTRO!$E$37="Non endémique",INTRO!$E$41="Non endémique"),0,COUNTRY_INFO!S36) -> 0 | I36: =IF($G36=1,IVM!$G36,0) -> 34511 | J36: 630586 | K36: 2 | L36: ALB | M36: =IF($L36="ALB", IF(INTRO!$E$39="Non endémique",IF($H36<>0,$D36*($H36-$G36),0),$D36*$H36), 0) -> 0 | N36: 0 | P36: 0 | Q36: =IF($L36="MBD", IF(INTRO!$E$39="Non endémique",IF($H36<>0,$D36*($H36-$G36),0),$D36*$H36),0) -> 0 | R36: 0 | T36: 0 | V36: 1295683 | W36: 6479 | Y36: 0 | Z36: 0 | AB36: 0 | AC36: 0
A37: =IF(AND(INTRO!$E$37="Non endémique",INTRO!$E$41="Non endémique")," ",IF(COUNTRY_INFO!A37=0," ",COUNTRY_INFO!A37)) -> Angola | B37: =IF(AND(INTRO!$E$37="Non endémique",INTRO!$E$41="Non endémique")," ",IF(COUNTRY_INFO!B37=0," ",COUNTRY_INFO!B37)) -> CABINDA | C37: =IF(AND(INTRO!$E$37="Non endémique",INTRO!$E$41="Non endémique")," ",IF(COUNTRY_INFO!C37=0," ",COUNTRY_INFO!C37)) -> CACONGO | D37: =IF(AND(INTRO!$E$37="Non endémique",INTRO!$E$41="Non endémique"),0,IF(AND(OR(COUNTRY_INFO!$H37=0,COUNTRY_INFO!$H37=4,COUNTRY_INFO!$H37=99),OR(COUNTRY_INFO!$J37=0,COUNTRY_INFO!$J37=4)),0,COUNTRY_INFO!$E37)) -> 8259 | E37: =IF(AND(INTRO!$E$37="Non endémique",INTRO!$E$41="Non endémique"),0,IF(AND(OR(COUNTRY_INFO!$H37=0,COUNTRY_INFO!$H37=4,COUNTRY_INFO!$H37=99),OR(COUNTRY_INFO!$J37=0,COUNTRY_INFO!$J37=4)),0,COUNTRY_INFO!$F37)) -> 14402 | F37: 22661 | G37: =IF(AND(INTRO!$E$37="Non endémique",INTRO!$E$41="Non endémique"),0,COUNTRY_INFO!Q37) -> 1 | H37: =IF(AND(INTRO!$E$37="Non endémique",INTRO!$E$41="Non endémique"),0,COUNTRY_INFO!S37) -> 0 | I37: =IF($G37=1,IVM!$G37,0) -> 2158 | J37: 39448 | K37: 2 | L37: ALB | M37: =IF($L37="ALB", IF(INTRO!$E$39="Non endémique",IF($H37<>0,$D37*($H37-$G37),0),$D37*$H37), 0) -> 0 | N37: 0 | P37: 0 | Q37: =IF($L37="MBD", IF(INTRO!$E$39="Non endémique",IF($H37<>0,$D37*($H37-$G37),0),$D37*$H37),0) -> 0 | R37: 0 | T37: 0 | V37: 81054 | W37: 406 | Y37: 0 | Z37: 0 | AB37: 0 | AC37: 0
A38: =IF(AND(INTRO!$E$37="Non endémique",INTRO!$E$41="Non endémique")," ",IF(COUNTRY_INFO!A38=0," ",COUNTRY_INFO!A38)) -> Angola | B38: =IF(AND(INTRO!$E$37="Non endémique",INTRO!$E$41="Non endémique")," ",IF(COUNTRY_INFO!B38=0," ",COUNTRY_INFO!B38)) -> CUNENE | C38: =IF(AND(INTRO!$E$37="Non endémique",INTRO!$E$41="Non endémique")," ",IF(COUNTRY_INFO!C38=0," ",COUNTRY_INFO!C38)) -> CAHAMA | D38: =IF(AND(INTRO!$E$37="Non endémique",INTRO!$E$41="Non endémique"),0,IF(AND(OR(COUNTRY_INFO!$H38=0,COUNTRY_INFO!$H38=4,COUNTRY_INFO!$H38=99),OR(COUNTRY_INFO!$J38=0,COUNTRY_INFO!$J38=4)),0,COUNTRY_INFO!$E38)) -> 15160 | E38: =IF(AND(INTRO!$E$37="Non endémique",INTRO!$E$41="Non endémique"),0,IF(AND(OR(COUNTRY_INFO!$H38=0,COUNTRY_INFO!$H38=4,COUNTRY_INFO!$H38=99),OR(COUNTRY_INFO!$J38=0,COUNTRY_INFO!$J38=4)),0,COUNTRY_INFO!$F38)) -> 26436 | F38: 41596 | G38: =IF(AND(INTRO!$E$37="Non endémique",INTRO!$E$41="Non endémique"),0,COUNTRY_INFO!Q38) -> 0 | H38: =IF(AND(INTRO!$E$37="Non endémique",INTRO!$E$41="Non endémique"),0,COUNTRY_INFO!S38) -> 0 | I38: =IF($G38=1,IVM!$G38,0) -> 0 | J38: =IF($G38=0, " ", IF(COUNTRY_INFO!$H38=1, IF(COUNTRY_INFO!$L38=1, 0," ")," ")) ->  | L38: ALB | M38: =IF($L38="ALB", IF(INTRO!$E$39="Non endémique",IF($H38<>0,$D38*($H38-$G38),0),$D38*$H38), 0) -> 0 | N38: 0 | P38: 0 | Q38: =IF($L38="MBD", IF(INTRO!$E$39="Non endémique",IF($H38<>0,$D38*($H38-$G38),0),$D38*$H38),0) -> 0 | R38: 0 | T38: 0 | V38: 0 | W38: 0 | Y38: 0 | Z38: 0 | AB38: 0 | AC38: 0
A39: =IF(AND(INTRO!$E$37="Non endémique",INTRO!$E$41="Non endémique")," ",IF(COUNTRY_INFO!A39=0," ",COUNTRY_INFO!A39)) -> Angola | B39: =IF(AND(INTRO!$E$37="Non endémique",INTRO!$E$41="Non endémique")," ",IF(COUNTRY_INFO!B39=0," ",COUNTRY_INFO!B39)) -> CUNENE | C39: =IF(AND(INTRO!$E$37="Non endémique",INTRO!$E$41="Non endémique")," ",IF(COUNTRY_INFO!C39=0," ",COUNTRY_INFO!C39)) -> CUANHAMA | D39: =IF(AND(INTRO!$E$37="Non endémique",INTRO!$E$41="Non endémique"),0,IF(AND(OR(COUNTRY_INFO!$H39=0,COUNTRY_INFO!$H39=4,COUNTRY_INFO!$H39=99),OR(COUNTRY_INFO!$J39=0,COUNTRY_INFO!$J39=4)),0,COUNTRY_INFO!$E39)) -> 81042 | E39: =IF(AND(INTRO!$E$37="Non endémique",INTRO!$E$41="Non endémique"),0,IF(AND(OR(COUNTRY_INFO!$H39=0,COUNTRY_INFO!$H39=4,COUNTRY_INFO!$H39=99),OR(COUNTRY_INFO!$J39=0,COUNTRY_INFO!$J39=4)),0,COUNTRY_INFO!$F39)) -> 141317 | F39: 222359 | G39: =IF(AND(INTRO!$E$37="Non endémique",INTRO!$E$41="Non endémique"),0,COUNTRY_INFO!Q39) -> 0 | H39: =IF(AND(INTRO!$E$37="Non endémique",INTRO!$E$41="Non endémique"),0,COUNTRY_INFO!S39) -> 0 | I39: =IF($G39=1,IVM!$G39,0) -> 0 | J39: =IF($G39=0, " ", IF(COUNTRY_INFO!$H39=1, IF(COUNTRY_INFO!$L39=1, 0," ")," ")) ->  | L39: ALB | M39: =IF($L39="ALB", IF(INTRO!$E$39="Non endémique",IF($H39<>0,$D39*($H39-$G39),0),$D39*$H39), 0) -> 0 | N39: 0 | P39: 0 | Q39: =IF($L39="MBD", IF(INTRO!$E$39="Non endémique",IF($H39<>0,$D39*($H39-$G39),0),$D39*$H39),0) -> 0 | R39: 0 | T39: 0 | V39: 0 | W39: 0 | Y39: 0 | Z39: 0 | AB39: 0 | AC39: 0
A40: =IF(AND(INTRO!$E$37="Non endémique",INTRO!$E$41="Non endémique")," ",IF(COUNTRY_INFO!A40=0," ",COUNTRY_INFO!A40)) -> Angola | B40: =IF(AND(INTRO!$E$37="Non endémique",INTRO!$E$41="Non endémique")," ",IF(COUNTRY_INFO!B40=0," ",COUNTRY_INFO!B40)) -> CUNENE | C40: =IF(AND(INTRO!$E$37="Non endémique",INTRO!$E$41="Non endémique")," ",IF(COUNTRY_INFO!C40=0," ",COUNTRY_INFO!C40)) -> CUROCA | D40: =IF(AND(INTRO!$E$37="Non endémique",INTRO!$E$41="Non endémique"),0,IF(AND(OR(COUNTRY_INFO!$H40=0,COUNTRY_INFO!$H40=4,COUNTRY_INFO!$H40=99),OR(COUNTRY_INFO!$J40=0,COUNTRY_INFO!$J40=4)),0,COUNTRY_INFO!$E40)) -> 0 | E40: =IF(AND(INTRO!$E$37="Non endémique",INTRO!$E$41="Non endémique"),0,IF(AND(OR(COUNTRY_INFO!$H40=0,COUNTRY_INFO!$H40=4,COUNTRY_INFO!$H40=99),OR(COUNTRY_INFO!$J40=0,COUNTRY_INFO!$J40=4)),0,COUNTRY_INFO!$F40)) -> 0 | F40: 0 | G40: =IF(AND(INTRO!$E$37="Non endémique",INTRO!$E$41="Non endémique"),0,COUNTRY_INFO!Q40) -> 0 | H40: =IF(AND(INTRO!$E$37="Non endémique",INTRO!$E$41="Non endémique"),0,COUNTRY_INFO!S40) -> 0 | I40: =IF($G40=1,IVM!$G40,0) -> 0 | J40: =IF($G40=0, " ", IF(COUNTRY_INFO!$H40=1, IF(COUNTRY_INFO!$L40=1, 0," ")," ")) ->  | L40: ALB | M40: =IF($L40="ALB", IF(INTRO!$E$39="Non endémique",IF($H40<>0,$D40*($H40-$G40),0),$D40*$H40), 0) -> 0 | N40: 0 | P40: 0 | Q40: =IF($L40="MBD", IF(INTRO!$E$39="Non endémique",IF($H40<>0,$D40*($H40-$G40),0),$D40*$H40),0) -> 0 | R40: 0 | T40: 0 | V40: 0 | W40: 0 | Y40: 0 | Z40: 0 | AB40: 0 | AC40: 0
A41: =IF(AND(INTRO!$E$37="Non endémique",INTRO!$E$41="Non endémique")," ",IF(COUNTRY_INFO!A41=0," ",COUNTRY_INFO!A41)) -> Angola | B41: =IF(AND(INTRO!$E$37="Non endémique",INTRO!$E$41="Non endémique")," ",IF(COUNTRY_INFO!B41=0," ",COUNTRY_INFO!B41)) -> CUNENE | C41: =IF(AND(INTRO!$E$37="Non endémique",INTRO!$E$41="Non endémique")," ",IF(COUNTRY_INFO!C41=0," ",COUNTRY_INFO!C41)) -> CUVELAI | D41: =IF(AND(INTRO!$E$37="Non endémique",INTRO!$E$41="Non endémique"),0,IF(AND(OR(COUNTRY_INFO!$H41=0,COUNTRY_INFO!$H41=4,COUNTRY_INFO!$H41=99),OR(COUNTRY_INFO!$J41=0,COUNTRY_INFO!$J41=4)),0,COUNTRY_INFO!$E41)) -> 12420 | E41: =IF(AND(INTRO!$E$37="Non endémique",INTRO!$E$41="Non endémique"),0,IF(AND(OR(COUNTRY_INFO!$H41=0,COUNTRY_INFO!$H41=4,COUNTRY_INFO!$H41=99),OR(COUNTRY_INFO!$J41=0,COUNTRY_INFO!$J41=4)),0,COUNTRY_INFO!$F41)) -> 21657 | F41: =SUM(D41:E41) -> 34077 | G41: =IF(AND(INTRO!$E$37="Non endémique",INTRO!$E$41="Non endémique"),0,COUNTRY_INFO!Q41) -> 0 | H41: =IF(AND(INTRO!$E$37="Non endémique",INTRO!$E$41="Non endémique"),0,COUNTRY_INFO!S41) -> 0 | I41: =IF($G41=1,IVM!$G41,0) -> 0 | J41: =IF($G41=0, " ", IF(COUNTRY_INFO!$H41=1, IF(COUNTRY_INFO!$L41=1, 0," ")," ")) ->  | L41: ALB | M41: =IF($L41="ALB", IF(INTRO!$E$39="Non endémique",IF($H41<>0,$D41*($H41-$G41),0),$D41*$H41), 0) -> 0 | N41: =IF($L41="ALB", IF($H41=0, 0, IF(AND($I41=0, OR($J41=0,$J41=" ")), $E41*$H41, IF(AND($I41=0, $J41>0), IF(($H41-$K41)<=0, 0, $E41*(MAX($H41,$K41)-MIN($H41,$K41))), IF(AND($I41>0, $J41=0), $E41*($H41-$G41), IF($J41=" ", $E41*($H41-$G41), $J41*$E41/($I41+$J41)*$K41+$I41*$E41/($I41+$J41)*($H41-$G41)))))), 0) -> 0 | P41: =SUM(M41:O41) -> 0 | Q41: =IF($L41="MBD", IF(INTRO!$E$39="Non endémique",IF($H41<>0,$D41*($H41-$G41),0),$D41*$H41),0) -> 0 | R41: =IF($L41="MBD", IF($H41=0, 0, IF(AND($I41=0, OR($J41=0,$J41=" ")), $E41*$H41, IF(AND($I41=0, $J41>0), IF(($H41-$K41)<=0, 0, $E41*(MAX($H41,$K41)-MIN($H41,$K41))), IF(AND($I41>0, $J41=0), $E41*($H41-$G41), IF($J41=" ", $E41*($H41-$G41), $J41*$E41/($I41+$J41)*$K41+$I41*$E41/($I41+$J41)*($H41-$G41)))))), 0) -> 0 | T41: =SUM(Q41:S41) -> 0 | V41: =IF($J41<>" ", IF(($I41+$J41*$K41)>$U41, ($I41+$J41*$K41)-$U41,0), IF($I41>$U41, $I41-$U41, 0)) -> 0 | W41: =IF($J41<>" ", ROUNDUP(($I41+$J41*$K41)/200,0), ROUNDUP($I41/200,0)) -> 0 | Y41: =IF($N41>$X41,$N41-$X41,0) -> 0 | Z41: =ROUNDUP($N41/200,0) -> 0 | AB41: =IF($R41>$AA41,$R41-$AA41,0) -> 0 | AC41: =ROUNDUP($R41/150,0) -> 0
A42: =IF(AND(INTRO!$E$37="Non endémique",INTRO!$E$41="Non endémique")," ",IF(COUNTRY_INFO!A42=0," ",COUNTRY_INFO!A42)) -> Angola | B42: =IF(AND(INTRO!$E$37="Non endémique",INTRO!$E$41="Non endémique")," ",IF(COUNTRY_INFO!B42=0," ",COUNTRY_INFO!B42)) -> CUNENE | C42: =IF(AND(INTRO!$E$37="Non endémique",INTRO!$E$41="Non endémique")," ",IF(COUNTRY_INFO!C42=0," ",COUNTRY_INFO!C42)) -> NAMACUNDE | D42: =IF(AND(INTRO!$E$37="Non endémique",INTRO!$E$41="Non endémique"),0,IF(AND(OR(COUNTRY_INFO!$H42=0,COUNTRY_INFO!$H42=4,COUNTRY_INFO!$H42=99),OR(COUNTRY_INFO!$J42=0,COUNTRY_INFO!$J42=4)),0,COUNTRY_INFO!$E42)) -> 30737 | E42: =IF(AND(INTRO!$E$37="Non endémique",INTRO!$E$41="Non endémique"),0,IF(AND(OR(COUNTRY_INFO!$H42=0,COUNTRY_INFO!$H42=4,COUNTRY_INFO!$H42=99),OR(COUNTRY_INFO!$J42=0,COUNTRY_INFO!$J42=4)),0,COUNTRY_INFO!$F42)) -> 53597 | F42: 84334 | G42: =IF(AND(INTRO!$E$37="Non endémique",INTRO!$E$41="Non endémique"),0,COUNTRY_INFO!Q42) -> 0 | H42: =IF(AND(INTRO!$E$37="Non endémique",INTRO!$E$41="Non endémique"),0,COUNTRY_INFO!S42) -> 0 | I42: =IF($G42=1,IVM!$G42,0) -> 0 | J42: =IF($G42=0, " ", IF(COUNTRY_INFO!$H42=1, IF(COUNTRY_INFO!$L42=1, 0," ")," ")) ->  | L42: ALB | M42: =IF($L42="ALB", IF(INTRO!$E$39="Non endémique",IF($H42<>0,$D42*($H42-$G42),0),$D42*$H42), 0) -> 0 | N42: 0 | P42: 0 | Q42: =IF($L42="MBD", IF(INTRO!$E$39="Non endémique",IF($H42<>0,$D42*($H42-$G42),0),$D42*$H42),0) -> 0 | R42: 0 | T42: 0 | V42: 0 | W42: 0 | Y42: 0 | Z42: 0 | AB42: 0 | AC42: 0
A43: =IF(AND(INTRO!$E$37="Non endémique",INTRO!$E$41="Non endémique")," ",IF(COUNTRY_INFO!A43=0," ",COUNTRY_INFO!A43)) -> Angola | B43: =IF(AND(INTRO!$E$37="Non endémique",INTRO!$E$41="Non endémique")," ",IF(COUNTRY_INFO!B43=0," ",COUNTRY_INFO!B43)) -> CUNENE | C43: =IF(AND(INTRO!$E$37="Non endémique",INTRO!$E$41="Non endémique")," ",IF(COUNTRY_INFO!C43=0," ",COUNTRY_INFO!C43)) -> OMBADJA | D43: =IF(AND(INTRO!$E$37="Non endémique",INTRO!$E$41="Non endémique"),0,IF(AND(OR(COUNTRY_INFO!$H43=0,COUNTRY_INFO!$H43=4,COUNTRY_INFO!$H43=99),OR(COUNTRY_INFO!$J43=0,COUNTRY_INFO!$J43=4)),0,COUNTRY_INFO!$E43)) -> 65989 | E43: =IF(AND(INTRO!$E$37="Non endémique",INTRO!$E$41="Non endémique"),0,IF(AND(OR(COUNTRY_INFO!$H43=0,COUNTRY_INFO!$H43=4,COUNTRY_INFO!$H43=99),OR(COUNTRY_INFO!$J43=0,COUNTRY_INFO!$J43=4)),0,COUNTRY_INFO!$F43)) -> 115069 | F43: 181058 | G43: =IF(AND(INTRO!$E$37="Non endémique",INTRO!$E$41="Non endémique"),0,COUNTRY_INFO!Q43) -> 0 | H43: =IF(AND(INTRO!$E$37="Non endémique",INTRO!$E$41="Non endémique"),0,COUNTRY_INFO!S43) -> 1 | I43: =IF($G43=1,IVM!$G43,0) -> 0 | J43: =IF($G43=0, " ", IF(COUNTRY_INFO!$H43=1, IF(COUNTRY_INFO!$L43=1, 0," ")," ")) ->  | L43: ALB | M43: =IF($L43="ALB", IF(INTRO!$E$39="Non endémique",IF($H43<>0,$D43*($H43-$G43),0),$D43*$H43), 0) -> 65989 | N43: 115069 | P43: 181058 | Q43: =IF($L43="MBD", IF(INTRO!$E$39="Non endémique",IF($H43<>0,$D43*($H43-$G43),0),$D43*$H43),0) -> 0 | R43: 0 | T43: 0 | V43: 0 | W43: 0 | Y43: 115069 | Z43: 576 | AB43: 0 | AC43: 0
A44: =IF(AND(INTRO!$E$37="Non endémique",INTRO!$E$41="Non endémique")," ",IF(COUNTRY_INFO!A44=0," ",COUNTRY_INFO!A44)) -> Angola | B44: =IF(AND(INTRO!$E$37="Non endémique",INTRO!$E$41="Non endémique")," ",IF(COUNTRY_INFO!B44=0," ",COUNTRY_INFO!B44)) -> HUAMBO | C44: =IF(AND(INTRO!$E$37="Non endémique",INTRO!$E$41="Non endémique")," ",IF(COUNTRY_INFO!C44=0," ",COUNTRY_INFO!C44)) -> BAILUNDO | D44: =IF(AND(INTRO!$E$37="Non endémique",INTRO!$E$41="Non endémique"),0,IF(AND(OR(COUNTRY_INFO!$H44=0,COUNTRY_INFO!$H44=4,COUNTRY_INFO!$H44=99),OR(COUNTRY_INFO!$J44=0,COUNTRY_INFO!$J44=4)),0,COUNTRY_INFO!$E44)) -> 64811 | E44: =IF(AND(INTRO!$E$37="Non endémique",INTRO!$E$41="Non endémique"),0,IF(AND(OR(COUNTRY_INFO!$H44=0,COUNTRY_INFO!$H44=4,COUNTRY_INFO!$H44=99),OR(COUNTRY_INFO!$J44=0,COUNTRY_INFO!$J44=4)),0,COUNTRY_INFO!$F44)) -> 113015 | F44: 177826 | G44: =IF(AND(INTRO!$E$37="Non endémique",INTRO!$E$41="Non endémique"),0,COUNTRY_INFO!Q44) -> 0 | H44: =IF(AND(INTRO!$E$37="Non endémique",INTRO!$E$41="Non endémique"),0,COUNTRY_INFO!S44) -> 0 | I44: =IF($G44=1,IVM!$G44,0) -> 0 | J44: =IF($G44=0, " ", IF(COUNTRY_INFO!$H44=1, IF(COUNTRY_INFO!$L44=1, 0," ")," ")) ->  | L44: ALB | M44: =IF($L44="ALB", IF(INTRO!$E$39="Non endémique",IF($H44<>0,$D44*($H44-$G44),0),$D44*$H44), 0) -> 0 | N44: 0 | P44: 0 | Q44: =IF($L44="MBD", IF(INTRO!$E$39="Non endémique",IF($H44<>0,$D44*($H44-$G44),0),$D44*$H44),0) -> 0 | R44: 0 | T44: 0 | V44: 0 | W44: 0 | Y44: 0 | Z44: 0 | AB44: 0 | AC44: 0
A45: =IF(AND(INTRO!$E$37="Non endémique",INTRO!$E$41="Non endémique")," ",IF(COUNTRY_INFO!A45=0," ",COUNTRY_INFO!A45)) -> Angola | B45: =IF(AND(INTRO!$E$37="Non endémique",INTRO!$E$41="Non endémique")," ",IF(COUNTRY_INFO!B45=0," ",COUNTRY_INFO!B45)) -> HUAMBO | C45: =IF(AND(INTRO!$E$37="Non endémique",INTRO!$E$41="Non endémique")," ",IF(COUNTRY_INFO!C45=0," ",COUNTRY_INFO!C45)) -> CAALA | D45: =IF(AND(INTRO!$E$37="Non endémique",INTRO!$E$41="Non endémique"),0,IF(AND(OR(COUNTRY_INFO!$H45=0,COUNTRY_INFO!$H45=4,COUNTRY_INFO!$H45=99),OR(COUNTRY_INFO!$J45=0,COUNTRY_INFO!$J45=4)),0,COUNTRY_INFO!$E45)) -> 61576 | E45: =IF(AND(INTRO!$E$37="Non endémique",INTRO!$E$41="Non endémique"),0,IF(AND(OR(COUNTRY_INFO!$H45=0,COUNTRY_INFO!$H45=4,COUNTRY_INFO!$H45=99),OR(COUNTRY_INFO!$J45=0,COUNTRY_INFO!$J45=4)),0,COUNTRY_INFO!$F45)) -> 107373 | F45: 168949 | G45: =IF(AND(INTRO!$E$37="Non endémique",INTRO!$E$41="Non endémique"),0,COUNTRY_INFO!Q45) -> 0 | H45: =IF(AND(INTRO!$E$37="Non endémique",INTRO!$E$41="Non endémique"),0,COUNTRY_INFO!S45) -> 1 | I45: =IF($G45=1,IVM!$G45,0) -> 0 | J45: =IF($G45=0, " ", IF(COUNTRY_INFO!$H45=1, IF(COUNTRY_INFO!$L45=1, 0," ")," ")) ->  | L45: ALB | M45: =IF($L45="ALB", IF(INTRO!$E$39="Non endémique",IF($H45<>0,$D45*($H45-$G45),0),$D45*$H45), 0) -> 61576 | N45: 107373 | P45: 168949 | Q45: =IF($L45="MBD", IF(INTRO!$E$39="Non endémique",IF($H45<>0,$D45*($H45-$G45),0),$D45*$H45),0) -> 0 | R45: 0 | T45: 0 | V45: 0 | W45: 0 | Y45: 107373 | Z45: 537 | AB45: 0 | AC45: 0
A46: =IF(AND(INTRO!$E$37="Non endémique",INTRO!$E$41="Non endémique")," ",IF(COUNTRY_INFO!A46=0," ",COUNTRY_INFO!A46)) -> Angola | B46: =IF(AND(INTRO!$E$37="Non endémique",INTRO!$E$41="Non endémique")," ",IF(COUNTRY_INFO!B46=0," ",COUNTRY_INFO!B46)) -> HUAMBO | C46: =IF(AND(INTRO!$E$37="Non endémique",INTRO!$E$41="Non endémique")," ",IF(COUNTRY_INFO!C46=0," ",COUNTRY_INFO!C46)) -> ECUNHA | D46: =IF(AND(INTRO!$E$37="Non endémique",INTRO!$E$41="Non endémique"),0,IF(AND(OR(COUNTRY_INFO!$H46=0,COUNTRY_INFO!$H46=4,COUNTRY_INFO!$H46=99),OR(COUNTRY_INFO!$J46=0,COUNTRY_INFO!$J46=4)),0,COUNTRY_INFO!$E46)) -> 0 | E46: =IF(AND(INTRO!$E$37="Non endémique",INTRO!$E$41="Non endémique"),0,IF(AND(OR(COUNTRY_INFO!$H46=0,COUNTRY_INFO!$H46=4,COUNTRY_INFO!$H46=99),OR(COUNTRY_INFO!$J46=0,COUNTRY_INFO!$J46=4)),0,COUNTRY_INFO!$F46)) -> 0 | F46: 0 | G46: =IF(AND(INTRO!$E$37="Non endémique",INTRO!$E$41="Non endémique"),0,COUNTRY_INFO!Q46) -> 0 | H46: =IF(AND(INTRO!$E$37="Non endémique",INTRO!$E$41="Non endémique"),0,COUNTRY_INFO!S46) -> 0 | I46: =IF($G46=1,IVM!$G46,0) -> 0 | J46: =IF($G46=0, " ", IF(COUNTRY_INFO!$H46=1, IF(COUNTRY_INFO!$L46=1, 0," ")," ")) ->  | L46: ALB | M46: =IF($L46="ALB", IF(INTRO!$E$39="Non endémique",IF($H46<>0,$D46*($H46-$G46),0),$D46*$H46), 0) -> 0 | N46: 0 | P46: 0 | Q46: =IF($L46="MBD", IF(INTRO!$E$39="Non endémique",IF($H46<>0,$D46*($H46-$G46),0),$D46*$H46),0) -> 0 | R46: 0 | T46: 0 | V46: 0 | W46: 0 | Y46: 0 | Z46: 0 | AB46: 0 | AC46: 0
A47: =IF(AND(INTRO!$E$37="Non endémique",INTRO!$E$41="Non endémique")," ",IF(COUNTRY_INFO!A47=0," ",COUNTRY_INFO!A47)) -> Angola | B47: =IF(AND(INTRO!$E$37="Non endémique",INTRO!$E$41="Non endémique")," ",IF(COUNTRY_INFO!B47=0," ",COUNTRY_INFO!B47)) -> HUAMBO | C47: =IF(AND(INTRO!$E$37="Non endémique",INTRO!$E$41="Non endémique")," ",IF(COUNTRY_INFO!C47=0," ",COUNTRY_INFO!C47)) -> HUAMBO | D47: =IF(AND(INTRO!$E$37="Non endémique",INTRO!$E$41="Non endémique"),0,IF(AND(OR(COUNTRY_INFO!$H47=0,COUNTRY_INFO!$H47=4,COUNTRY_INFO!$H47=99),OR(COUNTRY_INFO!$J47=0,COUNTRY_INFO!$J47=4)),0,COUNTRY_INFO!$E47)) -> 156944 | E47: =IF(AND(INTRO!$E$37="Non endémique",INTRO!$E$41="Non endémique"),0,IF(AND(OR(COUNTRY_INFO!$H47=0,COUNTRY_INFO!$H47=4,COUNTRY_INFO!$H47=99),OR(COUNTRY_INFO!$J47=0,COUNTRY_INFO!$J47=4)),0,COUNTRY_INFO!$F47)) -> 273672 | F47: 430616 | G47: =IF(AND(INTRO!$E$37="Non endémique",INTRO!$E$41="Non endémique"),0,COUNTRY_INFO!Q47) -> 0 | H47: =IF(AND(INTRO!$E$37="Non endémique",INTRO!$E$41="Non endémique"),0,COUNTRY_INFO!S47) -> 0 | I47: =IF($G47=1,IVM!$G47,0) -> 0 | J47: =IF($G47=0, " ", IF(COUNTRY_INFO!$H47=1, IF(COUNTRY_INFO!$L47=1, 0," ")," ")) ->  | L47: ALB | M47: =IF($L47="ALB", IF(INTRO!$E$39="Non endémique",IF($H47<>0,$D47*($H47-$G47),0),$D47*$H47), 0) -> 0 | N47: 0 | P47: 0 | Q47: =IF($L47="MBD", IF(INTRO!$E$39="Non endémique",IF($H47<>0,$D47*($H47-$G47),0),$D47*$H47),0) -> 0 | R47: 0 | T47: 0 | V47: 0 | W47: 0 | Y47: 0 | Z47: 0 | AB47: 0 | AC47: 0
A48: =IF(AND(INTRO!$E$37="Non endémique",INTRO!$E$41="Non endémique")," ",IF(COUNTRY_INFO!A48=0," ",COUNTRY_INFO!A48)) -> Angola | B48: =IF(AND(INTRO!$E$37="Non endémique",INTRO!$E$41="Non endémique")," ",IF(COUNTRY_INFO!B48=0," ",COUNTRY_INFO!B48)) -> HUAMBO | C48: =IF(AND(INTRO!$E$37="Non endémique",INTRO!$E$41="Non endémique")," ",IF(COUNTRY_INFO!C48=0," ",COUNTRY_INFO!C48)) -> CACHIUNGO | D48: =IF(AND(INTRO!$E$37="Non endémique",INTRO!$E$41="Non endémique"),0,IF(AND(OR(COUNTRY_INFO!$H48=0,COUNTRY_INFO!$H48=4,COUNTRY_INFO!$H48=99),OR(COUNTRY_INFO!$J48=0,COUNTRY_INFO!$J48=4)),0,COUNTRY_INFO!$E48)) -> 26558 | E48: =IF(AND(INTRO!$E$37="Non endémique",INTRO!$E$41="Non endémique"),0,IF(AND(OR(COUNTRY_INFO!$H48=0,COUNTRY_INFO!$H48=4,COUNTRY_INFO!$H48=99),OR(COUNTRY_INFO!$J48=0,COUNTRY_INFO!$J48=4)),0,COUNTRY_INFO!$F48)) -> 46311 | F48: 72869 | G48: =IF(AND(INTRO!$E$37="Non endémique",INTRO!$E$41="Non endémique"),0,COUNTRY_INFO!Q48) -> 0 | H48: =IF(AND(INTRO!$E$37="Non endémique",INTRO!$E$41="Non endémique"),0,COUNTRY_INFO!S48) -> 0 | I48: =IF($G48=1,IVM!$G48,0) -> 0 | J48: =IF($G48=0, " ", IF(COUNTRY_INFO!$H48=1, IF(COUNTRY_INFO!$L48=1, 0," ")," ")) ->  | L48: ALB | M48: =IF($L48="ALB", IF(INTRO!$E$39="Non endémique",IF($H48<>0,$D48*($H48-$G48),0),$D48*$H48), 0) -> 0 | N48: 0 | P48: 0 | Q48: =IF($L48="MBD", IF(INTRO!$E$39="Non endémique",IF($H48<>0,$D48*($H48-$G48),0),$D48*$H48),0) -> 0 | R48: 0 | T48: 0 | V48: 0 | W48: 0 | Y48: 0 | Z48: 0 | AB48: 0 | AC48: 0
A49: =IF(AND(INTRO!$E$37="Non endémique",INTRO!$E$41="Non endémique")," ",IF(COUNTRY_INFO!A49=0," ",COUNTRY_INFO!A49)) -> Angola | B49: =IF(AND(INTRO!$E$37="Non endémique",INTRO!$E$41="Non endémique")," ",IF(COUNTRY_INFO!B49=0," ",COUNTRY_INFO!B49)) -> HUAMBO | C49: =IF(AND(INTRO!$E$37="Non endémique",INTRO!$E$41="Non endémique")," ",IF(COUNTRY_INFO!C49=0," ",COUNTRY_INFO!C49)) -> LONDUIMBALI | D49: =IF(AND(INTRO!$E$37="Non endémique",INTRO!$E$41="Non endémique"),0,IF(AND(OR(COUNTRY_INFO!$H49=0,COUNTRY_INFO!$H49=4,COUNTRY_INFO!$H49=99),OR(COUNTRY_INFO!$J49=0,COUNTRY_INFO!$J49=4)),0,COUNTRY_INFO!$E49)) -> 29546 | E49: =IF(AND(INTRO!$E$37="Non endémique",INTRO!$E$41="Non endémique"),0,IF(AND(OR(COUNTRY_INFO!$H49=0,COUNTRY_INFO!$H49=4,COUNTRY_INFO!$H49=99),OR(COUNTRY_INFO!$J49=0,COUNTRY_INFO!$J49=4)),0,COUNTRY_INFO!$F49)) -> 51521 | F49: 81067 | G49: =IF(AND(INTRO!$E$37="Non endémique",INTRO!$E$41="Non endémique"),0,COUNTRY_INFO!Q49) -> 0 | H49: =IF(AND(INTRO!$E$37="Non endémique",INTRO!$E$41="Non endémique"),0,COUNTRY_INFO!S49) -> 0 | I49: =IF($G49=1,IVM!$G49,0) -> 0 | J49: =IF($G49=0, " ", IF(COUNTRY_INFO!$H49=1, IF(COUNTRY_INFO!$L49=1, 0," ")," ")) ->  | L49: ALB | M49: =IF($L49="ALB", IF(INTRO!$E$39="Non endémique",IF($H49<>0,$D49*($H49-$G49),0),$D49*$H49), 0) -> 0 | N49: 0 | P49: 0 | Q49: =IF($L49="MBD", IF(INTRO!$E$39="Non endémique",IF($H49<>0,$D49*($H49-$G49),0),$D49*$H49),0) -> 0 | R49: 0 | T49: 0 | V49: 0 | W49: 0 | Y49: 0 | Z49: 0 | AB49: 0 | AC49: 0
A50: =IF(AND(INTRO!$E$37="Non endémique",INTRO!$E$41="Non endémique")," ",IF(COUNTRY_INFO!A50=0," ",COUNTRY_INFO!A50)) -> Angola | B50: =IF(AND(INTRO!$E$37="Non endémique",INTRO!$E$41="Non endémique")," ",IF(COUNTRY_INFO!B50=0," ",COUNTRY_INFO!B50)) -> HUAMBO | C50: =IF(AND(INTRO!$E$37="Non endémique",INTRO!$E$41="Non endémique")," ",IF(COUNTRY_INFO!C50=0," ",COUNTRY_INFO!C50)) -> LONGONJO | D50: =IF(AND(INTRO!$E$37="Non endémique",INTRO!$E$41="Non endémique"),0,IF(AND(OR(COUNTRY_INFO!$H50=0,COUNTRY_INFO!$H50=4,COUNTRY_INFO!$H50=99),OR(COUNTRY_INFO!$J50=0,COUNTRY_INFO!$J50=4)),0,COUNTRY_INFO!$E50)) -> 20270 | E50: =IF(AND(INTRO!$E$37="Non endémique",INTRO!$E$41="Non endémique"),0,IF(AND(OR(COUNTRY_INFO!$H50=0,COUNTRY_INFO!$H50=4,COUNTRY_INFO!$H50=99),OR(COUNTRY_INFO!$J50=0,COUNTRY_INFO!$J50=4)),0,COUNTRY_INFO!$F50)) -> 35346 | F50: 55616 | G50: =IF(AND(INTRO!$E$37="Non endémique",INTRO!$E$41="Non endémique"),0,COUNTRY_INFO!Q50) -> 0 | H50: =IF(AND(INTRO!$E$37="Non endémique",INTRO!$E$41="Non endémique"),0,COUNTRY_INFO!S50) -> 0 | I50: =IF($G50=1,IVM!$G50,0) -> 0 | J50: =IF($G50=0, " ", IF(COUNTRY_INFO!$H50=1, IF(COUNTRY_INFO!$L50=1, 0," ")," ")) ->  | L50: ALB | M50: =IF($L50="ALB", IF(INTRO!$E$39="Non endémique",IF($H50<>0,$D50*($H50-$G50),0),$D50*$H50), 0) -> 0 | N50: 0 | P50: 0 | Q50: =IF($L50="MBD", IF(INTRO!$E$39="Non endémique",IF($H50<>0,$D50*($H50-$G50),0),$D50*$H50),0) -> 0 | R50: 0 | T50: 0 | V50: 0 | W50: 0 | Y50: 0 | Z50: 0 | AB50: 0 | AC50: 0
A51: =IF(AND(INTRO!$E$37="Non endémique",INTRO!$E$41="Non endémique")," ",IF(COUNTRY_INFO!A51=0," ",COUNTRY_INFO!A51)) -> Angola | B51: =IF(AND(INTRO!$E$37="Non endémique",INTRO!$E$41="Non endémique")," ",IF(COUNTRY_INFO!B51=0," ",COUNTRY_INFO!B51)) -> HUAMBO | C51: =IF(AND(INTRO!$E$37="Non endémique",INTRO!$E$41="Non endémique")," ",IF(COUNTRY_INFO!C51=0," ",COUNTRY_INFO!C51)) -> MUNGO | D51: =IF(AND(INTRO!$E$37="Non endémique",INTRO!$E$41="Non endémique"),0,IF(AND(OR(COUNTRY_INFO!$H51=0,COUNTRY_INFO!$H51=4,COUNTRY_INFO!$H51=99),OR(COUNTRY_INFO!$J51=0,COUNTRY_INFO!$J51=4)),0,COUNTRY_INFO!$E51)) -> 0 | E51: =IF(AND(INTRO!$E$37="Non endémique",INTRO!$E$41="Non endémique"),0,IF(AND(OR(COUNTRY_INFO!$H51=0,COUNTRY_INFO!$H51=4,COUNTRY_INFO!$H51=99),OR(COUNTRY_INFO!$J51=0,COUNTRY_INFO!$J51=4)),0,COUNTRY_INFO!$F51)) -> 0 | F51: 0 | G51: =IF(AND(INTRO!$E$37="Non endémique",INTRO!$E$41="Non endémique"),0,COUNTRY_INFO!Q51) -> 0 | H51: =IF(AND(INTRO!$E$37="Non endémique",INTRO!$E$41="Non endémique"),0,COUNTRY_INFO!S51) -> 0 | I51: =IF($G51=1,IVM!$G51,0) -> 0 | J51: =IF($G51=0, " ", IF(COUNTRY_INFO!$H51=1, IF(COUNTRY_INFO!$L51=1, 0," ")," ")) ->  | L51: ALB | M51: =IF($L51="ALB", IF(INTRO!$E$39="Non endémique",IF($H51<>0,$D51*($H51-$G51),0),$D51*$H51), 0) -> 0 | N51: 0 | P51: 0 | Q51: =IF($L51="MBD", IF(INTRO!$E$39="Non endémique",IF($H51<>0,$D51*($H51-$G51),0),$D51*$H51),0) -> 0 | R51: 0 | T51: 0 | V51: 0 | W51: 0 | Y51: 0 | Z51: 0 | AB51: 0 | AC51: 0
A52: =IF(AND(INTRO!$E$37="Non endémique",INTRO!$E$41="Non endémique")," ",IF(COUNTRY_INFO!A52=0," ",COUNTRY_INFO!A52)) -> Angola | B52: =IF(AND(INTRO!$E$37="Non endémique",INTRO!$E$41="Non endémique")," ",IF(COUNTRY_INFO!B52=0," ",COUNTRY_INFO!B52)) -> HUAMBO | C52: =IF(AND(INTRO!$E$37="Non endémique",INTRO!$E$41="Non endémique")," ",IF(COUNTRY_INFO!C52=0," ",COUNTRY_INFO!C52)) -> CHICALA CHOLOHANGA | D52: =IF(AND(INTRO!$E$37="Non endémique",INTRO!$E$41="Non endémique"),0,IF(AND(OR(COUNTRY_INFO!$H52=0,COUNTRY_INFO!$H52=4,COUNTRY_INFO!$H52=99),OR(COUNTRY_INFO!$J52=0,COUNTRY_INFO!$J52=4)),0,COUNTRY_INFO!$E52)) -> 22810 | E52: =IF(AND(INTRO!$E$37="Non endémique",INTRO!$E$41="Non endémique"),0,IF(AND(OR(COUNTRY_INFO!$H52=0,COUNTRY_INFO!$H52=4,COUNTRY_INFO!$H52=99),OR(COUNTRY_INFO!$J52=0,COUNTRY_INFO!$J52=4)),0,COUNTRY_INFO!$F52)) -> 39775 | F52: 62585 | G52: =IF(AND(INTRO!$E$37="Non endémique",INTRO!$E$41="Non endémique"),0,COUNTRY_INFO!Q52) -> 0 | H52: =IF(AND(INTRO!$E$37="Non endémique",INTRO!$E$41="Non endémique"),0,COUNTRY_INFO!S52) -> 0 | I52: =IF($G52=1,IVM!$G52,0) -> 0 | J52: =IF($G52=0, " ", IF(COUNTRY_INFO!$H52=1, IF(COUNTRY_INFO!$L52=1, 0," ")," ")) ->  | L52: ALB | M52: =IF($L52="ALB", IF(INTRO!$E$39="Non endémique",IF($H52<>0,$D52*($H52-$G52),0),$D52*$H52), 0) -> 0 | N52: 0 | P52: 0 | Q52: =IF($L52="MBD", IF(INTRO!$E$39="Non endémique",IF($H52<>0,$D52*($H52-$G52),0),$D52*$H52),0) -> 0 | R52: 0 | T52: 0 | V52: 0 | W52: 0 | Y52: 0 | Z52: 0 | AB52: 0 | AC52: 0
A53: =IF(AND(INTRO!$E$37="Non endémique",INTRO!$E$41="Non endémique")," ",IF(COUNTRY_INFO!A53=0," ",COUNTRY_INFO!A53)) -> Angola | B53: =IF(AND(INTRO!$E$37="Non endémique",INTRO!$E$41="Non endémique")," ",IF(COUNTRY_INFO!B53=0," ",COUNTRY_INFO!B53)) -> HUAMBO | C53: =IF(AND(INTRO!$E$37="Non endémique",INTRO!$E$41="Non endémique")," ",IF(COUNTRY_INFO!C53=0," ",COUNTRY_INFO!C53)) -> CHINDJENJE | D53: =IF(AND(INTRO!$E$37="Non endémique",INTRO!$E$41="Non endémique"),0,IF(AND(OR(COUNTRY_INFO!$H53=0,COUNTRY_INFO!$H53=4,COUNTRY_INFO!$H53=99),OR(COUNTRY_INFO!$J53=0,COUNTRY_INFO!$J53=4)),0,COUNTRY_INFO!$E53)) -> 6700 | E53: =IF(AND(INTRO!$E$37="Non endémique",INTRO!$E$41="Non endémique"),0,IF(AND(OR(COUNTRY_INFO!$H53=0,COUNTRY_INFO!$H53=4,COUNTRY_INFO!$H53=99),OR(COUNTRY_INFO!$J53=0,COUNTRY_INFO!$J53=4)),0,COUNTRY_INFO!$F53)) -> 11683 | F53: 18383 | G53: =IF(AND(INTRO!$E$37="Non endémique",INTRO!$E$41="Non endémique"),0,COUNTRY_INFO!Q53) -> 0 | H53: =IF(AND(INTRO!$E$37="Non endémique",INTRO!$E$41="Non endémique"),0,COUNTRY_INFO!S53) -> 0 | I53: =IF($G53=1,IVM!$G53,0) -> 0 | J53: =IF($G53=0, " ", IF(COUNTRY_INFO!$H53=1, IF(COUNTRY_INFO!$L53=1, 0," ")," ")) ->  | L53: ALB | M53: =IF($L53="ALB", IF(INTRO!$E$39="Non endémique",IF($H53<>0,$D53*($H53-$G53),0),$D53*$H53), 0) -> 0 | N53: 0 | P53: 0 | Q53: =IF($L53="MBD", IF(INTRO!$E$39="Non endémique",IF($H53<>0,$D53*($H53-$G53),0),$D53*$H53),0) -> 0 | R53: 0 | T53: 0 | V53: 0 | W53: 0 | Y53: 0 | Z53: 0 | AB53: 0 | AC53: 0
A54: =IF(AND(INTRO!$E$37="Non endémique",INTRO!$E$41="Non endémique")," ",IF(COUNTRY_INFO!A54=0," ",COUNTRY_INFO!A54)) -> Angola | B54: =IF(AND(INTRO!$E$37="Non endémique",INTRO!$E$41="Non endémique")," ",IF(COUNTRY_INFO!B54=0," ",COUNTRY_INFO!B54)) -> HUAMBO | C54: =IF(AND(INTRO!$E$37="Non endémique",INTRO!$E$41="Non endémique")," ",IF(COUNTRY_INFO!C54=0," ",COUNTRY_INFO!C54)) -> UCUMA | D54: =IF(AND(INTRO!$E$37="Non endémique",INTRO!$E$41="Non endémique"),0,IF(AND(OR(COUNTRY_INFO!$H54=0,COUNTRY_INFO!$H54=4,COUNTRY_INFO!$H54=99),OR(COUNTRY_INFO!$J54=0,COUNTRY_INFO!$J54=4)),0,COUNTRY_INFO!$E54)) -> 12116 | E54: =IF(AND(INTRO!$E$37="Non endémique",INTRO!$E$41="Non endémique"),0,IF(AND(OR(COUNTRY_INFO!$H54=0,COUNTRY_INFO!$H54=4,COUNTRY_INFO!$H54=99),OR(COUNTRY_INFO!$J54=0,COUNTRY_INFO!$J54=4)),0,COUNTRY_INFO!$F54)) -> 21127 | F54: 33243 | G54: =IF(AND(INTRO!$E$37="Non endémique",INTRO!$E$41="Non endémique"),0,COUNTRY_INFO!Q54) -> 0 | H54: =IF(AND(INTRO!$E$37="Non endémique",INTRO!$E$41="Non endémique"),0,COUNTRY_INFO!S54) -> 1 | I54: =IF($G54=1,IVM!$G54,0) -> 0 | J54: =IF($G54=0, " ", IF(COUNTRY_INFO!$H54=1, IF(COUNTRY_INFO!$L54=1, 0," ")," ")) ->  | L54: ALB | M54: =IF($L54="ALB", IF(INTRO!$E$39="Non endémique",IF($H54<>0,$D54*($H54-$G54),0),$D54*$H54), 0) -> 12116 | N54: 21127 | P54: 33243 | Q54: =IF($L54="MBD", IF(INTRO!$E$39="Non endémique",IF($H54<>0,$D54*($H54-$G54),0),$D54*$H54),0) -> 0 | R54: 0 | T54: 0 | V54: 0 | W54: 0 | Y54: 21127 | Z54: 106 | AB54: 0 | AC54: 0
A55: =IF(AND(INTRO!$E$37="Non endémique",INTRO!$E$41="Non endémique")," ",IF(COUNTRY_INFO!A55=0," ",COUNTRY_INFO!A55)) -> Angola | B55: =IF(AND(INTRO!$E$37="Non endémique",INTRO!$E$41="Non endémique")," ",IF(COUNTRY_INFO!B55=0," ",COUNTRY_INFO!B55)) -> HUILA | C55: =IF(AND(INTRO!$E$37="Non endémique",INTRO!$E$41="Non endémique")," ",IF(COUNTRY_INFO!C55=0," ",COUNTRY_INFO!C55)) -> CACONDA | D55: =IF(AND(INTRO!$E$37="Non endémique",INTRO!$E$41="Non endémique"),0,IF(AND(OR(COUNTRY_INFO!$H55=0,COUNTRY_INFO!$H55=4,COUNTRY_INFO!$H55=99),OR(COUNTRY_INFO!$J55=0,COUNTRY_INFO!$J55=4)),0,COUNTRY_INFO!$E55)) -> 36092 | E55: =IF(AND(INTRO!$E$37="Non endémique",INTRO!$E$41="Non endémique"),0,IF(AND(OR(COUNTRY_INFO!$H55=0,COUNTRY_INFO!$H55=4,COUNTRY_INFO!$H55=99),OR(COUNTRY_INFO!$J55=0,COUNTRY_INFO!$J55=4)),0,COUNTRY_INFO!$F55)) -> 62936 | F55: 99028 | G55: =IF(AND(INTRO!$E$37="Non endémique",INTRO!$E$41="Non endémique"),0,COUNTRY_INFO!Q55) -> 0 | H55: =IF(AND(INTRO!$E$37="Non endémique",INTRO!$E$41="Non endémique"),0,COUNTRY_INFO!S55) -> 0 | I55: =IF($G55=1,IVM!$G55,0) -> 0 | J55: =IF($G55=0, " ", IF(COUNTRY_INFO!$H55=1, IF(COUNTRY_INFO!$L55=1, 0," ")," ")) ->  | L55: ALB | M55: =IF($L55="ALB", IF(INTRO!$E$39="Non endémique",IF($H55<>0,$D55*($H55-$G55),0),$D55*$H55), 0) -> 0 | N55: 0 | P55: 0 | Q55: =IF($L55="MBD", IF(INTRO!$E$39="Non endémique",IF($H55<>0,$D55*($H55-$G55),0),$D55*$H55),0) -> 0 | R55: 0 | T55: 0 | V55: 0 | W55: 0 | Y55: 0 | Z55: 0 | AB55: 0 | AC55: 0
A56: =IF(AND(INTRO!$E$37="Non endémique",INTRO!$E$41="Non endémique")," ",IF(COUNTRY_INFO!A56=0," ",COUNTRY_INFO!A56)) -> Angola | B56: =IF(AND(INTRO!$E$37="Non endémique",INTRO!$E$41="Non endémique")," ",IF(COUNTRY_INFO!B56=0," ",COUNTRY_INFO!B56)) -> HUILA | C56: =IF(AND(INTRO!$E$37="Non endémique",INTRO!$E$41="Non endémique")," ",IF(COUNTRY_INFO!C56=0," ",COUNTRY_INFO!C56)) -> CACULA | D56: =IF(AND(INTRO!$E$37="Non endémique",INTRO!$E$41="Non endémique"),0,IF(AND(OR(COUNTRY_INFO!$H56=0,COUNTRY_INFO!$H56=4,COUNTRY_INFO!$H56=99),OR(COUNTRY_INFO!$J56=0,COUNTRY_INFO!$J56=4)),0,COUNTRY_INFO!$E56)) -> 0 | E56: =IF(AND(INTRO!$E$37="Non endémique",INTRO!$E$41="Non endémique"),0,IF(AND(OR(COUNTRY_INFO!$H56=0,COUNTRY_INFO!$H56=4,COUNTRY_INFO!$H56=99),OR(COUNTRY_INFO!$J56=0,COUNTRY_INFO!$J56=4)),0,COUNTRY_INFO!$F56)) -> 0 | F56: 0 | G56: =IF(AND(INTRO!$E$37="Non endémique",INTRO!$E$41="Non endémique"),0,COUNTRY_INFO!Q56) -> 0 | H56: =IF(AND(INTRO!$E$37="Non endémique",INTRO!$E$41="Non endémique"),0,COUNTRY_INFO!S56) -> 0 | I56: =IF($G56=1,IVM!$G56,0) -> 0 | J56: =IF($G56=0, " ", IF(COUNTRY_INFO!$H56=1, IF(COUNTRY_INFO!$L56=1, 0," ")," ")) ->  | L56: ALB | M56: =IF($L56="ALB", IF(INTRO!$E$39="Non endémique",IF($H56<>0,$D56*($H56-$G56),0),$D56*$H56), 0) -> 0 | N56: 0 | P56: 0 | Q56: =IF($L56="MBD", IF(INTRO!$E$39="Non endémique",IF($H56<>0,$D56*($H56-$G56),0),$D56*$H56),0) -> 0 | R56: 0 | T56: 0 | V56: 0 | W56: 0 | Y56: 0 | Z56: 0 | AB56: 0 | AC56: 0
A57: =IF(AND(INTRO!$E$37="Non endémique",INTRO!$E$41="Non endémique")," ",IF(COUNTRY_INFO!A57=0," ",COUNTRY_INFO!A57)) -> Angola | B57: =IF(AND(INTRO!$E$37="Non endémique",INTRO!$E$41="Non endémique")," ",IF(COUNTRY_INFO!B57=0," ",COUNTRY_INFO!B57)) -> HUILA | C57: =IF(AND(INTRO!$E$37="Non endémique",INTRO!$E$41="Non endémique")," ",IF(COUNTRY_INFO!C57=0," ",COUNTRY_INFO!C57)) -> CALUQUEMBE | D57: =IF(AND(INTRO!$E$37="Non endémique",INTRO!$E$41="Non endémique"),0,IF(AND(OR(COUNTRY_INFO!$H57=0,COUNTRY_INFO!$H57=4,COUNTRY_INFO!$H57=99),OR(COUNTRY_INFO!$J57=0,COUNTRY_INFO!$J57=4)),0,COUNTRY_INFO!$E57)) -> 38697 | E57: =IF(AND(INTRO!$E$37="Non endémique",INTRO!$E$41="Non endémique"),0,IF(AND(OR(COUNTRY_INFO!$H57=0,COUNTRY_INFO!$H57=4,COUNTRY_INFO!$H57=99),OR(COUNTRY_INFO!$J57=0,COUNTRY_INFO!$J57=4)),0,COUNTRY_INFO!$F57)) -> 67478 | F57: 106175 | G57: =IF(AND(INTRO!$E$37="Non endémique",INTRO!$E$41="Non endémique"),0,COUNTRY_INFO!Q57) -> 0 | H57: =IF(AND(INTRO!$E$37="Non endémique",INTRO!$E$41="Non endémique"),0,COUNTRY_INFO!S57) -> 0 | I57: =IF($G57=1,IVM!$G57,0) -> 0 | J57: =IF($G57=0, " ", IF(COUNTRY_INFO!$H57=1, IF(COUNTRY_INFO!$L57=1, 0," ")," ")) ->  | L57: ALB | M57: =IF($L57="ALB", IF(INTRO!$E$39="Non endémique",IF($H57<>0,$D57*($H57-$G57),0),$D57*$H57), 0) -> 0 | N57: 0 | P57: 0 | Q57: =IF($L57="MBD", IF(INTRO!$E$39="Non endémique",IF($H57<>0,$D57*($H57-$G57),0),$D57*$H57),0) -> 0 | R57: 0 | T57: 0 | V57: 0 | W57: 0 | Y57: 0 | Z57: 0 | AB57: 0 | AC57: 0
A58: =IF(AND(INTRO!$E$37="Non endémique",INTRO!$E$41="Non endémique")," ",IF(COUNTRY_INFO!A58=0," ",COUNTRY_INFO!A58)) -> Angola | B58: =IF(AND(INTRO!$E$37="Non endémique",INTRO!$E$41="Non endémique")," ",IF(COUNTRY_INFO!B58=0," ",COUNTRY_INFO!B58)) -> HUILA | C58: =IF(AND(INTRO!$E$37="Non endémique",INTRO!$E$41="Non endémique")," ",IF(COUNTRY_INFO!C58=0," ",COUNTRY_INFO!C58)) -> CHIBIA | D58: =IF(AND(INTRO!$E$37="Non endémique",INTRO!$E$41="Non endémique"),0,IF(AND(OR(COUNTRY_INFO!$H58=0,COUNTRY_INFO!$H58=4,COUNTRY_INFO!$H58=99),OR(COUNTRY_INFO!$J58=0,COUNTRY_INFO!$J58=4)),0,COUNTRY_INFO!$E58)) -> 0 | E58: =IF(AND(INTRO!$E$37="Non endémique",INTRO!$E$41="Non endémique"),0,IF(AND(OR(COUNTRY_INFO!$H58=0,COUNTRY_INFO!$H58=4,COUNTRY_INFO!$H58=99),OR(COUNTRY_INFO!$J58=0,COUNTRY_INFO!$J58=4)),0,COUNTRY_INFO!$F58)) -> 0 | F58: 0 | G58: =IF(AND(INTRO!$E$37="Non endémique",INTRO!$E$41="Non endémique"),0,COUNTRY_INFO!Q58) -> 0 | H58: =IF(AND(INTRO!$E$37="Non endémique",INTRO!$E$41="Non endémique"),0,COUNTRY_INFO!S58) -> 0 | I58: =IF($G58=1,IVM!$G58,0) -> 0 | J58: =IF($G58=0, " ", IF(COUNTRY_INFO!$H58=1, IF(COUNTRY_INFO!$L58=1, 0," ")," ")) ->  | L58: ALB | M58: =IF($L58="ALB", IF(INTRO!$E$39="Non endémique",IF($H58<>0,$D58*($H58-$G58),0),$D58*$H58), 0) -> 0 | N58: 0 | P58: 0 | Q58: =IF($L58="MBD", IF(INTRO!$E$39="Non endémique",IF($H58<>0,$D58*($H58-$G58),0),$D58*$H58),0) -> 0 | R58: 0 | T58: 0 | V58: 0 | W58: 0 | Y58: 0 | Z58: 0 | AB58: 0 | AC58: 0
A59: =IF(AND(INTRO!$E$37="Non endémique",INTRO!$E$41="Non endémique")," ",IF(COUNTRY_INFO!A59=0," ",COUNTRY_INFO!A59)) -> Angola | B59: =IF(AND(INTRO!$E$37="Non endémique",INTRO!$E$41="Non endémique")," ",IF(COUNTRY_INFO!B59=0," ",COUNTRY_INFO!B59)) -> HUILA | C59: =IF(AND(INTRO!$E$37="Non endémique",INTRO!$E$41="Non endémique")," ",IF(COUNTRY_INFO!C59=0," ",COUNTRY_INFO!C59)) -> CHICOMBA | D59: =IF(AND(INTRO!$E$37="Non endémique",INTRO!$E$41="Non endémique"),0,IF(AND(OR(COUNTRY_INFO!$H59=0,COUNTRY_INFO!$H59=4,COUNTRY_INFO!$H59=99),OR(COUNTRY_INFO!$J59=0,COUNTRY_INFO!$J59=4)),0,COUNTRY_INFO!$E59)) -> 0 | E59: =IF(AND(INTRO!$E$37="Non endémique",INTRO!$E$41="Non endémique"),0,IF(AND(OR(COUNTRY_INFO!$H59=0,COUNTRY_INFO!$H59=4,COUNTRY_INFO!$H59=99),OR(COUNTRY_INFO!$J59=0,COUNTRY_INFO!$J59=4)),0,COUNTRY_INFO!$F59)) -> 0 | F59: 0 | G59: =IF(AND(INTRO!$E$37="Non endémique",INTRO!$E$41="Non endémique"),0,COUNTRY_INFO!Q59) -> 0 | H59: =IF(AND(INTRO!$E$37="Non endémique",INTRO!$E$41="Non endémique"),0,COUNTRY_INFO!S59) -> 0 | I59: =IF($G59=1,IVM!$G59,0) -> 0 | J59: =IF($G59=0, " ", IF(COUNTRY_INFO!$H59=1, IF(COUNTRY_INFO!$L59=1, 0," ")," ")) ->  | L59: ALB | M59: =IF($L59="ALB", IF(INTRO!$E$39="Non endémique",IF($H59<>0,$D59*($H59-$G59),0),$D59*$H59), 0) -> 0 | N59: 0 | P59: 0 | Q59: =IF($L59="MBD", IF(INTRO!$E$39="Non endémique",IF($H59<>0,$D59*($H59-$G59),0),$D59*$H59),0) -> 0 | R59: 0 | T59: 0 | V59: 0 | W59: 0 | Y59: 0 | Z59: 0 | AB59: 0 | AC59: 0
A60: =IF(AND(INTRO!$E$37="Non endémique",INTRO!$E$41="Non endémique")," ",IF(COUNTRY_INFO!A60=0," ",COUNTRY_INFO!A60)) -> Angola | B60: =IF(AND(INTRO!$E$37="Non endémique",INTRO!$E$41="Non endémique")," ",IF(COUNTRY_INFO!B60=0," ",COUNTRY_INFO!B60)) -> HUILA | C60: =IF(AND(INTRO!$E$37="Non endémique",INTRO!$E$41="Non endémique")," ",IF(COUNTRY_INFO!C60=0," ",COUNTRY_INFO!C60)) -> CHIPINDO | D60: =IF(AND(INTRO!$E$37="Non endémique",INTRO!$E$41="Non endémique"),0,IF(AND(OR(COUNTRY_INFO!$H60=0,COUNTRY_INFO!$H60=4,COUNTRY_INFO!$H60=99),OR(COUNTRY_INFO!$J60=0,COUNTRY_INFO!$J60=4)),0,COUNTRY_INFO!$E60)) -> 13918 | E60: =IF(AND(INTRO!$E$37="Non endémique",INTRO!$E$41="Non endémique"),0,IF(AND(OR(COUNTRY_INFO!$H60=0,COUNTRY_INFO!$H60=4,COUNTRY_INFO!$H60=99),OR(COUNTRY_INFO!$J60=0,COUNTRY_INFO!$J60=4)),0,COUNTRY_INFO!$F60)) -> 24269 | F60: 38187 | G60: =IF(AND(INTRO!$E$37="Non endémique",INTRO!$E$41="Non endémique"),0,COUNTRY_INFO!Q60) -> 1 | H60: =IF(AND(INTRO!$E$37="Non endémique",INTRO!$E$41="Non endémique"),0,COUNTRY_INFO!S60) -> 0 | I60: =IF($G60=1,IVM!$G60,0) -> 70111 | J60: =IF($G60=0, " ", IF(COUNTRY_INFO!$H60=1, IF(COUNTRY_INFO!$L60=1, 0," ")," ")) ->  | L60: ALB | M60: =IF($L60="ALB", IF(INTRO!$E$39="Non endémique",IF($H60<>0,$D60*($H60-$G60),0),$D60*$H60), 0) -> 0 | N60: 0 | P60: 0 | Q60: =IF($L60="MBD", IF(INTRO!$E$39="Non endémique",IF($H60<>0,$D60*($H60-$G60),0),$D60*$H60),0) -> 0 | R60: 0 | T60: 0 | V60: 70111 | W60: 351 | Y60: 0 | Z60: 0 | AB60: 0 | AC60: 0
A61: =IF(AND(INTRO!$E$37="Non endémique",INTRO!$E$41="Non endémique")," ",IF(COUNTRY_INFO!A61=0," ",COUNTRY_INFO!A61)) -> Angola | B61: =IF(AND(INTRO!$E$37="Non endémique",INTRO!$E$41="Non endémique")," ",IF(COUNTRY_INFO!B61=0," ",COUNTRY_INFO!B61)) -> HUILA | C61: =IF(AND(INTRO!$E$37="Non endémique",INTRO!$E$41="Non endémique")," ",IF(COUNTRY_INFO!C61=0," ",COUNTRY_INFO!C61)) -> GAMBOS | D61: =IF(AND(INTRO!$E$37="Non endémique",INTRO!$E$41="Non endémique"),0,IF(AND(OR(COUNTRY_INFO!$H61=0,COUNTRY_INFO!$H61=4,COUNTRY_INFO!$H61=99),OR(COUNTRY_INFO!$J61=0,COUNTRY_INFO!$J61=4)),0,COUNTRY_INFO!$E61)) -> 0 | E61: =IF(AND(INTRO!$E$37="Non endémique",INTRO!$E$41="Non endémique"),0,IF(AND(OR(COUNTRY_INFO!$H61=0,COUNTRY_INFO!$H61=4,COUNTRY_INFO!$H61=99),OR(COUNTRY_INFO!$J61=0,COUNTRY_INFO!$J61=4)),0,COUNTRY_INFO!$F61)) -> 0 | F61: 0 | G61: =IF(AND(INTRO!$E$37="Non endémique",INTRO!$E$41="Non endémique"),0,COUNTRY_INFO!Q61) -> 0 | H61: =IF(AND(INTRO!$E$37="Non endémique",INTRO!$E$41="Non endémique"),0,COUNTRY_INFO!S61) -> 0 | I61: =IF($G61=1,IVM!$G61,0) -> 0 | J61: =IF($G61=0, " ", IF(COUNTRY_INFO!$H61=1, IF(COUNTRY_INFO!$L61=1, 0," ")," ")) ->  | L61: ALB | M61: =IF($L61="ALB", IF(INTRO!$E$39="Non endémique",IF($H61<>0,$D61*($H61-$G61),0),$D61*$H61), 0) -> 0 | N61: 0 | P61: 0 | Q61: =IF($L61="MBD", IF(INTRO!$E$39="Non endémique",IF($H61<>0,$D61*($H61-$G61),0),$D61*$H61),0) -> 0 | R61: 0 | T61: 0 | V61: 0 | W61: 0 | Y61: 0 | Z61: 0 | AB61: 0 | AC61: 0
A62: =IF(AND(INTRO!$E$37="Non endémique",INTRO!$E$41="Non endémique")," ",IF(COUNTRY_INFO!A62=0," ",COUNTRY_INFO!A62)) -> Angola | B62: =IF(AND(INTRO!$E$37="Non endémique",INTRO!$E$41="Non endémique")," ",IF(COUNTRY_INFO!B62=0," ",COUNTRY_INFO!B62)) -> HUILA | C62: =IF(AND(INTRO!$E$37="Non endémique",INTRO!$E$41="Non endémique")," ",IF(COUNTRY_INFO!C62=0," ",COUNTRY_INFO!C62)) -> HUMPATA | D62: =IF(AND(INTRO!$E$37="Non endémique",INTRO!$E$41="Non endémique"),0,IF(AND(OR(COUNTRY_INFO!$H62=0,COUNTRY_INFO!$H62=4,COUNTRY_INFO!$H62=99),OR(COUNTRY_INFO!$J62=0,COUNTRY_INFO!$J62=4)),0,COUNTRY_INFO!$E62)) -> 19172 | E62: =IF(AND(INTRO!$E$37="Non endémique",INTRO!$E$41="Non endémique"),0,IF(AND(OR(COUNTRY_INFO!$H62=0,COUNTRY_INFO!$H62=4,COUNTRY_INFO!$H62=99),OR(COUNTRY_INFO!$J62=0,COUNTRY_INFO!$J62=4)),0,COUNTRY_INFO!$F62)) -> 33431 | F62: 52603 | G62: =IF(AND(INTRO!$E$37="Non endémique",INTRO!$E$41="Non endémique"),0,COUNTRY_INFO!Q62) -> 0 | H62: =IF(AND(INTRO!$E$37="Non endémique",INTRO!$E$41="Non endémique"),0,COUNTRY_INFO!S62) -> 0 | I62: =IF($G62=1,IVM!$G62,0) -> 0 | J62: =IF($G62=0, " ", IF(COUNTRY_INFO!$H62=1, IF(COUNTRY_INFO!$L62=1, 0," ")," ")) ->  | L62: ALB | M62: =IF($L62="ALB", IF(INTRO!$E$39="Non endémique",IF($H62<>0,$D62*($H62-$G62),0),$D62*$H62), 0) -> 0 | N62: 0 | P62: 0 | Q62: =IF($L62="MBD", IF(INTRO!$E$39="Non endémique",IF($H62<>0,$D62*($H62-$G62),0),$D62*$H62),0) -> 0 | R62: 0 | T62: 0 | V62: 0 | W62: 0 | Y62: 0 | Z62: 0 | AB62: 0 | AC62: 0
A63: =IF(AND(INTRO!$E$37="Non endémique",INTRO!$E$41="Non endémique")," ",IF(COUNTRY_INFO!A63=0," ",COUNTRY_INFO!A63)) -> Angola | B63: =IF(AND(INTRO!$E$37="Non endémique",INTRO!$E$41="Non endémique")," ",IF(COUNTRY_INFO!B63=0," ",COUNTRY_INFO!B63)) -> HUILA | C63: =IF(AND(INTRO!$E$37="Non endémique",INTRO!$E$41="Non endémique")," ",IF(COUNTRY_INFO!C63=0," ",COUNTRY_INFO!C63)) -> JAMBA | D63: =IF(AND(INTRO!$E$37="Non endémique",INTRO!$E$41="Non endémique"),0,IF(AND(OR(COUNTRY_INFO!$H63=0,COUNTRY_INFO!$H63=4,COUNTRY_INFO!$H63=99),OR(COUNTRY_INFO!$J63=0,COUNTRY_INFO!$J63=4)),0,COUNTRY_INFO!$E63)) -> 22601 | E63: =IF(AND(INTRO!$E$37="Non endémique",INTRO!$E$41="Non endémique"),0,IF(AND(OR(COUNTRY_INFO!$H63=0,COUNTRY_INFO!$H63=4,COUNTRY_INFO!$H63=99),OR(COUNTRY_INFO!$J63=0,COUNTRY_INFO!$J63=4)),0,COUNTRY_INFO!$F63)) -> 39411 | F63: 62012 | G63: =IF(AND(INTRO!$E$37="Non endémique",INTRO!$E$41="Non endémique"),0,COUNTRY_INFO!Q63) -> 1 | H63: =IF(AND(INTRO!$E$37="Non endémique",INTRO!$E$41="Non endémique"),0,COUNTRY_INFO!S63) -> 0 | I63: =IF($G63=1,IVM!$G63,0) -> 113854 | J63: =IF($G63=0, " ", IF(COUNTRY_INFO!$H63=1, IF(COUNTRY_INFO!$L63=1, 0," ")," ")) ->  | L63: ALB | M63: =IF($L63="ALB", IF(INTRO!$E$39="Non endémique",IF($H63<>0,$D63*($H63-$G63),0),$D63*$H63), 0) -> 0 | N63: 0 | P63: 0 | Q63: =IF($L63="MBD", IF(INTRO!$E$39="Non endémique",IF($H63<>0,$D63*($H63-$G63),0),$D63*$H63),0) -> 0 | R63: 0 | T63: 0 | V63: 113854 | W63: 570 | Y63: 0 | Z63: 0 | AB63: 0 | AC63: 0
A64: =IF(AND(INTRO!$E$37="Non endémique",INTRO!$E$41="Non endémique")," ",IF(COUNTRY_INFO!A64=0," ",COUNTRY_INFO!A64)) -> Angola | B64: =IF(AND(INTRO!$E$37="Non endémique",INTRO!$E$41="Non endémique")," ",IF(COUNTRY_INFO!B64=0," ",COUNTRY_INFO!B64)) -> HUILA | C64: =IF(AND(INTRO!$E$37="Non endémique",INTRO!$E$41="Non endémique")," ",IF(COUNTRY_INFO!C64=0," ",COUNTRY_INFO!C64)) -> CUVANGO | D64: =IF(AND(INTRO!$E$37="Non endémique",INTRO!$E$41="Non endémique"),0,IF(AND(OR(COUNTRY_INFO!$H64=0,COUNTRY_INFO!$H64=4,COUNTRY_INFO!$H64=99),OR(COUNTRY_INFO!$J64=0,COUNTRY_INFO!$J64=4)),0,COUNTRY_INFO!$E64)) -> 16892 | E64: =IF(AND(INTRO!$E$37="Non endémique",INTRO!$E$41="Non endémique"),0,IF(AND(OR(COUNTRY_INFO!$H64=0,COUNTRY_INFO!$H64=4,COUNTRY_INFO!$H64=99),OR(COUNTRY_INFO!$J64=0,COUNTRY_INFO!$J64=4)),0,COUNTRY_INFO!$F64)) -> 29455 | F64: 46347 | G64: =IF(AND(INTRO!$E$37="Non endémique",INTRO!$E$41="Non endémique"),0,COUNTRY_INFO!Q64) -> 1 | H64: =IF(AND(INTRO!$E$37="Non endémique",INTRO!$E$41="Non endémique"),0,COUNTRY_INFO!S64) -> 0 | I64: =IF($G64=1,IVM!$G64,0) -> 4415 | J64: 80678 | K64: 2 | L64: ALB | M64: =IF($L64="ALB", IF(INTRO!$E$39="Non endémique",IF($H64<>0,$D64*($H64-$G64),0),$D64*$H64), 0) -> 0 | N64: 0 | P64: 0 | Q64: =IF($L64="MBD", IF(INTRO!$E$39="Non endémique",IF($H64<>0,$D64*($H64-$G64),0),$D64*$H64),0) -> 0 | R64: 0 | T64: 0 | V64: 165771 | W64: 829 | Y64: 0 | Z64: 0 | AB64: 0 | AC64: 0
A65: =IF(AND(INTRO!$E$37="Non endémique",INTRO!$E$41="Non endémique")," ",IF(COUNTRY_INFO!A65=0," ",COUNTRY_INFO!A65)) -> Angola | B65: =IF(AND(INTRO!$E$37="Non endémique",INTRO!$E$41="Non endémique")," ",IF(COUNTRY_INFO!B65=0," ",COUNTRY_INFO!B65)) -> HUILA | C65: =IF(AND(INTRO!$E$37="Non endémique",INTRO!$E$41="Non endémique")," ",IF(COUNTRY_INFO!C65=0," ",COUNTRY_INFO!C65)) -> LUBANGO | D65: =IF(AND(INTRO!$E$37="Non endémique",INTRO!$E$41="Non endémique"),0,IF(AND(OR(COUNTRY_INFO!$H65=0,COUNTRY_INFO!$H65=4,COUNTRY_INFO!$H65=99),OR(COUNTRY_INFO!$J65=0,COUNTRY_INFO!$J65=4)),0,COUNTRY_INFO!$E65)) -> 166944 | E65: =IF(AND(INTRO!$E$37="Non endémique",INTRO!$E$41="Non endémique"),0,IF(AND(OR(COUNTRY_INFO!$H65=0,COUNTRY_INFO!$H65=4,COUNTRY_INFO!$H65=99),OR(COUNTRY_INFO!$J65=0,COUNTRY_INFO!$J65=4)),0,COUNTRY_INFO!$F65)) -> 291109 | F65: 458053 | G65: =IF(AND(INTRO!$E$37="Non endémique",INTRO!$E$41="Non endémique"),0,COUNTRY_INFO!Q65) -> 0 | H65: =IF(AND(INTRO!$E$37="Non endémique",INTRO!$E$41="Non endémique"),0,COUNTRY_INFO!S65) -> 0 | I65: =IF($G65=1,IVM!$G65,0) -> 0 | J65: =IF($G65=0, " ", IF(COUNTRY_INFO!$H65=1, IF(COUNTRY_INFO!$L65=1, 0," ")," ")) ->  | L65: ALB | M65: =IF($L65="ALB", IF(INTRO!$E$39="Non endémique",IF($H65<>0,$D65*($H65-$G65),0),$D65*$H65), 0) -> 0 | N65: 0 | P65: 0 | Q65: =IF($L65="MBD", IF(INTRO!$E$39="Non endémique",IF($H65<>0,$D65*($H65-$G65),0),$D65*$H65),0) -> 0 | R65: 0 | T65: 0 | V65: 0 | W65: 0 | Y65: 0 | Z65: 0 | AB65: 0 | AC65: 0
A66: =IF(AND(INTRO!$E$37="Non endémique",INTRO!$E$41="Non endémique")," ",IF(COUNTRY_INFO!A66=0," ",COUNTRY_INFO!A66)) -> Angola | B66: =IF(AND(INTRO!$E$37="Non endémique",INTRO!$E$41="Non endémique")," ",IF(COUNTRY_INFO!B66=0," ",COUNTRY_INFO!B66)) -> HUILA | C66: =IF(AND(INTRO!$E$37="Non endémique",INTRO!$E$41="Non endémique")," ",IF(COUNTRY_INFO!C66=0," ",COUNTRY_INFO!C66)) -> MATALA | D66: =IF(AND(INTRO!$E$37="Non endémique",INTRO!$E$41="Non endémique"),0,IF(AND(OR(COUNTRY_INFO!$H66=0,COUNTRY_INFO!$H66=4,COUNTRY_INFO!$H66=99),OR(COUNTRY_INFO!$J66=0,COUNTRY_INFO!$J66=4)),0,COUNTRY_INFO!$E66)) -> 56511 | E66: =IF(AND(INTRO!$E$37="Non endémique",INTRO!$E$41="Non endémique"),0,IF(AND(OR(COUNTRY_INFO!$H66=0,COUNTRY_INFO!$H66=4,COUNTRY_INFO!$H66=99),OR(COUNTRY_INFO!$J66=0,COUNTRY_INFO!$J66=4)),0,COUNTRY_INFO!$F66)) -> 98542 | F66: 155053 | G66: =IF(AND(INTRO!$E$37="Non endémique",INTRO!$E$41="Non endémique"),0,COUNTRY_INFO!Q66) -> 0 | H66: =IF(AND(INTRO!$E$37="Non endémique",INTRO!$E$41="Non endémique"),0,COUNTRY_INFO!S66) -> 0 | I66: =IF($G66=1,IVM!$G66,0) -> 0 | J66: =IF($G66=0, " ", IF(COUNTRY_INFO!$H66=1, IF(COUNTRY_INFO!$L66=1, 0," ")," ")) ->  | L66: ALB | M66: =IF($L66="ALB", IF(INTRO!$E$39="Non endémique",IF($H66<>0,$D66*($H66-$G66),0),$D66*$H66), 0) -> 0 | N66: 0 | P66: 0 | Q66: =IF($L66="MBD", IF(INTRO!$E$39="Non endémique",IF($H66<>0,$D66*($H66-$G66),0),$D66*$H66),0) -> 0 | R66: 0 | T66: 0 | V66: 0 | W66: 0 | Y66: 0 | Z66: 0 | AB66: 0 | AC66: 0
A67: =IF(AND(INTRO!$E$37="Non endémique",INTRO!$E$41="Non endémique")," ",IF(COUNTRY_INFO!A67=0," ",COUNTRY_INFO!A67)) -> Angola | B67: =IF(AND(INTRO!$E$37="Non endémique",INTRO!$E$41="Non endémique")," ",IF(COUNTRY_INFO!B67=0," ",COUNTRY_INFO!B67)) -> HUILA | C67: =IF(AND(INTRO!$E$37="Non endémique",INTRO!$E$41="Non endémique")," ",IF(COUNTRY_INFO!C67=0," ",COUNTRY_INFO!C67)) -> QUILENGUES | D67: =IF(AND(INTRO!$E$37="Non endémique",INTRO!$E$41="Non endémique"),0,IF(AND(OR(COUNTRY_INFO!$H67=0,COUNTRY_INFO!$H67=4,COUNTRY_INFO!$H67=99),OR(COUNTRY_INFO!$J67=0,COUNTRY_INFO!$J67=4)),0,COUNTRY_INFO!$E67)) -> 0 | E67: =IF(AND(INTRO!$E$37="Non endémique",INTRO!$E$41="Non endémique"),0,IF(AND(OR(COUNTRY_INFO!$H67=0,COUNTRY_INFO!$H67=4,COUNTRY_INFO!$H67=99),OR(COUNTRY_INFO!$J67=0,COUNTRY_INFO!$J67=4)),0,COUNTRY_INFO!$F67)) -> 0 | F67: 0 | G67: =IF(AND(INTRO!$E$37="Non endémique",INTRO!$E$41="Non endémique"),0,COUNTRY_INFO!Q67) -> 0 | H67: =IF(AND(INTRO!$E$37="Non endémique",INTRO!$E$41="Non endémique"),0,COUNTRY_INFO!S67) -> 0 | I67: =IF($G67=1,IVM!$G67,0) -> 0 | J67: =IF($G67=0, " ", IF(COUNTRY_INFO!$H67=1, IF(COUNTRY_INFO!$L67=1, 0," ")," ")) ->  | L67: ALB | M67: =IF($L67="ALB", IF(INTRO!$E$39="Non endémique",IF($H67<>0,$D67*($H67-$G67),0),$D67*$H67), 0) -> 0 | N67: 0 | P67: 0 | Q67: =IF($L67="MBD", IF(INTRO!$E$39="Non endémique",IF($H67<>0,$D67*($H67-$G67),0),$D67*$H67),0) -> 0 | R67: 0 | T67: 0 | V67: 0 | W67: 0 | Y67: 0 | Z67: 0 | AB67: 0 | AC67: 0
A68: =IF(AND(INTRO!$E$37="Non endémique",INTRO!$E$41="Non endémique")," ",IF(COUNTRY_INFO!A68=0," ",COUNTRY_INFO!A68)) -> Angola | B68: =IF(AND(INTRO!$E$37="Non endémique",INTRO!$E$41="Non endémique")," ",IF(COUNTRY_INFO!B68=0," ",COUNTRY_INFO!B68)) -> HUILA | C68: =IF(AND(INTRO!$E$37="Non endémique",INTRO!$E$41="Non endémique")," ",IF(COUNTRY_INFO!C68=0," ",COUNTRY_INFO!C68)) -> QUIPUNGO | D68: =IF(AND(INTRO!$E$37="Non endémique",INTRO!$E$41="Non endémique"),0,IF(AND(OR(COUNTRY_INFO!$H68=0,COUNTRY_INFO!$H68=4,COUNTRY_INFO!$H68=99),OR(COUNTRY_INFO!$J68=0,COUNTRY_INFO!$J68=4)),0,COUNTRY_INFO!$E68)) -> 34178 | E68: =IF(AND(INTRO!$E$37="Non endémique",INTRO!$E$41="Non endémique"),0,IF(AND(OR(COUNTRY_INFO!$H68=0,COUNTRY_INFO!$H68=4,COUNTRY_INFO!$H68=99),OR(COUNTRY_INFO!$J68=0,COUNTRY_INFO!$J68=4)),0,COUNTRY_INFO!$F68)) -> 59598 | F68: 93776 | G68: =IF(AND(INTRO!$E$37="Non endémique",INTRO!$E$41="Non endémique"),0,COUNTRY_INFO!Q68) -> 0 | H68: =IF(AND(INTRO!$E$37="Non endémique",INTRO!$E$41="Non endémique"),0,COUNTRY_INFO!S68) -> 0 | I68: =IF($G68=1,IVM!$G68,0) -> 0 | J68: =IF($G68=0, " ", IF(COUNTRY_INFO!$H68=1, IF(COUNTRY_INFO!$L68=1, 0," ")," ")) ->  | L68: ALB | M68: =IF($L68="ALB", IF(INTRO!$E$39="Non endémique",IF($H68<>0,$D68*($H68-$G68),0),$D68*$H68), 0) -> 0 | N68: 0 | P68: 0 | Q68: =IF($L68="MBD", IF(INTRO!$E$39="Non endémique",IF($H68<>0,$D68*($H68-$G68),0),$D68*$H68),0) -> 0 | R68: 0 | T68: 0 | V68: 0 | W68: 0 | Y68: 0 | Z68: 0 | AB68: 0 | AC68: 0
A69: =IF(AND(INTRO!$E$37="Non endémique",INTRO!$E$41="Non endémique")," ",IF(COUNTRY_INFO!A69=0," ",COUNTRY_INFO!A69)) -> Angola | B69: =IF(AND(INTRO!$E$37="Non endémique",INTRO!$E$41="Non endémique")," ",IF(COUNTRY_INFO!B69=0," ",COUNTRY_INFO!B69)) -> CUANDO CUBANGO | C69: =IF(AND(INTRO!$E$37="Non endémique",INTRO!$E$41="Non endémique")," ",IF(COUNTRY_INFO!C69=0," ",COUNTRY_INFO!C69)) -> CALAI | D69: =IF(AND(INTRO!$E$37="Non endémique",INTRO!$E$41="Non endémique"),0,IF(AND(OR(COUNTRY_INFO!$H69=0,COUNTRY_INFO!$H69=4,COUNTRY_INFO!$H69=99),OR(COUNTRY_INFO!$J69=0,COUNTRY_INFO!$J69=4)),0,COUNTRY_INFO!$E69)) -> 4851 | E69: =IF(AND(INTRO!$E$37="Non endémique",INTRO!$E$41="Non endémique"),0,IF(AND(OR(COUNTRY_INFO!$H69=0,COUNTRY_INFO!$H69=4,COUNTRY_INFO!$H69=99),OR(COUNTRY_INFO!$J69=0,COUNTRY_INFO!$J69=4)),0,COUNTRY_INFO!$F69)) -> 8459 | F69: 13310 | G69: =IF(AND(INTRO!$E$37="Non endémique",INTRO!$E$41="Non endémique"),0,COUNTRY_INFO!Q69) -> 0 | H69: =IF(AND(INTRO!$E$37="Non endémique",INTRO!$E$41="Non endémique"),0,COUNTRY_INFO!S69) -> 0 | I69: =IF($G69=1,IVM!$G69,0) -> 0 | J69: =IF($G69=0, " ", IF(COUNTRY_INFO!$H69=1, IF(COUNTRY_INFO!$L69=1, 0," ")," ")) ->  | L69: ALB | M69: =IF($L69="ALB", IF(INTRO!$E$39="Non endémique",IF($H69<>0,$D69*($H69-$G69),0),$D69*$H69), 0) -> 0 | N69: 0 | P69: 0 | Q69: =IF($L69="MBD", IF(INTRO!$E$39="Non endémique",IF($H69<>0,$D69*($H69-$G69),0),$D69*$H69),0) -> 0 | R69: 0 | T69: 0 | V69: 0 | W69: 0 | Y69: 0 | Z69: 0 | AB69: 0 | AC69: 0
A70: =IF(AND(INTRO!$E$37="Non endémique",INTRO!$E$41="Non endémique")," ",IF(COUNTRY_INFO!A70=0," ",COUNTRY_INFO!A70)) -> Angola | B70: =IF(AND(INTRO!$E$37="Non endémique",INTRO!$E$41="Non endémique")," ",IF(COUNTRY_INFO!B70=0," ",COUNTRY_INFO!B70)) -> CUANDO CUBANGO | C70: =IF(AND(INTRO!$E$37="Non endémique",INTRO!$E$41="Non endémique")," ",IF(COUNTRY_INFO!C70=0," ",COUNTRY_INFO!C70)) -> CUANGAR | D70: =IF(AND(INTRO!$E$37="Non endémique",INTRO!$E$41="Non endémique"),0,IF(AND(OR(COUNTRY_INFO!$H70=0,COUNTRY_INFO!$H70=4,COUNTRY_INFO!$H70=99),OR(COUNTRY_INFO!$J70=0,COUNTRY_INFO!$J70=4)),0,COUNTRY_INFO!$E70)) -> 6094 | E70: =IF(AND(INTRO!$E$37="Non endémique",INTRO!$E$41="Non endémique"),0,IF(AND(OR(COUNTRY_INFO!$H70=0,COUNTRY_INFO!$H70=4,COUNTRY_INFO!$H70=99),OR(COUNTRY_INFO!$J70=0,COUNTRY_INFO!$J70=4)),0,COUNTRY_INFO!$F70)) -> 10626 | F70: 16720 | G70: =IF(AND(INTRO!$E$37="Non endémique",INTRO!$E$41="Non endémique"),0,COUNTRY_INFO!Q70) -> 0 | H70: =IF(AND(INTRO!$E$37="Non endémique",INTRO!$E$41="Non endémique"),0,COUNTRY_INFO!S70) -> 0 | I70: =IF($G70=1,IVM!$G70,0) -> 0 | J70: =IF($G70=0, " ", IF(COUNTRY_INFO!$H70=1, IF(COUNTRY_INFO!$L70=1, 0," ")," ")) ->  | L70: ALB | M70: =IF($L70="ALB", IF(INTRO!$E$39="Non endémique",IF($H70<>0,$D70*($H70-$G70),0),$D70*$H70), 0) -> 0 | N70: 0 | P70: 0 | Q70: =IF($L70="MBD", IF(INTRO!$E$39="Non endémique",IF($H70<>0,$D70*($H70-$G70),0),$D70*$H70),0) -> 0 | R70: 0 | T70: 0 | V70: 0 | W70: 0 | Y70: 0 | Z70: 0 | AB70: 0 | AC70: 0
A71: =IF(AND(INTRO!$E$37="Non endémique",INTRO!$E$41="Non endémique")," ",IF(COUNTRY_INFO!A71=0," ",COUNTRY_INFO!A71)) -> Angola | B71: =IF(AND(INTRO!$E$37="Non endémique",INTRO!$E$41="Non endémique")," ",IF(COUNTRY_INFO!B71=0," ",COUNTRY_INFO!B71)) -> CUANDO CUBANGO | C71: =IF(AND(INTRO!$E$37="Non endémique",INTRO!$E$41="Non endémique")," ",IF(COUNTRY_INFO!C71=0," ",COUNTRY_INFO!C71)) -> CUCHI | D71: =IF(AND(INTRO!$E$37="Non endémique",INTRO!$E$41="Non endémique"),0,IF(AND(OR(COUNTRY_INFO!$H71=0,COUNTRY_INFO!$H71=4,COUNTRY_INFO!$H71=99),OR(COUNTRY_INFO!$J71=0,COUNTRY_INFO!$J71=4)),0,COUNTRY_INFO!$E71)) -> 0 | E71: =IF(AND(INTRO!$E$37="Non endémique",INTRO!$E$41="Non endémique"),0,IF(AND(OR(COUNTRY_INFO!$H71=0,COUNTRY_INFO!$H71=4,COUNTRY_INFO!$H71=99),OR(COUNTRY_INFO!$J71=0,COUNTRY_INFO!$J71=4)),0,COUNTRY_INFO!$F71)) -> 0 | F71: 0 | G71: =IF(AND(INTRO!$E$37="Non endémique",INTRO!$E$41="Non endémique"),0,COUNTRY_INFO!Q71) -> 0 | H71: =IF(AND(INTRO!$E$37="Non endémique",INTRO!$E$41="Non endémique"),0,COUNTRY_INFO!S71) -> 0 | I71: =IF($G71=1,IVM!$G71,0) -> 0 | J71: =IF($G71=0, " ", IF(COUNTRY_INFO!$H71=1, IF(COUNTRY_INFO!$L71=1, 0," ")," ")) ->  | L71: ALB | M71: =IF($L71="ALB", IF(INTRO!$E$39="Non endémique",IF($H71<>0,$D71*($H71-$G71),0),$D71*$H71), 0) -> 0 | N71: 0 | P71: 0 | Q71: =IF($L71="MBD", IF(INTRO!$E$39="Non endémique",IF($H71<>0,$D71*($H71-$G71),0),$D71*$H71),0) -> 0 | R71: 0 | T71: 0 | V71: 0 | W71: 0 | Y71: 0 | Z71: 0 | AB71: 0 | AC71: 0
A72: =IF(AND(INTRO!$E$37="Non endémique",INTRO!$E$41="Non endémique")," ",IF(COUNTRY_INFO!A72=0," ",COUNTRY_INFO!A72)) -> Angola | B72: =IF(AND(INTRO!$E$37="Non endémique",INTRO!$E$41="Non endémique")," ",IF(COUNTRY_INFO!B72=0," ",COUNTRY_INFO!B72)) -> CUANDO CUBANGO | C72: =IF(AND(INTRO!$E$37="Non endémique",INTRO!$E$41="Non endémique")," ",IF(COUNTRY_INFO!C72=0," ",COUNTRY_INFO!C72)) -> DIRICO | D72: =IF(AND(INTRO!$E$37="Non endémique",INTRO!$E$41="Non endémique"),0,IF(AND(OR(COUNTRY_INFO!$H72=0,COUNTRY_INFO!$H72=4,COUNTRY_INFO!$H72=99),OR(COUNTRY_INFO!$J72=0,COUNTRY_INFO!$J72=4)),0,COUNTRY_INFO!$E72)) -> 3239 | E72: =IF(AND(INTRO!$E$37="Non endémique",INTRO!$E$41="Non endémique"),0,IF(AND(OR(COUNTRY_INFO!$H72=0,COUNTRY_INFO!$H72=4,COUNTRY_INFO!$H72=99),OR(COUNTRY_INFO!$J72=0,COUNTRY_INFO!$J72=4)),0,COUNTRY_INFO!$F72)) -> 5648 | F72: 8887 | G72: =IF(AND(INTRO!$E$37="Non endémique",INTRO!$E$41="Non endémique"),0,COUNTRY_INFO!Q72) -> 0 | H72: =IF(AND(INTRO!$E$37="Non endémique",INTRO!$E$41="Non endémique"),0,COUNTRY_INFO!S72) -> 0 | I72: =IF($G72=1,IVM!$G72,0) -> 0 | J72: =IF($G72=0, " ", IF(COUNTRY_INFO!$H72=1, IF(COUNTRY_INFO!$L72=1, 0," ")," ")) ->  | L72: ALB | M72: =IF($L72="ALB", IF(INTRO!$E$39="Non endémique",IF($H72<>0,$D72*($H72-$G72),0),$D72*$H72), 0) -> 0 | N72: 0 | P72: 0 | Q72: =IF($L72="MBD", IF(INTRO!$E$39="Non endémique",IF($H72<>0,$D72*($H72-$G72),0),$D72*$H72),0) -> 0 | R72: 0 | T72: 0 | V72: 0 | W72: 0 | Y72: 0 | Z72: 0 | AB72: 0 | AC72: 0
A73: =IF(AND(INTRO!$E$37="Non endémique",INTRO!$E$41="Non endémique")," ",IF(COUNTRY_INFO!A73=0," ",COUNTRY_INFO!A73)) -> Angola | B73: =IF(AND(INTRO!$E$37="Non endémique",INTRO!$E$41="Non endémique")," ",IF(COUNTRY_INFO!B73=0," ",COUNTRY_INFO!B73)) -> CUANDO CUBANGO | C73: =IF(AND(INTRO!$E$37="Non endémique",INTRO!$E$41="Non endémique")," ",IF(COUNTRY_INFO!C73=0," ",COUNTRY_INFO!C73)) -> CUITO CUANAVALE | D73: =IF(AND(INTRO!$E$37="Non endémique",INTRO!$E$41="Non endémique"),0,IF(AND(OR(COUNTRY_INFO!$H73=0,COUNTRY_INFO!$H73=4,COUNTRY_INFO!$H73=99),OR(COUNTRY_INFO!$J73=0,COUNTRY_INFO!$J73=4)),0,COUNTRY_INFO!$E73)) -> 8743 | E73: =IF(AND(INTRO!$E$37="Non endémique",INTRO!$E$41="Non endémique"),0,IF(AND(OR(COUNTRY_INFO!$H73=0,COUNTRY_INFO!$H73=4,COUNTRY_INFO!$H73=99),OR(COUNTRY_INFO!$J73=0,COUNTRY_INFO!$J73=4)),0,COUNTRY_INFO!$F73)) -> 15245 | F73: =SUM(D73:E73) -> 23988 | G73: =IF(AND(INTRO!$E$37="Non endémique",INTRO!$E$41="Non endémique"),0,COUNTRY_INFO!Q73) -> 0 | H73: =IF(AND(INTRO!$E$37="Non endémique",INTRO!$E$41="Non endémique"),0,COUNTRY_INFO!S73) -> 0 | I73: =IF($G73=1,IVM!$G73,0) -> 0 | J73: =IF($G73=0, " ", IF(COUNTRY_INFO!$H73=1, IF(COUNTRY_INFO!$L73=1, 0," ")," ")) ->  | L73: ALB | M73: =IF($L73="ALB", IF(INTRO!$E$39="Non endémique",IF($H73<>0,$D73*($H73-$G73),0),$D73*$H73), 0) -> 0 | N73: =IF($L73="ALB", IF($H73=0, 0, IF(AND($I73=0, OR($J73=0,$J73=" ")), $E73*$H73, IF(AND($I73=0, $J73>0), IF(($H73-$K73)<=0, 0, $E73*(MAX($H73,$K73)-MIN($H73,$K73))), IF(AND($I73>0, $J73=0), $E73*($H73-$G73), IF($J73=" ", $E73*($H73-$G73), $J73*$E73/($I73+$J73)*$K73+$I73*$E73/($I73+$J73)*($H73-$G73)))))), 0) -> 0 | P73: =SUM(M73:O73) -> 0 | Q73: =IF($L73="MBD", IF(INTRO!$E$39="Non endémique",IF($H73<>0,$D73*($H73-$G73),0),$D73*$H73),0) -> 0 | R73: =IF($L73="MBD", IF($H73=0, 0, IF(AND($I73=0, OR($J73=0,$J73=" ")), $E73*$H73, IF(AND($I73=0, $J73>0), IF(($H73-$K73)<=0, 0, $E73*(MAX($H73,$K73)-MIN($H73,$K73))), IF(AND($I73>0, $J73=0), $E73*($H73-$G73), IF($J73=" ", $E73*($H73-$G73), $J73*$E73/($I73+$J73)*$K73+$I73*$E73/($I73+$J73)*($H73-$G73)))))), 0) -> 0 | T73: =SUM(Q73:S73) -> 0 | V73: =IF($J73<>" ", IF(($I73+$J73*$K73)>$U73, ($I73+$J73*$K73)-$U73,0), IF($I73>$U73, $I73-$U73, 0)) -> 0 | W73: =IF($J73<>" ", ROUNDUP(($I73+$J73*$K73)/200,0), ROUNDUP($I73/200,0)) -> 0 | Y73: =IF($N73>$X73,$N73-$X73,0) -> 0 | Z73: =ROUNDUP($N73/200,0) -> 0 | AB73: =IF($R73>$AA73,$R73-$AA73,0) -> 0 | AC73: =ROUNDUP($R73/150,0) -> 0
A74: =IF(AND(INTRO!$E$37="Non endémique",INTRO!$E$41="Non endémique")," ",IF(COUNTRY_INFO!A74=0," ",COUNTRY_INFO!A74)) -> Angola | B74: =IF(AND(INTRO!$E$37="Non endémique",INTRO!$E$41="Non endémique")," ",IF(COUNTRY_INFO!B74=0," ",COUNTRY_INFO!B74)) -> CUANDO CUBANGO | C74: =IF(AND(INTRO!$E$37="Non endémique",INTRO!$E$41="Non endémique")," ",IF(COUNTRY_INFO!C74=0," ",COUNTRY_INFO!C74)) -> MAVINGA | D74: =IF(AND(INTRO!$E$37="Non endémique",INTRO!$E$41="Non endémique"),0,IF(AND(OR(COUNTRY_INFO!$H74=0,COUNTRY_INFO!$H74=4,COUNTRY_INFO!$H74=99),OR(COUNTRY_INFO!$J74=0,COUNTRY_INFO!$J74=4)),0,COUNTRY_INFO!$E74)) -> 5824 | E74: =IF(AND(INTRO!$E$37="Non endémique",INTRO!$E$41="Non endémique"),0,IF(AND(OR(COUNTRY_INFO!$H74=0,COUNTRY_INFO!$H74=4,COUNTRY_INFO!$H74=99),OR(COUNTRY_INFO!$J74=0,COUNTRY_INFO!$J74=4)),0,COUNTRY_INFO!$F74)) -> 10155 | F74: 15979 | G74: =IF(AND(INTRO!$E$37="Non endémique",INTRO!$E$41="Non endémique"),0,COUNTRY_INFO!Q74) -> 0 | H74: =IF(AND(INTRO!$E$37="Non endémique",INTRO!$E$41="Non endémique"),0,COUNTRY_INFO!S74) -> 0 | I74: =IF($G74=1,IVM!$G74,0) -> 0 | J74: =IF($G74=0, " ", IF(COUNTRY_INFO!$H74=1, IF(COUNTRY_INFO!$L74=1, 0," ")," ")) ->  | L74: ALB | M74: =IF($L74="ALB", IF(INTRO!$E$39="Non endémique",IF($H74<>0,$D74*($H74-$G74),0),$D74*$H74), 0) -> 0 | N74: 0 | P74: 0 | Q74: =IF($L74="MBD", IF(INTRO!$E$39="Non endémique",IF($H74<>0,$D74*($H74-$G74),0),$D74*$H74),0) -> 0 | R74: 0 | T74: 0 | V74: 0 | W74: 0 | Y74: 0 | Z74: 0 | AB74: 0 | AC74: 0
A75: =IF(AND(INTRO!$E$37="Non endémique",INTRO!$E$41="Non endémique")," ",IF(COUNTRY_INFO!A75=0," ",COUNTRY_INFO!A75)) -> Angola | B75: =IF(AND(INTRO!$E$37="Non endémique",INTRO!$E$41="Non endémique")," ",IF(COUNTRY_INFO!B75=0," ",COUNTRY_INFO!B75)) -> CUANDO CUBANGO | C75: =IF(AND(INTRO!$E$37="Non endémique",INTRO!$E$41="Non endémique")," ",IF(COUNTRY_INFO!C75=0," ",COUNTRY_INFO!C75)) -> MENONGUE | D75: =IF(AND(INTRO!$E$37="Non endémique",INTRO!$E$41="Non endémique"),0,IF(AND(OR(COUNTRY_INFO!$H75=0,COUNTRY_INFO!$H75=4,COUNTRY_INFO!$H75=99),OR(COUNTRY_INFO!$J75=0,COUNTRY_INFO!$J75=4)),0,COUNTRY_INFO!$E75)) -> 68716 | E75: =IF(AND(INTRO!$E$37="Non endémique",INTRO!$E$41="Non endémique"),0,IF(AND(OR(COUNTRY_INFO!$H75=0,COUNTRY_INFO!$H75=4,COUNTRY_INFO!$H75=99),OR(COUNTRY_INFO!$J75=0,COUNTRY_INFO!$J75=4)),0,COUNTRY_INFO!$F75)) -> 119824 | F75: 188540 | G75: =IF(AND(INTRO!$E$37="Non endémique",INTRO!$E$41="Non endémique"),0,COUNTRY_INFO!Q75) -> 0 | H75: =IF(AND(INTRO!$E$37="Non endémique",INTRO!$E$41="Non endémique"),0,COUNTRY_INFO!S75) -> 0 | I75: =IF($G75=1,IVM!$G75,0) -> 0 | J75: =IF($G75=0, " ", IF(COUNTRY_INFO!$H75=1, IF(COUNTRY_INFO!$L75=1, 0," ")," ")) ->  | L75: ALB | M75: =IF($L75="ALB", IF(INTRO!$E$39="Non endémique",IF($H75<>0,$D75*($H75-$G75),0),$D75*$H75), 0) -> 0 | N75: 0 | P75: 0 | Q75: =IF($L75="MBD", IF(INTRO!$E$39="Non endémique",IF($H75<>0,$D75*($H75-$G75),0),$D75*$H75),0) -> 0 | R75: 0 | T75: 0 | V75: 0 | W75: 0 | Y75: 0 | Z75: 0 | AB75: 0 | AC75: 0
A76: =IF(AND(INTRO!$E$37="Non endémique",INTRO!$E$41="Non endémique")," ",IF(COUNTRY_INFO!A76=0," ",COUNTRY_INFO!A76)) -> Angola | B76: =IF(AND(INTRO!$E$37="Non endémique",INTRO!$E$41="Non endémique")," ",IF(COUNTRY_INFO!B76=0," ",COUNTRY_INFO!B76)) -> CUANDO CUBANGO | C76: =IF(AND(INTRO!$E$37="Non endémique",INTRO!$E$41="Non endémique")," ",IF(COUNTRY_INFO!C76=0," ",COUNTRY_INFO!C76)) -> NANKOVA | D76: =IF(AND(INTRO!$E$37="Non endémique",INTRO!$E$41="Non endémique"),0,IF(AND(OR(COUNTRY_INFO!$H76=0,COUNTRY_INFO!$H76=4,COUNTRY_INFO!$H76=99),OR(COUNTRY_INFO!$J76=0,COUNTRY_INFO!$J76=4)),0,COUNTRY_INFO!$E76)) -> 599 | E76: =IF(AND(INTRO!$E$37="Non endémique",INTRO!$E$41="Non endémique"),0,IF(AND(OR(COUNTRY_INFO!$H76=0,COUNTRY_INFO!$H76=4,COUNTRY_INFO!$H76=99),OR(COUNTRY_INFO!$J76=0,COUNTRY_INFO!$J76=4)),0,COUNTRY_INFO!$F76)) -> 1044 | F76: 1643 | G76: =IF(AND(INTRO!$E$37="Non endémique",INTRO!$E$41="Non endémique"),0,COUNTRY_INFO!Q76) -> 0 | H76: =IF(AND(INTRO!$E$37="Non endémique",INTRO!$E$41="Non endémique"),0,COUNTRY_INFO!S76) -> 0 | I76: =IF($G76=1,IVM!$G76,0) -> 0 | J76: =IF($G76=0, " ", IF(COUNTRY_INFO!$H76=1, IF(COUNTRY_INFO!$L76=1, 0," ")," ")) ->  | L76: ALB | M76: =IF($L76="ALB", IF(INTRO!$E$39="Non endémique",IF($H76<>0,$D76*($H76-$G76),0),$D76*$H76), 0) -> 0 | N76: 0 | P76: 0 | Q76: =IF($L76="MBD", IF(INTRO!$E$39="Non endémique",IF($H76<>0,$D76*($H76-$G76),0),$D76*$H76),0) -> 0 | R76: 0 | T76: 0 | V76: 0 | W76: 0 | Y76: 0 | Z76: 0 | AB76: 0 | AC76: 0
A77: =IF(AND(INTRO!$E$37="Non endémique",INTRO!$E$41="Non endémique")," ",IF(COUNTRY_INFO!A77=0," ",COUNTRY_INFO!A77)) -> Angola | B77: =IF(AND(INTRO!$E$37="Non endémique",INTRO!$E$41="Non endémique")," ",IF(COUNTRY_INFO!B77=0," ",COUNTRY_INFO!B77)) -> CUANDO CUBANGO | C77: =IF(AND(INTRO!$E$37="Non endémique",INTRO!$E$41="Non endémique")," ",IF(COUNTRY_INFO!C77=0," ",COUNTRY_INFO!C77)) -> RIVUNGO | D77: =IF(AND(INTRO!$E$37="Non endémique",INTRO!$E$41="Non endémique"),0,IF(AND(OR(COUNTRY_INFO!$H77=0,COUNTRY_INFO!$H77=4,COUNTRY_INFO!$H77=99),OR(COUNTRY_INFO!$J77=0,COUNTRY_INFO!$J77=4)),0,COUNTRY_INFO!$E77)) -> 7077 | E77: =IF(AND(INTRO!$E$37="Non endémique",INTRO!$E$41="Non endémique"),0,IF(AND(OR(COUNTRY_INFO!$H77=0,COUNTRY_INFO!$H77=4,COUNTRY_INFO!$H77=99),OR(COUNTRY_INFO!$J77=0,COUNTRY_INFO!$J77=4)),0,COUNTRY_INFO!$F77)) -> 12341 | F77: 19418 | G77: =IF(AND(INTRO!$E$37="Non endémique",INTRO!$E$41="Non endémique"),0,COUNTRY_INFO!Q77) -> 0 | H77: =IF(AND(INTRO!$E$37="Non endémique",INTRO!$E$41="Non endémique"),0,COUNTRY_INFO!S77) -> 0 | I77: =IF($G77=1,IVM!$G77,0) -> 0 | J77: =IF($G77=0, " ", IF(COUNTRY_INFO!$H77=1, IF(COUNTRY_INFO!$L77=1, 0," ")," ")) ->  | L77: ALB | M77: =IF($L77="ALB", IF(INTRO!$E$39="Non endémique",IF($H77<>0,$D77*($H77-$G77),0),$D77*$H77), 0) -> 0 | N77: 0 | P77: 0 | Q77: =IF($L77="MBD", IF(INTRO!$E$39="Non endémique",IF($H77<>0,$D77*($H77-$G77),0),$D77*$H77),0) -> 0 | R77: 0 | T77: 0 | V77: 0 | W77: 0 | Y77: 0 | Z77: 0 | AB77: 0 | AC77: 0
A78: =IF(AND(INTRO!$E$37="Non endémique",INTRO!$E$41="Non endémique")," ",IF(COUNTRY_INFO!A78=0," ",COUNTRY_INFO!A78)) -> Angola | B78: =IF(AND(INTRO!$E$37="Non endémique",INTRO!$E$41="Non endémique")," ",IF(COUNTRY_INFO!B78=0," ",COUNTRY_INFO!B78)) -> CUANZA NORTE | C78: =IF(AND(INTRO!$E$37="Non endémique",INTRO!$E$41="Non endémique")," ",IF(COUNTRY_INFO!C78=0," ",COUNTRY_INFO!C78)) -> AMBACA | D78: =IF(AND(INTRO!$E$37="Non endémique",INTRO!$E$41="Non endémique"),0,IF(AND(OR(COUNTRY_INFO!$H78=0,COUNTRY_INFO!$H78=4,COUNTRY_INFO!$H78=99),OR(COUNTRY_INFO!$J78=0,COUNTRY_INFO!$J78=4)),0,COUNTRY_INFO!$E78)) -> 13064 | E78: =IF(AND(INTRO!$E$37="Non endémique",INTRO!$E$41="Non endémique"),0,IF(AND(OR(COUNTRY_INFO!$H78=0,COUNTRY_INFO!$H78=4,COUNTRY_INFO!$H78=99),OR(COUNTRY_INFO!$J78=0,COUNTRY_INFO!$J78=4)),0,COUNTRY_INFO!$F78)) -> 22780 | F78: 35844 | G78: =IF(AND(INTRO!$E$37="Non endémique",INTRO!$E$41="Non endémique"),0,COUNTRY_INFO!Q78) -> 1 | H78: =IF(AND(INTRO!$E$37="Non endémique",INTRO!$E$41="Non endémique"),0,COUNTRY_INFO!S78) -> 2 | I78: =IF($G78=1,IVM!$G78,0) -> 3414 | J78: 62394 | K78: 2 | L78: ALB | M78: =IF($L78="ALB", IF(INTRO!$E$39="Non endémique",IF($H78<>0,$D78*($H78-$G78),0),$D78*$H78), 0) -> 26128 | N78: 44378.21481 | P78: 70506.21481 | Q78: =IF($L78="MBD", IF(INTRO!$E$39="Non endémique",IF($H78<>0,$D78*($H78-$G78),0),$D78*$H78),0) -> 0 | R78: 0 | T78: 0 | V78: 128202 | W78: 642 | Y78: 44378.21481 | Z78: 222 | AB78: 0 | AC78: 0
A79: =IF(AND(INTRO!$E$37="Non endémique",INTRO!$E$41="Non endémique")," ",IF(COUNTRY_INFO!A79=0," ",COUNTRY_INFO!A79)) -> Angola | B79: =IF(AND(INTRO!$E$37="Non endémique",INTRO!$E$41="Non endémique")," ",IF(COUNTRY_INFO!B79=0," ",COUNTRY_INFO!B79)) -> CUANZA NORTE | C79: =IF(AND(INTRO!$E$37="Non endémique",INTRO!$E$41="Non endémique")," ",IF(COUNTRY_INFO!C79=0," ",COUNTRY_INFO!C79)) -> BANGA | D79: =IF(AND(INTRO!$E$37="Non endémique",INTRO!$E$41="Non endémique"),0,IF(AND(OR(COUNTRY_INFO!$H79=0,COUNTRY_INFO!$H79=4,COUNTRY_INFO!$H79=99),OR(COUNTRY_INFO!$J79=0,COUNTRY_INFO!$J79=4)),0,COUNTRY_INFO!$E79)) -> 2190 | E79: =IF(AND(INTRO!$E$37="Non endémique",INTRO!$E$41="Non endémique"),0,IF(AND(OR(COUNTRY_INFO!$H79=0,COUNTRY_INFO!$H79=4,COUNTRY_INFO!$H79=99),OR(COUNTRY_INFO!$J79=0,COUNTRY_INFO!$J79=4)),0,COUNTRY_INFO!$F79)) -> 3818 | F79: 6008 | G79: =IF(AND(INTRO!$E$37="Non endémique",INTRO!$E$41="Non endémique"),0,COUNTRY_INFO!Q79) -> 1 | H79: =IF(AND(INTRO!$E$37="Non endémique",INTRO!$E$41="Non endémique"),0,COUNTRY_INFO!S79) -> 2 | I79: =IF($G79=1,IVM!$G79,0) -> 573 | J79: 10458 | K79: 2 | L79: ALB | M79: =IF($L79="ALB", IF(INTRO!$E$39="Non endémique",IF($H79<>0,$D79*($H79-$G79),0),$D79*$H79), 0) -> 4380 | N79: 7437.675823 | P79: 11817.67582 | Q79: =IF($L79="MBD", IF(INTRO!$E$39="Non endémique",IF($H79<>0,$D79*($H79-$G79),0),$D79*$H79),0) -> 0 | R79: 0 | T79: 0 | V79: 21489 | W79: 108 | Y79: 7437.675823 | Z79: 38 | AB79: 0 | AC79: 0
A80: =IF(AND(INTRO!$E$37="Non endémique",INTRO!$E$41="Non endémique")," ",IF(COUNTRY_INFO!A80=0," ",COUNTRY_INFO!A80)) -> Angola | B80: =IF(AND(INTRO!$E$37="Non endémique",INTRO!$E$41="Non endémique")," ",IF(COUNTRY_INFO!B80=0," ",COUNTRY_INFO!B80)) -> CUANZA NORTE | C80: =IF(AND(INTRO!$E$37="Non endémique",INTRO!$E$41="Non endémique")," ",IF(COUNTRY_INFO!C80=0," ",COUNTRY_INFO!C80)) -> BOLONGONGO | D80: =IF(AND(INTRO!$E$37="Non endémique",INTRO!$E$41="Non endémique"),0,IF(AND(OR(COUNTRY_INFO!$H80=0,COUNTRY_INFO!$H80=4,COUNTRY_INFO!$H80=99),OR(COUNTRY_INFO!$J80=0,COUNTRY_INFO!$J80=4)),0,COUNTRY_INFO!$E80)) -> 2754 | E80: =IF(AND(INTRO!$E$37="Non endémique",INTRO!$E$41="Non endémique"),0,IF(AND(OR(COUNTRY_INFO!$H80=0,COUNTRY_INFO!$H80=4,COUNTRY_INFO!$H80=99),OR(COUNTRY_INFO!$J80=0,COUNTRY_INFO!$J80=4)),0,COUNTRY_INFO!$F80)) -> 4802 | F80: 7556 | G80: =IF(AND(INTRO!$E$37="Non endémique",INTRO!$E$41="Non endémique"),0,COUNTRY_INFO!Q80) -> 1 | H80: =IF(AND(INTRO!$E$37="Non endémique",INTRO!$E$41="Non endémique"),0,COUNTRY_INFO!S80) -> 2 | I80: =IF($G80=1,IVM!$G80,0) -> 721 | J80: 13151 | K80: 2 | L80: ALB | M80: =IF($L80="ALB", IF(INTRO!$E$39="Non endémique",IF($H80<>0,$D80*($H80-$G80),0),$D80*$H80), 0) -> 5508 | N80: 9354.415081 | P80: 14862.41508 | Q80: =IF($L80="MBD", IF(INTRO!$E$39="Non endémique",IF($H80<>0,$D80*($H80-$G80),0),$D80*$H80),0) -> 0 | R80: 0 | T80: 0 | V80: 27023 | W80: 136 | Y80: 9354.415081 | Z80: 47 | AB80: 0 | AC80: 0
A81: =IF(AND(INTRO!$E$37="Non endémique",INTRO!$E$41="Non endémique")," ",IF(COUNTRY_INFO!A81=0," ",COUNTRY_INFO!A81)) -> Angola | B81: =IF(AND(INTRO!$E$37="Non endémique",INTRO!$E$41="Non endémique")," ",IF(COUNTRY_INFO!B81=0," ",COUNTRY_INFO!B81)) -> CUANZA NORTE | C81: =IF(AND(INTRO!$E$37="Non endémique",INTRO!$E$41="Non endémique")," ",IF(COUNTRY_INFO!C81=0," ",COUNTRY_INFO!C81)) -> CAMBAMBE | D81: =IF(AND(INTRO!$E$37="Non endémique",INTRO!$E$41="Non endémique"),0,IF(AND(OR(COUNTRY_INFO!$H81=0,COUNTRY_INFO!$H81=4,COUNTRY_INFO!$H81=99),OR(COUNTRY_INFO!$J81=0,COUNTRY_INFO!$J81=4)),0,COUNTRY_INFO!$E81)) -> 19196 | E81: =IF(AND(INTRO!$E$37="Non endémique",INTRO!$E$41="Non endémique"),0,IF(AND(OR(COUNTRY_INFO!$H81=0,COUNTRY_INFO!$H81=4,COUNTRY_INFO!$H81=99),OR(COUNTRY_INFO!$J81=0,COUNTRY_INFO!$J81=4)),0,COUNTRY_INFO!$F81)) -> 33474 | F81: 52670 | G81: =IF(AND(INTRO!$E$37="Non endémique",INTRO!$E$41="Non endémique"),0,COUNTRY_INFO!Q81) -> 0 | H81: =IF(AND(INTRO!$E$37="Non endémique",INTRO!$E$41="Non endémique"),0,COUNTRY_INFO!S81) -> 1 | I81: =IF($G81=1,IVM!$G81,0) -> 0 | J81: =IF($G81=0, " ", IF(COUNTRY_INFO!$H81=1, IF(COUNTRY_INFO!$L81=1, 0," ")," ")) ->  | L81: ALB | M81: =IF($L81="ALB", IF(INTRO!$E$39="Non endémique",IF($H81<>0,$D81*($H81-$G81),0),$D81*$H81), 0) -> 19196 | N81: 33474 | P81: 52670 | Q81: =IF($L81="MBD", IF(INTRO!$E$39="Non endémique",IF($H81<>0,$D81*($H81-$G81),0),$D81*$H81),0) -> 0 | R81: 0 | T81: 0 | V81: 0 | W81: 0 | Y81: 33474 | Z81: 168 | AB81: 0 | AC81: 0
A82: =IF(AND(INTRO!$E$37="Non endémique",INTRO!$E$41="Non endémique")," ",IF(COUNTRY_INFO!A82=0," ",COUNTRY_INFO!A82)) -> Angola | B82: =IF(AND(INTRO!$E$37="Non endémique",INTRO!$E$41="Non endémique")," ",IF(COUNTRY_INFO!B82=0," ",COUNTRY_INFO!B82)) -> CUANZA NORTE | C82: =IF(AND(INTRO!$E$37="Non endémique",INTRO!$E$41="Non endémique")," ",IF(COUNTRY_INFO!C82=0," ",COUNTRY_INFO!C82)) -> CAZENGO | D82: =IF(AND(INTRO!$E$37="Non endémique",INTRO!$E$41="Non endémique"),0,IF(AND(OR(COUNTRY_INFO!$H82=0,COUNTRY_INFO!$H82=4,COUNTRY_INFO!$H82=99),OR(COUNTRY_INFO!$J82=0,COUNTRY_INFO!$J82=4)),0,COUNTRY_INFO!$E82)) -> 36322 | E82: =IF(AND(INTRO!$E$37="Non endémique",INTRO!$E$41="Non endémique"),0,IF(AND(OR(COUNTRY_INFO!$H82=0,COUNTRY_INFO!$H82=4,COUNTRY_INFO!$H82=99),OR(COUNTRY_INFO!$J82=0,COUNTRY_INFO!$J82=4)),0,COUNTRY_INFO!$F82)) -> 63337 | F82: 99659 | G82: =IF(AND(INTRO!$E$37="Non endémique",INTRO!$E$41="Non endémique"),0,COUNTRY_INFO!Q82) -> 1 | H82: =IF(AND(INTRO!$E$37="Non endémique",INTRO!$E$41="Non endémique"),0,COUNTRY_INFO!S82) -> 2 | I82: =IF($G82=1,IVM!$G82,0) -> 182973 | J82: =IF($G82=0, " ", IF(COUNTRY_INFO!$H82=1, IF(COUNTRY_INFO!$L82=1, 0," ")," ")) ->  | L82: ALB | M82: =IF($L82="ALB", IF(INTRO!$E$39="Non endémique",IF($H82<>0,$D82*($H82-$G82),0),$D82*$H82), 0) -> 72644 | N82: 63337 | P82: 135981 | Q82: =IF($L82="MBD", IF(INTRO!$E$39="Non endémique",IF($H82<>0,$D82*($H82-$G82),0),$D82*$H82),0) -> 0 | R82: 0 | T82: 0 | V82: 182973 | W82: 915 | Y82: 63337 | Z82: 317 | AB82: 0 | AC82: 0
A83: =IF(AND(INTRO!$E$37="Non endémique",INTRO!$E$41="Non endémique")," ",IF(COUNTRY_INFO!A83=0," ",COUNTRY_INFO!A83)) -> Angola | B83: =IF(AND(INTRO!$E$37="Non endémique",INTRO!$E$41="Non endémique")," ",IF(COUNTRY_INFO!B83=0," ",COUNTRY_INFO!B83)) -> CUANZA NORTE | C83: =IF(AND(INTRO!$E$37="Non endémique",INTRO!$E$41="Non endémique")," ",IF(COUNTRY_INFO!C83=0," ",COUNTRY_INFO!C83)) -> GOLUNGO ALTO | D83: =IF(AND(INTRO!$E$37="Non endémique",INTRO!$E$41="Non endémique"),0,IF(AND(OR(COUNTRY_INFO!$H83=0,COUNTRY_INFO!$H83=4,COUNTRY_INFO!$H83=99),OR(COUNTRY_INFO!$J83=0,COUNTRY_INFO!$J83=4)),0,COUNTRY_INFO!$E83)) -> 7156 | E83: =IF(AND(INTRO!$E$37="Non endémique",INTRO!$E$41="Non endémique"),0,IF(AND(OR(COUNTRY_INFO!$H83=0,COUNTRY_INFO!$H83=4,COUNTRY_INFO!$H83=99),OR(COUNTRY_INFO!$J83=0,COUNTRY_INFO!$J83=4)),0,COUNTRY_INFO!$F83)) -> 12478 | F83: 19634 | G83: =IF(AND(INTRO!$E$37="Non endémique",INTRO!$E$41="Non endémique"),0,COUNTRY_INFO!Q83) -> 1 | H83: =IF(AND(INTRO!$E$37="Non endémique",INTRO!$E$41="Non endémique"),0,COUNTRY_INFO!S83) -> 2 | I83: =IF($G83=1,IVM!$G83,0) -> 36048 | J83: =IF($G83=0, " ", IF(COUNTRY_INFO!$H83=1, IF(COUNTRY_INFO!$L83=1, 0," ")," ")) ->  | L83: ALB | M83: =IF($L83="ALB", IF(INTRO!$E$39="Non endémique",IF($H83<>0,$D83*($H83-$G83),0),$D83*$H83), 0) -> 14312 | N83: 12478 | P83: 26790 | Q83: =IF($L83="MBD", IF(INTRO!$E$39="Non endémique",IF($H83<>0,$D83*($H83-$G83),0),$D83*$H83),0) -> 0 | R83: 0 | T83: 0 | V83: 36048 | W83: 181 | Y83: 12478 | Z83: 63 | AB83: 0 | AC83: 0
A84: =IF(AND(INTRO!$E$37="Non endémique",INTRO!$E$41="Non endémique")," ",IF(COUNTRY_INFO!A84=0," ",COUNTRY_INFO!A84)) -> Angola | B84: =IF(AND(INTRO!$E$37="Non endémique",INTRO!$E$41="Non endémique")," ",IF(COUNTRY_INFO!B84=0," ",COUNTRY_INFO!B84)) -> CUANZA NORTE | C84: =IF(AND(INTRO!$E$37="Non endémique",INTRO!$E$41="Non endémique")," ",IF(COUNTRY_INFO!C84=0," ",COUNTRY_INFO!C84)) -> GONGUEMBO | D84: =IF(AND(INTRO!$E$37="Non endémique",INTRO!$E$41="Non endémique"),0,IF(AND(OR(COUNTRY_INFO!$H84=0,COUNTRY_INFO!$H84=4,COUNTRY_INFO!$H84=99),OR(COUNTRY_INFO!$J84=0,COUNTRY_INFO!$J84=4)),0,COUNTRY_INFO!$E84)) -> 1602 | E84: =IF(AND(INTRO!$E$37="Non endémique",INTRO!$E$41="Non endémique"),0,IF(AND(OR(COUNTRY_INFO!$H84=0,COUNTRY_INFO!$H84=4,COUNTRY_INFO!$H84=99),OR(COUNTRY_INFO!$J84=0,COUNTRY_INFO!$J84=4)),0,COUNTRY_INFO!$F84)) -> 2794 | F84: 4396 | G84: =IF(AND(INTRO!$E$37="Non endémique",INTRO!$E$41="Non endémique"),0,COUNTRY_INFO!Q84) -> 1 | H84: =IF(AND(INTRO!$E$37="Non endémique",INTRO!$E$41="Non endémique"),0,COUNTRY_INFO!S84) -> 2 | I84: =IF($G84=1,IVM!$G84,0) -> 8071 | J84: =IF($G84=0, " ", IF(COUNTRY_INFO!$H84=1, IF(COUNTRY_INFO!$L84=1, 0," ")," ")) ->  | L84: ALB | M84: =IF($L84="ALB", IF(INTRO!$E$39="Non endémique",IF($H84<>0,$D84*($H84-$G84),0),$D84*$H84), 0) -> 3204 | N84: 2794 | P84: 5998 | Q84: =IF($L84="MBD", IF(INTRO!$E$39="Non endémique",IF($H84<>0,$D84*($H84-$G84),0),$D84*$H84),0) -> 0 | R84: 0 | T84: 0 | V84: 8071 | W84: 41 | Y84: 2794 | Z84: 14 | AB84: 0 | AC84: 0
A85: =IF(AND(INTRO!$E$37="Non endémique",INTRO!$E$41="Non endémique")," ",IF(COUNTRY_INFO!A85=0," ",COUNTRY_INFO!A85)) -> Angola | B85: =IF(AND(INTRO!$E$37="Non endémique",INTRO!$E$41="Non endémique")," ",IF(COUNTRY_INFO!B85=0," ",COUNTRY_INFO!B85)) -> CUANZA NORTE | C85: =IF(AND(INTRO!$E$37="Non endémique",INTRO!$E$41="Non endémique")," ",IF(COUNTRY_INFO!C85=0," ",COUNTRY_INFO!C85)) -> QUICULUNGO | D85: =IF(AND(INTRO!$E$37="Non endémique",INTRO!$E$41="Non endémique"),0,IF(AND(OR(COUNTRY_INFO!$H85=0,COUNTRY_INFO!$H85=4,COUNTRY_INFO!$H85=99),OR(COUNTRY_INFO!$J85=0,COUNTRY_INFO!$J85=4)),0,COUNTRY_INFO!$E85)) -> 2058 | E85: =IF(AND(INTRO!$E$37="Non endémique",INTRO!$E$41="Non endémique"),0,IF(AND(OR(COUNTRY_INFO!$H85=0,COUNTRY_INFO!$H85=4,COUNTRY_INFO!$H85=99),OR(COUNTRY_INFO!$J85=0,COUNTRY_INFO!$J85=4)),0,COUNTRY_INFO!$F85)) -> 3589 | F85: 5647 | G85: =IF(AND(INTRO!$E$37="Non endémique",INTRO!$E$41="Non endémique"),0,COUNTRY_INFO!Q85) -> 1 | H85: =IF(AND(INTRO!$E$37="Non endémique",INTRO!$E$41="Non endémique"),0,COUNTRY_INFO!S85) -> 2 | I85: =IF($G85=1,IVM!$G85,0) -> 10368 | J85: =IF($G85=0, " ", IF(COUNTRY_INFO!$H85=1, IF(COUNTRY_INFO!$L85=1, 0," ")," ")) ->  | L85: ALB | M85: =IF($L85="ALB", IF(INTRO!$E$39="Non endémique",IF($H85<>0,$D85*($H85-$G85),0),$D85*$H85), 0) -> 4116 | N85: 3589 | P85: 7705 | Q85: =IF($L85="MBD", IF(INTRO!$E$39="Non endémique",IF($H85<>0,$D85*($H85-$G85),0),$D85*$H85),0) -> 0 | R85: 0 | T85: 0 | V85: 10368 | W85: 52 | Y85: 3589 | Z85: 18 | AB85: 0 | AC85: 0
A86: =IF(AND(INTRO!$E$37="Non endémique",INTRO!$E$41="Non endémique")," ",IF(COUNTRY_INFO!A86=0," ",COUNTRY_INFO!A86)) -> Angola | B86: =IF(AND(INTRO!$E$37="Non endémique",INTRO!$E$41="Non endémique")," ",IF(COUNTRY_INFO!B86=0," ",COUNTRY_INFO!B86)) -> CUANZA NORTE | C86: =IF(AND(INTRO!$E$37="Non endémique",INTRO!$E$41="Non endémique")," ",IF(COUNTRY_INFO!C86=0," ",COUNTRY_INFO!C86)) -> LUCALA | D86: =IF(AND(INTRO!$E$37="Non endémique",INTRO!$E$41="Non endémique"),0,IF(AND(OR(COUNTRY_INFO!$H86=0,COUNTRY_INFO!$H86=4,COUNTRY_INFO!$H86=99),OR(COUNTRY_INFO!$J86=0,COUNTRY_INFO!$J86=4)),0,COUNTRY_INFO!$E86)) -> 4796 | E86: =IF(AND(INTRO!$E$37="Non endémique",INTRO!$E$41="Non endémique"),0,IF(AND(OR(COUNTRY_INFO!$H86=0,COUNTRY_INFO!$H86=4,COUNTRY_INFO!$H86=99),OR(COUNTRY_INFO!$J86=0,COUNTRY_INFO!$J86=4)),0,COUNTRY_INFO!$F86)) -> 8362 | F86: 13158 | G86: =IF(AND(INTRO!$E$37="Non endémique",INTRO!$E$41="Non endémique"),0,COUNTRY_INFO!Q86) -> 0 | H86: =IF(AND(INTRO!$E$37="Non endémique",INTRO!$E$41="Non endémique"),0,COUNTRY_INFO!S86) -> 2 | I86: =IF($G86=1,IVM!$G86,0) -> 0 | J86: =IF($G86=0, " ", IF(COUNTRY_INFO!$H86=1, IF(COUNTRY_INFO!$L86=1, 0," ")," ")) ->  | L86: ALB | M86: =IF($L86="ALB", IF(INTRO!$E$39="Non endémique",IF($H86<>0,$D86*($H86-$G86),0),$D86*$H86), 0) -> 9592 | N86: 16724 | P86: 26316 | Q86: =IF($L86="MBD", IF(INTRO!$E$39="Non endémique",IF($H86<>0,$D86*($H86-$G86),0),$D86*$H86),0) -> 0 | R86: 0 | T86: 0 | V86: 0 | W86: 0 | Y86: 16724 | Z86: 84 | AB86: 0 | AC86: 0
A87: =IF(AND(INTRO!$E$37="Non endémique",INTRO!$E$41="Non endémique")," ",IF(COUNTRY_INFO!A87=0," ",COUNTRY_INFO!A87)) -> Angola | B87: =IF(AND(INTRO!$E$37="Non endémique",INTRO!$E$41="Non endémique")," ",IF(COUNTRY_INFO!B87=0," ",COUNTRY_INFO!B87)) -> CUANZA NORTE | C87: =IF(AND(INTRO!$E$37="Non endémique",INTRO!$E$41="Non endémique")," ",IF(COUNTRY_INFO!C87=0," ",COUNTRY_INFO!C87)) -> SAMBA CAJU | D87: =IF(AND(INTRO!$E$37="Non endémique",INTRO!$E$41="Non endémique"),0,IF(AND(OR(COUNTRY_INFO!$H87=0,COUNTRY_INFO!$H87=4,COUNTRY_INFO!$H87=99),OR(COUNTRY_INFO!$J87=0,COUNTRY_INFO!$J87=4)),0,COUNTRY_INFO!$E87)) -> 4636 | E87: =IF(AND(INTRO!$E$37="Non endémique",INTRO!$E$41="Non endémique"),0,IF(AND(OR(COUNTRY_INFO!$H87=0,COUNTRY_INFO!$H87=4,COUNTRY_INFO!$H87=99),OR(COUNTRY_INFO!$J87=0,COUNTRY_INFO!$J87=4)),0,COUNTRY_INFO!$F87)) -> 8083 | F87: 12719 | G87: =IF(AND(INTRO!$E$37="Non endémique",INTRO!$E$41="Non endémique"),0,COUNTRY_INFO!Q87) -> 1 | H87: =IF(AND(INTRO!$E$37="Non endémique",INTRO!$E$41="Non endémique"),0,COUNTRY_INFO!S87) -> 2 | I87: =IF($G87=1,IVM!$G87,0) -> 23352 | J87: =IF($G87=0, " ", IF(COUNTRY_INFO!$H87=1, IF(COUNTRY_INFO!$L87=1, 0," ")," ")) ->  | L87: ALB | M87: =IF($L87="ALB", IF(INTRO!$E$39="Non endémique",IF($H87<>0,$D87*($H87-$G87),0),$D87*$H87), 0) -> 9272 | N87: 8083 | P87: 17355 | Q87: =IF($L87="MBD", IF(INTRO!$E$39="Non endémique",IF($H87<>0,$D87*($H87-$G87),0),$D87*$H87),0) -> 0 | R87: 0 | T87: 0 | V87: 23352 | W87: 117 | Y87: 8083 | Z87: 41 | AB87: 0 | AC87: 0
A88: =IF(AND(INTRO!$E$37="Non endémique",INTRO!$E$41="Non endémique")," ",IF(COUNTRY_INFO!A88=0," ",COUNTRY_INFO!A88)) -> Angola | B88: =IF(AND(INTRO!$E$37="Non endémique",INTRO!$E$41="Non endémique")," ",IF(COUNTRY_INFO!B88=0," ",COUNTRY_INFO!B88)) -> CUANZA SUL | C88: =IF(AND(INTRO!$E$37="Non endémique",INTRO!$E$41="Non endémique")," ",IF(COUNTRY_INFO!C88=0," ",COUNTRY_INFO!C88)) -> AMBOIM | D88: =IF(AND(INTRO!$E$37="Non endémique",INTRO!$E$41="Non endémique"),0,IF(AND(OR(COUNTRY_INFO!$H88=0,COUNTRY_INFO!$H88=4,COUNTRY_INFO!$H88=99),OR(COUNTRY_INFO!$J88=0,COUNTRY_INFO!$J88=4)),0,COUNTRY_INFO!$E88)) -> 51567 | E88: =IF(AND(INTRO!$E$37="Non endémique",INTRO!$E$41="Non endémique"),0,IF(AND(OR(COUNTRY_INFO!$H88=0,COUNTRY_INFO!$H88=4,COUNTRY_INFO!$H88=99),OR(COUNTRY_INFO!$J88=0,COUNTRY_INFO!$J88=4)),0,COUNTRY_INFO!$F88)) -> 89920 | F88: 141487 | G88: =IF(AND(INTRO!$E$37="Non endémique",INTRO!$E$41="Non endémique"),0,COUNTRY_INFO!Q88) -> 0 | H88: =IF(AND(INTRO!$E$37="Non endémique",INTRO!$E$41="Non endémique"),0,COUNTRY_INFO!S88) -> 1 | I88: =IF($G88=1,IVM!$G88,0) -> 0 | J88: =IF($G88=0, " ", IF(COUNTRY_INFO!$H88=1, IF(COUNTRY_INFO!$L88=1, 0," ")," ")) ->  | L88: ALB | M88: =IF($L88="ALB", IF(INTRO!$E$39="Non endémique",IF($H88<>0,$D88*($H88-$G88),0),$D88*$H88), 0) -> 51567 | N88: 89920 | P88: 141487 | Q88: =IF($L88="MBD", IF(INTRO!$E$39="Non endémique",IF($H88<>0,$D88*($H88-$G88),0),$D88*$H88),0) -> 0 | R88: 0 | T88: 0 | V88: 0 | W88: 0 | Y88: 89920 | Z88: 450 | AB88: 0 | AC88: 0
A89: =IF(AND(INTRO!$E$37="Non endémique",INTRO!$E$41="Non endémique")," ",IF(COUNTRY_INFO!A89=0," ",COUNTRY_INFO!A89)) -> Angola | B89: =IF(AND(INTRO!$E$37="Non endémique",INTRO!$E$41="Non endémique")," ",IF(COUNTRY_INFO!B89=0," ",COUNTRY_INFO!B89)) -> CUANZA SUL | C89: =IF(AND(INTRO!$E$37="Non endémique",INTRO!$E$41="Non endémique")," ",IF(COUNTRY_INFO!C89=0," ",COUNTRY_INFO!C89)) -> CASSONGUE | D89: =IF(AND(INTRO!$E$37="Non endémique",INTRO!$E$41="Non endémique"),0,IF(AND(OR(COUNTRY_INFO!$H89=0,COUNTRY_INFO!$H89=4,COUNTRY_INFO!$H89=99),OR(COUNTRY_INFO!$J89=0,COUNTRY_INFO!$J89=4)),0,COUNTRY_INFO!$E89)) -> 32312 | E89: =IF(AND(INTRO!$E$37="Non endémique",INTRO!$E$41="Non endémique"),0,IF(AND(OR(COUNTRY_INFO!$H89=0,COUNTRY_INFO!$H89=4,COUNTRY_INFO!$H89=99),OR(COUNTRY_INFO!$J89=0,COUNTRY_INFO!$J89=4)),0,COUNTRY_INFO!$F89)) -> 56345 | F89: 88657 | G89: =IF(AND(INTRO!$E$37="Non endémique",INTRO!$E$41="Non endémique"),0,COUNTRY_INFO!Q89) -> 0 | H89: =IF(AND(INTRO!$E$37="Non endémique",INTRO!$E$41="Non endémique"),0,COUNTRY_INFO!S89) -> 0 | I89: =IF($G89=1,IVM!$G89,0) -> 0 | J89: =IF($G89=0, " ", IF(COUNTRY_INFO!$H89=1, IF(COUNTRY_INFO!$L89=1, 0," ")," ")) ->  | L89: ALB | M89: =IF($L89="ALB", IF(INTRO!$E$39="Non endémique",IF($H89<>0,$D89*($H89-$G89),0),$D89*$H89), 0) -> 0 | N89: 0 | P89: 0 | Q89: =IF($L89="MBD", IF(INTRO!$E$39="Non endémique",IF($H89<>0,$D89*($H89-$G89),0),$D89*$H89),0) -> 0 | R89: 0 | T89: 0 | V89: 0 | W89: 0 | Y89: 0 | Z89: 0 | AB89: 0 | AC89: 0
A90: =IF(AND(INTRO!$E$37="Non endémique",INTRO!$E$41="Non endémique")," ",IF(COUNTRY_INFO!A90=0," ",COUNTRY_INFO!A90)) -> Angola | B90: =IF(AND(INTRO!$E$37="Non endémique",INTRO!$E$41="Non endémique")," ",IF(COUNTRY_INFO!B90=0," ",COUNTRY_INFO!B90)) -> CUANZA SUL | C90: =IF(AND(INTRO!$E$37="Non endémique",INTRO!$E$41="Non endémique")," ",IF(COUNTRY_INFO!C90=0," ",COUNTRY_INFO!C90)) -> CELA (Waku Kungo) | D90: =IF(AND(INTRO!$E$37="Non endémique",INTRO!$E$41="Non endémique"),0,IF(AND(OR(COUNTRY_INFO!$H90=0,COUNTRY_INFO!$H90=4,COUNTRY_INFO!$H90=99),OR(COUNTRY_INFO!$J90=0,COUNTRY_INFO!$J90=4)),0,COUNTRY_INFO!$E90)) -> 47968 | E90: =IF(AND(INTRO!$E$37="Non endémique",INTRO!$E$41="Non endémique"),0,IF(AND(OR(COUNTRY_INFO!$H90=0,COUNTRY_INFO!$H90=4,COUNTRY_INFO!$H90=99),OR(COUNTRY_INFO!$J90=0,COUNTRY_INFO!$J90=4)),0,COUNTRY_INFO!$F90)) -> 83644 | F90: 131612 | G90: =IF(AND(INTRO!$E$37="Non endémique",INTRO!$E$41="Non endémique"),0,COUNTRY_INFO!Q90) -> 0 | H90: =IF(AND(INTRO!$E$37="Non endémique",INTRO!$E$41="Non endémique"),0,COUNTRY_INFO!S90) -> 0 | I90: =IF($G90=1,IVM!$G90,0) -> 0 | J90: =IF($G90=0, " ", IF(COUNTRY_INFO!$H90=1, IF(COUNTRY_INFO!$L90=1, 0," ")," ")) ->  | L90: ALB | M90: =IF($L90="ALB", IF(INTRO!$E$39="Non endémique",IF($H90<>0,$D90*($H90-$G90),0),$D90*$H90), 0) -> 0 | N90: 0 | P90: 0 | Q90: =IF($L90="MBD", IF(INTRO!$E$39="Non endémique",IF($H90<>0,$D90*($H90-$G90),0),$D90*$H90),0) -> 0 | R90: 0 | T90: 0 | V90: 0 | W90: 0 | Y90: 0 | Z90: 0 | AB90: 0 | AC90: 0
A91: =IF(AND(INTRO!$E$37="Non endémique",INTRO!$E$41="Non endémique")," ",IF(COUNTRY_INFO!A91=0," ",COUNTRY_INFO!A91)) -> Angola | B91: =IF(AND(INTRO!$E$37="Non endémique",INTRO!$E$41="Non endémique")," ",IF(COUNTRY_INFO!B91=0," ",COUNTRY_INFO!B91)) -> CUANZA SUL | C91: =IF(AND(INTRO!$E$37="Non endémique",INTRO!$E$41="Non endémique")," ",IF(COUNTRY_INFO!C91=0," ",COUNTRY_INFO!C91)) -> CONDA | D91: =IF(AND(INTRO!$E$37="Non endémique",INTRO!$E$41="Non endémique"),0,IF(AND(OR(COUNTRY_INFO!$H91=0,COUNTRY_INFO!$H91=4,COUNTRY_INFO!$H91=99),OR(COUNTRY_INFO!$J91=0,COUNTRY_INFO!$J91=4)),0,COUNTRY_INFO!$E91)) -> 19032 | E91: =IF(AND(INTRO!$E$37="Non endémique",INTRO!$E$41="Non endémique"),0,IF(AND(OR(COUNTRY_INFO!$H91=0,COUNTRY_INFO!$H91=4,COUNTRY_INFO!$H91=99),OR(COUNTRY_INFO!$J91=0,COUNTRY_INFO!$J91=4)),0,COUNTRY_INFO!$F91)) -> 33187 | F91: 52219 | G91: =IF(AND(INTRO!$E$37="Non endémique",INTRO!$E$41="Non endémique"),0,COUNTRY_INFO!Q91) -> 0 | H91: =IF(AND(INTRO!$E$37="Non endémique",INTRO!$E$41="Non endémique"),0,COUNTRY_INFO!S91) -> 0 | I91: =IF($G91=1,IVM!$G91,0) -> 0 | J91: =IF($G91=0, " ", IF(COUNTRY_INFO!$H91=1, IF(COUNTRY_INFO!$L91=1, 0," ")," ")) ->  | L91: ALB | M91: =IF($L91="ALB", IF(INTRO!$E$39="Non endémique",IF($H91<>0,$D91*($H91-$G91),0),$D91*$H91), 0) -> 0 | N91: 0 | P91: 0 | Q91: =IF($L91="MBD", IF(INTRO!$E$39="Non endémique",IF($H91<>0,$D91*($H91-$G91),0),$D91*$H91),0) -> 0 | R91: 0 | T91: 0 | V91: 0 | W91: 0 | Y91: 0 | Z91: 0 | AB91: 0 | AC91: 0
A92: =IF(AND(INTRO!$E$37="Non endémique",INTRO!$E$41="Non endémique")," ",IF(COUNTRY_INFO!A92=0," ",COUNTRY_INFO!A92)) -> Angola | B92: =IF(AND(INTRO!$E$37="Non endémique",INTRO!$E$41="Non endémique")," ",IF(COUNTRY_INFO!B92=0," ",COUNTRY_INFO!B92)) -> CUANZA SUL | C92: =IF(AND(INTRO!$E$37="Non endémique",INTRO!$E$41="Non endémique")," ",IF(COUNTRY_INFO!C92=0," ",COUNTRY_INFO!C92)) -> EBO | D92: =IF(AND(INTRO!$E$37="Non endémique",INTRO!$E$41="Non endémique"),0,IF(AND(OR(COUNTRY_INFO!$H92=0,COUNTRY_INFO!$H92=4,COUNTRY_INFO!$H92=99),OR(COUNTRY_INFO!$J92=0,COUNTRY_INFO!$J92=4)),0,COUNTRY_INFO!$E92)) -> 35122 | E92: =IF(AND(INTRO!$E$37="Non endémique",INTRO!$E$41="Non endémique"),0,IF(AND(OR(COUNTRY_INFO!$H92=0,COUNTRY_INFO!$H92=4,COUNTRY_INFO!$H92=99),OR(COUNTRY_INFO!$J92=0,COUNTRY_INFO!$J92=4)),0,COUNTRY_INFO!$F92)) -> 61245 | F92: 96367 | G92: =IF(AND(INTRO!$E$37="Non endémique",INTRO!$E$41="Non endémique"),0,COUNTRY_INFO!Q92) -> 0 | H92: =IF(AND(INTRO!$E$37="Non endémique",INTRO!$E$41="Non endémique"),0,COUNTRY_INFO!S92) -> 1 | I92: =IF($G92=1,IVM!$G92,0) -> 0 | J92: =IF($G92=0, " ", IF(COUNTRY_INFO!$H92=1, IF(COUNTRY_INFO!$L92=1, 0," ")," ")) ->  | L92: ALB | M92: =IF($L92="ALB", IF(INTRO!$E$39="Non endémique",IF($H92<>0,$D92*($H92-$G92),0),$D92*$H92), 0) -> 35122 | N92: 61245 | P92: 96367 | Q92: =IF($L92="MBD", IF(INTRO!$E$39="Non endémique",IF($H92<>0,$D92*($H92-$G92),0),$D92*$H92),0) -> 0 | R92: 0 | T92: 0 | V92: 0 | W92: 0 | Y92: 61245 | Z92: 307 | AB92: 0 | AC92: 0
A93: =IF(AND(INTRO!$E$37="Non endémique",INTRO!$E$41="Non endémique")," ",IF(COUNTRY_INFO!A93=0," ",COUNTRY_INFO!A93)) -> Angola | B93: =IF(AND(INTRO!$E$37="Non endémique",INTRO!$E$41="Non endémique")," ",IF(COUNTRY_INFO!B93=0," ",COUNTRY_INFO!B93)) -> CUANZA SUL | C93: =IF(AND(INTRO!$E$37="Non endémique",INTRO!$E$41="Non endémique")," ",IF(COUNTRY_INFO!C93=0," ",COUNTRY_INFO!C93)) -> QUIBALA | D93: =IF(AND(INTRO!$E$37="Non endémique",INTRO!$E$41="Non endémique"),0,IF(AND(OR(COUNTRY_INFO!$H93=0,COUNTRY_INFO!$H93=4,COUNTRY_INFO!$H93=99),OR(COUNTRY_INFO!$J93=0,COUNTRY_INFO!$J93=4)),0,COUNTRY_INFO!$E93)) -> 30215 | E93: =IF(AND(INTRO!$E$37="Non endémique",INTRO!$E$41="Non endémique"),0,IF(AND(OR(COUNTRY_INFO!$H93=0,COUNTRY_INFO!$H93=4,COUNTRY_INFO!$H93=99),OR(COUNTRY_INFO!$J93=0,COUNTRY_INFO!$J93=4)),0,COUNTRY_INFO!$F93)) -> 52688 | F93: 82903 | G93: =IF(AND(INTRO!$E$37="Non endémique",INTRO!$E$41="Non endémique"),0,COUNTRY_INFO!Q93) -> 0 | H93: =IF(AND(INTRO!$E$37="Non endémique",INTRO!$E$41="Non endémique"),0,COUNTRY_INFO!S93) -> 1 | I93: =IF($G93=1,IVM!$G93,0) -> 0 | J93: =IF($G93=0, " ", IF(COUNTRY_INFO!$H93=1, IF(COUNTRY_INFO!$L93=1, 0," ")," ")) ->  | L93: ALB | M93: =IF($L93="ALB", IF(INTRO!$E$39="Non endémique",IF($H93<>0,$D93*($H93-$G93),0),$D93*$H93), 0) -> 30215 | N93: 52688 | P93: 82903 | Q93: =IF($L93="MBD", IF(INTRO!$E$39="Non endémique",IF($H93<>0,$D93*($H93-$G93),0),$D93*$H93),0) -> 0 | R93: 0 | T93: 0 | V93: 0 | W93: 0 | Y93: 52688 | Z93: 264 | AB93: 0 | AC93: 0
A94: =IF(AND(INTRO!$E$37="Non endémique",INTRO!$E$41="Non endémique")," ",IF(COUNTRY_INFO!A94=0," ",COUNTRY_INFO!A94)) -> Angola | B94: =IF(AND(INTRO!$E$37="Non endémique",INTRO!$E$41="Non endémique")," ",IF(COUNTRY_INFO!B94=0," ",COUNTRY_INFO!B94)) -> CUANZA SUL | C94: =IF(AND(INTRO!$E$37="Non endémique",INTRO!$E$41="Non endémique")," ",IF(COUNTRY_INFO!C94=0," ",COUNTRY_INFO!C94)) -> QUILENDA | D94: =IF(AND(INTRO!$E$37="Non endémique",INTRO!$E$41="Non endémique"),0,IF(AND(OR(COUNTRY_INFO!$H94=0,COUNTRY_INFO!$H94=4,COUNTRY_INFO!$H94=99),OR(COUNTRY_INFO!$J94=0,COUNTRY_INFO!$J94=4)),0,COUNTRY_INFO!$E94)) -> 20770 | E94: =IF(AND(INTRO!$E$37="Non endémique",INTRO!$E$41="Non endémique"),0,IF(AND(OR(COUNTRY_INFO!$H94=0,COUNTRY_INFO!$H94=4,COUNTRY_INFO!$H94=99),OR(COUNTRY_INFO!$J94=0,COUNTRY_INFO!$J94=4)),0,COUNTRY_INFO!$F94)) -> 36217 | F94: 56987 | G94: =IF(AND(INTRO!$E$37="Non endémique",INTRO!$E$41="Non endémique"),0,COUNTRY_INFO!Q94) -> 0 | H94: =IF(AND(INTRO!$E$37="Non endémique",INTRO!$E$41="Non endémique"),0,COUNTRY_INFO!S94) -> 1 | I94: =IF($G94=1,IVM!$G94,0) -> 0 | J94: =IF($G94=0, " ", IF(COUNTRY_INFO!$H94=1, IF(COUNTRY_INFO!$L94=1, 0," ")," ")) ->  | L94: ALB | M94: =IF($L94="ALB", IF(INTRO!$E$39="Non endémique",IF($H94<>0,$D94*($H94-$G94),0),$D94*$H94), 0) -> 20770 | N94: 36217 | P94: 56987 | Q94: =IF($L94="MBD", IF(INTRO!$E$39="Non endémique",IF($H94<>0,$D94*($H94-$G94),0),$D94*$H94),0) -> 0 | R94: 0 | T94: 0 | V94: 0 | W94: 0 | Y94: 36217 | Z94: 182 | AB94: 0 | AC94: 0
A95: =IF(AND(INTRO!$E$37="Non endémique",INTRO!$E$41="Non endémique")," ",IF(COUNTRY_INFO!A95=0," ",COUNTRY_INFO!A95)) -> Angola | B95: =IF(AND(INTRO!$E$37="Non endémique",INTRO!$E$41="Non endémique")," ",IF(COUNTRY_INFO!B95=0," ",COUNTRY_INFO!B95)) -> CUANZA SUL | C95: =IF(AND(INTRO!$E$37="Non endémique",INTRO!$E$41="Non endémique")," ",IF(COUNTRY_INFO!C95=0," ",COUNTRY_INFO!C95)) -> LIBOLO | D95: =IF(AND(INTRO!$E$37="Non endémique",INTRO!$E$41="Non endémique"),0,IF(AND(OR(COUNTRY_INFO!$H95=0,COUNTRY_INFO!$H95=4,COUNTRY_INFO!$H95=99),OR(COUNTRY_INFO!$J95=0,COUNTRY_INFO!$J95=4)),0,COUNTRY_INFO!$E95)) -> 19583 | E95: =IF(AND(INTRO!$E$37="Non endémique",INTRO!$E$41="Non endémique"),0,IF(AND(OR(COUNTRY_INFO!$H95=0,COUNTRY_INFO!$H95=4,COUNTRY_INFO!$H95=99),OR(COUNTRY_INFO!$J95=0,COUNTRY_INFO!$J95=4)),0,COUNTRY_INFO!$F95)) -> 34148 | F95: 53731 | G95: =IF(AND(INTRO!$E$37="Non endémique",INTRO!$E$41="Non endémique"),0,COUNTRY_INFO!Q95) -> 0 | H95: =IF(AND(INTRO!$E$37="Non endémique",INTRO!$E$41="Non endémique"),0,COUNTRY_INFO!S95) -> 1 | I95: =IF($G95=1,IVM!$G95,0) -> 0 | J95: =IF($G95=0, " ", IF(COUNTRY_INFO!$H95=1, IF(COUNTRY_INFO!$L95=1, 0," ")," ")) ->  | L95: ALB | M95: =IF($L95="ALB", IF(INTRO!$E$39="Non endémique",IF($H95<>0,$D95*($H95-$G95),0),$D95*$H95), 0) -> 19583 | N95: 34148 | P95: 53731 | Q95: =IF($L95="MBD", IF(INTRO!$E$39="Non endémique",IF($H95<>0,$D95*($H95-$G95),0),$D95*$H95),0) -> 0 | R95: 0 | T95: 0 | V95: 0 | W95: 0 | Y95: 34148 | Z95: 171 | AB95: 0 | AC95: 0
A96: =IF(AND(INTRO!$E$37="Non endémique",INTRO!$E$41="Non endémique")," ",IF(COUNTRY_INFO!A96=0," ",COUNTRY_INFO!A96)) -> Angola | B96: =IF(AND(INTRO!$E$37="Non endémique",INTRO!$E$41="Non endémique")," ",IF(COUNTRY_INFO!B96=0," ",COUNTRY_INFO!B96)) -> CUANZA SUL | C96: =IF(AND(INTRO!$E$37="Non endémique",INTRO!$E$41="Non endémique")," ",IF(COUNTRY_INFO!C96=0," ",COUNTRY_INFO!C96)) -> MUSSENDE | D96: =IF(AND(INTRO!$E$37="Non endémique",INTRO!$E$41="Non endémique"),0,IF(AND(OR(COUNTRY_INFO!$H96=0,COUNTRY_INFO!$H96=4,COUNTRY_INFO!$H96=99),OR(COUNTRY_INFO!$J96=0,COUNTRY_INFO!$J96=4)),0,COUNTRY_INFO!$E96)) -> 17557 | E96: =IF(AND(INTRO!$E$37="Non endémique",INTRO!$E$41="Non endémique"),0,IF(AND(OR(COUNTRY_INFO!$H96=0,COUNTRY_INFO!$H96=4,COUNTRY_INFO!$H96=99),OR(COUNTRY_INFO!$J96=0,COUNTRY_INFO!$J96=4)),0,COUNTRY_INFO!$F96)) -> 30615 | F96: 48172 | G96: =IF(AND(INTRO!$E$37="Non endémique",INTRO!$E$41="Non endémique"),0,COUNTRY_INFO!Q96) -> 0 | H96: =IF(AND(INTRO!$E$37="Non endémique",INTRO!$E$41="Non endémique"),0,COUNTRY_INFO!S96) -> 0 | I96: =IF($G96=1,IVM!$G96,0) -> 0 | J96: =IF($G96=0, " ", IF(COUNTRY_INFO!$H96=1, IF(COUNTRY_INFO!$L96=1, 0," ")," ")) ->  | L96: ALB | M96: =IF($L96="ALB", IF(INTRO!$E$39="Non endémique",IF($H96<>0,$D96*($H96-$G96),0),$D96*$H96), 0) -> 0 | N96: 0 | P96: 0 | Q96: =IF($L96="MBD", IF(INTRO!$E$39="Non endémique",IF($H96<>0,$D96*($H96-$G96),0),$D96*$H96),0) -> 0 | R96: 0 | T96: 0 | V96: 0 | W96: 0 | Y96: 0 | Z96: 0 | AB96: 0 | AC96: 0
A97: =IF(AND(INTRO!$E$37="Non endémique",INTRO!$E$41="Non endémique")," ",IF(COUNTRY_INFO!A97=0," ",COUNTRY_INFO!A97)) -> Angola | B97: =IF(AND(INTRO!$E$37="Non endémique",INTRO!$E$41="Non endémique")," ",IF(COUNTRY_INFO!B97=0," ",COUNTRY_INFO!B97)) -> CUANZA SUL | C97: =IF(AND(INTRO!$E$37="Non endémique",INTRO!$E$41="Non endémique")," ",IF(COUNTRY_INFO!C97=0," ",COUNTRY_INFO!C97)) -> PORTO AMBOIM | D97: =IF(AND(INTRO!$E$37="Non endémique",INTRO!$E$41="Non endémique"),0,IF(AND(OR(COUNTRY_INFO!$H97=0,COUNTRY_INFO!$H97=4,COUNTRY_INFO!$H97=99),OR(COUNTRY_INFO!$J97=0,COUNTRY_INFO!$J97=4)),0,COUNTRY_INFO!$E97)) -> 26793 | E97: =IF(AND(INTRO!$E$37="Non endémique",INTRO!$E$41="Non endémique"),0,IF(AND(OR(COUNTRY_INFO!$H97=0,COUNTRY_INFO!$H97=4,COUNTRY_INFO!$H97=99),OR(COUNTRY_INFO!$J97=0,COUNTRY_INFO!$J97=4)),0,COUNTRY_INFO!$F97)) -> 46721 | F97: 73514 | G97: =IF(AND(INTRO!$E$37="Non endémique",INTRO!$E$41="Non endémique"),0,COUNTRY_INFO!Q97) -> 1 | H97: =IF(AND(INTRO!$E$37="Non endémique",INTRO!$E$41="Non endémique"),0,COUNTRY_INFO!S97) -> 0 | I97: =IF($G97=1,IVM!$G97,0) -> 7004 | J97: 127968 | K97: 2 | L97: ALB | M97: =IF($L97="ALB", IF(INTRO!$E$39="Non endémique",IF($H97<>0,$D97*($H97-$G97),0),$D97*$H97), 0) -> 0 | N97: 0 | P97: 0 | Q97: =IF($L97="MBD", IF(INTRO!$E$39="Non endémique",IF($H97<>0,$D97*($H97-$G97),0),$D97*$H97),0) -> 0 | R97: 0 | T97: 0 | V97: 262940 | W97: 1315 | Y97: 0 | Z97: 0 | AB97: 0 | AC97: 0
A98: =IF(AND(INTRO!$E$37="Non endémique",INTRO!$E$41="Non endémique")," ",IF(COUNTRY_INFO!A98=0," ",COUNTRY_INFO!A98)) -> Angola | B98: =IF(AND(INTRO!$E$37="Non endémique",INTRO!$E$41="Non endémique")," ",IF(COUNTRY_INFO!B98=0," ",COUNTRY_INFO!B98)) -> CUANZA SUL | C98: =IF(AND(INTRO!$E$37="Non endémique",INTRO!$E$41="Non endémique")," ",IF(COUNTRY_INFO!C98=0," ",COUNTRY_INFO!C98)) -> SELES | D98: =IF(AND(INTRO!$E$37="Non endémique",INTRO!$E$41="Non endémique"),0,IF(AND(OR(COUNTRY_INFO!$H98=0,COUNTRY_INFO!$H98=4,COUNTRY_INFO!$H98=99),OR(COUNTRY_INFO!$J98=0,COUNTRY_INFO!$J98=4)),0,COUNTRY_INFO!$E98)) -> 39801 | E98: =IF(AND(INTRO!$E$37="Non endémique",INTRO!$E$41="Non endémique"),0,IF(AND(OR(COUNTRY_INFO!$H98=0,COUNTRY_INFO!$H98=4,COUNTRY_INFO!$H98=99),OR(COUNTRY_INFO!$J98=0,COUNTRY_INFO!$J98=4)),0,COUNTRY_INFO!$F98)) -> 69404 | F98: 109205 | G98: =IF(AND(INTRO!$E$37="Non endémique",INTRO!$E$41="Non endémique"),0,COUNTRY_INFO!Q98) -> 0 | H98: =IF(AND(INTRO!$E$37="Non endémique",INTRO!$E$41="Non endémique"),0,COUNTRY_INFO!S98) -> 0 | I98: =IF($G98=1,IVM!$G98,0) -> 0 | J98: =IF($G98=0, " ", IF(COUNTRY_INFO!$H98=1, IF(COUNTRY_INFO!$L98=1, 0," ")," ")) ->  | L98: ALB | M98: =IF($L98="ALB", IF(INTRO!$E$39="Non endémique",IF($H98<>0,$D98*($H98-$G98),0),$D98*$H98), 0) -> 0 | N98: 0 | P98: 0 | Q98: =IF($L98="MBD", IF(INTRO!$E$39="Non endémique",IF($H98<>0,$D98*($H98-$G98),0),$D98*$H98),0) -> 0 | R98: 0 | T98: 0 | V98: 0 | W98: 0 | Y98: 0 | Z98: 0 | AB98: 0 | AC98: 0
A99: =IF(AND(INTRO!$E$37="Non endémique",INTRO!$E$41="Non endémique")," ",IF(COUNTRY_INFO!A99=0," ",COUNTRY_INFO!A99)) -> Angola | B99: =IF(AND(INTRO!$E$37="Non endémique",INTRO!$E$41="Non endémique")," ",IF(COUNTRY_INFO!B99=0," ",COUNTRY_INFO!B99)) -> CUANZA SUL | C99: =IF(AND(INTRO!$E$37="Non endémique",INTRO!$E$41="Non endémique")," ",IF(COUNTRY_INFO!C99=0," ",COUNTRY_INFO!C99)) -> SUMBE | D99: =IF(AND(INTRO!$E$37="Non endémique",INTRO!$E$41="Non endémique"),0,IF(AND(OR(COUNTRY_INFO!$H99=0,COUNTRY_INFO!$H99=4,COUNTRY_INFO!$H99=99),OR(COUNTRY_INFO!$J99=0,COUNTRY_INFO!$J99=4)),0,COUNTRY_INFO!$E99)) -> 59548 | E99: =IF(AND(INTRO!$E$37="Non endémique",INTRO!$E$41="Non endémique"),0,IF(AND(OR(COUNTRY_INFO!$H99=0,COUNTRY_INFO!$H99=4,COUNTRY_INFO!$H99=99),OR(COUNTRY_INFO!$J99=0,COUNTRY_INFO!$J99=4)),0,COUNTRY_INFO!$F99)) -> 103837 | F99: 163385 | G99: =IF(AND(INTRO!$E$37="Non endémique",INTRO!$E$41="Non endémique"),0,COUNTRY_INFO!Q99) -> 0 | H99: =IF(AND(INTRO!$E$37="Non endémique",INTRO!$E$41="Non endémique"),0,COUNTRY_INFO!S99) -> 0 | I99: =IF($G99=1,IVM!$G99,0) -> 0 | J99: =IF($G99=0, " ", IF(COUNTRY_INFO!$H99=1, IF(COUNTRY_INFO!$L99=1, 0," ")," ")) ->  | L99: ALB | M99: =IF($L99="ALB", IF(INTRO!$E$39="Non endémique",IF($H99<>0,$D99*($H99-$G99),0),$D99*$H99), 0) -> 0 | N99: 0 | P99: 0 | Q99: =IF($L99="MBD", IF(INTRO!$E$39="Non endémique",IF($H99<>0,$D99*($H99-$G99),0),$D99*$H99),0) -> 0 | R99: 0 | T99: 0 | V99: 0 | W99: 0 | Y99: 0 | Z99: 0 | AB99: 0 | AC99: 0
A100: =IF(AND(INTRO!$E$37="Non endémique",INTRO!$E$41="Non endémique")," ",IF(COUNTRY_INFO!A100=0," ",COUNTRY_INFO!A100)) -> Angola | B100: =IF(AND(INTRO!$E$37="Non endémique",INTRO!$E$41="Non endémique")," ",IF(COUNTRY_INFO!B100=0," ",COUNTRY_INFO!B100)) -> LUANDA | C100: =IF(AND(INTRO!$E$37="Non endémique",INTRO!$E$41="Non endémique")," ",IF(COUNTRY_INFO!C100=0," ",COUNTRY_INFO!C100)) -> BELAS | D100: =IF(AND(INTRO!$E$37="Non endémique",INTRO!$E$41="Non endémique"),0,IF(AND(OR(COUNTRY_INFO!$H100=0,COUNTRY_INFO!$H100=4,COUNTRY_INFO!$H100=99),OR(COUNTRY_INFO!$J100=0,COUNTRY_INFO!$J100=4)),0,COUNTRY_INFO!$E100)) -> 60587 | E100: =IF(AND(INTRO!$E$37="Non endémique",INTRO!$E$41="Non endémique"),0,IF(AND(OR(COUNTRY_INFO!$H100=0,COUNTRY_INFO!$H100=4,COUNTRY_INFO!$H100=99),OR(COUNTRY_INFO!$J100=0,COUNTRY_INFO!$J100=4)),0,COUNTRY_INFO!$F100)) -> 105649 | F100: 166236 | G100: =IF(AND(INTRO!$E$37="Non endémique",INTRO!$E$41="Non endémique"),0,COUNTRY_INFO!Q100) -> 0 | H100: =IF(AND(INTRO!$E$37="Non endémique",INTRO!$E$41="Non endémique"),0,COUNTRY_INFO!S100) -> 0 | I100: =IF($G100=1,IVM!$G100,0) -> 0 | J100: =IF($G100=0, " ", IF(COUNTRY_INFO!$H100=1, IF(COUNTRY_INFO!$L100=1, 0," ")," ")) ->  | L100: ALB | M100: =IF($L100="ALB", IF(INTRO!$E$39="Non endémique",IF($H100<>0,$D100*($H100-$G100),0),$D100*$H100), 0) -> 0 | N100: 0 | P100: 0 | Q100: =IF($L100="MBD", IF(INTRO!$E$39="Non endémique",IF($H100<>0,$D100*($H100-$G100),0),$D100*$H100),0) -> 0 | R100: 0 | T100: 0 | V100: 0 | W100: 0 | Y100: 0 | Z100: 0 | AB100: 0 | AC100: 0
A101: =IF(AND(INTRO!$E$37="Non endémique",INTRO!$E$41="Non endémique")," ",IF(COUNTRY_INFO!A101=0," ",COUNTRY_INFO!A101)) -> Angola | B101: =IF(AND(INTRO!$E$37="Non endémique",INTRO!$E$41="Non endémique")," ",IF(COUNTRY_INFO!B101=0," ",COUNTRY_INFO!B101)) -> LUANDA | C101: =IF(AND(INTRO!$E$37="Non endémique",INTRO!$E$41="Non endémique")," ",IF(COUNTRY_INFO!C101=0," ",COUNTRY_INFO!C101)) -> CACUACO | D101: =IF(AND(INTRO!$E$37="Non endémique",INTRO!$E$41="Non endémique"),0,IF(AND(OR(COUNTRY_INFO!$H101=0,COUNTRY_INFO!$H101=4,COUNTRY_INFO!$H101=99),OR(COUNTRY_INFO!$J101=0,COUNTRY_INFO!$J101=4)),0,COUNTRY_INFO!$E101)) -> 0 | E101: =IF(AND(INTRO!$E$37="Non endémique",INTRO!$E$41="Non endémique"),0,IF(AND(OR(COUNTRY_INFO!$H101=0,COUNTRY_INFO!$H101=4,COUNTRY_INFO!$H101=99),OR(COUNTRY_INFO!$J101=0,COUNTRY_INFO!$J101=4)),0,COUNTRY_INFO!$F101)) -> 0 | F101: 0 | G101: =IF(AND(INTRO!$E$37="Non endémique",INTRO!$E$41="Non endémique"),0,COUNTRY_INFO!Q101) -> 0 | H101: =IF(AND(INTRO!$E$37="Non endémique",INTRO!$E$41="Non endémique"),0,COUNTRY_INFO!S101) -> 0 | I101: =IF($G101=1,IVM!$G101,0) -> 0 | J101: =IF($G101=0, " ", IF(COUNTRY_INFO!$H101=1, IF(COUNTRY_INFO!$L101=1, 0," ")," ")) ->  | L101: ALB | M101: =IF($L101="ALB", IF(INTRO!$E$39="Non endémique",IF($H101<>0,$D101*($H101-$G101),0),$D101*$H101), 0) -> 0 | N101: 0 | P101: 0 | Q101: =IF($L101="MBD", IF(INTRO!$E$39="Non endémique",IF($H101<>0,$D101*($H101-$G101),0),$D101*$H101),0) -> 0 | R101: 0 | T101: 0 | V101: 0 | W101: 0 | Y101: 0 | Z101: 0 | AB101: 0 | AC101: 0
A102: =IF(AND(INTRO!$E$37="Non endémique",INTRO!$E$41="Non endémique")," ",IF(COUNTRY_INFO!A102=0," ",COUNTRY_INFO!A102)) -> Angola | B102: =IF(AND(INTRO!$E$37="Non endémique",INTRO!$E$41="Non endémique")," ",IF(COUNTRY_INFO!B102=0," ",COUNTRY_INFO!B102)) -> LUANDA | C102: =IF(AND(INTRO!$E$37="Non endémique",INTRO!$E$41="Non endémique")," ",IF(COUNTRY_INFO!C102=0," ",COUNTRY_INFO!C102)) -> CAZENGA | D102: =IF(AND(INTRO!$E$37="Non endémique",INTRO!$E$41="Non endémique"),0,IF(AND(OR(COUNTRY_INFO!$H102=0,COUNTRY_INFO!$H102=4,COUNTRY_INFO!$H102=99),OR(COUNTRY_INFO!$J102=0,COUNTRY_INFO!$J102=4)),0,COUNTRY_INFO!$E102)) -> 250920 | E102: =IF(AND(INTRO!$E$37="Non endémique",INTRO!$E$41="Non endémique"),0,IF(AND(OR(COUNTRY_INFO!$H102=0,COUNTRY_INFO!$H102=4,COUNTRY_INFO!$H102=99),OR(COUNTRY_INFO!$J102=0,COUNTRY_INFO!$J102=4)),0,COUNTRY_INFO!$F102)) -> 437542 | F102: 688462 | G102: =IF(AND(INTRO!$E$37="Non endémique",INTRO!$E$41="Non endémique"),0,COUNTRY_INFO!Q102) -> 0 | H102: =IF(AND(INTRO!$E$37="Non endémique",INTRO!$E$41="Non endémique"),0,COUNTRY_INFO!S102) -> 0 | I102: =IF($G102=1,IVM!$G102,0) -> 0 | J102: =IF($G102=0, " ", IF(COUNTRY_INFO!$H102=1, IF(COUNTRY_INFO!$L102=1, 0," ")," ")) ->  | L102: ALB | M102: =IF($L102="ALB", IF(INTRO!$E$39="Non endémique",IF($H102<>0,$D102*($H102-$G102),0),$D102*$H102), 0) -> 0 | N102: 0 | P102: 0 | Q102: =IF($L102="MBD", IF(INTRO!$E$39="Non endémique",IF($H102<>0,$D102*($H102-$G102),0),$D102*$H102),0) -> 0 | R102: 0 | T102: 0 | V102: 0 | W102: 0 | Y102: 0 | Z102: 0 | AB102: 0 | AC102: 0
A103: =IF(AND(INTRO!$E$37="Non endémique",INTRO!$E$41="Non endémique")," ",IF(COUNTRY_INFO!A103=0," ",COUNTRY_INFO!A103)) -> Angola | B103: =IF(AND(INTRO!$E$37="Non endémique",INTRO!$E$41="Non endémique")," ",IF(COUNTRY_INFO!B103=0," ",COUNTRY_INFO!B103)) -> LUANDA | C103: =IF(AND(INTRO!$E$37="Non endémique",INTRO!$E$41="Non endémique")," ",IF(COUNTRY_INFO!C103=0," ",COUNTRY_INFO!C103)) -> ICOLO E BENGO | D103: =IF(AND(INTRO!$E$37="Non endémique",INTRO!$E$41="Non endémique"),0,IF(AND(OR(COUNTRY_INFO!$H103=0,COUNTRY_INFO!$H103=4,COUNTRY_INFO!$H103=99),OR(COUNTRY_INFO!$J103=0,COUNTRY_INFO!$J103=4)),0,COUNTRY_INFO!$E103)) -> 20419 | E103: =IF(AND(INTRO!$E$37="Non endémique",INTRO!$E$41="Non endémique"),0,IF(AND(OR(COUNTRY_INFO!$H103=0,COUNTRY_INFO!$H103=4,COUNTRY_INFO!$H103=99),OR(COUNTRY_INFO!$J103=0,COUNTRY_INFO!$J103=4)),0,COUNTRY_INFO!$F103)) -> 35605 | F103: 56024 | G103: =IF(AND(INTRO!$E$37="Non endémique",INTRO!$E$41="Non endémique"),0,COUNTRY_INFO!Q103) -> 0 | H103: =IF(AND(INTRO!$E$37="Non endémique",INTRO!$E$41="Non endémique"),0,COUNTRY_INFO!S103) -> 1 | I103: =IF($G103=1,IVM!$G103,0) -> 0 | J103: =IF($G103=0, " ", IF(COUNTRY_INFO!$H103=1, IF(COUNTRY_INFO!$L103=1, 0," ")," ")) ->  | L103: ALB | M103: =IF($L103="ALB", IF(INTRO!$E$39="Non endémique",IF($H103<>0,$D103*($H103-$G103),0),$D103*$H103), 0) -> 20419 | N103: 35605 | P103: 56024 | Q103: =IF($L103="MBD", IF(INTRO!$E$39="Non endémique",IF($H103<>0,$D103*($H103-$G103),0),$D103*$H103),0) -> 0 | R103: 0 | T103: 0 | V103: 0 | W103: 0 | Y103: 35605 | Z103: 179 | AB103: 0 | AC103: 0
A104: =IF(AND(INTRO!$E$37="Non endémique",INTRO!$E$41="Non endémique")," ",IF(COUNTRY_INFO!A104=0," ",COUNTRY_INFO!A104)) -> Angola | B104: =IF(AND(INTRO!$E$37="Non endémique",INTRO!$E$41="Non endémique")," ",IF(COUNTRY_INFO!B104=0," ",COUNTRY_INFO!B104)) -> LUANDA | C104: =IF(AND(INTRO!$E$37="Non endémique",INTRO!$E$41="Non endémique")," ",IF(COUNTRY_INFO!C104=0," ",COUNTRY_INFO!C104)) -> KILAMBA KIAXI | D104: =IF(AND(INTRO!$E$37="Non endémique",INTRO!$E$41="Non endémique"),0,IF(AND(OR(COUNTRY_INFO!$H104=0,COUNTRY_INFO!$H104=4,COUNTRY_INFO!$H104=99),OR(COUNTRY_INFO!$J104=0,COUNTRY_INFO!$J104=4)),0,COUNTRY_INFO!$E104)) -> 0 | E104: =IF(AND(INTRO!$E$37="Non endémique",INTRO!$E$41="Non endémique"),0,IF(AND(OR(COUNTRY_INFO!$H104=0,COUNTRY_INFO!$H104=4,COUNTRY_INFO!$H104=99),OR(COUNTRY_INFO!$J104=0,COUNTRY_INFO!$J104=4)),0,COUNTRY_INFO!$F104)) -> 0 | F104: 0 | G104: =IF(AND(INTRO!$E$37="Non endémique",INTRO!$E$41="Non endémique"),0,COUNTRY_INFO!Q104) -> 0 | H104: =IF(AND(INTRO!$E$37="Non endémique",INTRO!$E$41="Non endémique"),0,COUNTRY_INFO!S104) -> 0 | I104: =IF($G104=1,IVM!$G104,0) -> 0 | J104: =IF($G104=0, " ", IF(COUNTRY_INFO!$H104=1, IF(COUNTRY_INFO!$L104=1, 0," ")," ")) ->  | L104: ALB | M104: =IF($L104="ALB", IF(INTRO!$E$39="Non endémique",IF($H104<>0,$D104*($H104-$G104),0),$D104*$H104), 0) -> 0 | N104: 0 | P104: 0 | Q104: =IF($L104="MBD", IF(INTRO!$E$39="Non endémique",IF($H104<>0,$D104*($H104-$G104),0),$D104*$H104),0) -> 0 | R104: 0 | T104: 0 | V104: 0 | W104: 0 | Y104: 0 | Z104: 0 | AB104: 0 | AC104: 0
A105: =IF(AND(INTRO!$E$37="Non endémique",INTRO!$E$41="Non endémique")," ",IF(COUNTRY_INFO!A105=0," ",COUNTRY_INFO!A105)) -> Angola | B105: =IF(AND(INTRO!$E$37="Non endémique",INTRO!$E$41="Non endémique")," ",IF(COUNTRY_INFO!B105=0," ",COUNTRY_INFO!B105)) -> LUANDA | C105: =IF(AND(INTRO!$E$37="Non endémique",INTRO!$E$41="Non endémique")," ",IF(COUNTRY_INFO!C105=0," ",COUNTRY_INFO!C105)) -> LUANDA | D105: =IF(AND(INTRO!$E$37="Non endémique",INTRO!$E$41="Non endémique"),0,IF(AND(OR(COUNTRY_INFO!$H105=0,COUNTRY_INFO!$H105=4,COUNTRY_INFO!$H105=99),OR(COUNTRY_INFO!$J105=0,COUNTRY_INFO!$J105=4)),0,COUNTRY_INFO!$E105)) -> 301661 | E105: =IF(AND(INTRO!$E$37="Non endémique",INTRO!$E$41="Non endémique"),0,IF(AND(OR(COUNTRY_INFO!$H105=0,COUNTRY_INFO!$H105=4,COUNTRY_INFO!$H105=99),OR(COUNTRY_INFO!$J105=0,COUNTRY_INFO!$J105=4)),0,COUNTRY_INFO!$F105)) -> 526022 | F105: =SUM(D105:E105) -> 827683 | G105: =IF(AND(INTRO!$E$37="Non endémique",INTRO!$E$41="Non endémique"),0,COUNTRY_INFO!Q105) -> 0 | H105: =IF(AND(INTRO!$E$37="Non endémique",INTRO!$E$41="Non endémique"),0,COUNTRY_INFO!S105) -> 1 | I105: =IF($G105=1,IVM!$G105,0) -> 0 | J105: =IF($G105=0, " ", IF(COUNTRY_INFO!$H105=1, IF(COUNTRY_INFO!$L105=1, 0," ")," ")) ->  | L105: ALB | M105: =IF($L105="ALB", IF(INTRO!$E$39="Non endémique",IF($H105<>0,$D105*($H105-$G105),0),$D105*$H105), 0) -> 301661 | N105: =IF($L105="ALB", IF($H105=0, 0, IF(AND($I105=0, OR($J105=0,$J105=" ")), $E105*$H105, IF(AND($I105=0, $J105>0), IF(($H105-$K105)<=0, 0, $E105*(MAX($H105,$K105)-MIN($H105,$K105))), IF(AND($I105>0, $J105=0), $E105*($H105-$G105), IF($J105=" ", $E105*($H105-$G105), $J105*$E105/($I105+$J105)*$K105+$I105*$E105/($I105+$J105)*($H105-$G105)))))), 0) -> 526022 | P105: =SUM(M105:O105) -> 827683 | Q105: =IF($L105="MBD", IF(INTRO!$E$39="Non endémique",IF($H105<>0,$D105*($H105-$G105),0),$D105*$H105),0) -> 0 | R105: =IF($L105="MBD", IF($H105=0, 0, IF(AND($I105=0, OR($J105=0,$J105=" ")), $E105*$H105, IF(AND($I105=0, $J105>0), IF(($H105-$K105)<=0, 0, $E105*(MAX($H105,$K105)-MIN($H105,$K105))), IF(AND($I105>0, $J105=0), $E105*($H105-$G105), IF($J105=" ", $E105*($H105-$G105), $J105*$E105/($I105+$J105)*$K105+$I105*$E105/($I105+$J105)*($H105-$G105)))))), 0) -> 0 | T105: =SUM(Q105:S105) -> 0 | V105: =IF($J105<>" ", IF(($I105+$J105*$K105)>$U105, ($I105+$J105*$K105)-$U105,0), IF($I105>$U105, $I105-$U105, 0)) -> 0 | W105: =IF($J105<>" ", ROUNDUP(($I105+$J105*$K105)/200,0), ROUNDUP($I105/200,0)) -> 0 | Y105: =IF($N105>$X105,$N105-$X105,0) -> 526022 | Z105: =ROUNDUP($N105/200,0) -> 2631 | AB105: =IF($R105>$AA105,$R105-$AA105,0) -> 0 | AC105: =ROUNDUP($R105/150,0) -> 0
A106: =IF(AND(INTRO!$E$37="Non endémique",INTRO!$E$41="Non endémique")," ",IF(COUNTRY_INFO!A106=0," ",COUNTRY_INFO!A106)) -> Angola | B106: =IF(AND(INTRO!$E$37="Non endémique",INTRO!$E$41="Non endémique")," ",IF(COUNTRY_INFO!B106=0," ",COUNTRY_INFO!B106)) -> LUANDA | C106: =IF(AND(INTRO!$E$37="Non endémique",INTRO!$E$41="Non endémique")," ",IF(COUNTRY_INFO!C106=0," ",COUNTRY_INFO!C106)) -> QUIÇAMA | D106: =IF(AND(INTRO!$E$37="Non endémique",INTRO!$E$41="Non endémique"),0,IF(AND(OR(COUNTRY_INFO!$H106=0,COUNTRY_INFO!$H106=4,COUNTRY_INFO!$H106=99),OR(COUNTRY_INFO!$J106=0,COUNTRY_INFO!$J106=4)),0,COUNTRY_INFO!$E106)) -> 5696 | E106: =IF(AND(INTRO!$E$37="Non endémique",INTRO!$E$41="Non endémique"),0,IF(AND(OR(COUNTRY_INFO!$H106=0,COUNTRY_INFO!$H106=4,COUNTRY_INFO!$H106=99),OR(COUNTRY_INFO!$J106=0,COUNTRY_INFO!$J106=4)),0,COUNTRY_INFO!$F106)) -> 9932 | F106: 15628 | G106: =IF(AND(INTRO!$E$37="Non endémique",INTRO!$E$41="Non endémique"),0,COUNTRY_INFO!Q106) -> 0 | H106: =IF(AND(INTRO!$E$37="Non endémique",INTRO!$E$41="Non endémique"),0,COUNTRY_INFO!S106) -> 0 | I106: =IF($G106=1,IVM!$G106,0) -> 0 | J106: =IF($G106=0, " ", IF(COUNTRY_INFO!$H106=1, IF(COUNTRY_INFO!$L106=1, 0," ")," ")) ->  | L106: ALB | M106: =IF($L106="ALB", IF(INTRO!$E$39="Non endémique",IF($H106<>0,$D106*($H106-$G106),0),$D106*$H106), 0) -> 0 | N106: 0 | P106: 0 | Q106: =IF($L106="MBD", IF(INTRO!$E$39="Non endémique",IF($H106<>0,$D106*($H106-$G106),0),$D106*$H106),0) -> 0 | R106: 0 | T106: 0 | V106: 0 | W106: 0 | Y106: 0 | Z106: 0 | AB106: 0 | AC106: 0
A107: =IF(AND(INTRO!$E$37="Non endémique",INTRO!$E$41="Non endémique")," ",IF(COUNTRY_INFO!A107=0," ",COUNTRY_INFO!A107)) -> Angola | B107: =IF(AND(INTRO!$E$37="Non endémique",INTRO!$E$41="Non endémique")," ",IF(COUNTRY_INFO!B107=0," ",COUNTRY_INFO!B107)) -> LUANDA | C107: =IF(AND(INTRO!$E$37="Non endémique",INTRO!$E$41="Non endémique")," ",IF(COUNTRY_INFO!C107=0," ",COUNTRY_INFO!C107)) -> TALATONA | D107: =IF(AND(INTRO!$E$37="Non endémique",INTRO!$E$41="Non endémique"),0,IF(AND(OR(COUNTRY_INFO!$H107=0,COUNTRY_INFO!$H107=4,COUNTRY_INFO!$H107=99),OR(COUNTRY_INFO!$J107=0,COUNTRY_INFO!$J107=4)),0,COUNTRY_INFO!$E107)) -> 159860 | E107: =IF(AND(INTRO!$E$37="Non endémique",INTRO!$E$41="Non endémique"),0,IF(AND(OR(COUNTRY_INFO!$H107=0,COUNTRY_INFO!$H107=4,COUNTRY_INFO!$H107=99),OR(COUNTRY_INFO!$J107=0,COUNTRY_INFO!$J107=4)),0,COUNTRY_INFO!$F107)) -> 278755 | F107: 438615 | G107: =IF(AND(INTRO!$E$37="Non endémique",INTRO!$E$41="Non endémique"),0,COUNTRY_INFO!Q107) -> 0 | H107: =IF(AND(INTRO!$E$37="Non endémique",INTRO!$E$41="Non endémique"),0,COUNTRY_INFO!S107) -> 0 | I107: =IF($G107=1,IVM!$G107,0) -> 0 | J107: =IF($G107=0, " ", IF(COUNTRY_INFO!$H107=1, IF(COUNTRY_INFO!$L107=1, 0," ")," ")) ->  | L107: ALB | M107: =IF($L107="ALB", IF(INTRO!$E$39="Non endémique",IF($H107<>0,$D107*($H107-$G107),0),$D107*$H107), 0) -> 0 | N107: 0 | P107: 0 | Q107: =IF($L107="MBD", IF(INTRO!$E$39="Non endémique",IF($H107<>0,$D107*($H107-$G107),0),$D107*$H107),0) -> 0 | R107: 0 | T107: 0 | V107: 0 | W107: 0 | Y107: 0 | Z107: 0 | AB107: 0 | AC107: 0
A108: =IF(AND(INTRO!$E$37="Non endémique",INTRO!$E$41="Non endémique")," ",IF(COUNTRY_INFO!A108=0," ",COUNTRY_INFO!A108)) -> Angola | B108: =IF(AND(INTRO!$E$37="Non endémique",INTRO!$E$41="Non endémique")," ",IF(COUNTRY_INFO!B108=0," ",COUNTRY_INFO!B108)) -> LUANDA | C108: =IF(AND(INTRO!$E$37="Non endémique",INTRO!$E$41="Non endémique")," ",IF(COUNTRY_INFO!C108=0," ",COUNTRY_INFO!C108)) -> VIANA | D108: =IF(AND(INTRO!$E$37="Non endémique",INTRO!$E$41="Non endémique"),0,IF(AND(OR(COUNTRY_INFO!$H108=0,COUNTRY_INFO!$H108=4,COUNTRY_INFO!$H108=99),OR(COUNTRY_INFO!$J108=0,COUNTRY_INFO!$J108=4)),0,COUNTRY_INFO!$E108)) -> 0 | E108: =IF(AND(INTRO!$E$37="Non endémique",INTRO!$E$41="Non endémique"),0,IF(AND(OR(COUNTRY_INFO!$H108=0,COUNTRY_INFO!$H108=4,COUNTRY_INFO!$H108=99),OR(COUNTRY_INFO!$J108=0,COUNTRY_INFO!$J108=4)),0,COUNTRY_INFO!$F108)) -> 0 | F108: 0 | G108: =IF(AND(INTRO!$E$37="Non endémique",INTRO!$E$41="Non endémique"),0,COUNTRY_INFO!Q108) -> 0 | H108: =IF(AND(INTRO!$E$37="Non endémique",INTRO!$E$41="Non endémique"),0,COUNTRY_INFO!S108) -> 0 | I108: =IF($G108=1,IVM!$G108,0) -> 0 | J108: =IF($G108=0, " ", IF(COUNTRY_INFO!$H108=1, IF(COUNTRY_INFO!$L108=1, 0," ")," ")) ->  | L108: ALB | M108: =IF($L108="ALB", IF(INTRO!$E$39="Non endémique",IF($H108<>0,$D108*($H108-$G108),0),$D108*$H108), 0) -> 0 | N108: 0 | P108: 0 | Q108: =IF($L108="MBD", IF(INTRO!$E$39="Non endémique",IF($H108<>0,$D108*($H108-$G108),0),$D108*$H108),0) -> 0 | R108: 0 | T108: 0 | V108: 0 | W108: 0 | Y108: 0 | Z108: 0 | AB108: 0 | AC108: 0
A109: =IF(AND(INTRO!$E$37="Non endémique",INTRO!$E$41="Non endémique")," ",IF(COUNTRY_INFO!A109=0," ",COUNTRY_INFO!A109)) -> Angola | B109: =IF(AND(INTRO!$E$37="Non endémique",INTRO!$E$41="Non endémique")," ",IF(COUNTRY_INFO!B109=0," ",COUNTRY_INFO!B109)) -> LUNDA NORTE | C109: =IF(AND(INTRO!$E$37="Non endémique",INTRO!$E$41="Non endémique")," ",IF(COUNTRY_INFO!C109=0," ",COUNTRY_INFO!C109)) -> CAMBULO | D109: =IF(AND(INTRO!$E$37="Non endémique",INTRO!$E$41="Non endémique"),0,IF(AND(OR(COUNTRY_INFO!$H109=0,COUNTRY_INFO!$H109=4,COUNTRY_INFO!$H109=99),OR(COUNTRY_INFO!$J109=0,COUNTRY_INFO!$J109=4)),0,COUNTRY_INFO!$E109)) -> 25631 | E109: =IF(AND(INTRO!$E$37="Non endémique",INTRO!$E$41="Non endémique"),0,IF(AND(OR(COUNTRY_INFO!$H109=0,COUNTRY_INFO!$H109=4,COUNTRY_INFO!$H109=99),OR(COUNTRY_INFO!$J109=0,COUNTRY_INFO!$J109=4)),0,COUNTRY_INFO!$F109)) -> 44695 | F109: 70326 | G109: =IF(AND(INTRO!$E$37="Non endémique",INTRO!$E$41="Non endémique"),0,COUNTRY_INFO!Q109) -> 1 | H109: =IF(AND(INTRO!$E$37="Non endémique",INTRO!$E$41="Non endémique"),0,COUNTRY_INFO!S109) -> 2 | I109: =IF($G109=1,IVM!$G109,0) -> 129118 | J109: =IF($G109=0, " ", IF(COUNTRY_INFO!$H109=1, IF(COUNTRY_INFO!$L109=1, 0," ")," ")) ->  | L109: ALB | M109: =IF($L109="ALB", IF(INTRO!$E$39="Non endémique",IF($H109<>0,$D109*($H109-$G109),0),$D109*$H109), 0) -> 51262 | N109: 44695 | P109: 95957 | Q109: =IF($L109="MBD", IF(INTRO!$E$39="Non endémique",IF($H109<>0,$D109*($H109-$G109),0),$D109*$H109),0) -> 0 | R109: 0 | T109: 0 | V109: 129118 | W109: 646 | Y109: 44695 | Z109: 224 | AB109: 0 | AC109: 0
A110: =IF(AND(INTRO!$E$37="Non endémique",INTRO!$E$41="Non endémique")," ",IF(COUNTRY_INFO!A110=0," ",COUNTRY_INFO!A110)) -> Angola | B110: =IF(AND(INTRO!$E$37="Non endémique",INTRO!$E$41="Non endémique")," ",IF(COUNTRY_INFO!B110=0," ",COUNTRY_INFO!B110)) -> LUNDA NORTE | C110: =IF(AND(INTRO!$E$37="Non endémique",INTRO!$E$41="Non endémique")," ",IF(COUNTRY_INFO!C110=0," ",COUNTRY_INFO!C110)) -> CAPENDA CAMULEMBA | D110: =IF(AND(INTRO!$E$37="Non endémique",INTRO!$E$41="Non endémique"),0,IF(AND(OR(COUNTRY_INFO!$H110=0,COUNTRY_INFO!$H110=4,COUNTRY_INFO!$H110=99),OR(COUNTRY_INFO!$J110=0,COUNTRY_INFO!$J110=4)),0,COUNTRY_INFO!$E110)) -> 12446 | E110: =IF(AND(INTRO!$E$37="Non endémique",INTRO!$E$41="Non endémique"),0,IF(AND(OR(COUNTRY_INFO!$H110=0,COUNTRY_INFO!$H110=4,COUNTRY_INFO!$H110=99),OR(COUNTRY_INFO!$J110=0,COUNTRY_INFO!$J110=4)),0,COUNTRY_INFO!$F110)) -> 21703 | F110: 34149 | G110: =IF(AND(INTRO!$E$37="Non endémique",INTRO!$E$41="Non endémique"),0,COUNTRY_INFO!Q110) -> 0 | H110: =IF(AND(INTRO!$E$37="Non endémique",INTRO!$E$41="Non endémique"),0,COUNTRY_INFO!S110) -> 2 | I110: =IF($G110=1,IVM!$G110,0) -> 0 | J110: =IF($G110=0, " ", IF(COUNTRY_INFO!$H110=1, IF(COUNTRY_INFO!$L110=1, 0," ")," ")) ->  | L110: ALB | M110: =IF($L110="ALB", IF(INTRO!$E$39="Non endémique",IF($H110<>0,$D110*($H110-$G110),0),$D110*$H110), 0) -> 24892 | N110: 43406 | P110: 68298 | Q110: =IF($L110="MBD", IF(INTRO!$E$39="Non endémique",IF($H110<>0,$D110*($H110-$G110),0),$D110*$H110),0) -> 0 | R110: 0 | T110: 0 | V110: 0 | W110: 0 | Y110: 43406 | Z110: 218 | AB110: 0 | AC110: 0
A111: =IF(AND(INTRO!$E$37="Non endémique",INTRO!$E$41="Non endémique")," ",IF(COUNTRY_INFO!A111=0," ",COUNTRY_INFO!A111)) -> Angola | B111: =IF(AND(INTRO!$E$37="Non endémique",INTRO!$E$41="Non endémique")," ",IF(COUNTRY_INFO!B111=0," ",COUNTRY_INFO!B111)) -> LUNDA NORTE | C111: =IF(AND(INTRO!$E$37="Non endémique",INTRO!$E$41="Non endémique")," ",IF(COUNTRY_INFO!C111=0," ",COUNTRY_INFO!C111)) -> CAUNGULA | D111: =IF(AND(INTRO!$E$37="Non endémique",INTRO!$E$41="Non endémique"),0,IF(AND(OR(COUNTRY_INFO!$H111=0,COUNTRY_INFO!$H111=4,COUNTRY_INFO!$H111=99),OR(COUNTRY_INFO!$J111=0,COUNTRY_INFO!$J111=4)),0,COUNTRY_INFO!$E111)) -> 5992 | E111: =IF(AND(INTRO!$E$37="Non endémique",INTRO!$E$41="Non endémique"),0,IF(AND(OR(COUNTRY_INFO!$H111=0,COUNTRY_INFO!$H111=4,COUNTRY_INFO!$H111=99),OR(COUNTRY_INFO!$J111=0,COUNTRY_INFO!$J111=4)),0,COUNTRY_INFO!$F111)) -> 10449 | F111: 16441 | G111: =IF(AND(INTRO!$E$37="Non endémique",INTRO!$E$41="Non endémique"),0,COUNTRY_INFO!Q111) -> 0 | H111: =IF(AND(INTRO!$E$37="Non endémique",INTRO!$E$41="Non endémique"),0,COUNTRY_INFO!S111) -> 1 | I111: =IF($G111=1,IVM!$G111,0) -> 0 | J111: =IF($G111=0, " ", IF(COUNTRY_INFO!$H111=1, IF(COUNTRY_INFO!$L111=1, 0," ")," ")) ->  | L111: ALB | M111: =IF($L111="ALB", IF(INTRO!$E$39="Non endémique",IF($H111<>0,$D111*($H111-$G111),0),$D111*$H111), 0) -> 5992 | N111: 10449 | P111: 16441 | Q111: =IF($L111="MBD", IF(INTRO!$E$39="Non endémique",IF($H111<>0,$D111*($H111-$G111),0),$D111*$H111),0) -> 0 | R111: 0 | T111: 0 | V111: 0 | W111: 0 | Y111: 10449 | Z111: 53 | AB111: 0 | AC111: 0
A112: =IF(AND(INTRO!$E$37="Non endémique",INTRO!$E$41="Non endémique")," ",IF(COUNTRY_INFO!A112=0," ",COUNTRY_INFO!A112)) -> Angola | B112: =IF(AND(INTRO!$E$37="Non endémique",INTRO!$E$41="Non endémique")," ",IF(COUNTRY_INFO!B112=0," ",COUNTRY_INFO!B112)) -> LUNDA NORTE | C112: =IF(AND(INTRO!$E$37="Non endémique",INTRO!$E$41="Non endémique")," ",IF(COUNTRY_INFO!C112=0," ",COUNTRY_INFO!C112)) -> CHITATO | D112: =IF(AND(INTRO!$E$37="Non endémique",INTRO!$E$41="Non endémique"),0,IF(AND(OR(COUNTRY_INFO!$H112=0,COUNTRY_INFO!$H112=4,COUNTRY_INFO!$H112=99),OR(COUNTRY_INFO!$J112=0,COUNTRY_INFO!$J112=4)),0,COUNTRY_INFO!$E112)) -> 40396 | E112: =IF(AND(INTRO!$E$37="Non endémique",INTRO!$E$41="Non endémique"),0,IF(AND(OR(COUNTRY_INFO!$H112=0,COUNTRY_INFO!$H112=4,COUNTRY_INFO!$H112=99),OR(COUNTRY_INFO!$J112=0,COUNTRY_INFO!$J112=4)),0,COUNTRY_INFO!$F112)) -> 70441 | F112: 110837 | G112: =IF(AND(INTRO!$E$37="Non endémique",INTRO!$E$41="Non endémique"),0,COUNTRY_INFO!Q112) -> 0 | H112: =IF(AND(INTRO!$E$37="Non endémique",INTRO!$E$41="Non endémique"),0,COUNTRY_INFO!S112) -> 2 | I112: =IF($G112=1,IVM!$G112,0) -> 0 | J112: =IF($G112=0, " ", IF(COUNTRY_INFO!$H112=1, IF(COUNTRY_INFO!$L112=1, 0," ")," ")) ->  | L112: ALB | M112: =IF($L112="ALB", IF(INTRO!$E$39="Non endémique",IF($H112<>0,$D112*($H112-$G112),0),$D112*$H112), 0) -> 80792 | N112: 140882 | P112: 221674 | Q112: =IF($L112="MBD", IF(INTRO!$E$39="Non endémique",IF($H112<>0,$D112*($H112-$G112),0),$D112*$H112),0) -> 0 | R112: 0 | T112: 0 | V112: 0 | W112: 0 | Y112: 140882 | Z112: 705 | AB112: 0 | AC112: 0
A113: =IF(AND(INTRO!$E$37="Non endémique",INTRO!$E$41="Non endémique")," ",IF(COUNTRY_INFO!A113=0," ",COUNTRY_INFO!A113)) -> Angola | B113: =IF(AND(INTRO!$E$37="Non endémique",INTRO!$E$41="Non endémique")," ",IF(COUNTRY_INFO!B113=0," ",COUNTRY_INFO!B113)) -> LUNDA NORTE | C113: =IF(AND(INTRO!$E$37="Non endémique",INTRO!$E$41="Non endémique")," ",IF(COUNTRY_INFO!C113=0," ",COUNTRY_INFO!C113)) -> CUANGO | D113: =IF(AND(INTRO!$E$37="Non endémique",INTRO!$E$41="Non endémique"),0,IF(AND(OR(COUNTRY_INFO!$H113=0,COUNTRY_INFO!$H113=4,COUNTRY_INFO!$H113=99),OR(COUNTRY_INFO!$J113=0,COUNTRY_INFO!$J113=4)),0,COUNTRY_INFO!$E113)) -> 39221 | E113: =IF(AND(INTRO!$E$37="Non endémique",INTRO!$E$41="Non endémique"),0,IF(AND(OR(COUNTRY_INFO!$H113=0,COUNTRY_INFO!$H113=4,COUNTRY_INFO!$H113=99),OR(COUNTRY_INFO!$J113=0,COUNTRY_INFO!$J113=4)),0,COUNTRY_INFO!$F113)) -> 68392 | F113: 107613 | G113: =IF(AND(INTRO!$E$37="Non endémique",INTRO!$E$41="Non endémique"),0,COUNTRY_INFO!Q113) -> 0 | H113: =IF(AND(INTRO!$E$37="Non endémique",INTRO!$E$41="Non endémique"),0,COUNTRY_INFO!S113) -> 1 | I113: =IF($G113=1,IVM!$G113,0) -> 0 | J113: =IF($G113=0, " ", IF(COUNTRY_INFO!$H113=1, IF(COUNTRY_INFO!$L113=1, 0," ")," ")) ->  | L113: ALB | M113: =IF($L113="ALB", IF(INTRO!$E$39="Non endémique",IF($H113<>0,$D113*($H113-$G113),0),$D113*$H113), 0) -> 39221 | N113: 68392 | P113: 107613 | Q113: =IF($L113="MBD", IF(INTRO!$E$39="Non endémique",IF($H113<>0,$D113*($H113-$G113),0),$D113*$H113),0) -> 0 | R113: 0 | T113: 0 | V113: 0 | W113: 0 | Y113: 68392 | Z113: 342 | AB113: 0 | AC113: 0
A114: =IF(AND(INTRO!$E$37="Non endémique",INTRO!$E$41="Non endémique")," ",IF(COUNTRY_INFO!A114=0," ",COUNTRY_INFO!A114)) -> Angola | B114: =IF(AND(INTRO!$E$37="Non endémique",INTRO!$E$41="Non endémique")," ",IF(COUNTRY_INFO!B114=0," ",COUNTRY_INFO!B114)) -> LUNDA NORTE | C114: =IF(AND(INTRO!$E$37="Non endémique",INTRO!$E$41="Non endémique")," ",IF(COUNTRY_INFO!C114=0," ",COUNTRY_INFO!C114)) -> CUILO | D114: =IF(AND(INTRO!$E$37="Non endémique",INTRO!$E$41="Non endémique"),0,IF(AND(OR(COUNTRY_INFO!$H114=0,COUNTRY_INFO!$H114=4,COUNTRY_INFO!$H114=99),OR(COUNTRY_INFO!$J114=0,COUNTRY_INFO!$J114=4)),0,COUNTRY_INFO!$E114)) -> 4479 | E114: =IF(AND(INTRO!$E$37="Non endémique",INTRO!$E$41="Non endémique"),0,IF(AND(OR(COUNTRY_INFO!$H114=0,COUNTRY_INFO!$H114=4,COUNTRY_INFO!$H114=99),OR(COUNTRY_INFO!$J114=0,COUNTRY_INFO!$J114=4)),0,COUNTRY_INFO!$F114)) -> 7810 | F114: 12289 | G114: =IF(AND(INTRO!$E$37="Non endémique",INTRO!$E$41="Non endémique"),0,COUNTRY_INFO!Q114) -> 1 | H114: =IF(AND(INTRO!$E$37="Non endémique",INTRO!$E$41="Non endémique"),0,COUNTRY_INFO!S114) -> 1 | I114: =IF($G114=1,IVM!$G114,0) -> 22562 | J114: =IF($G114=0, " ", IF(COUNTRY_INFO!$H114=1, IF(COUNTRY_INFO!$L114=1, 0," ")," ")) ->  | L114: ALB | M114: =IF($L114="ALB", IF(INTRO!$E$39="Non endémique",IF($H114<>0,$D114*($H114-$G114),0),$D114*$H114), 0) -> 4479 | N114: 0 | P114: 4479 | Q114: =IF($L114="MBD", IF(INTRO!$E$39="Non endémique",IF($H114<>0,$D114*($H114-$G114),0),$D114*$H114),0) -> 0 | R114: 0 | T114: 0 | V114: 22562 | W114: 113 | Y114: 0 | Z114: 0 | AB114: 0 | AC114: 0
